Workbook

Sheet Time_harm
B2: Time-domain harmonic composition of periodical signals
C4: SWEEP: | F4: I N P U T P A R A M E T E R S:
B5: Nsteps | C5: Min | D5: Max
B6: 100 | C6: 0.5 | D6: 2 | E6: 100000000 | F6: 50 | G6: 5e-10 | H6: 5e-10 | I6: 2e-11
F7: O U T P U T P A R A M E T E R S:
E8: DC [V] | F8: T [s] | G8: F2r [Hz] | H8: F2f [Hz]
E9: =Low_+(High_-Low_)*D_/100 -> 0.5 | F9: =1/f_ -> 1e-08 | G9: =1/(tr_*PI()) -> 636619772.4 | H9: =1/(tf_*PI()) -> 636619772.4
S60: [rad]
S61: Phase offset
S62: Ofs_
S63: =PI()*tr_/T_ -> 0.1570796327
B65: Vlo [V] | C65: Vhi [V]
B66: 0 | C66: 1 | D66: Fourier components: Harmonic composition of signal | S66: Harmonic composition of time series
U67: P_0 | V67: P_1 | W67: P_2 | X67: P_3 | Y67: P_4 | Z67: P_5 | AA67: P_6 | AB67: P_7 | AC67: P_8 | AD67: P_9 | AE67: P_10 | AF67: P_11 | AG67: P_12 | AH67: P_13 | AI67: P_14 | AJ67: P_15 | AK67: P_16 | AL67: P_17 | AM67: P_18 | AN67: P_19 | AO67: P_20 | AP67: P_21 | AQ67: P_22 | AR67: P_23 | AS67: P_24 | AT67: P_25 | AU67: P_26 | AV67: P_27 | AW67: P_28 | AX67: P_29 | AY67: P_30 | AZ67: P_31 | BA67: P_32 | BB67: P_33 | BC67: P_34 | BD67: P_35 | BE67: P_36 | BF67: P_37 | BG67: P_38 | BH67: P_39 | BI67: P_40 | BJ67: P_41 | BK67: P_42 | BL67: P_43 | BM67: P_44 | BN67: P_45 | BO67: P_46 | BP67: P_47 | BQ67: P_48 | BR67: P_49 | BS67: P_50 | BT67: P_51 | BU67: P_52 | BV67: P_53 | BW67: P_54 | BX67: P_55 | BY67: P_56 | BZ67: P_57 | CA67: P_58 | CB67: P_59 | CC67: P_60 | CD67: P_61 | CE67: P_62 | CF67: P_63 | CG67: P_64 | CH67: P_65 | CI67: P_66 | CJ67: P_67 | CK67: P_68 | CL67: P_69 | CM67: P_70 | CN67: P_71 | CO67: P_72 | CP67: P_73 | CQ67: P_74 | CR67: P_75 | CS67: P_76 | CT67: P_77 | CU67: P_78 | CV67: P_79 | CW67: P_80 | CX67: P_81 | CY67: P_82 | CZ67: P_83 | DA67: P_84 | DB67: P_85 | DC67: P_86 | DD67: P_87 | DE67: P_88 | DF67: P_89 | DG67: P_90 | DH67: P_91 | DI67: P_92 | DJ67: P_93 | DK67: P_94 | DL67: P_95 | DM67: P_96 | DN67: P_97 | DO67: P_98 | DP67: P_99 | DQ67: P_100
B68: Harm. | D68: n*PI* | I68: UNFILTERED | L68: FILTERED | S68: Time ser. | T68: N_ | U68: 0 | V68: 1 | W68: 2 | X68: 3 | Y68: 4 | Z68: 5 | AA68: 6 | AB68: 7 | AC68: 8 | AD68: 9 | AE68: 10 | AF68: 11 | AG68: 12 | AH68: 13 | AI68: 14 | AJ68: 15 | AK68: 16 | AL68: 17 | AM68: 18 | AN68: 19 | AO68: 20 | AP68: 21 | AQ68: 22 | AR68: 23 | AS68: 24 | AT68: 25 | AU68: 26 | AV68: 27 | AW68: 28 | AX68: 29 | AY68: 30 | AZ68: 31 | BA68: 32 | BB68: 33 | BC68: 34 | BD68: 35 | BE68: 36 | BF68: 37 | BG68: 38 | BH68: 39 | BI68: 40 | BJ68: 41 | BK68: 42 | BL68: 43 | BM68: 44 | BN68: 45 | BO68: 46 | BP68: 47 | BQ68: 48 | BR68: 49 | BS68: 50 | BT68: 51 | BU68: 52 | BV68: 53 | BW68: 54 | BX68: 55 | BY68: 56 | BZ68: 57 | CA68: 58 | CB68: 59 | CC68: 60 | CD68: 61 | CE68: 62 | CF68: 63 | CG68: 64 | CH68: 65 | CI68: 66 | CJ68: 67 | CK68: 68 | CL68: 69 | CM68: 70 | CN68: 71 | CO68: 72 | CP68: 73 | CQ68: 74 | CR68: 75 | CS68: 76 | CT68: 77 | CU68: 78 | CV68: 79 | CW68: 80 | CX68: 81 | CY68: 82 | CZ68: 83 | DA68: 84 | DB68: 85 | DC68: 86 | DD68: 87 | DE68: 88 | DF68: 89 | DG68: 90 | DH68: 91 | DI68: 92 | DJ68: 93 | DK68: 94 | DL68: 95 | DM68: 96 | DN68: 97 | DO68: 98 | DP68: 99 | DQ68: 100
B69: series | C69: Freq. | D69: (2t+tr)/T | E69: n*PI*tr/T | F69: n*PI*tf/T | G69: SIN(nPItr) | H69: SIN(nPItf) | I69: Re{M} | J69: Im{M} | K69: Magn. | L69: Re{Mag} | M69: Im{Mag} | N69: Magnit. | S69: argument | T69: Rad_ | U69: =2*PI()*N_/100 -> 0 | V69: =2*PI()*N_/100 -> 0.06283185307 | W69: 0.1256637061 | X69: 0.1884955592 | Y69: 0.2513274123 | Z69: 0.3141592654 | AA69: 0.3769911184 | AB69: 0.4398229715 | AC69: 0.5026548246 | AD69: 0.5654866776 | AE69: 0.6283185307 | AF69: 0.6911503838 | AG69: 0.7539822369 | AH69: 0.8168140899 | AI69: 0.879645943 | AJ69: 0.9424777961 | AK69: 1.005309649 | AL69: =2*PI()*N_/100 -> 1.068141502 | AM69: 1.130973355 | AN69: 1.193805208 | AO69: 1.256637061 | AP69: 1.319468915 | AQ69: 1.382300768 | AR69: 1.445132621 | AS69: 1.507964474 | AT69: 1.570796327 | AU69: 1.63362818 | AV69: 1.696460033 | AW69: 1.759291886 | AX69: 1.822123739 | AY69: 1.884955592 | AZ69: 1.947787445 | BA69: 2.010619298 | BB69: =2*PI()*N_/100 -> 2.073451151 | BC69: 2.136283004 | BD69: 2.199114858 | BE69: 2.261946711 | BF69: 2.324778564 | BG69: 2.387610417 | BH69: 2.45044227 | BI69: 2.513274123 | BJ69: 2.576105976 | BK69: 2.638937829 | BL69: 2.701769682 | BM69: 2.764601535 | BN69: 2.827433388 | BO69: 2.890265241 | BP69: 2.953097094 | BQ69: 3.015928947 | BR69: =2*PI()*N_/100 -> 3.078760801 | BS69: 3.141592654 | BT69: 3.204424507 | BU69: 3.26725636 | BV69: 3.330088213 | BW69: 3.392920066 | BX69: 3.455751919 | BY69: 3.518583772 | BZ69: 3.581415625 | CA69: 3.644247478 | CB69: 3.707079331 | CC69: 3.769911184 | CD69: 3.832743037 | CE69: 3.89557489 | CF69: 3.958406744 | CG69: 4.021238597 | CH69: =2*PI()*N_/100 -> 4.08407045 | CI69: 4.146902303 | CJ69: 4.209734156 | CK69: 4.272566009 | CL69: 4.335397862 | CM69: 4.398229715 | CN69: 4.461061568 | CO69: 4.523893421 | CP69: 4.586725274 | CQ69: 4.649557127 | CR69: 4.71238898 | CS69: 4.775220833 | CT69: 4.838052687 | CU69: 4.90088454 | CV69: 4.963716393 | CW69: 5.026548246 | CX69: =2*PI()*N_/100 -> 5.089380099 | CY69: 5.152211952 | CZ69: 5.215043805 | DA69: 5.277875658 | DB69: 5.340707511 | DC69: 5.403539364 | DD69: 5.466371217 | DE69: 5.52920307 | DF69: 5.592034923 | DG69: 5.654866776 | DH69: 5.71769863 | DI69: 5.780530483 | DJ69: 5.843362336 | DK69: 5.906194189 | DL69: 5.969026042 | DM69: 6.031857895 | DN69: =2*PI()*N_/100 -> 6.094689748 | DO69: =2*PI()*N_/100 -> 6.157521601 | DP69: =2*PI()*N_/100 -> 6.220353454 | DQ69: =2*PI()*N_/100 -> 6.283185307
B70: NH_ | C70: [Hz] | D70: Rad_t | E70: Rad_tr | F70: Rad_tf | G70: X_ | H70: Y_ | I70: Re_H | J70: Im_H | K70: Mg_H dB | L70: Re_H | M70: Im_H | N70: Mg_H dB | S70: V_DC | U70: =DC_ -> 0.5 | V70: =DC_ -> 0.5 | W70: 0.5 | X70: 0.5 | Y70: 0.5 | Z70: 0.5 | AA70: 0.5 | AB70: 0.5 | AC70: 0.5 | AD70: 0.5 | AE70: 0.5 | AF70: 0.5 | AG70: 0.5 | AH70: 0.5 | AI70: 0.5 | AJ70: 0.5 | AK70: 0.5 | AL70: =DC_ -> 0.5 | AM70: 0.5 | AN70: 0.5 | AO70: 0.5 | AP70: 0.5 | AQ70: 0.5 | AR70: 0.5 | AS70: 0.5 | AT70: 0.5 | AU70: 0.5 | AV70: 0.5 | AW70: 0.5 | AX70: 0.5 | AY70: 0.5 | AZ70: 0.5 | BA70: 0.5 | BB70: =DC_ -> 0.5 | BC70: 0.5 | BD70: 0.5 | BE70: 0.5 | BF70: 0.5 | BG70: 0.5 | BH70: 0.5 | BI70: 0.5 | BJ70: 0.5 | BK70: 0.5 | BL70: 0.5 | BM70: 0.5 | BN70: 0.5 | BO70: 0.5 | BP70: 0.5 | BQ70: 0.5 | BR70: =DC_ -> 0.5 | BS70: 0.5 | BT70: 0.5 | BU70: 0.5 | BV70: 0.5 | BW70: 0.5 | BX70: 0.5 | BY70: 0.5 | BZ70: 0.5 | CA70: 0.5 | CB70: 0.5 | CC70: 0.5 | CD70: 0.5 | CE70: 0.5 | CF70: 0.5 | CG70: 0.5 | CH70: =DC_ -> 0.5 | CI70: 0.5 | CJ70: 0.5 | CK70: 0.5 | CL70: 0.5 | CM70: 0.5 | CN70: 0.5 | CO70: 0.5 | CP70: 0.5 | CQ70: 0.5 | CR70: 0.5 | CS70: 0.5 | CT70: 0.5 | CU70: 0.5 | CV70: 0.5 | CW70: 0.5 | CX70: =DC_ -> 0.5 | CY70: 0.5 | CZ70: 0.5 | DA70: 0.5 | DB70: 0.5 | DC70: 0.5 | DD70: 0.5 | DE70: 0.5 | DF70: 0.5 | DG70: 0.5 | DH70: 0.5 | DI70: 0.5 | DJ70: 0.5 | DK70: 0.5 | DL70: 0.5 | DM70: 0.5 | DN70: =DC_ -> 0.5 | DO70: =DC_ -> 0.5 | DP70: =DC_ -> 0.5 | DQ70: =DC_ -> 0.5
B71: 1 | C71: =NH_*f_ -> 100000000 | D71: =NH_*PI()*(2*D_/100*T_+tr_)/T_ -> 3.298672286 | E71: =NH_*PI()*tr_/T_ -> 0.1570796327 | F71: =NH_*PI()*tf_/T_ -> 0.1570796327 | G71: =SIN(Rad_tr)/Rad_tr -> 0.9958927352 | H71: =SIN(Rad_tf)/Rad_tf -> 0.9958927352 | I71: =(High_-Low_)/PI()/NH_*(Y_*SIN(Rad_t)-X_*SIN(Rad_tr)) -> -0.09918023401 | J71: =-(High_-Low_)/PI()/NH_*(Y_*COS(Rad_t)-X_*COS(Rad_tr)) -> 0.6261993527 | K71: =IF(SQRT(Re_H_^2+Im_H_^2)>1E-20, 20*LOG(SQRT(Re_H_^2+Im_H_^2)), -200) -> -3.958146254 | L71: =Re_H_*EXP(-((2*PI()*NH_*f_*0.275*Tr_filter)^2)) -> -0.09917904959 | M71: =Im_H_*EXP(-((2*PI()*NH_*f_*0.275*Tr_filter)^2)) -> 0.6261918745 | N71: =IF(SQRT(Re_H^2+Im_H^2)>1E-20, 20*LOG(SQRT(Re_H^2+Im_H^2)), -200) -> -3.958249983 | S71: V(t) | T71: NH_=1 | U71: =Re_H*COS(NH_*Rad_+NH_*Ofs_)+Im_H*SIN(NH_*Rad_+NH_*Ofs_) -> 0 | V71: 0.03980902833 | W71: 0.0794609486 | X71: 0.1187992728 | Y71: 0.1576687506 | Z71: 0.1959159818 | AA71: 0.2333900222 | AB71: 0.2699429787 | AC71: 0.3054305937 | AD71: 0.3397128136 | AE71: 0.3726543423 | AF71: 0.4041251745 | AG71: 0.4340011093 | AH71: 0.46216424 | AI71: 0.4885034196 | AJ71: 0.5129146993 | AK71: 0.5353017391 | AL71: =Re_H*COS(NH_*Rad_+NH_*Ofs_)+Im_H*SIN(NH_*Rad_+NH_*Ofs_) -> 0.5555761874 | AM71: 0.5736580304 | AN71: 0.5894759072 | AO71: 0.6029673919 | AP71: 0.6140792398 | AQ71: 0.6227675974 | AR71: 0.6289981759 | AS71: 0.6327463859 | AT71: 0.633997435 | AU71: 0.6327463859 | AV71: 0.6289981759 | AW71: 0.6227675974 | AX71: 0.6140792398 | AY71: 0.6029673919 | AZ71: 0.5894759072 | BA71: 0.5736580304 | BB71: =Re_H*COS(NH_*Rad_+NH_*Ofs_)+Im_H*SIN(NH_*Rad_+NH_*Ofs_) -> 0.5555761874 | BC71: 0.5353017391 | BD71: 0.5129146993 | BE71: 0.4885034196 | BF71: 0.46216424 | BG71: 0.4340011093 | BH71: 0.4041251745 | BI71: 0.3726543423 | BJ71: 0.3397128136 | BK71: 0.3054305937 | BL71: 0.2699429787 | BM71: 0.2333900222 | BN71: 0.1959159818 | BO71: 0.1576687506 | BP71: 0.1187992728 | BQ71: 0.0794609486 | BR71: =Re_H*COS(NH_*Rad_+NH_*Ofs_)+Im_H*SIN(NH_*Rad_+NH_*Ofs_) -> 0.03980902833 | BS71: 0 | BT71: -0.03980902833 | BU71: -0.0794609486 | BV71: -0.1187992728 | BW71: -0.1576687506 | BX71: -0.1959159818 | BY71: -0.2333900222 | BZ71: -0.2699429787 | CA71: -0.3054305937 | CB71: -0.3397128136 | CC71: -0.3726543423 | CD71: -0.4041251745 | CE71: -0.4340011093 | CF71: -0.46216424 | CG71: -0.4885034196 | CH71: =Re_H*COS(NH_*Rad_+NH_*Ofs_)+Im_H*SIN(NH_*Rad_+NH_*Ofs_) -> -0.5129146993 | CI71: -0.5353017391 | CJ71: -0.5555761874 | CK71: -0.5736580304 | CL71: -0.5894759072 | CM71: -0.6029673919 | CN71: -0.6140792398 | CO71: -0.6227675974 | CP71: -0.6289981759 | CQ71: -0.6327463859 | CR71: -0.633997435 | CS71: -0.6327463859 | CT71: -0.6289981759 | CU71: -0.6227675974 | CV71: -0.6140792398 | CW71: -0.6029673919 | CX71: =Re_H*COS(NH_*Rad_+NH_*Ofs_)+Im_H*SIN(NH_*Rad_+NH_*Ofs_) -> -0.5894759072 | CY71: -0.5736580304 | CZ71: -0.5555761874 | DA71: -0.5353017391 | DB71: -0.5129146993 | DC71: -0.4885034196 | DD71: -0.46216424 | DE71: -0.4340011093 | DF71: -0.4041251745 | DG71: -0.3726543423 | DH71: -0.3397128136 | DI71: -0.3054305937 | DJ71: -0.2699429787 | DK71: -0.2333900222 | DL71: -0.1959159818 | DM71: -0.1576687506 | DN71: =Re_H*COS(NH_*Rad_+NH_*Ofs_)+Im_H*SIN(NH_*Rad_+NH_*Ofs_) -> -0.1187992728 | DO71: -0.0794609486 | DP71: -0.03980902833 | DQ71: -1.387778781e-16
B72: 2 | C72: =NH_*f_ -> 200000000 | D72: 6.597344573 | E72: 0.3141592654 | F72: =NH_*PI()*tf_/T_ -> 0.3141592654 | G72: =SIN(Rad_tr)/Rad_tr -> 0.9836316431 | H72: =SIN(Rad_tf)/Rad_tf -> 0.9836316431 | I72: -3.533949646e-17 | J72: -1.766974823e-17 | K72: -328.0656927 | L72: =Re_H_*EXP(-((2*PI()*NH_*f_*0.275*Tr_filter)^2)) -> -3.533780837e-17 | M72: =Im_H_*EXP(-((2*PI()*NH_*f_*0.275*Tr_filter)^2)) -> -1.766890419e-17 | N72: -328.0661076 | S72: V(t) | T72: 2 | U72: =Re_H*COS(NH_*Rad_+NH_*Ofs_)+Im_H*SIN(NH_*Rad_+NH_*Ofs_) -> -3.906824459e-17 | V72: -3.94976585e-17 | W72: -3.930417074e-17 | X72: -3.849083272e-17 | Y72: -3.707047128e-17 | Z72: -3.506548637e-17 | AA72: -3.250749779e-17 | AB72: -2.943684654e-17 | AC72: -2.590195865e-17 | AD72: -2.195858139e-17 | AE72: -1.766890419e-17 | AF72: -1.310057781e-17 | AG72: -8.325647494e-18 | AH72: -3.419416744e-18 | AI72: 1.540740251e-18 | AJ72: 6.476598851e-18 | AK72: =Re_H*COS(NH_*Rad_+NH_*Ofs_)+Im_H*SIN(NH_*Rad_+NH_*Ofs_) -> 1.131031762e-17 | AL72: 1.596566592e-17 | AM72: 2.036922613e-17 | AN72: 2.445155148e-17 | AO72: 2.814826126e-17 | AP72: 3.140105614e-17 | AQ72: 3.415863761e-17 | AR72: 3.637751695e-17 | AS72: 3.802270113e-17 | AT72: 3.906824459e-17 | AU72: 3.94976585e-17 | AV72: 3.930417074e-17 | AW72: 3.849083272e-17 | AX72: 3.707047128e-17 | AY72: 3.506548637e-17 | AZ72: 3.250749779e-17 | BA72: 2.943684654e-17 | BB72: 2.590195865e-17 | BC72: 2.195858139e-17 | BD72: 1.766890419e-17 | BE72: 1.310057781e-17 | BF72: 8.325647494e-18 | BG72: 3.419416744e-18 | BH72: -1.540740251e-18 | BI72: -6.476598851e-18 | BJ72: -1.131031762e-17 | BK72: -1.596566592e-17 | BL72: -2.036922613e-17 | BM72: -2.445155148e-17 | BN72: -2.814826126e-17 | BO72: -3.140105614e-17 | BP72: -3.415863761e-17 | BQ72: -3.637751695e-17 | BR72: -3.802270113e-17 | BS72: -3.906824459e-17 | BT72: -3.94976585e-17 | BU72: -3.930417074e-17 | BV72: -3.849083272e-17 | BW72: -3.707047128e-17 | BX72: -3.506548637e-17 | BY72: -3.250749779e-17 | BZ72: -2.943684654e-17 | CA72: -2.590195865e-17 | CB72: -2.195858139e-17 | CC72: -1.766890419e-17 | CD72: -1.310057781e-17 | CE72: -8.325647494e-18 | CF72: -3.419416744e-18 | CG72: 1.540740251e-18 | CH72: 6.476598851e-18 | CI72: 1.131031762e-17 | CJ72: 1.596566592e-17 | CK72: 2.036922613e-17 | CL72: 2.445155148e-17 | CM72: 2.814826126e-17 | CN72: 3.140105614e-17 | CO72: 3.415863761e-17 | CP72: 3.637751695e-17 | CQ72: 3.802270113e-17 | CR72: 3.906824459e-17 | CS72: 3.94976585e-17 | CT72: 3.930417074e-17 | CU72: 3.849083272e-17 | CV72: 3.707047128e-17 | CW72: 3.506548637e-17 | CX72: 3.250749779e-17 | CY72: 2.943684654e-17 | CZ72: 2.590195865e-17 | DA72: 2.195858139e-17 | DB72: 1.766890419e-17 | DC72: 1.310057781e-17 | DD72: 8.325647494e-18 | DE72: 3.419416744e-18 | DF72: -1.540740251e-18 | DG72: -6.476598851e-18 | DH72: -1.131031762e-17 | DI72: -1.596566592e-17 | DJ72: -2.036922613e-17 | DK72: -2.445155148e-17 | DL72: -2.814826126e-17 | DM72: -3.140105614e-17 | DN72: -3.415863761e-17 | DO72: -3.637751695e-17 | DP72: -3.802270113e-17 | DQ72: -3.906824459e-17
B73: 3 | C73: 300000000 | D73: 9.896016859 | E73: 0.471238898 | F73: 0.471238898 | G73: 0.963397762 | H73: 0.963397762 | I73: -0.09281352478 | J73: 0.1821567988 | K73: -13.78870997 | L73: -0.09280354972 | M73: 0.1821372216 | N73: -13.78964353 | S73: V(t) | T73: 3 | U73: 1.526556659e-16 | V73: 0.03830399789 | W73: 0.07525105756 | X73: 0.109532311 | Y73: 0.1399333277 | Z73: 0.1653771365 | AA73: 0.1849623779 | AB73: 0.1979952347 | AC73: 0.2040140117 | AD73: 0.2028054906 | AE73: 0.1944124839 | AF73: 0.179132318 | AG73: 0.1575063004 | AH73: 0.1303005436 | AI73: 0.09847882516 | AJ73: 0.0631684452 | AK73: 0.02562029157 | AL73: -0.01283547366 | AM73: -0.05083653584 | AN73: -0.08703668839 | AO73: -0.1201535229 | AP73: -0.1490138589 | AQ73: -0.1725953047 | AR73: -0.1900624757 | AS73: -0.2007965888 | AT73: -0.2044173827 | AU73: -0.2007965888 | AV73: -0.1900624757 | AW73: -0.1725953047 | AX73: -0.1490138589 | AY73: -0.1201535229 | AZ73: -0.08703668839 | BA73: -0.05083653584 | BB73: -0.01283547366 | BC73: 0.02562029157 | BD73: 0.0631684452 | BE73: 0.09847882516 | BF73: 0.1303005436 | BG73: 0.1575063004 | BH73: 0.179132318 | BI73: 0.1944124839 | BJ73: 0.2028054906 | BK73: 0.2040140117 | BL73: 0.1979952347 | BM73: 0.1849623779 | BN73: 0.1653771365 | BO73: 0.1399333277 | BP73: 0.109532311 | BQ73: 0.07525105756 | BR73: 0.03830399789 | BS73: 1.110223025e-16 | BT73: -0.03830399789 | BU73: -0.07525105756 | BV73: -0.109532311 | BW73: -0.1399333277 | BX73: -0.1653771365 | BY73: -0.1849623779 | BZ73: -0.1979952347 | CA73: -0.2040140117 | CB73: -0.2028054906 | CC73: -0.1944124839 | CD73: -0.179132318 | CE73: -0.1575063004 | CF73: -0.1303005436 | CG73: -0.09847882516 | CH73: -0.0631684452 | CI73: -0.02562029157 | CJ73: 0.01283547366 | CK73: 0.05083653584 | CL73: 0.08703668839 | CM73: 0.1201535229 | CN73: 0.1490138589 | CO73: 0.1725953047 | CP73: 0.1900624757 | CQ73: 0.2007965888 | CR73: 0.2044173827 | CS73: 0.2007965888 | CT73: 0.1900624757 | CU73: 0.1725953047 | CV73: 0.1490138589 | CW73: 0.1201535229 | CX73: 0.08703668839 | CY73: 0.05083653584 | CZ73: 0.01283547366 | DA73: -0.02562029157 | DB73: -0.0631684452 | DC73: -0.09847882516 | DD73: -0.1303005436 | DE73: -0.1575063004 | DF73: -0.179132318 | DG73: -0.1944124839 | DH73: -0.2028054906 | DI73: -0.2040140117 | DJ73: -0.1979952347 | DK73: -0.1849623779 | DL73: -0.1653771365 | DM73: -0.1399333277 | DN73: -0.109532311 | DO73: -0.07525105756 | DP73: -0.03830399789 | DQ73: -1.804112415e-16
B74: 4 | C74: 400000000 | D74: 13.19468915 | E74: 0.6283185307 | F74: 0.6283185307 | G74: 0.9354892838 | H74: 0.9354892838 | I74: -2.650462235e-17 | J74: -1.766974823e-17 | K74: -329.9365592 | L74: -2.649955844e-17 | M74: -1.76663723e-17 | N74: -329.9382188 | S74: V(t) | T74: 4 | U74: -3.182262622e-17 | V74: -3.050362808e-17 | W74: -2.726797479e-17 | X74: -2.231897437e-17 | Y74: -1.59675907e-17 | Z74: -8.612904589e-18 | AA74: -7.170380024e-19 | AB74: 7.223882719e-18 | AC74: 1.471090032e-17 | AD74: 2.127357795e-17 | AE74: 2.649955844e-17 | AF74: 3.006047422e-17 | AG74: 3.173257984e-17 | AH74: 3.141081077e-17 | AI74: 2.911538494e-17 | AJ74: 2.499053239e-17 | AK74: 1.929543279e-17 | AL74: 1.238793018e-17 | AM74: 4.702048351e-18 | AN74: -3.279280464e-18 | AO74: -1.105456003e-17 | AP74: -1.813524093e-17 | AQ74: -2.407641795e-17 | AR74: -2.850478508e-17 | AS74: -3.114209173e-17 | AT74: -3.182262622e-17 | AU74: -3.050362808e-17 | AV74: -2.726797479e-17 | AW74: -2.231897437e-17 | AX74: -1.59675907e-17 | AY74: -8.612904589e-18 | AZ74: -7.170380024e-19 | BA74: 7.223882719e-18 | BB74: 1.471090032e-17 | BC74: 2.127357795e-17 | BD74: 2.649955844e-17 | BE74: 3.006047422e-17 | BF74: 3.173257984e-17 | BG74: 3.141081077e-17 | BH74: 2.911538494e-17 | BI74: 2.499053239e-17 | BJ74: 1.929543279e-17 | BK74: 1.238793018e-17 | BL74: 4.702048351e-18 | BM74: -3.279280464e-18 | BN74: -1.105456003e-17 | BO74: -1.813524093e-17 | BP74: -2.407641795e-17 | BQ74: -2.850478508e-17 | BR74: -3.114209173e-17 | BS74: -3.182262622e-17 | BT74: -3.050362808e-17 | BU74: -2.726797479e-17 | BV74: -2.231897437e-17 | BW74: -1.59675907e-17 | BX74: -8.612904589e-18 | BY74: -7.170380024e-19 | BZ74: 7.223882719e-18 | CA74: 1.471090032e-17 | CB74: 2.127357795e-17 | CC74: 2.649955844e-17 | CD74: 3.006047422e-17 | CE74: 3.173257984e-17 | CF74: 3.141081077e-17 | CG74: 2.911538494e-17 | CH74: 2.499053239e-17 | CI74: 1.929543279e-17 | CJ74: 1.238793018e-17 | CK74: 4.702048351e-18 | CL74: -3.279280464e-18 | CM74: -1.105456003e-17 | CN74: -1.813524093e-17 | CO74: -2.407641795e-17 | CP74: -2.850478508e-17 | CQ74: -3.114209173e-17 | CR74: -3.182262622e-17 | CS74: -3.050362808e-17 | CT74: -2.726797479e-17 | CU74: -2.231897437e-17 | CV74: -1.59675907e-17 | CW74: -8.612904589e-18 | CX74: -7.170380024e-19 | CY74: 7.223882719e-18 | CZ74: 1.471090032e-17 | DA74: 2.127357795e-17 | DB74: 2.649955844e-17 | DC74: 3.006047422e-17 | DD74: 3.173257984e-17 | DE74: 3.141081077e-17 | DF74: 2.911538494e-17 | DG74: 2.499053239e-17 | DH74: 1.929543279e-17 | DI74: 1.238793018e-17 | DJ74: 4.702048351e-18 | DK74: -3.279280464e-18 | DL74: -1.105456003e-17 | DM74: -1.813524093e-17 | DN74: -2.407641795e-17 | DO74: -2.850478508e-17 | DP74: -3.114209173e-17 | DQ74: -3.182262622e-17
B75: 5 | C75: 500000000 | D75: 16.49336143 | E75: 0.7853981634 | F75: 0.7853981634 | G75: 0.9003163162 | H75: 0.9003163162 | I75: -0.08105694691 | J75: 0.08105694691 | K75: -18.81389521 | L75: -0.08103275053 | M75: 0.08103275053 | N75: -18.81648843 | S75: V(t) | T75: 5 | U75: 0 | V75: 0.03541261049 | W75: 0.06735878792 | X75: 0.09271141788 | Y75: 0.1089888083 | Z75: 0.1145976148 | AA75: 0.1089888083 | AB75: 0.09271141788 | AC75: 0.06735878792 | AD75: 0.03541261049 | AE75: 0 | AF75: -0.03541261049 | AG75: -0.06735878792 | AH75: -0.09271141788 | AI75: -0.1089888083 | AJ75: -0.1145976148 | AK75: -0.1089888083 | AL75: -0.09271141788 | AM75: -0.06735878792 | AN75: -0.03541261049 | AO75: 0 | AP75: 0.03541261049 | AQ75: 0.06735878792 | AR75: 0.09271141788 | AS75: 0.1089888083 | AT75: 0.1145976148 | AU75: 0.1089888083 | AV75: 0.09271141788 | AW75: 0.06735878792 | AX75: 0.03541261049 | AY75: 3.60822483e-16 | AZ75: -0.03541261049 | BA75: -0.06735878792 | BB75: -0.09271141788 | BC75: -0.1089888083 | BD75: -0.1145976148 | BE75: -0.1089888083 | BF75: -0.09271141788 | BG75: -0.06735878792 | BH75: -0.03541261049 | BI75: 0 | BJ75: 0.03541261049 | BK75: 0.06735878792 | BL75: 0.09271141788 | BM75: 0.1089888083 | BN75: 0.1145976148 | BO75: 0.1089888083 | BP75: 0.09271141788 | BQ75: 0.06735878792 | BR75: 0.03541261049 | BS75: 0 | BT75: -0.03541261049 | BU75: -0.06735878792 | BV75: -0.09271141788 | BW75: -0.1089888083 | BX75: -0.1145976148 | BY75: -0.1089888083 | BZ75: -0.09271141788 | CA75: -0.06735878792 | CB75: -0.03541261049 | CC75: -3.955169525e-16 | CD75: 0.03541261049 | CE75: 0.06735878792 | CF75: 0.09271141788 | CG75: 0.1089888083 | CH75: 0.1145976148 | CI75: 0.1089888083 | CJ75: 0.09271141788 | CK75: 0.06735878792 | CL75: 0.03541261049 | CM75: 0 | CN75: -0.03541261049 | CO75: -0.06735878792 | CP75: -0.09271141788 | CQ75: -0.1089888083 | CR75: -0.1145976148 | CS75: -0.1089888083 | CT75: -0.09271141788 | CU75: -0.06735878792 | CV75: -0.03541261049 | CW75: 0 | CX75: 0.03541261049 | CY75: 0.06735878792 | CZ75: 0.09271141788 | DA75: 0.1089888083 | DB75: 0.1145976148 | DC75: 0.1089888083 | DD75: 0.09271141788 | DE75: 0.06735878792 | DF75: 0.03541261049 | DG75: 0 | DH75: -0.03541261049 | DI75: -0.06735878792 | DJ75: -0.09271141788 | DK75: -0.1089888083 | DL75: -0.1145976148 | DM75: -0.1089888083 | DN75: -0.09271141788 | DO75: -0.06735878792 | DP75: -0.03541261049 | DQ75: -4.579669977e-16
B76: 6 | C76: 600000000 | D76: 19.79203372 | E76: 0.9424777961 | F76: 0.9424777961 | G76: 0.8583936913 | H76: 0.8583936913 | I76: -7.067899292e-17 | J76: -8.834874115e-17 | K76: -318.9275542 | L76: -7.064861314e-17 | M76: -8.831076643e-17 | N76: -318.9312884 | S76: V(t) | T76: 6 | U76: -1.129711237e-16 | V76: -1.031059169e-16 | W76: -7.875979053e-17 | X76: -4.335208559e-17 | Y76: -1.855709064e-18 | Z76: 3.990129628e-17 | AA76: 7.605428315e-17 | AB76: 1.01525672e-16 | AC76: 1.127380819e-16 | AD76: 1.081167632e-16 | AE76: 8.831076643e-17 | AF76: 5.610178496e-17 | AG76: 1.601347452e-17 | AH76: -2.632388082e-17 | AI76: -6.496412534e-17 | AJ76: -9.448035151e-17 | AK76: -1.107270931e-16 | AL76: -1.114225435e-16 | AM76: -9.646902879e-17 | AN76: -6.796672568e-17 | AO76: -2.991869793e-17 | AP76: 1.233132204e-17 | AQ76: 5.284944447e-17 | AR76: 8.594501948e-17 | AS76: 1.069698719e-16 | AT76: 1.129711237e-16 | AU76: 1.031059169e-16 | AV76: 7.875979053e-17 | AW76: 4.335208559e-17 | AX76: 1.855709064e-18 | AY76: -3.990129628e-17 | AZ76: -7.605428315e-17 | BA76: -1.01525672e-16 | BB76: -1.127380819e-16 | BC76: -1.081167632e-16 | BD76: -8.831076643e-17 | BE76: -5.610178496e-17 | BF76: -1.601347452e-17 | BG76: 2.632388082e-17 | BH76: 6.496412534e-17 | BI76: 9.448035151e-17 | BJ76: 1.107270931e-16 | BK76: 1.114225435e-16 | BL76: 9.646902879e-17 | BM76: 6.796672568e-17 | BN76: 2.991869793e-17 | BO76: -1.233132204e-17 | BP76: -5.284944447e-17 | BQ76: -8.594501948e-17 | BR76: -1.069698719e-16 | BS76: -1.129711237e-16 | BT76: -1.031059169e-16 | BU76: -7.875979053e-17 | BV76: -4.335208559e-17 | BW76: -1.855709064e-18 | BX76: 3.990129628e-17 | BY76: 7.605428315e-17 | BZ76: 1.01525672e-16 | CA76: 1.127380819e-16 | CB76: 1.081167632e-16 | CC76: 8.831076643e-17 | CD76: 5.610178496e-17 | CE76: 1.601347452e-17 | CF76: -2.632388082e-17 | CG76: -6.496412534e-17 | CH76: -9.448035151e-17 | CI76: -1.107270931e-16 | CJ76: -1.114225435e-16 | CK76: -9.646902879e-17 | CL76: -6.796672568e-17 | CM76: -2.991869793e-17 | CN76: 1.233132204e-17 | CO76: 5.284944447e-17 | CP76: 8.594501948e-17 | CQ76: 1.069698719e-16 | CR76: 1.129711237e-16 | CS76: 1.031059169e-16 | CT76: 7.875979053e-17 | CU76: 4.335208559e-17 | CV76: 1.855709064e-18 | CW76: -3.990129628e-17 | CX76: -7.605428315e-17 | CY76: -1.01525672e-16 | CZ76: -1.127380819e-16 | DA76: -1.081167632e-16 | DB76: -8.831076643e-17 | DC76: -5.610178496e-17 | DD76: -1.601347452e-17 | DE76: 2.632388082e-17 | DF76: 6.496412534e-17 | DG76: 9.448035151e-17 | DH76: 1.107270931e-16 | DI76: 1.114225435e-16 | DJ76: 9.646902879e-17 | DK76: 6.796672568e-17 | DL76: 2.991869793e-17 | DM76: -1.233132204e-17 | DN76: -5.284944447e-17 | DO76: -8.594501948e-17 | DP76: -1.069698719e-16 | DQ76: -1.129711237e-16
B77: 7 | C77: 700000000 | D77: 23.090706 | E77: 1.099557429 | F77: 1.099557429 | G77: 0.810331958 | H77: 0.810331958 | I77: -0.06566378822 | J77: 0.03345737121 | K77: -22.651099 | L77: -0.06562537505 | M77: 0.03343779872 | N77: -22.65618171 | S77: V(t) | T77: 7 | U77: 6.245004514e-17 | V77: 0.03135995634 | W77: 0.05675067373 | X77: 0.07133913332 | Y77: 0.07234848173 | Z77: 0.05958659363 | AA77: 0.03548264203 | AB77: 0.004624715176 | AC77: -0.02711350723 | AD77: -0.05369078484 | AE77: -0.07004824194 | AF77: -0.07307230374 | AG77: -0.06218735248 | AH77: -0.03946529395 | AI77: -0.009231178713 | AJ77: 0.02276005349 | AK77: 0.05041900295 | AL77: 0.06848090216 | AM77: 0.07350774275 | AN77: 0.06454268625 | AO77: 0.04329219437 | AP77: 0.01380121101 | AQ77: -0.01831677622 | AR77: -0.04694824029 | AS77: -0.06664329953 | AT77: -0.07365308028 | AU77: -0.06664329953 | AV77: -0.04694824029 | AW77: -0.01831677622 | AX77: 0.01380121101 | AY77: 0.04329219437 | AZ77: 0.06454268625 | BA77: 0.07350774275 | BB77: 0.06848090216 | BC77: 0.05041900295 | BD77: 0.02276005349 | BE77: -0.009231178713 | BF77: -0.03946529395 | BG77: -0.06218735248 | BH77: -0.07307230374 | BI77: -0.07004824194 | BJ77: -0.05369078484 | BK77: -0.02711350723 | BL77: 0.004624715176 | BM77: 0.03548264203 | BN77: 0.05958659363 | BO77: 0.07234848173 | BP77: 0.07133913332 | BQ77: 0.05675067373 | BR77: 0.03135995634 | BS77: 6.591949209e-17 | BT77: -0.03135995634 | BU77: -0.05675067373 | BV77: -0.07133913332 | BW77: -0.07234848173 | BX77: -0.05958659363 | BY77: -0.03548264203 | BZ77: -0.004624715176 | CA77: 0.02711350723 | CB77: 0.05369078484 | CC77: 0.07004824194 | CD77: 0.07307230374 | CE77: 0.06218735248 | CF77: 0.03946529395 | CG77: 0.009231178713 | CH77: -0.02276005349 | CI77: -0.05041900295 | CJ77: -0.06848090216 | CK77: -0.07350774275 | CL77: -0.06454268625 | CM77: -0.04329219437 | CN77: -0.01380121101 | CO77: 0.01831677622 | CP77: 0.04694824029 | CQ77: 0.06664329953 | CR77: 0.07365308028 | CS77: 0.06664329953 | CT77: 0.04694824029 | CU77: 0.01831677622 | CV77: -0.01380121101 | CW77: -0.04329219437 | CX77: -0.06454268625 | CY77: -0.07350774275 | CZ77: -0.06848090216 | DA77: -0.05041900295 | DB77: -0.02276005349 | DC77: 0.009231178713 | DD77: 0.03946529395 | DE77: 0.06218735248 | DF77: 0.07307230374 | DG77: 0.07004824194 | DH77: 0.05369078484 | DI77: 0.02711350723 | DJ77: -0.004624715176 | DK77: -0.03548264203 | DL77: -0.05958659363 | DM77: -0.07234848173 | DN77: -0.07133913332 | DO77: -0.05675067373 | DP77: -0.03135995634 | DQ77: -1.283695372e-16
B78: 8 | C78: 800000000 | D78: 26.38937829 | E78: 1.256637061 | F78: 1.256637061 | G78: 0.7568267286 | H78: 0.7568267286 | I78: -4.417437058e-18 | J78: -2.871334087e-17 | K78: -330.7367315 | L78: -4.414062091e-18 | M78: -2.869140359e-17 | N78: -330.7433701 | S78: V(t) | T78: 8 | U78: -2.865116655e-17 | V78: -2.735608719e-17 | W78: -1.929347735e-17 | X78: -6.457918973e-18 | Y78: 7.97524228e-18 | Z78: 2.043543514e-17 | AA78: 2.784017437e-17 | AB78: 2.835762641e-17 | AC78: 2.185978053e-17 | AD78: 9.954116998e-18 | AE78: -4.414062091e-18 | AF78: -1.769026119e-17 | AG78: -2.659012602e-17 | AH78: -2.891194891e-17 | AI78: -2.408134191e-17 | AJ78: -1.329333265e-17 | AK78: 7.832695053e-19 | AL78: 1.466610125e-17 | AM78: 2.492073549e-17 | AN78: 2.901031271e-17 | AO78: 2.592312615e-17 | AP78: 1.642290451e-17 | AQ78: 2.859875708e-18 | AR78: -1.141064813e-17 | AS78: -2.285833008e-17 | AT78: -2.865116655e-17 | AU78: -2.735608719e-17 | AV78: -1.929347735e-17 | AW78: -6.457918973e-18 | AX78: 7.97524228e-18 | AY78: 2.043543514e-17 | AZ78: 2.784017437e-17 | BA78: 2.835762641e-17 | BB78: 2.185978053e-17 | BC78: 9.954116998e-18 | BD78: -4.414062091e-18 | BE78: -1.769026119e-17 | BF78: -2.659012602e-17 | BG78: -2.891194891e-17 | BH78: -2.408134191e-17 | BI78: -1.329333265e-17 | BJ78: 7.832695053e-19 | BK78: 1.466610125e-17 | BL78: 2.492073549e-17 | BM78: 2.901031271e-17 | BN78: 2.592312615e-17 | BO78: 1.642290451e-17 | BP78: 2.859875708e-18 | BQ78: -1.141064813e-17 | BR78: -2.285833008e-17 | BS78: -2.865116655e-17 | BT78: -2.735608719e-17 | BU78: -1.929347735e-17 | BV78: -6.457918973e-18 | BW78: 7.97524228e-18 | BX78: 2.043543514e-17 | BY78: 2.784017437e-17 | BZ78: 2.835762641e-17 | CA78: 2.185978053e-17 | CB78: 9.954116998e-18 | CC78: -4.414062091e-18 | CD78: -1.769026119e-17 | CE78: -2.659012602e-17 | CF78: -2.891194891e-17 | CG78: -2.408134191e-17 | CH78: -1.329333265e-17 | CI78: 7.832695053e-19 | CJ78: 1.466610125e-17 | CK78: 2.492073549e-17 | CL78: 2.901031271e-17 | CM78: 2.592312615e-17 | CN78: 1.642290451e-17 | CO78: 2.859875708e-18 | CP78: -1.141064813e-17 | CQ78: -2.285833008e-17 | CR78: -2.865116655e-17 | CS78: -2.735608719e-17 | CT78: -1.929347735e-17 | CU78: -6.457918973e-18 | CV78: 7.97524228e-18 | CW78: 2.043543514e-17 | CX78: 2.784017437e-17 | CY78: 2.835762641e-17 | CZ78: 2.185978053e-17 | DA78: 9.954116998e-18 | DB78: -4.414062091e-18 | DC78: -1.769026119e-17 | DD78: -2.659012602e-17 | DE78: -2.891194891e-17 | DF78: -2.408134191e-17 | DG78: -1.329333265e-17 | DH78: 7.832695053e-19 | DI78: 1.466610125e-17 | DJ78: 2.492073549e-17 | DK78: 2.901031271e-17 | DL78: 2.592312615e-17 | DM78: 1.642290451e-17 | DN78: 2.859875708e-18 | DO78: -1.141064813e-17 | DP78: -2.285833008e-17 | DQ78: -2.865116655e-17
B79: 9 | C79: 900000000 | D79: 29.68805058 | E79: 1.413716694 | F79: 1.413716694 | G79: 0.6986465851 | H79: 0.6986465851 | I79: -0.04881070508 | J79: 0.007730856206 | K79: -26.12209692 | L79: -0.04876351234 | M79: 0.007723381611 | N79: -26.13049895 | S79: V(t) | T79: 9 | U79: 7.806255642e-18 | V79: 0.02645449527 | W79: 0.04467253822 | X79: 0.04898204777 | Y79: 0.03804128335 | Z79: 0.01525658793 | AA79: -0.01227815687 | AB79: -0.03599016937 | AC79: -0.04849685321 | AD79: -0.04590432557 | AE79: -0.02901975474 | AF79: -0.003100053072 | AG79: 0.02378483198 | AH79: 0.04326444877 | AI79: 0.04927393257 | AJ79: 0.03994226576 | AK79: 0.01817480822 | AL79: -0.009251269526 | AM79: -0.03379701863 | AN79: -0.04782026373 | AO79: -0.04695494952 | AP79: -0.0314704865 | AQ79: -0.00618787165 | AR79: 0.02102130084 | AS79: 0.0416856143 | AT79: 0.04937135566 | AU79: 0.0416856143 | AV79: 0.02102130084 | AW79: -0.00618787165 | AX79: -0.0314704865 | AY79: -0.04695494952 | AZ79: -0.04782026373 | BA79: -0.03379701863 | BB79: -0.009251269526 | BC79: 0.01817480822 | BD79: 0.03994226576 | BE79: 0.04927393257 | BF79: 0.04326444877 | BG79: 0.02378483198 | BH79: -0.003100053072 | BI79: -0.02901975474 | BJ79: -0.04590432557 | BK79: -0.04849685321 | BL79: -0.03599016937 | BM79: -0.01227815687 | BN79: 0.01525658793 | BO79: 0.03804128335 | BP79: 0.04898204777 | BQ79: 0.04467253822 | BR79: 0.02645449527 | BS79: 0 | BT79: -0.02645449527 | BU79: -0.04467253822 | BV79: -0.04898204777 | BW79: -0.03804128335 | BX79: -0.01525658793 | BY79: 0.01227815687 | BZ79: 0.03599016937 | CA79: 0.04849685321 | CB79: 0.04590432557 | CC79: 0.02901975474 | CD79: 0.003100053072 | CE79: -0.02378483198 | CF79: -0.04326444877 | CG79: -0.04927393257 | CH79: -0.03994226576 | CI79: -0.01817480822 | CJ79: 0.009251269526 | CK79: 0.03379701863 | CL79: 0.04782026373 | CM79: 0.04695494952 | CN79: 0.0314704865 | CO79: 0.00618787165 | CP79: -0.02102130084 | CQ79: -0.0416856143 | CR79: -0.04937135566 | CS79: -0.0416856143 | CT79: -0.02102130084 | CU79: 0.00618787165 | CV79: 0.0314704865 | CW79: 0.04695494952 | CX79: 0.04782026373 | CY79: 0.03379701863 | CZ79: 0.009251269526 | DA79: -0.01817480822 | DB79: -0.03994226576 | DC79: -0.04927393257 | DD79: -0.04326444877 | DE79: -0.02378483198 | DF79: 0.003100053072 | DG79: 0.02901975474 | DH79: 0.04590432557 | DI79: 0.04849685321 | DJ79: 0.03599016937 | DK79: 0.01227815687 | DL79: -0.01525658793 | DM79: -0.03804128335 | DN79: -0.04898204777 | DO79: -0.04467253822 | DP79: -0.02645449527 | DQ79: -5.811323645e-17
B80: 10 | C80: 1000000000 | D80: 32.98672286 | E80: 1.570796327 | F80: 1.570796327 | G80: 0.6366197724 | H80: 0.6366197724 | I80: 0 | J80: 1.116981719e-17 | K80: -339.0390787 | L80: 0 | M80: 1.115648591e-17 | N80: -339.0494516 | S80: V(t) | T80: 10 | U80: 1.115648591e-17 | V80: 9.025786698e-18 | W80: 3.447543743e-18 | X80: -3.447543743e-18 | Y80: -9.025786698e-18 | Z80: -1.115648591e-17 | AA80: -9.025786698e-18 | AB80: -3.447543743e-18 | AC80: 3.447543743e-18 | AD80: 9.025786698e-18 | AE80: 1.115648591e-17 | AF80: 9.025786698e-18 | AG80: 3.447543743e-18 | AH80: -3.447543743e-18 | AI80: -9.025786698e-18 | AJ80: -1.115648591e-17 | AK80: -9.025786698e-18 | AL80: -3.447543743e-18 | AM80: 3.447543743e-18 | AN80: 9.025786698e-18 | AO80: 1.115648591e-17 | AP80: 9.025786698e-18 | AQ80: 3.447543743e-18 | AR80: -3.447543743e-18 | AS80: -9.025786698e-18 | AT80: -1.115648591e-17 | AU80: -9.025786698e-18 | AV80: -3.447543743e-18 | AW80: 3.447543743e-18 | AX80: 9.025786698e-18 | AY80: 1.115648591e-17 | AZ80: 9.025786698e-18 | BA80: 3.447543743e-18 | BB80: -3.447543743e-18 | BC80: -9.025786698e-18 | BD80: -1.115648591e-17 | BE80: -9.025786698e-18 | BF80: -3.447543743e-18 | BG80: 3.447543743e-18 | BH80: 9.025786698e-18 | BI80: 1.115648591e-17 | BJ80: 9.025786698e-18 | BK80: 3.447543743e-18 | BL80: -3.447543743e-18 | BM80: -9.025786698e-18 | BN80: -1.115648591e-17 | BO80: -9.025786698e-18 | BP80: -3.447543743e-18 | BQ80: 3.447543743e-18 | BR80: 9.025786698e-18 | BS80: 1.115648591e-17 | BT80: 9.025786698e-18 | BU80: 3.447543743e-18 | BV80: -3.447543743e-18 | BW80: -9.025786698e-18 | BX80: -1.115648591e-17 | BY80: -9.025786698e-18 | BZ80: -3.447543743e-18 | CA80: 3.447543743e-18 | CB80: 9.025786698e-18 | CC80: 1.115648591e-17 | CD80: 9.025786698e-18 | CE80: 3.447543743e-18 | CF80: -3.447543743e-18 | CG80: -9.025786698e-18 | CH80: -1.115648591e-17 | CI80: -9.025786698e-18 | CJ80: -3.447543743e-18 | CK80: 3.447543743e-18 | CL80: 9.025786698e-18 | CM80: 1.115648591e-17 | CN80: 9.025786698e-18 | CO80: 3.447543743e-18 | CP80: -3.447543743e-18 | CQ80: -9.025786698e-18 | CR80: -1.115648591e-17 | CS80: -9.025786698e-18 | CT80: -3.447543743e-18 | CU80: 3.447543743e-18 | CV80: 9.025786698e-18 | CW80: 1.115648591e-17 | CX80: 9.025786698e-18 | CY80: 3.447543743e-18 | CZ80: -3.447543743e-18 | DA80: -9.025786698e-18 | DB80: -1.115648591e-17 | DC80: -9.025786698e-18 | DD80: -3.447543743e-18 | DE80: 3.447543743e-18 | DF80: 9.025786698e-18 | DG80: 1.115648591e-17 | DH80: 9.025786698e-18 | DI80: 3.447543743e-18 | DJ80: -3.447543743e-18 | DK80: -9.025786698e-18 | DL80: -1.115648591e-17 | DM80: -9.025786698e-18 | DN80: -3.447543743e-18 | DO80: 3.447543743e-18 | DP80: 9.025786698e-18 | DQ80: 1.115648591e-17
B81: 11 | C81: 1100000000 | D81: 36.28539515 | E81: 1.727875959 | F81: 1.727875959 | G81: 0.5716199332 | H81: 0.5716199332 | I81: -0.03267493481 | J81: -0.005175201262 | K81: -29.60810395 | L81: -0.03262775334 | M81: -0.005167728451 | N81: -29.62065513 | S81: V(t) | T81: 11 | U81: 3.989863995e-17 | V81: 0.02105695881 | W81: 0.03244933124 | X81: 0.02894832006 | Y81: 0.01216079669 | Z81: -0.01020821028 | AA81: -0.0278919191 | AB81: -0.03277397578 | AC81: -0.02261364562 | AD81: -0.002074251056 | AE81: 0.01941716981 | AF81: 0.031996624 | AG81: 0.02989047523 | AH81: 0.01406538999 | AI81: -0.008215336723 | AJ81: -0.02672544147 | AK81: -0.03296927642 | AL81: -0.0240810867 | AM81: -0.00414031599 | AN81: 0.0177007501 | AO81: 0.03141764071 | AP81: 0.03071466635 | AQ81: 0.01591447363 | AR81: -0.006190040989 | AS81: -0.02545349074 | AT81: -0.03303446239 | AU81: -0.02545349074 | AV81: -0.006190040989 | AW81: 0.01591447363 | AX81: 0.03071466635 | AY81: 0.03141764071 | AZ81: 0.0177007501 | BA81: -0.00414031599 | BB81: -0.0240810867 | BC81: -0.03296927642 | BD81: -0.02672544147 | BE81: -0.008215336723 | BF81: 0.01406538999 | BG81: 0.02989047523 | BH81: 0.031996624 | BI81: 0.01941716981 | BJ81: -0.002074251056 | BK81: -0.02261364562 | BL81: -0.03277397578 | BM81: -0.0278919191 | BN81: -0.01020821028 | BO81: 0.01216079669 | BP81: 0.02894832006 | BQ81: 0.03244933124 | BR81: 0.02105695881 | BS81: 3.382710778e-17 | BT81: -0.02105695881 | BU81: -0.03244933124 | BV81: -0.02894832006 | BW81: -0.01216079669 | BX81: 0.01020821028 | BY81: 0.0278919191 | BZ81: 0.03277397578 | CA81: 0.02261364562 | CB81: 0.002074251056 | CC81: -0.01941716981 | CD81: -0.031996624 | CE81: -0.02989047523 | CF81: -0.01406538999 | CG81: 0.008215336723 | CH81: 0.02672544147 | CI81: 0.03296927642 | CJ81: 0.0240810867 | CK81: 0.00414031599 | CL81: -0.0177007501 | CM81: -0.03141764071 | CN81: -0.03071466635 | CO81: -0.01591447363 | CP81: 0.006190040989 | CQ81: 0.02545349074 | CR81: 0.03303446239 | CS81: 0.02545349074 | CT81: 0.006190040989 | CU81: -0.01591447363 | CV81: -0.03071466635 | CW81: -0.03141764071 | CX81: -0.0177007501 | CY81: 0.00414031599 | CZ81: 0.0240810867 | DA81: 0.03296927642 | DB81: 0.02672544147 | DC81: 0.008215336723 | DD81: -0.01406538999 | DE81: -0.02989047523 | DF81: -0.031996624 | DG81: -0.01941716981 | DH81: 0.002074251056 | DI81: 0.02261364562 | DJ81: 0.03277397578 | DK81: 0.0278919191 | DL81: 0.01020821028 | DM81: -0.01216079669 | DN81: -0.02894832006 | DO81: -0.03244933124 | DP81: -0.02105695881 | DQ81: -1.95156391e-16
B82: 12 | C82: 1200000000 | D82: 39.58406744 | E82: 1.884955592 | F82: 1.884955592 | G82: 0.5045511524 | H82: 0.5045511524 | I82: 2.061470627e-17 | J82: -6.331659783e-17 | K82: -323.5320846 | L82: 2.057928604e-17 | M82: -6.320780712e-17 | N82: -323.5470215 | S82: V(t) | T82: 12 | U82: -6.647354596e-17 | V82: -4.848435914e-17 | W82: -4.213607505e-18 | X82: 4.234118378e-17 | Y82: 6.594439675e-17 | Z82: 5.380160899e-17 | AA82: 1.249497337e-17 | AB82: -3.558472182e-17 | AC82: -6.437526501e-17 | AD82: -5.827037533e-17 | AE82: -2.057928604e-17 | AF82: 2.826706754e-17 | AG82: 6.179089689e-17 | AH82: 6.182018304e-17 | AI82: 2.833905107e-17 | AJ82: -2.050362472e-17 | AK82: -5.823204941e-17 | AL82: -6.439504954e-17 | AM82: -3.565189234e-17 | AN82: 1.241682748e-17 | AO82: 5.375484772e-17 | AP82: 6.595436764e-17 | AQ82: 4.240248198e-17 | AR82: -4.134209466e-18 | AS82: -4.842989998e-17 | AT82: -6.647354596e-17 | AU82: -4.848435914e-17 | AV82: -4.213607505e-18 | AW82: 4.234118378e-17 | AX82: 6.594439675e-17 | AY82: 5.380160899e-17 | AZ82: 1.249497337e-17 | BA82: -3.558472182e-17 | BB82: -6.437526501e-17 | BC82: -5.827037533e-17 | BD82: -2.057928604e-17 | BE82: 2.826706754e-17 | BF82: 6.179089689e-17 | BG82: 6.182018304e-17 | BH82: 2.833905107e-17 | BI82: -2.050362472e-17 | BJ82: -5.823204941e-17 | BK82: -6.439504954e-17 | BL82: -3.565189234e-17 | BM82: 1.241682748e-17 | BN82: 5.375484772e-17 | BO82: 6.595436764e-17 | BP82: 4.240248198e-17 | BQ82: -4.134209466e-18 | BR82: -4.842989998e-17 | BS82: -6.647354596e-17 | BT82: -4.848435914e-17 | BU82: -4.213607505e-18 | BV82: 4.234118378e-17 | BW82: 6.594439675e-17 | BX82: 5.380160899e-17 | BY82: 1.249497337e-17 | BZ82: -3.558472182e-17 | CA82: -6.437526501e-17 | CB82: -5.827037533e-17 | CC82: -2.057928604e-17 | CD82: 2.826706754e-17 | CE82: 6.179089689e-17 | CF82: 6.182018304e-17 | CG82: 2.833905107e-17 | CH82: -2.050362472e-17 | CI82: -5.823204941e-17 | CJ82: -6.439504954e-17 | CK82: -3.565189234e-17 | CL82: 1.241682748e-17 | CM82: 5.375484772e-17 | CN82: 6.595436764e-17 | CO82: 4.240248198e-17 | CP82: -4.134209466e-18 | CQ82: -4.842989998e-17 | CR82: -6.647354596e-17 | CS82: -4.848435914e-17 | CT82: -4.213607505e-18 | CU82: 4.234118378e-17 | CV82: 6.594439675e-17 | CW82: 5.380160899e-17 | CX82: 1.249497337e-17 | CY82: -3.558472182e-17 | CZ82: -6.437526501e-17 | DA82: -5.827037533e-17 | DB82: -2.057928604e-17 | DC82: 2.826706754e-17 | DD82: 6.179089689e-17 | DE82: 6.182018304e-17 | DF82: 2.833905107e-17 | DG82: -2.050362472e-17 | DH82: -5.823204941e-17 | DI82: -6.439504954e-17 | DJ82: -3.565189234e-17 | DK82: 1.241682748e-17 | DL82: 5.375484772e-17 | DM82: 6.595436764e-17 | DN82: 4.240248198e-17 | DO82: -4.134209466e-18 | DP82: -4.842989998e-17 | DQ82: -6.647354596e-17
B83: 13 | C83: 1300000000 | D83: 42.88273972 | E83: 2.042035225 | F83: 2.042035225 | G83: 0.4363325928 | H83: 0.4363325928 | I83: -0.01903861315 | J83: -0.009700657924 | K83: -33.40491149 | L83: -0.0190002275 | M83: -0.009681099456 | N83: -33.42244166 | S83: V(t) | T83: 13 | U83: 0 | V83: 0.01554485785 | W83: 0.0212823749 | X83: 0.01359271845 | Y83: -0.002672662754 | Z83: -0.01725184555 | AA83: -0.02094673914 | AB83: -0.01142621376 | AC83: 0.00530317602 | AD83: 0.01868676135 | AE83: 0.02028076078 | AF83: 0.00907951085 | AG83: -0.007850055032 | AH83: -0.01982697576 | AI83: -0.01929494271 | AJ83: -0.006589618633 | AK83: 0.01027313399 | AL83: 0.02065450691 | AM83: 0.01800483187 | AN83: 0.003995804194 | AO83: -0.01253419948 | AP83: -0.02115630415 | AQ83: -0.01643077408 | AR83: -0.001338973535 | AS83: 0.01459759316 | AT83: 0.02132445384 | AU83: 0.01459759316 | AV83: -0.001338973535 | AW83: -0.01643077408 | AX83: -0.02115630415 | AY83: -0.01253419948 | AZ83: 0.003995804194 | BA83: 0.01800483187 | BB83: 0.02065450691 | BC83: 0.01027313399 | BD83: -0.006589618633 | BE83: -0.01929494271 | BF83: -0.01982697576 | BG83: -0.007850055032 | BH83: 0.00907951085 | BI83: 0.02028076078 | BJ83: 0.01868676135 | BK83: 0.00530317602 | BL83: -0.01142621376 | BM83: -0.02094673914 | BN83: -0.01725184555 | BO83: -0.002672662754 | BP83: 0.01359271845 | BQ83: 0.0212823749 | BR83: 0.01554485785 | BS83: 0 | BT83: -0.01554485785 | BU83: -0.0212823749 | BV83: -0.01359271845 | BW83: 0.002672662754 | BX83: 0.01725184555 | BY83: 0.02094673914 | BZ83: 0.01142621376 | CA83: -0.00530317602 | CB83: -0.01868676135 | CC83: -0.02028076078 | CD83: -0.00907951085 | CE83: 0.007850055032 | CF83: 0.01982697576 | CG83: 0.01929494271 | CH83: 0.006589618633 | CI83: -0.01027313399 | CJ83: -0.02065450691 | CK83: -0.01800483187 | CL83: -0.003995804194 | CM83: 0.01253419948 | CN83: 0.02115630415 | CO83: 0.01643077408 | CP83: 0.001338973535 | CQ83: -0.01459759316 | CR83: -0.02132445384 | CS83: -0.01459759316 | CT83: 0.001338973535 | CU83: 0.01643077408 | CV83: 0.02115630415 | CW83: 0.01253419948 | CX83: -0.003995804194 | CY83: -0.01800483187 | CZ83: -0.02065450691 | DA83: -0.01027313399 | DB83: 0.006589618633 | DC83: 0.01929494271 | DD83: 0.01982697576 | DE83: 0.007850055032 | DF83: -0.00907951085 | DG83: -0.02028076078 | DH83: -0.01868676135 | DI83: -0.00530317602 | DJ83: 0.01142621376 | DK83: 0.02094673914 | DL83: 0.01725184555 | DM83: 0.002672662754 | DN83: -0.01359271845 | DO83: -0.0212823749 | DP83: -0.01554485785 | DQ83: 1.82145965e-16
B84: 14 | C84: 1400000000 | D84: 46.18141201 | E84: 2.199114858 | F84: 2.199114858 | G84: 0.3678830106 | H84: 0.3678830106 | I84: 1.766974823e-17 | J84: -2.334931016e-17 | K84: -330.6681131 | L84: 1.762843745e-17 | M84: -2.329472092e-17 | N84: -330.6884439 | S84: V(t) | T84: 14 | U84: -2.920756066e-17 | V84: -1.905633939e-17 | W84: 4.913624895e-18 | X84: 2.532046416e-17 | Y84: 2.736611767e-17 | Z84: 9.567175668e-18 | AA84: -1.51694231e-17 | AB84: -2.890588406e-17 | AC84: -2.168118479e-17 | AD84: 1.265669442e-18 | AE84: 2.329472092e-17 | AF84: 2.843155845e-17 | AG84: 1.295119393e-17 | AH84: -1.192075504e-17 | AI84: -2.814834441e-17 | AJ84: -2.396410495e-17 | AK84: -2.402246374e-18 | AL84: 2.090160602e-17 | AM84: 2.904861657e-17 | AN84: 1.613096413e-17 | AO84: -8.484089547e-18 | AP84: -2.694688855e-17 | AQ84: -2.586909687e-17 | AR84: -6.032277329e-18 | AS84: 1.81788603e-17 | AT84: 2.920756066e-17 | AU84: 1.905633939e-17 | AV84: -4.913624895e-18 | AW84: -2.532046416e-17 | AX84: -2.736611767e-17 | AY84: -9.567175668e-18 | AZ84: 1.51694231e-17 | BA84: 2.890588406e-17 | BB84: 2.168118479e-17 | BC84: -1.265669442e-18 | BD84: -2.329472092e-17 | BE84: -2.843155845e-17 | BF84: -1.295119393e-17 | BG84: 1.192075504e-17 | BH84: 2.814834441e-17 | BI84: 2.396410495e-17 | BJ84: 2.402246374e-18 | BK84: -2.090160602e-17 | BL84: -2.904861657e-17 | BM84: -1.613096413e-17 | BN84: 8.484089547e-18 | BO84: 2.694688855e-17 | BP84: 2.586909687e-17 | BQ84: 6.032277329e-18 | BR84: -1.81788603e-17 | BS84: -2.920756066e-17 | BT84: -1.905633939e-17 | BU84: 4.913624895e-18 | BV84: 2.532046416e-17 | BW84: 2.736611767e-17 | BX84: 9.567175668e-18 | BY84: -1.51694231e-17 | BZ84: -2.890588406e-17 | CA84: -2.168118479e-17 | CB84: 1.265669442e-18 | CC84: 2.329472092e-17 | CD84: 2.843155845e-17 | CE84: 1.295119393e-17 | CF84: -1.192075504e-17 | CG84: -2.814834441e-17 | CH84: -2.396410495e-17 | CI84: -2.402246374e-18 | CJ84: 2.090160602e-17 | CK84: 2.904861657e-17 | CL84: 1.613096413e-17 | CM84: -8.484089547e-18 | CN84: -2.694688855e-17 | CO84: -2.586909687e-17 | CP84: -6.032277329e-18 | CQ84: 1.81788603e-17 | CR84: 2.920756066e-17 | CS84: 1.905633939e-17 | CT84: -4.913624895e-18 | CU84: -2.532046416e-17 | CV84: -2.736611767e-17 | CW84: -9.567175668e-18 | CX84: 1.51694231e-17 | CY84: 2.890588406e-17 | CZ84: 2.168118479e-17 | DA84: -1.265669442e-18 | DB84: -2.329472092e-17 | DC84: -2.843155845e-17 | DD84: -1.295119393e-17 | DE84: 1.192075504e-17 | DF84: 2.814834441e-17 | DG84: 2.396410495e-17 | DH84: 2.402246374e-18 | DI84: -2.090160602e-17 | DJ84: -2.904861657e-17 | DK84: -1.613096413e-17 | DL84: 8.484089547e-18 | DM84: 2.694688855e-17 | DN84: 2.586909687e-17 | DO84: 6.032277329e-18 | DP84: -1.81788603e-17 | DQ84: -2.920756066e-17
B85: 15 | C85: 1500000000 | D85: 49.48008429 | E85: 2.35619449 | F85: 2.35619449 | G85: 0.3001054387 | H85: 0.3001054387 | I85: -0.009006327435 | J85: -0.009006327435 | K85: -37.8987454 | L85: -0.008982159918 | M85: -0.008982159918 | N85: -37.92208438 | S85: V(t) | T85: 15 | U85: 4.163336342e-17 | V85: 0.01027669401 | W85: 0.01208097836 | X85: 0.003925347819 | Y85: -0.007466455243 | Z85: -0.01270269238 | AA85: -0.007466455243 | AB85: 0.003925347819 | AC85: 0.01208097836 | AD85: 0.01027669401 | AE85: -2.602085214e-17 | AF85: -0.01027669401 | AG85: -0.01208097836 | AH85: -0.003925347819 | AI85: 0.007466455243 | AJ85: 0.01270269238 | AK85: 0.007466455243 | AL85: -0.003925347819 | AM85: -0.01208097836 | AN85: -0.01027669401 | AO85: 2.168404345e-17 | AP85: 0.01027669401 | AQ85: 0.01208097836 | AR85: 0.003925347819 | AS85: -0.007466455243 | AT85: -0.01270269238 | AU85: -0.007466455243 | AV85: 0.003925347819 | AW85: 0.01208097836 | AX85: 0.01027669401 | AY85: 2.775557562e-17 | AZ85: -0.01027669401 | BA85: -0.01208097836 | BB85: -0.003925347819 | BC85: 0.007466455243 | BD85: 0.01270269238 | BE85: 0.007466455243 | BF85: -0.003925347819 | BG85: -0.01208097836 | BH85: -0.01027669401 | BI85: 1.214306433e-17 | BJ85: 0.01027669401 | BK85: 0.01208097836 | BL85: 0.003925347819 | BM85: -0.007466455243 | BN85: -0.01270269238 | BO85: -0.007466455243 | BP85: 0.003925347819 | BQ85: 0.01208097836 | BR85: 0.01027669401 | BS85: 3.816391647e-17 | BT85: -0.01027669401 | BU85: -0.01208097836 | BV85: -0.003925347819 | BW85: 0.007466455243 | BX85: 0.01270269238 | BY85: 0.007466455243 | BZ85: -0.003925347819 | CA85: -0.01208097836 | CB85: -0.01027669401 | CC85: -8.760353554e-17 | CD85: 0.01027669401 | CE85: 0.01208097836 | CF85: 0.003925347819 | CG85: -0.007466455243 | CH85: -0.01270269238 | CI85: -0.007466455243 | CJ85: 0.003925347819 | CK85: 0.01208097836 | CL85: 0.01027669401 | CM85: -1.335737077e-16 | CN85: -0.01027669401 | CO85: -0.01208097836 | CP85: -0.003925347819 | CQ85: 0.007466455243 | CR85: 0.01270269238 | CS85: 0.007466455243 | CT85: -0.003925347819 | CU85: -0.01208097836 | CV85: -0.01027669401 | CW85: 8.413408858e-17 | CX85: 0.01027669401 | CY85: 0.01208097836 | CZ85: 0.003925347819 | DA85: -0.007466455243 | DB85: -0.01270269238 | DC85: -0.007466455243 | DD85: 0.003925347819 | DE85: 0.01208097836 | DF85: 0.01027669401 | DG85: -3.382710778e-17 | DH85: -0.01027669401 | DI85: -0.01208097836 | DJ85: -0.003925347819 | DK85: 0.007466455243 | DL85: 0.01270269238 | DM85: 0.007466455243 | DN85: -0.003925347819 | DO85: -0.01208097836 | DP85: -0.01027669401 | DQ85: -1.561251128e-17
B86: 16 | C86: 1600000000 | D86: 52.77875658 | E86: 2.513274123 | F86: 2.513274123 | G86: 0.2338723209 | H86: 0.2338723209 | I86: 7.178335219e-18 | J86: -5.521796322e-18 | K86: -340.8608695 | L86: 7.156423062e-18 | M86: -5.504940817e-18 | N86: -340.8874241 | S86: V(t) | T86: 16 | U86: -9.025390903e-18 | V86: -4.62737001e-18 | W86: 4.066453219e-18 | X86: 8.985199201e-18 | Y86: 5.562567761e-18 | Z86: -3.024053491e-18 | AA86: -8.803305541e-18 | AB86: -6.410040496e-18 | AC86: 1.933962632e-18 | AD86: 8.482578493e-18 | AE86: 7.156423062e-18 | AF86: -8.133720271e-19 | AG86: -8.028076115e-18 | AH86: -7.789944562e-18 | AI86: -3.200459404e-19 | AJ86: 7.446966181e-18 | AK86: 8.300613982e-18 | AL86: 1.448416592e-18 | AM86: -6.748413142e-18 | AN86: -8.680377762e-18 | AO86: -2.553944849e-18 | AP86: 5.943433596e-18 | AQ86: 8.923246799e-18 | AR86: 3.61919587e-18 | AS86: -5.044722552e-18 | AT86: -9.025390903e-18 | AU86: -4.62737001e-18 | AV86: 4.066453219e-18 | AW86: 8.985199201e-18 | AX86: 5.562567761e-18 | AY86: -3.024053491e-18 | AZ86: -8.803305541e-18 | BA86: =Re_H*COS(NH_*Rad_+NH_*Ofs_)+Im_H*SIN(NH_*Rad_+NH_*Ofs_) -> -6.410040496e-18 | BB86: 1.933962632e-18 | BC86: 8.482578493e-18 | BD86: 7.156423062e-18 | BE86: -8.133720271e-19 | BF86: -8.028076115e-18 | BG86: -7.789944562e-18 | BH86: -3.200459404e-19 | BI86: 7.446966181e-18 | BJ86: 8.300613982e-18 | BK86: 1.448416592e-18 | BL86: -6.748413142e-18 | BM86: -8.680377762e-18 | BN86: -2.553944849e-18 | BO86: 5.943433596e-18 | BP86: 8.923246799e-18 | BQ86: 3.61919587e-18 | BR86: -5.044722552e-18 | BS86: -9.025390903e-18 | BT86: -4.62737001e-18 | BU86: 4.066453219e-18 | BV86: 8.985199201e-18 | BW86: 5.562567761e-18 | BX86: -3.024053491e-18 | BY86: -8.803305541e-18 | BZ86: -6.410040496e-18 | CA86: 1.933962632e-18 | CB86: 8.482578493e-18 | CC86: 7.156423062e-18 | CD86: -8.133720271e-19 | CE86: -8.028076115e-18 | CF86: -7.789944562e-18 | CG86: =Re_H*COS(NH_*Rad_+NH_*Ofs_)+Im_H*SIN(NH_*Rad_+NH_*Ofs_) -> -3.200459404e-19 | CH86: 7.446966181e-18 | CI86: 8.300613982e-18 | CJ86: 1.448416592e-18 | CK86: -6.748413142e-18 | CL86: -8.680377762e-18 | CM86: -2.553944849e-18 | CN86: 5.943433596e-18 | CO86: 8.923246799e-18 | CP86: 3.61919587e-18 | CQ86: -5.044722552e-18 | CR86: -9.025390903e-18 | CS86: -4.62737001e-18 | CT86: 4.066453219e-18 | CU86: 8.985199201e-18 | CV86: 5.562567761e-18 | CW86: -3.024053491e-18 | CX86: -8.803305541e-18 | CY86: -6.410040496e-18 | CZ86: 1.933962632e-18 | DA86: 8.482578493e-18 | DB86: 7.156423062e-18 | DC86: -8.133720271e-19 | DD86: -8.028076115e-18 | DE86: -7.789944562e-18 | DF86: -3.200459404e-19 | DG86: 7.446966181e-18 | DH86: 8.300613982e-18 | DI86: 1.448416592e-18 | DJ86: -6.748413142e-18 | DK86: -8.680377762e-18 | DL86: -2.553944849e-18 | DM86: =Re_H*COS(NH_*Rad_+NH_*Ofs_)+Im_H*SIN(NH_*Rad_+NH_*Ofs_) -> 5.943433596e-18 | DN86: 8.923246799e-18 | DO86: 3.61919587e-18 | DP86: -5.044722552e-18 | DQ86: -9.025390903e-18
B87: 17 | C87: 1700000000 | D87: =NH_*PI()*(2*D_/100*T_+tr_)/T_ -> 56.07742887 | E87: =NH_*PI()*tr_/T_ -> 2.670353756 | F87: 2.670353756 | G87: 0.1700113698 | H87: 0.1700113698 | I87: -0.002890386585 | J87: -0.005672703077 | K87: -43.92181664 | L87: -0.002880428183 | M87: -0.005653158612 | N87: -43.95179427 | S87: V(t) | T87: 17 | U87: 1.561251128e-17 | V87: 0.005559892683 | W87: 0.005356997456 | X87: -0.0003983862706 | Y87: -0.005740845555 | Z87: -0.005132960606 | AA87: 0.0007952002925 | AB87: 0.005899141932 | AC87: 0.004888666307 | AD87: -0.001188876022 | AE87: -0.00603415709 | AF87: -0.004625078674 | AG87: 0.001577859801 | AH87: 0.006145358187 | AI87: 0.00434323797 | AJ87: =Re_H*COS(NH_*Rad_+NH_*Ofs_)+Im_H*SIN(NH_*Rad_+NH_*Ofs_) -> -0.001960616489 | AK87: -0.006232306363 | AL87: -0.004044256489 | AM87: 0.002335635519 | AN87: 0.006294658474 | AO87: 0.003729314175 | AP87: -0.002701436862 | AQ87: -0.006332168442 | AR87: -0.003399653962 | AS87: 0.003056576868 | AT87: 0.006344688235 | AU87: 0.003056576868 | AV87: -0.003399653962 | AW87: -0.006332168442 | AX87: -0.002701436862 | AY87: 0.003729314175 | AZ87: =Re_H*COS(NH_*Rad_+NH_*Ofs_)+Im_H*SIN(NH_*Rad_+NH_*Ofs_) -> 0.006294658474 | BA87: 0.002335635519 | BB87: -0.004044256489 | BC87: -0.006232306363 | BD87: -0.001960616489 | BE87: 0.00434323797 | BF87: 0.006145358187 | BG87: 0.001577859801 | BH87: -0.004625078674 | BI87: -0.00603415709 | BJ87: -0.001188876022 | BK87: 0.004888666307 | BL87: 0.005899141932 | BM87: 0.0007952002925 | BN87: -0.005132960606 | BO87: -0.005740845555 | BP87: =Re_H*COS(NH_*Rad_+NH_*Ofs_)+Im_H*SIN(NH_*Rad_+NH_*Ofs_) -> -0.0003983862706 | BQ87: =Re_H*COS(NH_*Rad_+NH_*Ofs_)+Im_H*SIN(NH_*Rad_+NH_*Ofs_) -> 0.005356997456 | BR87: 0.005559892683 | BS87: -3.035766083e-17 | BT87: -0.005559892683 | BU87: -0.005356997456 | BV87: 0.0003983862706 | BW87: 0.005740845555 | BX87: 0.005132960606 | BY87: -0.0007952002925 | BZ87: -0.005899141932 | CA87: -0.004888666307 | CB87: 0.001188876022 | CC87: 0.00603415709 | CD87: 0.004625078674 | CE87: -0.001577859801 | CF87: -0.006145358187 | CG87: -0.00434323797 | CH87: 0.001960616489 | CI87: 0.006232306363 | CJ87: 0.004044256489 | CK87: -0.002335635519 | CL87: -0.006294658474 | CM87: -0.003729314175 | CN87: 0.002701436862 | CO87: 0.006332168442 | CP87: 0.003399653962 | CQ87: -0.003056576868 | CR87: -0.006344688235 | CS87: -0.003056576868 | CT87: 0.003399653962 | CU87: 0.006332168442 | CV87: 0.002701436862 | CW87: =Re_H*COS(NH_*Rad_+NH_*Ofs_)+Im_H*SIN(NH_*Rad_+NH_*Ofs_) -> -0.003729314175 | CX87: -0.006294658474 | CY87: -0.002335635519 | CZ87: 0.004044256489 | DA87: 0.006232306363 | DB87: 0.001960616489 | DC87: -0.00434323797 | DD87: -0.006145358187 | DE87: -0.001577859801 | DF87: 0.004625078674 | DG87: 0.00603415709 | DH87: 0.001188876022 | DI87: -0.004888666307 | DJ87: -0.005899141932 | DK87: -0.0007952002925 | DL87: 0.005132960606 | DM87: 0.005740845555 | DN87: 0.0003983862706 | DO87: -0.005356997456 | DP87: -0.005559892683 | DQ87: -5.204170428e-18
B88: 18 | C88: =NH_*f_ -> 1800000000 | D88: 59.37610115 | E88: 2.827433388 | F88: =NH_*PI()*tf_/T_ -> 2.827433388 | G88: =SIN(Rad_tr)/Rad_tr -> 0.1092924048 | H88: =SIN(Rad_tf)/Rad_tf -> 0.1092924048 | I88: 8.589460945e-19 | J88: -2.454131699e-19 | K88: -360.9798839 | L88: 8.556290133e-19 | M88: -2.444654324e-19 | N88: -361.0134921 | S88: V(t) | T88: 18 | U88: =Re_H*COS(NH_*Rad_+NH_*Ofs_)+Im_H*SIN(NH_*Rad_+NH_*Ofs_) -> -8.892955218e-19 | V88: -4.075107341e-19 | W88: 5.422762584e-19 | X88: 8.692907364e-19 | Y88: 1.979757294e-19 | Z88: -7.007028048e-19 | AA88: -7.946652171e-19 | AB88: 2.39988185e-20 | AC88: 8.151016169e-19 | AD88: 6.701079595e-19 | AE88: -2.444654324e-19 | AF88: -8.782845967e-19 | AG88: -5.034453544e-19 | AH88: 4.495713841e-19 | AI88: 8.862817252e-19 | AJ88: 3.051494261e-19 | AK88: -6.264291123e-19 | AL88: -8.385905134e-19 | AM88: -8.767983716e-20 | AN88: 7.639259955e-19 | AO88: 7.382075755e-19 | AP88: -1.352989985e-19 | AQ88: -8.534225989e-19 | AR88: -5.914403407e-19 | AS88: 3.497765004e-19 | AT88: 8.892955218e-19 | AU88: 4.075107341e-19 | AV88: -5.422762584e-19 | AW88: -8.692907364e-19 | AX88: -1.979757294e-19 | AY88: 7.007028048e-19 | AZ88: 7.946652171e-19 | BA88: -2.39988185e-20 | BB88: -8.151016169e-19 | BC88: -6.701079595e-19 | BD88: 2.444654324e-19 | BE88: 8.782845967e-19 | BF88: 5.034453544e-19 | BG88: -4.495713841e-19 | BH88: -8.862817252e-19 | BI88: -3.051494261e-19 | BJ88: 6.264291123e-19 | BK88: 8.385905134e-19 | BL88: 8.767983716e-20 | BM88: -7.639259955e-19 | BN88: -7.382075755e-19 | BO88: 1.352989985e-19 | BP88: 8.534225989e-19 | BQ88: 5.914403407e-19 | BR88: -3.497765004e-19 | BS88: -8.892955218e-19 | BT88: -4.075107341e-19 | BU88: 5.422762584e-19 | BV88: 8.692907364e-19 | BW88: 1.979757294e-19 | BX88: -7.007028048e-19 | BY88: -7.946652171e-19 | BZ88: 2.39988185e-20 | CA88: 8.151016169e-19 | CB88: 6.701079595e-19 | CC88: -2.444654324e-19 | CD88: -8.782845967e-19 | CE88: -5.034453544e-19 | CF88: 4.495713841e-19 | CG88: 8.862817252e-19 | CH88: 3.051494261e-19 | CI88: -6.264291123e-19 | CJ88: -8.385905134e-19 | CK88: -8.767983716e-20 | CL88: 7.639259955e-19 | CM88: 7.382075755e-19 | CN88: -1.352989985e-19 | CO88: -8.534225989e-19 | CP88: -5.914403407e-19 | CQ88: 3.497765004e-19 | CR88: 8.892955218e-19 | CS88: 4.075107341e-19 | CT88: -5.422762584e-19 | CU88: -8.692907364e-19 | CV88: -1.979757294e-19 | CW88: 7.007028048e-19 | CX88: 7.946652171e-19 | CY88: -2.39988185e-20 | CZ88: -8.151016169e-19 | DA88: -6.701079595e-19 | DB88: 2.444654324e-19 | DC88: 8.782845967e-19 | DD88: 5.034453544e-19 | DE88: -4.495713841e-19 | DF88: -8.862817252e-19 | DG88: -3.051494261e-19 | DH88: 6.264291123e-19 | DI88: 8.385905134e-19 | DJ88: 8.767983716e-20 | DK88: -7.639259955e-19 | DL88: -7.382075755e-19 | DM88: 1.352989985e-19 | DN88: 8.534225989e-19 | DO88: 5.914403407e-19 | DP88: -3.497765004e-19 | DQ88: -8.892955218e-19
B89: 19 | C89: 1900000000 | D89: 62.67477344 | E89: 2.984513021 | F89: 2.984513021 | G89: 0.05241540712 | H89: 0.05241540712 | I89: -0.0002747374903 | J89: -0.001734624246 | K89: -55.10829029 | L89: -0.0002735556075 | M89: -0.001727162131 | N89: -55.14573639 | S89: V(t) | T89: 19 | U89: 8.998878032e-18 | V89: 0.001625892167 | W89: 0.001197061654 | X89: -0.0007445565958 | Y89: -0.001745240781 | Z89: -0.000540375368 | AA89: 0.0013473899 | AB89: 0.001532389977 | AC89: -0.0002191691507 | AD89: -0.001693753068 | AE89: -0.00102785503 | AF89: 0.0009369957213 | AG89: 0.001717717292 | AH89: 0.0003276720979 | AI89: -0.001476469003 | AJ89: -0.00141472108 | AK89: 0.000434881873 | AL89: 0.00173490247 | AM89: 0.0008424385186 | AN89: -0.001114657865 | AO89: -0.001663104374 | AP89: -0.000109801243 | AQ89: 0.001582263307 | AR89: 0.001274741187 | AS89: -0.0006437362484 | AT89: -0.001748691424 | AU89: -0.0006437362484 | AV89: 0.001274741187 | AW89: 0.001582263307 | AX89: -0.000109801243 | AY89: -0.001663104374 | AZ89: -0.001114657865 | BA89: 0.0008424385186 | BB89: 0.00173490247 | BC89: 0.000434881873 | BD89: -0.00141472108 | BE89: -0.001476469003 | BF89: 0.0003276720979 | BG89: 0.001717717292 | BH89: 0.0009369957213 | BI89: -0.00102785503 | BJ89: -0.001693753068 | BK89: -0.0002191691507 | BL89: 0.001532389977 | BM89: 0.0013473899 | BN89: -0.000540375368 | BO89: -0.001745240781 | BP89: -0.0007445565958 | BQ89: 0.001197061654 | BR89: 0.001625892167 | BS89: -3.361026735e-18 | BT89: -0.001625892167 | BU89: -0.001197061654 | BV89: 0.0007445565958 | BW89: 0.001745240781 | BX89: 0.000540375368 | BY89: -0.0013473899 | BZ89: -0.001532389977 | CA89: 0.0002191691507 | CB89: 0.001693753068 | CC89: 0.00102785503 | CD89: -0.0009369957213 | CE89: -0.001717717292 | CF89: -0.0003276720979 | CG89: 0.001476469003 | CH89: 0.00141472108 | CI89: -0.000434881873 | CJ89: -0.00173490247 | CK89: -0.0008424385186 | CL89: 0.001114657865 | CM89: 0.001663104374 | CN89: 0.000109801243 | CO89: -0.001582263307 | CP89: -0.001274741187 | CQ89: 0.0006437362484 | CR89: 0.001748691424 | CS89: 0.0006437362484 | CT89: -0.001274741187 | CU89: -0.001582263307 | CV89: 0.000109801243 | CW89: 0.001663104374 | CX89: 0.001114657865 | CY89: -0.0008424385186 | CZ89: -0.00173490247 | DA89: -0.000434881873 | DB89: 0.00141472108 | DC89: 0.001476469003 | DD89: -0.0003276720979 | DE89: -0.001717717292 | DF89: -0.0009369957213 | DG89: 0.00102785503 | DH89: 0.001693753068 | DI89: 0.0002191691507 | DJ89: -0.001532389977 | DK89: -0.0013473899 | DL89: 0.000540375368 | DM89: 0.001745240781 | DN89: 0.0007445565958 | DO89: -0.001197061654 | DP89: -0.001625892167 | DQ89: -1.929879867e-17
B90: 20 | C90: 2000000000 | D90: 65.97344573 | E90: 3.141592654 | F90: 3.141592654 | G90: 3.899768652e-17 | H90: 3.899768652e-17 | I90: -6.842342136e-34 | J90: 0 | K90: -200 | L90: -6.809734973e-34 | M90: 0 | N90: -200 | S90: V(t) | T90: 20 | U90: 6.809734973e-34 | V90: 2.104323834e-34 | W90: -5.50919132e-34 | X90: -5.50919132e-34 | Y90: 2.104323834e-34 | Z90: 6.809734973e-34 | AA90: 2.104323834e-34 | AB90: -5.50919132e-34 | AC90: -5.50919132e-34 | AD90: 2.104323834e-34 | AE90: 6.809734973e-34 | AF90: 2.104323834e-34 | AG90: -5.50919132e-34 | AH90: -5.50919132e-34 | AI90: 2.104323834e-34 | AJ90: 6.809734973e-34 | AK90: 2.104323834e-34 | AL90: -5.50919132e-34 | AM90: -5.50919132e-34 | AN90: 2.104323834e-34 | AO90: 6.809734973e-34 | AP90: 2.104323834e-34 | AQ90: -5.50919132e-34 | AR90: -5.50919132e-34 | AS90: 2.104323834e-34 | AT90: 6.809734973e-34 | AU90: 2.104323834e-34 | AV90: -5.50919132e-34 | AW90: -5.50919132e-34 | AX90: 2.104323834e-34 | AY90: 6.809734973e-34 | AZ90: 2.104323834e-34 | BA90: -5.50919132e-34 | BB90: -5.50919132e-34 | BC90: 2.104323834e-34 | BD90: 6.809734973e-34 | BE90: 2.104323834e-34 | BF90: -5.50919132e-34 | BG90: -5.50919132e-34 | BH90: 2.104323834e-34 | BI90: 6.809734973e-34 | BJ90: 2.104323834e-34 | BK90: -5.50919132e-34 | BL90: -5.50919132e-34 | BM90: 2.104323834e-34 | BN90: 6.809734973e-34 | BO90: 2.104323834e-34 | BP90: -5.50919132e-34 | BQ90: -5.50919132e-34 | BR90: 2.104323834e-34 | BS90: 6.809734973e-34 | BT90: 2.104323834e-34 | BU90: -5.50919132e-34 | BV90: -5.50919132e-34 | BW90: 2.104323834e-34 | BX90: 6.809734973e-34 | BY90: 2.104323834e-34 | BZ90: -5.50919132e-34 | CA90: -5.50919132e-34 | CB90: 2.104323834e-34 | CC90: 6.809734973e-34 | CD90: 2.104323834e-34 | CE90: -5.50919132e-34 | CF90: -5.50919132e-34 | CG90: 2.104323834e-34 | CH90: 6.809734973e-34 | CI90: 2.104323834e-34 | CJ90: -5.50919132e-34 | CK90: -5.50919132e-34 | CL90: 2.104323834e-34 | CM90: 6.809734973e-34 | CN90: 2.104323834e-34 | CO90: -5.50919132e-34 | CP90: -5.50919132e-34 | CQ90: 2.104323834e-34 | CR90: 6.809734973e-34 | CS90: 2.104323834e-34 | CT90: -5.50919132e-34 | CU90: -5.50919132e-34 | CV90: 2.104323834e-34 | CW90: 6.809734973e-34 | CX90: 2.104323834e-34 | CY90: -5.50919132e-34 | CZ90: -5.50919132e-34 | DA90: 2.104323834e-34 | DB90: 6.809734973e-34 | DC90: 2.104323834e-34 | DD90: -5.50919132e-34 | DE90: -5.50919132e-34 | DF90: 2.104323834e-34 | DG90: 6.809734973e-34 | DH90: 2.104323834e-34 | DI90: -5.50919132e-34 | DJ90: -5.50919132e-34 | DK90: 2.104323834e-34 | DL90: 6.809734973e-34 | DM90: 2.104323834e-34 | DN90: -5.50919132e-34 | DO90: -5.50919132e-34 | DP90: 2.104323834e-34 | DQ90: 6.809734973e-34
B91: 21 | C91: 2100000000 | D91: 69.27211801 | E91: 3.298672286 | F91: 3.298672286 | G91: -0.04742346358 | H91: -0.04742346358 | I91: -0.0002248984898 | J91: 0.001419953181 | K91: -56.84691804 | L91: -0.000223717171 | M91: 0.001412494627 | N91: -56.89266245 | S91: V(t) | T91: 21 | U91: -8.944667923e-19 | V91: -0.00138517228 | W91: -0.0006889566762 | X91: 0.001042499164 | Y91: 0.001207474675 | Z91: -0.0004419256827 | AA91: -0.001427279572 | AB91: -0.0002679743085 | AC91: 0.00129399457 | AD91: 0.0009115810359 | AE91: -0.0008405926005 | AF91: -0.001329674794 | AG91: 0.0001792392516 | AH91: 0.001418824772 | AI91: 0.0005264554935 | AJ91: -0.001156976458 | AK91: -0.001101912183 | AL91: 0.0006089076249 | AM91: 0.00140477052 | AN91: 8.979681932e-05 | AO91: -0.001360107398 | AP91: -0.0007662867302 | AQ91: 0.0009789718774 | AR91: 0.001253207542 | AS91: -0.0003556517932 | AT91: -0.00143010155 | AU91: -0.0003556517932 | AV91: 0.001253207542 | AW91: 0.0009789718774 | AX91: -0.0007662867302 | AY91: -0.001360107398 | AZ91: 8.979681932e-05 | BA91: 0.00140477052 | BB91: 0.0006089076249 | BC91: -0.001101912183 | BD91: -0.001156976458 | BE91: 0.0005264554935 | BF91: 0.001418824772 | BG91: 0.0001792392516 | BH91: -0.001329674794 | BI91: -0.0008405926005 | BJ91: 0.0009115810359 | BK91: 0.00129399457 | BL91: -0.0002679743085 | BM91: -0.001427279572 | BN91: -0.0004419256827 | BO91: 0.001207474675 | BP91: 0.001042499164 | BQ91: -0.0006889566762 | BR91: -0.00138517228 | BS91: -1.490777987e-18 | BT91: 0.00138517228 | BU91: 0.0006889566762 | BV91: -0.001042499164 | BW91: -0.001207474675 | BX91: 0.0004419256827 | BY91: 0.001427279572 | BZ91: 0.0002679743085 | CA91: -0.00129399457 | CB91: -0.0009115810359 | CC91: 0.0008405926005 | CD91: 0.001329674794 | CE91: -0.0001792392516 | CF91: -0.001418824772 | CG91: -0.0005264554935 | CH91: 0.001156976458 | CI91: 0.001101912183 | CJ91: -0.0006089076249 | CK91: -0.00140477052 | CL91: -8.979681932e-05 | CM91: 0.001360107398 | CN91: 0.0007662867302 | CO91: -0.0009789718774 | CP91: -0.001253207542 | CQ91: 0.0003556517932 | CR91: 0.00143010155 | CS91: 0.0003556517932 | CT91: -0.001253207542 | CU91: -0.0009789718774 | CV91: 0.0007662867302 | CW91: 0.001360107398 | CX91: -8.979681932e-05 | CY91: -0.00140477052 | CZ91: -0.0006089076249 | DA91: 0.001101912183 | DB91: 0.001156976458 | DC91: -0.0005264554935 | DD91: -0.001418824772 | DE91: -0.0001792392516 | DF91: 0.001329674794 | DG91: 0.0008405926005 | DH91: -0.0009115810359 | DI91: -0.00129399457 | DJ91: 0.0002679743085 | DK91: 0.001427279572 | DL91: 0.0004419256827 | DM91: -0.001207474675 | DN91: -0.001042499164 | DO91: 0.0006889566762 | DP91: 0.00138517228 | DQ91: -2.022037052e-17
B92: 22 | C92: 2200000000 | D92: 72.5707903 | E92: 3.455751919 | F92: 3.455751919 | G92: -0.08942105846 | H92: -0.08942105846 | I92: -4.96961669e-18 | J92: -1.606340748e-18 | K92: -345.641967 | L92: -4.940974986e-18 | M92: -1.597082824e-18 | N92: -345.6921717 | S92: V(t) | T92: 22 | U92: 5.192672191e-18 | V92: 9.652209766e-19 | W92: -4.83094344e-18 | X92: -2.775678042e-18 | Y92: 3.790723039e-18 | Z92: 4.196299374e-18 | AA92: -2.218106853e-18 | AB92: -5.02756293e-18 | AC92: 3.33964151e-19 | AD92: 5.152720213e-18 | AE92: 1.597082824e-18 | AF92: -4.554193255e-18 | AG92: -3.303824262e-18 | AH92: 3.316043389e-18 | AI92: 4.546553401e-18 | AJ92: -1.612165083e-18 | AK92: -5.150732626e-18 | AL92: -3.181370182e-19 | AM92: 5.03150676e-18 | AN92: 2.20375772e-18 | AO92: -4.205620723e-18 | AP92: -3.7798672e-18 | AQ92: 2.789067753e-18 | AR92: 4.825105564e-18 | AS92: -9.80798506e-19 | AT92: -5.192672191e-18 | AU92: -9.652209766e-19 | AV92: 4.83094344e-18 | AW92: 2.775678042e-18 | AX92: -3.790723039e-18 | AY92: -4.196299374e-18 | AZ92: 2.218106853e-18 | BA92: 5.02756293e-18 | BB92: -3.33964151e-19 | BC92: -5.152720213e-18 | BD92: -1.597082824e-18 | BE92: 4.554193255e-18 | BF92: 3.303824262e-18 | BG92: -3.316043389e-18 | BH92: -4.546553401e-18 | BI92: 1.612165083e-18 | BJ92: 5.150732626e-18 | BK92: 3.181370182e-19 | BL92: -5.03150676e-18 | BM92: -2.20375772e-18 | BN92: 4.205620723e-18 | BO92: 3.7798672e-18 | BP92: -2.789067753e-18 | BQ92: -4.825105564e-18 | BR92: 9.80798506e-19 | BS92: 5.192672191e-18 | BT92: 9.652209766e-19 | BU92: -4.83094344e-18 | BV92: -2.775678042e-18 | BW92: 3.790723039e-18 | BX92: 4.196299374e-18 | BY92: -2.218106853e-18 | BZ92: -5.02756293e-18 | CA92: 3.33964151e-19 | CB92: 5.152720213e-18 | CC92: 1.597082824e-18 | CD92: -4.554193255e-18 | CE92: -3.303824262e-18 | CF92: 3.316043389e-18 | CG92: 4.546553401e-18 | CH92: -1.612165083e-18 | CI92: -5.150732626e-18 | CJ92: -3.181370182e-19 | CK92: 5.03150676e-18 | CL92: 2.20375772e-18 | CM92: -4.205620723e-18 | CN92: -3.7798672e-18 | CO92: 2.789067753e-18 | CP92: 4.825105564e-18 | CQ92: -9.80798506e-19 | CR92: -5.192672191e-18 | CS92: -9.652209766e-19 | CT92: 4.83094344e-18 | CU92: 2.775678042e-18 | CV92: -3.790723039e-18 | CW92: -4.196299374e-18 | CX92: 2.218106853e-18 | CY92: 5.02756293e-18 | CZ92: -3.33964151e-19 | DA92: -5.152720213e-18 | DB92: -1.597082824e-18 | DC92: 4.554193255e-18 | DD92: 3.303824262e-18 | DE92: -3.316043389e-18 | DF92: -4.546553401e-18 | DG92: 1.612165083e-18 | DH92: 5.150732626e-18 | DI92: 3.181370182e-19 | DJ92: -5.03150676e-18 | DK92: -2.20375772e-18 | DL92: 4.205620723e-18 | DM92: 3.7798672e-18 | DN92: -2.789067753e-18 | DO92: -4.825105564e-18 | DP92: 9.80798506e-19 | DQ92: 5.192672191e-18
B93: 23 | C93: 2300000000 | D93: 75.86946258 | E93: 3.612831552 | F93: 3.612831552 | G93: -0.1256605777 | H93: -0.1256605777 | I93: -0.001579058078 | J93: 0.003099075972 | K93: -49.17297322 | L93: -0.001569113925 | M93: 0.003079559473 | N93: -49.22784577 | S93: V(t) | T93: 23 | U93: -1.19262239e-17 | V93: -0.003429016672 | W93: -0.0008595394949 | X93: 0.003213558944 | Y93: 0.001665070962 | Z93: -0.002796181488 | AA93: -0.002365979897 | AB93: 0.002203109666 | AC93: 0.002918225614 | AD93: -0.001471608361 | AE93: -0.003287108483 | AF93: 0.0006476404905 | AG93: 0.003449450236 | AH93: 0.0002170210138 | AI93: -0.003395050346 | AJ93: -0.00106804629 | AK93: 0.003127326955 | AL93: 0.001851962289 | AM93: -0.002663102111 | AN93: -0.002519512687 | AO93: 0.002031544767 | AP93: 0.003028752837 | AQ93: -0.001272337994 | AR93: -0.003347685306 | AS93: 0.0004331855449 | AT93: 0.003456270397 | AU93: 0.0004331855449 | AV93: -0.003347685306 | AW93: -0.001272337994 | AX93: 0.003028752837 | AY93: 0.002031544767 | AZ93: -0.002519512687 | BA93: -0.002663102111 | BB93: 0.001851962289 | BC93: 0.003127326955 | BD93: -0.00106804629 | BE93: -0.003395050346 | BF93: 0.0002170210138 | BG93: 0.003449450236 | BH93: 0.0006476404905 | BI93: -0.003287108483 | BJ93: -0.001471608361 | BK93: 0.002918225614 | BL93: 0.002203109666 | BM93: -0.002365979897 | BN93: -0.002796181488 | BO93: 0.001665070962 | BP93: 0.003213558944 | BQ93: -0.0008595394949 | BR93: -0.003429016672 | BS93: -1.32272665e-17 | BT93: 0.003429016672 | BU93: 0.0008595394949 | BV93: -0.003213558944 | BW93: -0.001665070962 | BX93: 0.002796181488 | BY93: 0.002365979897 | BZ93: -0.002203109666 | CA93: -0.002918225614 | CB93: 0.001471608361 | CC93: 0.003287108483 | CD93: -0.0006476404905 | CE93: -0.003449450236 | CF93: -0.0002170210138 | CG93: 0.003395050346 | CH93: 0.00106804629 | CI93: -0.003127326955 | CJ93: -0.001851962289 | CK93: 0.002663102111 | CL93: 0.002519512687 | CM93: -0.002031544767 | CN93: -0.003028752837 | CO93: 0.001272337994 | CP93: 0.003347685306 | CQ93: -0.0004331855449 | CR93: -0.003456270397 | CS93: -0.0004331855449 | CT93: 0.003347685306 | CU93: 0.001272337994 | CV93: -0.003028752837 | CW93: -0.002031544767 | CX93: 0.002519512687 | CY93: 0.002663102111 | CZ93: -0.001851962289 | DA93: -0.003127326955 | DB93: 0.00106804629 | DC93: 0.003395050346 | DD93: -0.0002170210138 | DE93: -0.003449450236 | DF93: -0.0006476404905 | DG93: 0.003287108483 | DH93: 0.001471608361 | DI93: -0.002918225614 | DJ93: -0.002203109666 | DK93: 0.002365979897 | DL93: 0.002796181488 | DM93: -0.001665070962 | DN93: -0.003213558944 | DO93: 0.0008595394949 | DP93: 0.003429016672 | DQ93: 3.534499082e-17
B94: 24 | C94: 2400000000 | D94: 79.16813487 | E94: 3.769911184 | F94: 3.769911184 | G94: -0.1559148806 | H94: -0.1559148806 | I94: -1.674944884e-17 | J94: -1.214795191e-17 | K94: -333.6843776 | L94: -1.663462944e-17 | M94: -1.20646763e-17 | N94: -333.7441254 | S94: V(t) | T94: 24 | U94: 2.054913671e-17 | V94: 1.273262931e-18 | W94: -2.038923903e-17 | X94: -3.833764755e-18 | Y94: 1.990779087e-17 | Z94: 6.333805818e-18 | AA94: -1.911238496e-17 | AB94: -8.733958979e-18 | AC94: 1.801556531e-17 | AD94: 1.099637239e-17 | AE94: -1.663462944e-17 | AF94: -1.308536644e-17 | AG94: 1.499135553e-17 | AH94: 1.496799644e-17 | AI94: -1.311165898e-17 | AJ94: -1.66145722e-17 | AK94: 1.102518374e-17 | AL94: 1.799912623e-17 | AM94: -8.764834766e-18 | AN94: -1.909982329e-17 | AO94: 6.366259111e-18 | AP94: 1.989930472e-17 | AQ94: -3.867283748e-18 | AR94: -2.038496224e-17 | AS94: 1.307319009e-18 | AT94: 2.054913671e-17 | AU94: 1.273262931e-18 | AV94: -2.038923903e-17 | AW94: -3.833764755e-18 | AX94: 1.990779087e-17 | AY94: 6.333805818e-18 | AZ94: -1.911238496e-17 | BA94: -8.733958979e-18 | BB94: 1.801556531e-17 | BC94: 1.099637239e-17 | BD94: -1.663462944e-17 | BE94: -1.308536644e-17 | BF94: 1.499135553e-17 | BG94: 1.496799644e-17 | BH94: -1.311165898e-17 | BI94: -1.66145722e-17 | BJ94: 1.102518374e-17 | BK94: 1.799912623e-17 | BL94: -8.764834766e-18 | BM94: -1.909982329e-17 | BN94: 6.366259111e-18 | BO94: 1.989930472e-17 | BP94: -3.867283748e-18 | BQ94: -2.038496224e-17 | BR94: 1.307319009e-18 | BS94: 2.054913671e-17 | BT94: 1.273262931e-18 | BU94: -2.038923903e-17 | BV94: -3.833764755e-18 | BW94: 1.990779087e-17 | BX94: 6.333805818e-18 | BY94: -1.911238496e-17 | BZ94: -8.733958979e-18 | CA94: 1.801556531e-17 | CB94: 1.099637239e-17 | CC94: -1.663462944e-17 | CD94: -1.308536644e-17 | CE94: 1.499135553e-17 | CF94: 1.496799644e-17 | CG94: -1.311165898e-17 | CH94: -1.66145722e-17 | CI94: 1.102518374e-17 | CJ94: 1.799912623e-17 | CK94: -8.764834766e-18 | CL94: -1.909982329e-17 | CM94: 6.366259111e-18 | CN94: 1.989930472e-17 | CO94: -3.867283748e-18 | CP94: -2.038496224e-17 | CQ94: 1.307319009e-18 | CR94: 2.054913671e-17 | CS94: 1.273262931e-18 | CT94: -2.038923903e-17 | CU94: -3.833764755e-18 | CV94: 1.990779087e-17 | CW94: 6.333805818e-18 | CX94: -1.911238496e-17 | CY94: -8.733958979e-18 | CZ94: 1.801556531e-17 | DA94: 1.099637239e-17 | DB94: -1.663462944e-17 | DC94: -1.308536644e-17 | DD94: 1.499135553e-17 | DE94: 1.496799644e-17 | DF94: -1.311165898e-17 | DG94: -1.66145722e-17 | DH94: 1.102518374e-17 | DI94: 1.799912623e-17 | DJ94: -8.764834766e-18 | DK94: -1.909982329e-17 | DL94: 6.366259111e-18 | DM94: 1.989930472e-17 | DN94: -3.867283748e-18 | DO94: -2.038496224e-17 | DP94: 1.307319009e-18 | DQ94: 2.054913671e-17
B95: 25 | C95: 2500000000 | D95: 82.46680716 | E95: 3.926990817 | F95: 3.926990817 | G95: -0.1800632632 | H95: -0.1800632632 | I95: -0.003242277877 | J95: 0.003242277877 | K95: -46.77269538 | L95: -0.003218167965 | M95: 0.003218167965 | N95: -46.8375259 | S95: V(t) | T95: 25 | U95: -2.862293735e-17 | V95: -0.004551176783 | W95: 3.165870344e-17 | X95: 0.004551176783 | Y95: -3.165870344e-17 | Z95: -0.004551176783 | AA95: 3.07913417e-17 | AB95: 0.004551176783 | AC95: -2.992397996e-17 | AD95: -0.004551176783 | AE95: 2.949029909e-17 | AF95: 0.004551176783 | AG95: -2.905661822e-17 | AH95: -0.004551176783 | AI95: 2.905661822e-17 | AJ95: 0.004551176783 | AK95: -4.466912951e-17 | AL95: -0.004551176783 | AM95: 1.127570259e-17 | AN95: 0.004551176783 | AO95: -2.645453301e-17 | AP95: -0.004551176783 | AQ95: 9.974659987e-18 | AR95: 0.004551176783 | AS95: -2.558717127e-17 | AT95: -0.004551176783 | AU95: 4.206704429e-17 | AV95: 0.004551176783 | AW95: -2.471980953e-17 | AX95: -0.004551176783 | AY95: 8.239936511e-18 | AZ95: 0.004551176783 | BA95: -5.59448321e-17 | BB95: -0.004551176783 | BC95: 7.155734338e-17 | BD95: 0.004551176783 | BE95: -2.211772432e-17 | BF95: -0.004551176783 | BG95: 5.637851297e-18 | BH95: 0.004551176783 | BI95: -2.125036258e-17 | BJ95: -0.004551176783 | BK95: 3.686287386e-17 | BL95: 0.004551176783 | BM95: 1.170938346e-17 | BN95: -0.004551176783 | BO95: 3.903127821e-18 | BP95: 0.004551176783 | BQ95: -1.908195824e-17 | BR95: -0.004551176783 | BS95: 3.426078865e-17 | BT95: 0.004551176783 | BU95: -4.987329993e-17 | BV95: -0.004551176783 | BW95: 0 | BX95: 0.004551176783 | BY95: -1.691355389e-17 | BZ95: -0.004551176783 | CA95: 3.252606517e-17 | CB95: 0.004551176783 | CC95: 1.647987302e-17 | CD95: -0.004551176783 | CE95: 0 | CF95: 0.004551176783 | CG95: -7.936359903e-17 | CH95: -0.004551176783 | CI95: 9.497611031e-17 | CJ95: 0.004551176783 | CK95: -1.105886216e-16 | CL95: -0.004551176783 | CM95: 0 | CN95: 0.004551176783 | CO95: -1.25767452e-17 | CP95: -0.004551176783 | CQ95: 2.818925648e-17 | CR95: 0.004551176783 | CS95: 2.125036258e-17 | CT95: -0.004551176783 | CU95: -5.637851297e-18 | CV95: 0.004551176783 | CW95: 5.464378949e-17 | CX95: -0.004551176783 | CY95: -1.036497277e-16 | CZ95: 0.004551176783 | DA95: 2.298508606e-17 | DB95: -0.004551176783 | DC95: -7.199102425e-17 | DD95: 0.004551176783 | DE95: 1.209969624e-16 | DF95: -0.004551176783 | DG95: -4.119968255e-17 | DH95: 0.004551176783 | DI95: 9.020562075e-17 | DJ95: -0.004551176783 | DK95: -9.974659987e-18 | DL95: 0.004551176783 | DM95: 5.941427905e-17 | DN95: -0.004551176783 | DO95: -1.084202172e-16 | DP95: 0.004551176783 | DQ95: 2.732189475e-17
B96: 26 | C96: 2600000000 | D96: 85.76547944 | E96: 4.08407045 | F96: 4.08407045 | G96: -0.1980908518 | H96: -0.1980908518 | I96: -3.737831356e-18 | J96: -4.247535632e-18 | K96: -344.9467441 | L96: -3.707777537e-18 | M96: -4.213383564e-18 | N96: -345.0168648 | S96: V(t) | T96: 26 | U96: 5.588075862e-18 | V96: -8.729363044e-19 | W96: -5.478451614e-18 | X96: 1.560925951e-18 | Y96: 5.282428911e-18 | Z96: -2.224298862e-18 | AA96: -5.003099149e-18 | AB96: 2.852593252e-18 | AC96: 4.644867525e-18 | AD96: -3.435900542e-18 | AE96: -4.213383564e-18 | AF96: 3.965021628e-18 | AG96: 3.715452029e-18 | AH96: -4.431611954e-18 | AI96: -3.158925595e-18 | AJ96: 4.828313112e-18 | AK96: 2.552581017e-18 | AL96: -5.148868889e-18 | AM96: -1.905980712e-18 | AN96: 5.388223927e-18 | AO96: 1.229321953e-18 | AP96: -5.542603455e-18 | AQ96: -5.332760516e-19 | AR96: 5.609572816e-18 | AS96: -1.711799313e-19 | AT96: -5.588075862e-18 | AU96: 8.729363044e-19 | AV96: 5.478451614e-18 | AW96: -1.560925951e-18 | AX96: -5.282428911e-18 | AY96: 2.224298862e-18 | AZ96: 5.003099149e-18 | BA96: -2.852593252e-18 | BB96: -4.644867525e-18 | BC96: 3.435900542e-18 | BD96: 4.213383564e-18 | BE96: -3.965021628e-18 | BF96: -3.715452029e-18 | BG96: 4.431611954e-18 | BH96: 3.158925595e-18 | BI96: -4.828313112e-18 | BJ96: -2.552581017e-18 | BK96: 5.148868889e-18 | BL96: 1.905980712e-18 | BM96: -5.388223927e-18 | BN96: -1.229321953e-18 | BO96: 5.542603455e-18 | BP96: 5.332760516e-19 | BQ96: -5.609572816e-18 | BR96: 1.711799313e-19 | BS96: 5.588075862e-18 | BT96: -8.729363044e-19 | BU96: -5.478451614e-18 | BV96: 1.560925951e-18 | BW96: 5.282428911e-18 | BX96: -2.224298862e-18 | BY96: -5.003099149e-18 | BZ96: 2.852593252e-18 | CA96: 4.644867525e-18 | CB96: -3.435900542e-18 | CC96: -4.213383564e-18 | CD96: 3.965021628e-18 | CE96: 3.715452029e-18 | CF96: -4.431611954e-18 | CG96: -3.158925595e-18 | CH96: 4.828313112e-18 | CI96: 2.552581017e-18 | CJ96: -5.148868889e-18 | CK96: -1.905980712e-18 | CL96: 5.388223927e-18 | CM96: 1.229321953e-18 | CN96: -5.542603455e-18 | CO96: -5.332760516e-19 | CP96: 5.609572816e-18 | CQ96: -1.711799313e-19 | CR96: -5.588075862e-18 | CS96: 8.729363044e-19 | CT96: 5.478451614e-18 | CU96: -1.560925951e-18 | CV96: -5.282428911e-18 | CW96: 2.224298862e-18 | CX96: 5.003099149e-18 | CY96: -2.852593252e-18 | CZ96: -4.644867525e-18 | DA96: 3.435900542e-18 | DB96: 4.213383564e-18 | DC96: -3.965021628e-18 | DD96: -3.715452029e-18 | DE96: 4.431611954e-18 | DF96: 3.158925595e-18 | DG96: -4.828313112e-18 | DH96: -2.552581017e-18 | DI96: 5.148868889e-18 | DJ96: 1.905980712e-18 | DK96: -5.388223927e-18 | DL96: -1.229321953e-18 | DM96: 5.542603455e-18 | DN96: 5.332760516e-19 | DO96: -5.609572816e-18 | DP96: 1.711799313e-19 | DQ96: 5.588075862e-18
B97: 27 | C97: 2700000000 | D97: 89.06415173 | E97: 4.241150082 | F97: 4.241150082 | G97: -0.2100860632 | H97: -0.2100860632 | I97: -0.004413615395 | J97: 0.002248849368 | K97: -46.10172797 | L97: -0.004375357766 | M97: 0.002229356133 | N97: -46.17734627 | S97: V(t) | T97: 27 | U97: -4.510281038e-17 | V97: -0.004871857439 | W97: 0.001221211293 | X97: 0.004565740719 | Y97: -0.002365689389 | Z97: -0.003972741718 | AA97: 0.00336152252 | AB97: 0.003130120743 | AC97: -0.004146138828 | AD97: -0.002090822771 | AE97: 0.004670237986 | AF97: 0.0009201507147 | AG97: -0.004900888915 | AH97: 0.0003083377953 | AI97: 0.004823598969 | AJ97: -0.001517452308 | AK97: -0.00444322456 | AL97: 0.002631219711 | AM97: 0.003783666011 | AN97: -0.003579657902 | AO97: -0.002886365811 | AP97: 0.004303173023 | AQ97: 0.001807704632 | AR97: -0.004756303957 | AS97: -0.0006154587222 | AT97: 0.00491057882 | AU97: -0.0006154587222 | AV97: -0.004756303957 | AW97: 0.001807704632 | AX97: 0.004303173023 | AY97: -0.002886365811 | AZ97: -0.003579657902 | BA97: 0.003783666011 | BB97: 0.002631219711 | BC97: -0.00444322456 | BD97: -0.001517452308 | BE97: 0.004823598969 | BF97: 0.0003083377953 | BG97: -0.004900888915 | BH97: 0.0009201507147 | BI97: 0.004670237986 | BJ97: -0.002090822771 | BK97: -0.004146138828 | BL97: 0.003130120743 | BM97: 0.00336152252 | BN97: -0.003972741718 | BO97: -0.002365689389 | BP97: 0.004565740719 | BQ97: 0.001221211293 | BR97: -0.004871857439 | BS97: 2.471980953e-17 | BT97: 0.004871857439 | BU97: -0.001221211293 | BV97: -0.004565740719 | BW97: 0.002365689389 | BX97: 0.003972741718 | BY97: -0.00336152252 | BZ97: -0.003130120743 | CA97: 0.004146138828 | CB97: 0.002090822771 | CC97: -0.004670237986 | CD97: -0.0009201507147 | CE97: 0.004900888915 | CF97: -0.0003083377953 | CG97: -0.004823598969 | CH97: 0.001517452308 | CI97: 0.00444322456 | CJ97: -0.002631219711 | CK97: -0.003783666011 | CL97: 0.003579657902 | CM97: 0.002886365811 | CN97: -0.004303173023 | CO97: -0.001807704632 | CP97: 0.004756303957 | CQ97: 0.0006154587222 | CR97: -0.00491057882 | CS97: 0.0006154587222 | CT97: 0.004756303957 | CU97: -0.001807704632 | CV97: -0.004303173023 | CW97: 0.002886365811 | CX97: 0.003579657902 | CY97: -0.003783666011 | CZ97: -0.002631219711 | DA97: 0.00444322456 | DB97: 0.001517452308 | DC97: -0.004823598969 | DD97: -0.0003083377953 | DE97: 0.004900888915 | DF97: -0.0009201507147 | DG97: -0.004670237986 | DH97: 0.002090822771 | DI97: 0.004146138828 | DJ97: -0.003130120743 | DK97: -0.00336152252 | DL97: 0.003972741718 | DM97: 0.002365689389 | DN97: -0.004565740719 | DO97: -0.001221211293 | DP97: 0.004871857439 | DQ97: 9.107298249e-18
B98: 28 | C98: 2800000000 | D98: 92.36282402 | E98: 4.398229715 | F98: 4.398229715 | G98: -0.2162362082 | H98: -0.2162362082 | I98: -5.364030713e-18 | J98: -1.640762336e-17 | K98: -335.2580861 | L98: -5.314043268e-18 | M98: -1.625472059e-17 | N98: -335.3394095 | S98: V(t) | T98: 28 | U98: 1.710128761e-17 | V98: -3.234883758e-18 | W98: -1.588897407e-17 | X98: 9.189477455e-18 | Y98: 1.244510134e-17 | Z98: -1.385343635e-17 | AA98: -7.253351107e-18 | AB98: 1.657172128e-17 | AC98: 1.042889269e-18 | AD98: -1.696255721e-17 | AE98: 5.314043268e-18 | AF98: 1.497105238e-17 | AG98: -1.092463422e-17 | AH98: -1.087690774e-17 | AI98: 1.500089276e-17 | AJ98: 5.255133727e-18 | AK98: -1.697032049e-17 | AL98: 1.104708199e-18 | AM98: 1.655631714e-17 | AN98: -7.309397141e-18 | AO98: -1.381702825e-17 | AP98: 1.248750298e-17 | AQ98: 9.137178807e-18 | AR98: -1.591177613e-17 | AS98: -3.174039749e-18 | AT98: 1.710128761e-17 | AU98: -3.234883758e-18 | AV98: -1.588897407e-17 | AW98: 9.189477455e-18 | AX98: 1.244510134e-17 | AY98: -1.385343635e-17 | AZ98: -7.253351107e-18 | BA98: 1.657172128e-17 | BB98: 1.042889269e-18 | BC98: -1.696255721e-17 | BD98: 5.314043268e-18 | BE98: 1.497105238e-17 | BF98: -1.092463422e-17 | BG98: -1.087690774e-17 | BH98: 1.500089276e-17 | BI98: 5.255133727e-18 | BJ98: -1.697032049e-17 | BK98: 1.104708199e-18 | BL98: 1.655631714e-17 | BM98: -7.309397141e-18 | BN98: -1.381702825e-17 | BO98: 1.248750298e-17 | BP98: 9.137178807e-18 | BQ98: -1.591177613e-17 | BR98: -3.174039749e-18 | BS98: 1.710128761e-17 | BT98: -3.234883758e-18 | BU98: -1.588897407e-17 | BV98: 9.189477455e-18 | BW98: 1.244510134e-17 | BX98: -1.385343635e-17 | BY98: -7.253351107e-18 | BZ98: 1.657172128e-17 | CA98: 1.042889269e-18 | CB98: -1.696255721e-17 | CC98: 5.314043268e-18 | CD98: 1.497105238e-17 | CE98: -1.092463422e-17 | CF98: -1.087690774e-17 | CG98: 1.500089276e-17 | CH98: 5.255133727e-18 | CI98: -1.697032049e-17 | CJ98: 1.104708199e-18 | CK98: 1.655631714e-17 | CL98: -7.309397141e-18 | CM98: -1.381702825e-17 | CN98: 1.248750298e-17 | CO98: 9.137178807e-18 | CP98: -1.591177613e-17 | CQ98: -3.174039749e-18 | CR98: 1.710128761e-17 | CS98: -3.234883758e-18 | CT98: -1.588897407e-17 | CU98: 9.189477455e-18 | CV98: 1.244510134e-17 | CW98: -1.385343635e-17 | CX98: -7.253351107e-18 | CY98: 1.657172128e-17 | CZ98: 1.042889269e-18 | DA98: -1.696255721e-17 | DB98: 5.314043268e-18 | DC98: 1.497105238e-17 | DD98: -1.092463422e-17 | DE98: -1.087690774e-17 | DF98: 1.500089276e-17 | DG98: 5.255133727e-18 | DH98: -1.697032049e-17 | DI98: 1.104708199e-18 | DJ98: 1.655631714e-17 | DK98: -7.309397141e-18 | DL98: -1.381702825e-17 | DM98: 1.248750298e-17 | DN98: 9.137178807e-18 | DO98: -1.591177613e-17 | DP98: -3.174039749e-18 | DQ98: 1.710128761e-17
B99: 29 | C99: 2900000000 | D99: 95.6614963 | E99: 4.555309348 | F99: 4.555309348 | G99: -0.216821354 | H99: -0.216821354 | I99: -0.004701149954 | J99: 0.0007445890044 | K99: -46.44831646 | L99: -0.004654170698 | M99: 0.0007371482211 | N99: -46.53555239 | S99: V(t) | T99: 29 | U99: 1.051676107e-17 | V99: -0.004564143548 | W99: 0.002270112688 | X99: 0.003435035411 | Y99: -0.003978629825 | Z99: -0.001456145407 | AA99: 0.004702887099 | AB99: -0.0008829755175 | AC99: -0.004263712935 | AD99: 0.003003660095 | AE99: 0.002769753155 | AF99: -0.004381279294 | AG99: -0.0005905934485 | AH99: 0.00467502853 | AI99: -0.001734671187 | AJ99: -0.003812238167 | AK99: 0.003630801346 | AL99: 0.002006351013 | AM99: -0.00462871976 | AN99: 0.000295880577 | AO99: 0.004481554746 | AP99: -0.002524915265 | AQ99: -0.003225712961 | AR99: 0.004129319649 | AS99: 0.001171872885 | AT99: -0.004712185521 | AU99: 0.001171872885 | AV99: 0.004129319649 | AW99: -0.003225712961 | AX99: -0.002524915265 | AY99: 0.004481554746 | AZ99: 0.000295880577 | BA99: -0.00462871976 | BB99: 0.002006351013 | BC99: 0.003630801346 | BD99: -0.003812238167 | BE99: -0.001734671187 | BF99: 0.00467502853 | BG99: -0.0005905934485 | BH99: -0.004381279294 | BI99: 0.002769753155 | BJ99: 0.003003660095 | BK99: -0.004263712935 | BL99: -0.0008829755175 | BM99: 0.004702887099 | BN99: -0.001456145407 | BO99: -0.003978629825 | BP99: 0.003435035411 | BQ99: 0.002270112688 | BR99: -0.004564143548 | BS99: 1.040834086e-17 | BT99: 0.004564143548 | BU99: -0.002270112688 | BV99: -0.003435035411 | BW99: 0.003978629825 | BX99: 0.001456145407 | BY99: -0.004702887099 | BZ99: 0.0008829755175 | CA99: 0.004263712935 | CB99: -0.003003660095 | CC99: -0.002769753155 | CD99: 0.004381279294 | CE99: 0.0005905934485 | CF99: -0.00467502853 | CG99: 0.001734671187 | CH99: 0.003812238167 | CI99: -0.003630801346 | CJ99: -0.002006351013 | CK99: 0.00462871976 | CL99: -0.000295880577 | CM99: -0.004481554746 | CN99: 0.002524915265 | CO99: 0.003225712961 | CP99: -0.004129319649 | CQ99: -0.001171872885 | CR99: 0.004712185521 | CS99: -0.001171872885 | CT99: -0.004129319649 | CU99: 0.003225712961 | CV99: 0.002524915265 | CW99: -0.004481554746 | CX99: -0.000295880577 | CY99: 0.00462871976 | CZ99: -0.002006351013 | DA99: -0.003630801346 | DB99: 0.003812238167 | DC99: 0.001734671187 | DD99: -0.00467502853 | DE99: 0.0005905934485 | DF99: 0.004381279294 | DG99: -0.002769753155 | DH99: -0.003003660095 | DI99: 0.004263712935 | DJ99: 0.0008829755175 | DK99: -0.004702887099 | DL99: 0.001456145407 | DM99: 0.003978629825 | DN99: -0.003435035411 | DO99: -0.002270112688 | DP99: 0.004564143548 | DQ99: 5.648693319e-17
B100: 30 | C100: 3000000000 | D100: 98.96016859 | E100: 4.71238898 | F100: 4.71238898 | G100: -0.2122065908 | H100: -0.2122065908 | I100: 0 | J100: -2.627382386e-17 | K100: -331.6095343 | L100: 0 | M100: -2.599294497e-17 | N100: -331.7028903 | S100: V(t) | T100: 30 | U100: 2.599294497e-17 | V100: -8.032261729e-18 | W100: -2.102873421e-17 | X100: 2.102873421e-17 | Y100: 8.032261729e-18 | Z100: -2.599294497e-17 | AA100: 8.032261729e-18 | AB100: 2.102873421e-17 | AC100: -2.102873421e-17 | AD100: -8.032261729e-18 | AE100: 2.599294497e-17 | AF100: -8.032261729e-18 | AG100: -2.102873421e-17 | AH100: 2.102873421e-17 | AI100: 8.032261729e-18 | AJ100: -2.599294497e-17 | AK100: 8.032261729e-18 | AL100: 2.102873421e-17 | AM100: -2.102873421e-17 | AN100: -8.032261729e-18 | AO100: 2.599294497e-17 | AP100: -8.032261729e-18 | AQ100: -2.102873421e-17 | AR100: 2.102873421e-17 | AS100: 8.032261729e-18 | AT100: -2.599294497e-17 | AU100: 8.032261729e-18 | AV100: 2.102873421e-17 | AW100: -2.102873421e-17 | AX100: -8.032261729e-18 | AY100: 2.599294497e-17 | AZ100: -8.032261729e-18 | BA100: -2.102873421e-17 | BB100: 2.102873421e-17 | BC100: 8.032261729e-18 | BD100: -2.599294497e-17 | BE100: 8.032261729e-18 | BF100: 2.102873421e-17 | BG100: -2.102873421e-17 | BH100: -8.032261729e-18 | BI100: 2.599294497e-17 | BJ100: -8.032261729e-18 | BK100: -2.102873421e-17 | BL100: 2.102873421e-17 | BM100: 8.032261729e-18 | BN100: -2.599294497e-17 | BO100: 8.032261729e-18 | BP100: 2.102873421e-17 | BQ100: -2.102873421e-17 | BR100: -8.032261729e-18 | BS100: 2.599294497e-17 | BT100: -8.032261729e-18 | BU100: -2.102873421e-17 | BV100: 2.102873421e-17 | BW100: 8.032261729e-18 | BX100: -2.599294497e-17 | BY100: 8.032261729e-18 | BZ100: 2.102873421e-17 | CA100: -2.102873421e-17 | CB100: -8.032261729e-18 | CC100: 2.599294497e-17 | CD100: -8.032261729e-18 | CE100: -2.102873421e-17 | CF100: 2.102873421e-17 | CG100: 8.032261729e-18 | CH100: -2.599294497e-17 | CI100: 8.032261729e-18 | CJ100: 2.102873421e-17 | CK100: -2.102873421e-17 | CL100: -8.032261729e-18 | CM100: 2.599294497e-17 | CN100: -8.032261729e-18 | CO100: -2.102873421e-17 | CP100: 2.102873421e-17 | CQ100: 8.032261729e-18 | CR100: -2.599294497e-17 | CS100: 8.032261729e-18 | CT100: 2.102873421e-17 | CU100: -2.102873421e-17 | CV100: -8.032261729e-18 | CW100: 2.599294497e-17 | CX100: -8.032261729e-18 | CY100: -2.102873421e-17 | CZ100: 2.102873421e-17 | DA100: 8.032261729e-18 | DB100: -2.599294497e-17 | DC100: 8.032261729e-18 | DD100: 2.102873421e-17 | DE100: -2.102873421e-17 | DF100: -8.032261729e-18 | DG100: 2.599294497e-17 | DH100: -8.032261729e-18 | DI100: -2.102873421e-17 | DJ100: 2.102873421e-17 | DK100: 8.032261729e-18 | DL100: -2.599294497e-17 | DM100: 8.032261729e-18 | DN100: 2.102873421e-17 | DO100: -2.102873421e-17 | DP100: -8.032261729e-18 | DQ100: 2.599294497e-17
B101: 31 | C101: 3100000000 | D101: 102.2588409 | E101: 4.869468613 | F101: 4.869468613 | G101: -0.2028328795 | H101: -0.2028328795 | I101: -0.004114117702 | J101: -0.0006516122297 | K101: -47.60686429 | L101: -0.004067172035 | M101: -0.0006441767665 | N101: -47.70654769 | S101: V(t) | T101: 31 | U101: -3.165870344e-17 | V101: -0.003828698555 | W101: 0.002818875886 | X101: 0.001753303706 | Y101: -0.004109744171 | Z101: 0.001272491763 | AA101: 0.003172873248 | AB101: -0.003608516854 | AC101: -0.0005161059432 | AD101: 0.003988499393 | AE101: -0.002420423166 | AF101: -0.002206465002 | AG101: 0.00404493105 | AH101: -0.000771611865 | AI101: -0.003476832505 | AJ101: 0.003331426686 | AK101: 0.001024072587 | AL101: -0.004085399212 | AM101: 0.001983798928 | AN101: 0.002624829027 | AO101: -0.00391632695 | AP101: 0.000258563187 | AQ101: 0.003725960035 | AR101: -0.00300179793 | AS101: -0.001515888995 | AT101: 0.004117869846 | AU101: -0.001515888995 | AV101: -0.00300179793 | AW101: 0.003725960035 | AX101: 0.000258563187 | AY101: -0.00391632695 | AZ101: 0.002624829027 | BA101: 0.001983798928 | BB101: -0.004085399212 | BC101: 0.001024072587 | BD101: 0.003331426686 | BE101: -0.003476832505 | BF101: -0.000771611865 | BG101: 0.00404493105 | BH101: -0.002206465002 | BI101: -0.002420423166 | BJ101: 0.003988499393 | BK101: -0.0005161059432 | BL101: -0.003608516854 | BM101: 0.003172873248 | BN101: 0.001272491763 | BO101: -0.004109744171 | BP101: 0.001753303706 | BQ101: 0.002818875886 | BR101: -0.003828698555 | BS101: 2.699663409e-17 | BT101: 0.003828698555 | BU101: -0.002818875886 | BV101: -0.001753303706 | BW101: 0.004109744171 | BX101: -0.001272491763 | BY101: -0.003172873248 | BZ101: 0.003608516854 | CA101: 0.0005161059432 | CB101: -0.003988499393 | CC101: 0.002420423166 | CD101: 0.002206465002 | CE101: -0.00404493105 | CF101: 0.000771611865 | CG101: 0.003476832505 | CH101: -0.003331426686 | CI101: -0.001024072587 | CJ101: 0.004085399212 | CK101: -0.001983798928 | CL101: -0.002624829027 | CM101: 0.00391632695 | CN101: -0.000258563187 | CO101: -0.003725960035 | CP101: 0.00300179793 | CQ101: 0.001515888995 | CR101: -0.004117869846 | CS101: 0.001515888995 | CT101: 0.00300179793 | CU101: -0.003725960035 | CV101: =Re_H*COS(NH_*Rad_+NH_*Ofs_)+Im_H*SIN(NH_*Rad_+NH_*Ofs_) -> -0.000258563187 | CW101: 0.00391632695 | CX101: -0.002624829027 | CY101: -0.001983798928 | CZ101: 0.004085399212 | DA101: -0.001024072587 | DB101: -0.003331426686 | DC101: 0.003476832505 | DD101: 0.000771611865 | DE101: -0.00404493105 | DF101: 0.002206465002 | DG101: 0.002420423166 | DH101: -0.003988499393 | DI101: 0.0005161059432 | DJ101: 0.003608516854 | DK101: -0.003172873248 | DL101: -0.001272491763 | DM101: 0.004109744171 | DN101: -0.001753303706 | DO101: -0.002818875886 | DP101: 0.003828698555 | DQ101: 3.361026735e-18
B102: 32 | C102: 3200000000 | D102: 105.5575132 | E102: 5.026548246 | F102: 5.026548246 | G102: -0.1892066822 | H102: -0.1892066822 | I102: 2.208718529e-18 | J102: -6.971267857e-18 | K102: -342.7183286 | L102: 2.181872955e-18 | M102: -6.886536513e-18 | N102: -342.8245469 | S102: V(t) | T102: 32 | U102: 7.223721248e-18 | V102: -3.123641707e-18 | W102: -4.563757342e-18 | X102: 7.009948443e-18 | Y102: -1.405624422e-18 | Z102: -5.812976902e-18 | AA102: 6.355714796e-18 | AB102: 4.007134152e-19 | AC102: -6.696945744e-18 | AD102: 5.302128214e-18 | AE102: 2.181872955e-18 | AF102: -7.160120856e-18 | AG102: 3.915389416e-18 | AH102: 3.825937392e-18 | AI102: -7.173399241e-18 | AJ102: 2.282632302e-18 | AK102: 5.229604112e-18 | AL102: -6.73594657e-18 | AM102: 5.06449005e-19 | AN102: 6.304675573e-18 | AO102: -5.875249603e-18 | AP102: -1.301556346e-18 | AQ102: 6.983601081e-18 | AR102: -4.645389096e-18 | AS102: -3.027780124e-18 | AT102: 7.223721248e-18 | AU102: -3.123641707e-18 | AV102: -4.563757342e-18 | AW102: 7.009948443e-18 | AX102: -1.405624422e-18 | AY102: -5.812976902e-18 | AZ102: 6.355714796e-18 | BA102: 4.007134152e-19 | BB102: -6.696945744e-18 | BC102: 5.302128214e-18 | BD102: 2.181872955e-18 | BE102: -7.160120856e-18 | BF102: 3.915389416e-18 | BG102: 3.825937392e-18 | BH102: -7.173399241e-18 | BI102: 2.282632302e-18 | BJ102: 5.229604112e-18 | BK102: -6.73594657e-18 | BL102: 5.06449005e-19 | BM102: 6.304675573e-18 | BN102: -5.875249603e-18 | BO102: =Re_H*COS(NH_*Rad_+NH_*Ofs_)+Im_H*SIN(NH_*Rad_+NH_*Ofs_) -> -1.301556346e-18 | BP102: 6.983601081e-18 | BQ102: -4.645389096e-18 | BR102: -3.027780124e-18 | BS102: 7.223721248e-18 | BT102: -3.123641707e-18 | BU102: -4.563757342e-18 | BV102: 7.009948443e-18 | BW102: -1.405624422e-18 | BX102: -5.812976902e-18 | BY102: 6.355714796e-18 | BZ102: 4.007134152e-19 | CA102: -6.696945744e-18 | CB102: 5.302128214e-18 | CC102: 2.181872955e-18 | CD102: -7.160120856e-18 | CE102: 3.915389416e-18 | CF102: 3.825937392e-18 | CG102: =Re_H*COS(NH_*Rad_+NH_*Ofs_)+Im_H*SIN(NH_*Rad_+NH_*Ofs_) -> -7.173399241e-18 | CH102: 2.282632302e-18 | CI102: 5.229604112e-18 | CJ102: -6.73594657e-18 | CK102: 5.06449005e-19 | CL102: 6.304675573e-18 | CM102: -5.875249603e-18 | CN102: -1.301556346e-18 | CO102: 6.983601081e-18 | CP102: -4.645389096e-18 | CQ102: -3.027780124e-18 | CR102: 7.223721248e-18 | CS102: -3.123641707e-18 | CT102: -4.563757342e-18 | CU102: 7.009948443e-18 | CV102: -1.405624422e-18 | CW102: -5.812976902e-18 | CX102: 6.355714796e-18 | CY102: 4.007134152e-19 | CZ102: -6.696945744e-18 | DA102: 5.302128214e-18 | DB102: 2.181872955e-18 | DC102: -7.160120856e-18 | DD102: 3.915389416e-18 | DE102: 3.825937392e-18 | DF102: -7.173399241e-18 | DG102: 2.282632302e-18 | DH102: 5.229604112e-18 | DI102: -6.73594657e-18 | DJ102: 5.06449005e-19 | DK102: 6.304675573e-18 | DL102: -5.875249603e-18 | DM102: =Re_H*COS(NH_*Rad_+NH_*Ofs_)+Im_H*SIN(NH_*Rad_+NH_*Ofs_) -> -1.301556346e-18 | DN102: =Re_H*COS(NH_*Rad_+NH_*Ofs_)+Im_H*SIN(NH_*Rad_+NH_*Ofs_) -> 6.983601081e-18 | DO102: =Re_H*COS(NH_*Rad_+NH_*Ofs_)+Im_H*SIN(NH_*Rad_+NH_*Ofs_) -> -4.645389096e-18 | DP102: =Re_H*COS(NH_*Rad_+NH_*Ofs_)+Im_H*SIN(NH_*Rad_+NH_*Ofs_) -> -3.027780124e-18 | DQ102: =Re_H*COS(NH_*Rad_+NH_*Ofs_)+Im_H*SIN(NH_*Rad_+NH_*Ofs_) -> 7.223721248e-18
B103: 33 | C103: 3300000000 | D103: =NH_*PI()*(2*D_/100*T_+tr_)/T_ -> 108.8561854 | E103: =NH_*PI()*tr_/T_ -> 5.183627878 | F103: 5.183627878 | G103: -0.1718885972 | H103: -0.1718885972 | I103: =(High_-Low_)/PI()/NH_*(Y_*SIN(Rad_t)-X_*SIN(Rad_tr)) -> -0.002954568983 | J103: =-(High_-Low_)/PI()/NH_*(Y_*COS(Rad_t)-X_*COS(Rad_tr)) -> -0.001505428089 | K103: =IF(SQRT(Re_H_^2+Im_H_^2)>1E-20, 20*LOG(SQRT(Re_H_^2+Im_H_^2)), -200) -> -49.58773499 | L103: -0.002916393357 | M103: -0.001485976636 | N103: =IF(SQRT(Re_H^2+Im_H^2)>1E-20, 20*LOG(SQRT(Re_H^2+Im_H^2)), -200) -> -49.70069568 | S103: V(t) | T103: 33 | U103: 1.32272665e-17 | V103: -0.002868278638 | W103: 0.002763607545 | X103: 0.0002055224614 | Y103: -0.002961629947 | Z103: 0.002648029755 | AA103: 0.0004102338196 | AB103: -0.003043293055 | AC103: 0.002522001401 | AD103: 0.0006133261723 | AE103: -0.003112945675 | AF103: 0.00238601986 | AG103: 0.0008139980069 | AH103: -0.003170312921 | AI103: 0.002240621789 | AJ103: =Re_H*COS(NH_*Rad_+NH_*Ofs_)+Im_H*SIN(NH_*Rad_+NH_*Ofs_) -> 0.001011457363 | AK103: -0.003215168391 | AL103: 0.002086381007 | AM103: 0.001204924959 | AN103: -0.003247335059 | AO103: 0.001923906232 | AP103: 0.001393637267 | AQ103: -0.00326668598 | AR103: 0.001753838679 | AS103: 0.001576849525 | AT103: -0.003273144783 | AU103: 0.001576849525 | AV103: 0.001753838679 | AW103: -0.00326668598 | AX103: 0.001393637267 | AY103: 0.001923906232 | AZ103: =Re_H*COS(NH_*Rad_+NH_*Ofs_)+Im_H*SIN(NH_*Rad_+NH_*Ofs_) -> -0.003247335059 | BA103: 0.001204924959 | BB103: 0.002086381007 | BC103: -0.003215168391 | BD103: 0.001011457363 | BE103: 0.002240621789 | BF103: -0.003170312921 | BG103: 0.0008139980069 | BH103: 0.00238601986 | BI103: -0.003112945675 | BJ103: 0.0006133261723 | BK103: 0.002522001401 | BL103: -0.003043293055 | BM103: 0.0004102338196 | BN103: 0.002648029755 | BO103: -0.002961629947 | BP103: 0.0002055224614 | BQ103: 0.002763607545 | BR103: -0.002868278638 | BS103: -3.556183126e-17 | BT103: 0.002868278638 | BU103: -0.002763607545 | BV103: -0.0002055224614 | BW103: 0.002961629947 | BX103: -0.002648029755 | BY103: -0.0004102338196 | BZ103: 0.003043293055 | CA103: -0.002522001401 | CB103: -0.0006133261723 | CC103: 0.003112945675 | CD103: -0.00238601986 | CE103: =Re_H*COS(NH_*Rad_+NH_*Ofs_)+Im_H*SIN(NH_*Rad_+NH_*Ofs_) -> -0.0008139980069 | CF103: 0.003170312921 | CG103: -0.002240621789 | CH103: -0.001011457363 | CI103: 0.003215168391 | CJ103: -0.002086381007 | CK103: -0.001204924959 | CL103: 0.003247335059 | CM103: -0.001923906232 | CN103: -0.001393637267 | CO103: 0.00326668598 | CP103: -0.001753838679 | CQ103: -0.001576849525 | CR103: 0.003273144783 | CS103: -0.001576849525 | CT103: -0.001753838679 | CU103: =Re_H*COS(NH_*Rad_+NH_*Ofs_)+Im_H*SIN(NH_*Rad_+NH_*Ofs_) -> 0.00326668598 | CV103: -0.001393637267 | CW103: -0.001923906232 | CX103: 0.003247335059 | CY103: -0.001204924959 | CZ103: -0.002086381007 | DA103: 0.003215168391 | DB103: -0.001011457363 | DC103: -0.002240621789 | DD103: 0.003170312921 | DE103: -0.0008139980069 | DF103: -0.00238601986 | DG103: 0.003112945675 | DH103: -0.0006133261723 | DI103: -0.002522001401 | DJ103: 0.003043293055 | DK103: -0.0004102338196 | DL103: =Re_H*COS(NH_*Rad_+NH_*Ofs_)+Im_H*SIN(NH_*Rad_+NH_*Ofs_) -> -0.002648029755 | DM103: 0.002961629947 | DN103: -0.0002055224614 | DO103: -0.002763607545 | DP103: 0.002868278638 | DQ103: 3.70797143e-17
B104: 34 | C104: =NH_*f_ -> 3400000000 | D104: 112.1548577 | E104: 5.340707511 | F104: =NH_*PI()*tf_/T_ -> 5.340707511 | G104: =SIN(Rad_tr)/Rad_tr -> -0.1514812396 | H104: =SIN(Rad_tf)/Rad_tf -> -0.1514812396 | I104: 7.92540178e-18 | J104: -1.091366802e-17 | K104: -337.4011921 | L104: 7.816741724e-18 | M104: -1.076403778e-17 | N104: -337.5211026 | S104: V(t) | T104: 34 | U104: =Re_H*COS(NH_*Rad_+NH_*Ofs_)+Im_H*SIN(NH_*Rad_+NH_*Ofs_) -> 1.3302855e-17 | V104: -7.130614674e-18 | W104: -5.661306188e-18 | X104: 1.319757377e-17 | Y104: -8.481921126e-18 | Z104: -4.107892549e-18 | AA104: 1.288415892e-17 | AB104: -9.699462615e-18 | AC104: -2.489694992e-18 | AD104: 1.236755319e-17 | AE104: -1.076403778e-17 | AF104: -8.322334572e-19 | AG104: 1.165590376e-17 | AH104: -1.165885765e-17 | AI104: 8.383528963e-19 | AJ104: 1.076043376e-17 | AK104: -1.236981036e-17 | AL104: 2.495717924e-18 | AM104: 9.695265288e-18 | AN104: -1.288568378e-17 | AO104: 4.113723989e-18 | AP104: 8.477196694e-18 | AQ104: -1.319834226e-17 | AR104: 5.666854169e-18 | AS104: 7.125437645e-18 | AT104: -1.3302855e-17 | AU104: 7.130614674e-18 | AV104: 5.661306188e-18 | AW104: -1.319757377e-17 | AX104: 8.481921126e-18 | AY104: 4.107892549e-18 | AZ104: -1.288415892e-17 | BA104: 9.699462615e-18 | BB104: 2.489694992e-18 | BC104: -1.236755319e-17 | BD104: 1.076403778e-17 | BE104: 8.322334572e-19 | BF104: -1.165590376e-17 | BG104: 1.165885765e-17 | BH104: -8.383528963e-19 | BI104: -1.076043376e-17 | BJ104: 1.236981036e-17 | BK104: -2.495717924e-18 | BL104: -9.695265288e-18 | BM104: 1.288568378e-17 | BN104: -4.113723989e-18 | BO104: -8.477196694e-18 | BP104: 1.319834226e-17 | BQ104: -5.666854169e-18 | BR104: -7.125437645e-18 | BS104: 1.3302855e-17 | BT104: -7.130614674e-18 | BU104: -5.661306188e-18 | BV104: 1.319757377e-17 | BW104: -8.481921126e-18 | BX104: -4.107892549e-18 | BY104: 1.288415892e-17 | BZ104: -9.699462615e-18 | CA104: -2.489694992e-18 | CB104: 1.236755319e-17 | CC104: -1.076403778e-17 | CD104: -8.322334572e-19 | CE104: 1.165590376e-17 | CF104: -1.165885765e-17 | CG104: 8.383528963e-19 | CH104: 1.076043376e-17 | CI104: -1.236981036e-17 | CJ104: 2.495717924e-18 | CK104: 9.695265288e-18 | CL104: -1.288568378e-17 | CM104: 4.113723989e-18 | CN104: 8.477196694e-18 | CO104: -1.319834226e-17 | CP104: 5.666854169e-18 | CQ104: 7.125437645e-18 | CR104: -1.3302855e-17 | CS104: 7.130614674e-18 | CT104: 5.661306188e-18 | CU104: -1.319757377e-17 | CV104: 8.481921126e-18 | CW104: 4.107892549e-18 | CX104: -1.288415892e-17 | CY104: 9.699462615e-18 | CZ104: 2.489694992e-18 | DA104: -1.236755319e-17 | DB104: 1.076403778e-17 | DC104: 8.322334572e-19 | DD104: -1.165590376e-17 | DE104: 1.165885765e-17 | DF104: -8.383528963e-19 | DG104: -1.076043376e-17 | DH104: 1.236981036e-17 | DI104: -2.495717924e-18 | DJ104: -9.695265288e-18 | DK104: 1.288568378e-17 | DL104: -4.113723989e-18 | DM104: -8.477196694e-18 | DN104: 1.319834226e-17 | DO104: -5.666854169e-18 | DP104: -7.125437645e-18 | DQ104: 1.3302855e-17
B105: 35 | C105: 3500000000 | D105: 115.45353 | E105: 5.497787144 | F105: 5.497787144 | G105: -0.1286166166 | H105: -0.1286166166 | I105: -0.001654223406 | J105: -0.001654223406 | K105: -52.61781681 | L105: -0.00163019956 | M105: -0.00163019956 | N105: -52.74488461 | S105: V(t) | T105: 35 | U105: -1.387778781e-17 | V105: -0.001865148494 | W105: 0.002192613557 | X105: -0.0007124233307 | Y105: -0.001355109702 | Z105: 0.002305450327 | AA105: -0.001355109702 | AB105: -0.0007124233307 | AC105: 0.002192613557 | AD105: -0.001865148494 | AE105: 9.974659987e-18 | AF105: 0.001865148494 | AG105: -0.002192613557 | AH105: 0.0007124233307 | AI105: 0.001355109702 | AJ105: -0.002305450327 | AK105: 0.001355109702 | AL105: 0.0007124233307 | AM105: -0.002192613557 | AN105: 0.001865148494 | AO105: -1.604619215e-17 | AP105: -0.001865148494 | AQ105: 0.002192613557 | AR105: -0.0007124233307 | AS105: -0.001355109702 | AT105: 0.002305450327 | AU105: -0.001355109702 | AV105: -0.0007124233307 | AW105: 0.002192613557 | AX105: -0.001865148494 | AY105: -2.667137344e-17 | AZ105: 0.001865148494 | BA105: -0.002192613557 | BB105: 0.0007124233307 | BC105: 0.001355109702 | BD105: -0.002305450327 | BE105: 0.001355109702 | BF105: 0.0007124233307 | BG105: -0.002192613557 | BH105: 0.001865148494 | BI105: 4.119968255e-18 | BJ105: -0.001865148494 | BK105: 0.002192613557 | BL105: -0.0007124233307 | BM105: -0.001355109702 | BN105: 0.002305450327 | BO105: -0.001355109702 | BP105: -0.0007124233307 | BQ105: 0.002192613557 | BR105: -0.001865148494 | BS105: -1.431146868e-17 | BT105: 0.001865148494 | BU105: -0.002192613557 | BV105: 0.0007124233307 | BW105: 0.001355109702 | BX105: -0.002305450327 | BY105: 0.001355109702 | BZ105: 0.0007124233307 | CA105: -0.002192613557 | CB105: 0.001865148494 | CC105: 2.45029691e-17 | CD105: -0.001865148494 | CE105: 0.002192613557 | CF105: -0.0007124233307 | CG105: -0.001355109702 | CH105: 0.002305450327 | CI105: -0.001355109702 | CJ105: -0.0007124233307 | CK105: 0.002192613557 | CL105: -0.001865148494 | CM105: -1.95156391e-18 | CN105: 0.001865148494 | CO105: -0.002192613557 | CP105: 0.0007124233307 | CQ105: 0.001355109702 | CR105: -0.002305450327 | CS105: 0.001355109702 | CT105: 0.0007124233307 | CU105: -0.002192613557 | CV105: 0.001865148494 | CW105: -2.081668171e-17 | CX105: -0.001865148494 | CY105: 0.002192613557 | CZ105: -0.0007124233307 | DA105: -0.001355109702 | DB105: 0.002305450327 | DC105: -0.001355109702 | DD105: -0.0007124233307 | DE105: 0.002192613557 | DF105: -0.001865148494 | DG105: 4.315124646e-17 | DH105: 0.001865148494 | DI105: -0.002192613557 | DJ105: 0.0007124233307 | DK105: 0.001355109702 | DL105: -0.002305450327 | DM105: 0.001355109702 | DN105: 0.0007124233307 | DO105: -0.002192613557 | DP105: 0.001865148494 | DQ105: 0
B106: 36 | C106: 3600000000 | D106: 118.7522023 | E106: 5.654866776 | F106: 5.654866776 | G106: -0.1039432538 | H106: -0.1039432538 | I106: 6.135329247e-19 | J106: -4.908263397e-19 | K106: -362.094804 | L106: 6.041103082e-19 | M106: -4.832882466e-19 | N106: -362.2292366 | S106: V(t) | T106: 36 | U106: 7.728052098e-19 | V106: -5.202669877e-19 | W106: -1.095438917e-19 | X106: 6.599187967e-19 | Y106: -7.31752253e-19 | Z106: 2.729540845e-19 | AA106: 3.837772899e-19 | AB106: -7.62211787e-19 | AC106: 5.879268668e-19 | AD106: 1.269440885e-20 | AE106: -6.041103082e-19 | AF106: 7.57454397e-19 | AG106: -3.615288993e-19 | AH106: -2.965600102e-19 | AI106: 7.395978291e-19 | AJ106: -6.463147879e-19 | AK106: 8.435527239e-20 | AL106: 5.387746393e-19 | AM106: -7.712110328e-19 | AN106: 4.444021875e-19 | AO106: 2.046658019e-19 | AP106: -7.053199715e-19 | AQ106: 6.945099387e-19 | AR106: -1.800746206e-19 | AS106: -4.649421725e-19 | AT106: 7.728052098e-19 | AU106: -5.202669877e-19 | AV106: -1.095438917e-19 | AW106: 6.599187967e-19 | AX106: -7.31752253e-19 | AY106: 2.729540845e-19 | AZ106: 3.837772899e-19 | BA106: -7.62211787e-19 | BB106: 5.879268668e-19 | BC106: 1.269440885e-20 | BD106: -6.041103082e-19 | BE106: 7.57454397e-19 | BF106: -3.615288993e-19 | BG106: -2.965600102e-19 | BH106: 7.395978291e-19 | BI106: -6.463147879e-19 | BJ106: 8.435527239e-20 | BK106: 5.387746393e-19 | BL106: -7.712110328e-19 | BM106: 4.444021875e-19 | BN106: 2.046658019e-19 | BO106: -7.053199715e-19 | BP106: 6.945099387e-19 | BQ106: -1.800746206e-19 | BR106: -4.649421725e-19 | BS106: 7.728052098e-19 | BT106: -5.202669877e-19 | BU106: -1.095438917e-19 | BV106: 6.599187967e-19 | BW106: -7.31752253e-19 | BX106: 2.729540845e-19 | BY106: 3.837772899e-19 | BZ106: -7.62211787e-19 | CA106: 5.879268668e-19 | CB106: 1.269440885e-20 | CC106: -6.041103082e-19 | CD106: 7.57454397e-19 | CE106: -3.615288993e-19 | CF106: -2.965600102e-19 | CG106: 7.395978291e-19 | CH106: -6.463147879e-19 | CI106: 8.435527239e-20 | CJ106: 5.387746393e-19 | CK106: -7.712110328e-19 | CL106: 4.444021875e-19 | CM106: 2.046658019e-19 | CN106: -7.053199715e-19 | CO106: 6.945099387e-19 | CP106: -1.800746206e-19 | CQ106: -4.649421725e-19 | CR106: 7.728052098e-19 | CS106: -5.202669877e-19 | CT106: -1.095438917e-19 | CU106: 6.599187967e-19 | CV106: -7.31752253e-19 | CW106: 2.729540845e-19 | CX106: 3.837772899e-19 | CY106: -7.62211787e-19 | CZ106: 5.879268668e-19 | DA106: 1.269440885e-20 | DB106: -6.041103082e-19 | DC106: 7.57454397e-19 | DD106: -3.615288993e-19 | DE106: -2.965600102e-19 | DF106: 7.395978291e-19 | DG106: -6.463147879e-19 | DH106: 8.435527239e-20 | DI106: 5.387746393e-19 | DJ106: -7.712110328e-19 | DK106: 4.444021875e-19 | DL106: 2.046658019e-19 | DM106: -7.053199715e-19 | DN106: 6.945099387e-19 | DO106: -1.800746206e-19 | DP106: -4.649421725e-19 | DQ106: 7.728052098e-19
B107: 37 | C107: 3700000000 | D107: 122.0508746 | E107: 5.811946409 | F107: 5.811946409 | G107: -0.07811333205 | H107: -0.07811333205 | I107: -0.0006101692645 | J107: -0.001197524609 | K107: -57.43192875 | L107: -0.00060027477 | M107: -0.00117810557 | N107: -57.5739335 | S107: V(t) | T107: 37 | U107: -1.19262239e-17 | V107: -0.0009638560177 | W107: 0.001319609695 | X107: -0.0008428139775 | Y107: -0.0001657179566 | Z107: 0.001069697473 | AA107: -0.001298798662 | AB107: 0.0007084802574 | AC107: 0.0003288224421 | AD107: -0.00115866916 | AE107: 0.001257504798 | AF107: -0.0005629733804 | AG107: -0.0004867412012 | AH107: 0.001229367942 | AI107: -0.001196379332 | AJ107: 0.0004085880769 | AK107: 0.0006369837609 | AL107: -0.001280678857 | AM107: 0.001116386249 | AN107: -0.0002477590954 | AO107: -0.0007771807061 | AP107: 0.001311792702 | AQ107: -0.001018787089 | AR107: 8.302280486e-05 | AS107: 0.0009051210473 | AT107: -0.001322218792 | AU107: 0.0009051210473 | AV107: 8.302280486e-05 | AW107: -0.001018787089 | AX107: 0.001311792702 | AY107: -0.0007771807061 | AZ107: -0.0002477590954 | BA107: 0.001116386249 | BB107: -0.001280678857 | BC107: 0.0006369837609 | BD107: 0.0004085880769 | BE107: -0.001196379332 | BF107: 0.001229367942 | BG107: -0.0004867412012 | BH107: -0.0005629733804 | BI107: 0.001257504798 | BJ107: -0.00115866916 | BK107: 0.0003288224421 | BL107: 0.0007084802574 | BM107: -0.001298798662 | BN107: 0.001069697473 | BO107: -0.0001657179566 | BP107: -0.0008428139775 | BQ107: 0.001319609695 | BR107: -0.0009638560177 | BS107: 7.047314121e-18 | BT107: 0.0009638560177 | BU107: -0.001319609695 | BV107: 0.0008428139775 | BW107: 0.0001657179566 | BX107: -0.001069697473 | BY107: 0.001298798662 | BZ107: -0.0007084802574 | CA107: -0.0003288224421 | CB107: 0.00115866916 | CC107: -0.001257504798 | CD107: 0.0005629733804 | CE107: 0.0004867412012 | CF107: -0.001229367942 | CG107: 0.001196379332 | CH107: -0.0004085880769 | CI107: -0.0006369837609 | CJ107: 0.001280678857 | CK107: -0.001116386249 | CL107: 0.0002477590954 | CM107: 0.0007771807061 | CN107: -0.001311792702 | CO107: 0.001018787089 | CP107: -8.302280486e-05 | CQ107: -0.0009051210473 | CR107: 0.001322218792 | CS107: -0.0009051210473 | CT107: -8.302280486e-05 | CU107: 0.001018787089 | CV107: -0.001311792702 | CW107: 0.0007771807061 | CX107: 0.0002477590954 | CY107: -0.001116386249 | CZ107: 0.001280678857 | DA107: -0.0006369837609 | DB107: -0.0004085880769 | DC107: 0.001196379332 | DD107: -0.001229367942 | DE107: 0.0004867412012 | DF107: 0.0005629733804 | DG107: -0.001257504798 | DH107: 0.00115866916 | DI107: -0.0003288224421 | DJ107: -0.0007084802574 | DK107: 0.001298798662 | DL107: -0.001069697473 | DM107: 0.0001657179566 | DN107: 0.0008428139775 | DO107: -0.001319609695 | DP107: 0.0009638560177 | DQ107: -5.746271514e-18
B108: 38 | C108: 3800000000 | D108: 125.3495469 | E108: 5.969026042 | F108: 5.969026042 | G108: -0.05177008648 | H108: -0.05177008648 | I108: 8.51519117e-18 | J108: -2.789960247e-18 | K108: -340.9532578 | L108: 8.369609237e-18 | M108: -2.742261047e-18 | N108: -341.1030422 | S108: V(t) | T108: 38 | U108: 8.80737667e-18 | V108: -6.435151675e-18 | W108: 5.746706967e-19 | X108: 5.597317857e-18 | Y108: -8.735208927e-18 | Z108: 7.138068667e-18 | AA108: -1.67164731e-18 | AB108: -4.700911776e-18 | AC108: 8.525281721e-18 | AD108: -7.728414052e-18 | AE108: 2.742261047e-18 | AF108: 3.73036951e-18 | AG108: -8.180905729e-18 | AH108: 8.196877731e-18 | AI108: -3.769627689e-18 | AJ108: -2.700997087e-18 | AK108: 7.707511967e-18 | AL108: -8.536071752e-18 | AM108: 4.73754505e-18 | AN108: 1.629028327e-18 | AO108: -7.112566137e-18 | AP108: 8.740646822e-18 | AQ108: -5.630748496e-18 | AR108: -5.313688169e-19 | AS108: 6.40545089e-18 | AT108: -8.80737667e-18 | AU108: 6.435151675e-18 | AV108: -5.746706967e-19 | AW108: -5.597317857e-18 | AX108: 8.735208927e-18 | AY108: -7.138068667e-18 | AZ108: 1.67164731e-18 | BA108: 4.700911776e-18 | BB108: -8.525281721e-18 | BC108: 7.728414052e-18 | BD108: -2.742261047e-18 | BE108: -3.73036951e-18 | BF108: 8.180905729e-18 | BG108: -8.196877731e-18 | BH108: 3.769627689e-18 | BI108: 2.700997087e-18 | BJ108: -7.707511967e-18 | BK108: 8.536071752e-18 | BL108: -4.73754505e-18 | BM108: -1.629028327e-18 | BN108: 7.112566137e-18 | BO108: -8.740646822e-18 | BP108: 5.630748496e-18 | BQ108: 5.313688169e-19 | BR108: -6.40545089e-18 | BS108: 8.80737667e-18 | BT108: -6.435151675e-18 | BU108: 5.746706967e-19 | BV108: 5.597317857e-18 | BW108: -8.735208927e-18 | BX108: 7.138068667e-18 | BY108: -1.67164731e-18 | BZ108: -4.700911776e-18 | CA108: 8.525281721e-18 | CB108: -7.728414052e-18 | CC108: 2.742261047e-18 | CD108: 3.73036951e-18 | CE108: -8.180905729e-18 | CF108: 8.196877731e-18 | CG108: -3.769627689e-18 | CH108: -2.700997087e-18 | CI108: 7.707511967e-18 | CJ108: -8.536071752e-18 | CK108: 4.73754505e-18 | CL108: 1.629028327e-18 | CM108: -7.112566137e-18 | CN108: 8.740646822e-18 | CO108: -5.630748496e-18 | CP108: -5.313688169e-19 | CQ108: 6.40545089e-18 | CR108: -8.80737667e-18 | CS108: 6.435151675e-18 | CT108: -5.746706967e-19 | CU108: -5.597317857e-18 | CV108: 8.735208927e-18 | CW108: -7.138068667e-18 | CX108: 1.67164731e-18 | CY108: 4.700911776e-18 | CZ108: -8.525281721e-18 | DA108: 7.728414052e-18 | DB108: -2.742261047e-18 | DC108: -3.73036951e-18 | DD108: 8.180905729e-18 | DE108: -8.196877731e-18 | DF108: 3.769627689e-18 | DG108: 2.700997087e-18 | DH108: -7.707511967e-18 | DI108: 8.536071752e-18 | DJ108: -4.73754505e-18 | DK108: -1.629028327e-18 | DL108: 7.112566137e-18 | DM108: -8.740646822e-18 | DN108: 5.630748496e-18 | DO108: 5.313688169e-19 | DP108: -6.40545089e-18 | DQ108: 8.80737667e-18
B109: 39 | C109: 3900000000 | D109: 128.6482192 | E109: 6.126105675 | F109: 6.126105675 | G109: -0.02553571116 | H109: -0.02553571116 | I109: -6.520725445e-05 | J109: -0.0004117024015 | K109: -67.60073054 | L109: -6.403351439e-05 | M109: -0.0004042916985 | N109: -67.75850206 | S109: V(t) | T109: 39 | U109: -1.680513367e-18 | V109: -0.0002609175555 | W109: 0.0004020808636 | X109: -0.0003586997046 | Y109: 0.0001506848816 | Z109: 0.0001264903111 | AA109: -0.0003456098012 | AB109: 0.0004061035462 | AC109: -0.0002802065194 | AD109: 2.570212155e-05 | AE109: 0.0002405988693 | AF109: -0.0003964713516 | AG109: 0.0003703739842 | AH109: -0.0001742847677 | AI109: -0.0001017965412 | AJ109: 0.0003311559338 | AK109: -0.0004085235236 | AL109: 0.0002983896361 | AM109: -5.130280858e-05 | AN109: -0.0002193306493 | AO109: 0.0003892971482 | AP109: -0.0003805865668 | AQ109: 0.0001971968314 | AR109: 7.670102685e-05 | AS109: -0.0003153951452 | AT109: 0.0004093312453 | AU109: -0.0003153951452 | AV109: 7.670102685e-05 | AW109: 0.0001971968314 | AX109: -0.0003805865668 | AY109: 0.0003892971482 | AZ109: -0.0002193306493 | BA109: -5.130280858e-05 | BB109: 0.0002983896361 | BC109: -0.0004085235236 | BD109: 0.0003311559338 | BE109: -0.0001017965412 | BF109: -0.0001742847677 | BG109: 0.0003703739842 | BH109: -0.0003964713516 | BI109: 0.0002405988693 | BJ109: 2.570212155e-05 | BK109: -0.0002802065194 | BL109: 0.0004061035462 | BM109: -0.0003456098012 | BN109: 0.0001264903111 | BO109: 0.0001506848816 | BP109: -0.0003586997046 | BQ109: 0.0004020808636 | BR109: -0.0002609175555 | BS109: -2.073536655e-18 | BT109: 0.0002609175555 | BU109: -0.0004020808636 | BV109: 0.0003586997046 | BW109: -0.0001506848816 | BX109: -0.0001264903111 | BY109: 0.0003456098012 | BZ109: -0.0004061035462 | CA109: 0.0002802065194 | CB109: -2.570212155e-05 | CC109: -0.0002405988693 | CD109: 0.0003964713516 | CE109: -0.0003703739842 | CF109: 0.0001742847677 | CG109: 0.0001017965412 | CH109: -0.0003311559338 | CI109: 0.0004085235236 | CJ109: -0.0002983896361 | CK109: 5.130280858e-05 | CL109: 0.0002193306493 | CM109: -0.0003892971482 | CN109: 0.0003805865668 | CO109: -0.0001971968314 | CP109: -7.670102685e-05 | CQ109: 0.0003153951452 | CR109: -0.0004093312453 | CS109: 0.0003153951452 | CT109: -7.670102685e-05 | CU109: -0.0001971968314 | CV109: 0.0003805865668 | CW109: -0.0003892971482 | CX109: 0.0002193306493 | CY109: 5.130280858e-05 | CZ109: -0.0002983896361 | DA109: 0.0004085235236 | DB109: -0.0003311559338 | DC109: 0.0001017965412 | DD109: 0.0001742847677 | DE109: -0.0003703739842 | DF109: 0.0003964713516 | DG109: -0.0002405988693 | DH109: -2.570212155e-05 | DI109: 0.0002802065194 | DJ109: -0.0004061035462 | DK109: 0.0003456098012 | DL109: -0.0001264903111 | DM109: -0.0001506848816 | DN109: 0.0003586997046 | DO109: -0.0004020808636 | DP109: 0.0002609175555 | DQ109: -3.388131789e-19
B110: 40 | C110: 4000000000 | D110: 131.9468915 | E110: 6.283185307 | F110: 6.283185307 | G110: -3.899768652e-17 | H110: -3.899768652e-17 | I110: -6.842342136e-34 | J110: 0 | K110: -200 | L110: -6.712842861e-34 | M110: 0 | N110: -200 | S110: V(t) | T110: 40 | U110: -6.712842861e-34 | V110: 5.430803955e-34 | W110: -2.074382524e-34 | X110: -2.074382524e-34 | Y110: 5.430803955e-34 | Z110: -6.712842861e-34 | AA110: 5.430803955e-34 | AB110: -2.074382524e-34 | AC110: -2.074382524e-34 | AD110: 5.430803955e-34 | AE110: -6.712842861e-34 | AF110: 5.430803955e-34 | AG110: -2.074382524e-34 | AH110: -2.074382524e-34 | AI110: 5.430803955e-34 | AJ110: -6.712842861e-34 | AK110: 5.430803955e-34 | AL110: -2.074382524e-34 | AM110: -2.074382524e-34 | AN110: 5.430803955e-34 | AO110: -6.712842861e-34 | AP110: 5.430803955e-34 | AQ110: -2.074382524e-34 | AR110: -2.074382524e-34 | AS110: 5.430803955e-34 | AT110: -6.712842861e-34 | AU110: 5.430803955e-34 | AV110: -2.074382524e-34 | AW110: -2.074382524e-34 | AX110: 5.430803955e-34 | AY110: -6.712842861e-34 | AZ110: 5.430803955e-34 | BA110: -2.074382524e-34 | BB110: -2.074382524e-34 | BC110: 5.430803955e-34 | BD110: -6.712842861e-34 | BE110: 5.430803955e-34 | BF110: -2.074382524e-34 | BG110: -2.074382524e-34 | BH110: 5.430803955e-34 | BI110: -6.712842861e-34 | BJ110: 5.430803955e-34 | BK110: -2.074382524e-34 | BL110: -2.074382524e-34 | BM110: 5.430803955e-34 | BN110: -6.712842861e-34 | BO110: 5.430803955e-34 | BP110: -2.074382524e-34 | BQ110: -2.074382524e-34 | BR110: 5.430803955e-34 | BS110: -6.712842861e-34 | BT110: 5.430803955e-34 | BU110: -2.074382524e-34 | BV110: -2.074382524e-34 | BW110: 5.430803955e-34 | BX110: -6.712842861e-34 | BY110: 5.430803955e-34 | BZ110: -2.074382524e-34 | CA110: -2.074382524e-34 | CB110: 5.430803955e-34 | CC110: -6.712842861e-34 | CD110: 5.430803955e-34 | CE110: -2.074382524e-34 | CF110: -2.074382524e-34 | CG110: 5.430803955e-34 | CH110: -6.712842861e-34 | CI110: 5.430803955e-34 | CJ110: -2.074382524e-34 | CK110: -2.074382524e-34 | CL110: 5.430803955e-34 | CM110: -6.712842861e-34 | CN110: 5.430803955e-34 | CO110: -2.074382524e-34 | CP110: -2.074382524e-34 | CQ110: 5.430803955e-34 | CR110: -6.712842861e-34 | CS110: 5.430803955e-34 | CT110: -2.074382524e-34 | CU110: -2.074382524e-34 | CV110: 5.430803955e-34 | CW110: -6.712842861e-34 | CX110: 5.430803955e-34 | CY110: -2.074382524e-34 | CZ110: -2.074382524e-34 | DA110: 5.430803955e-34 | DB110: -6.712842861e-34 | DC110: 5.430803955e-34 | DD110: -2.074382524e-34 | DE110: -2.074382524e-34 | DF110: 5.430803955e-34 | DG110: -6.712842861e-34 | DH110: 5.430803955e-34 | DI110: -2.074382524e-34 | DJ110: -2.074382524e-34 | DK110: 5.430803955e-34 | DL110: -6.712842861e-34 | DM110: 5.430803955e-34 | DN110: -2.074382524e-34 | DO110: -2.074382524e-34 | DP110: 5.430803955e-34 | DQ110: -6.712842861e-34
B111: 41 | C111: 4100000000 | D111: 135.2455637 | E111: 6.44026494 | F111: 6.44026494 | G111: 0.02429006671 | H111: 0.02429006671 | I111: -5.900073409e-05 | J111: 0.0003725159742 | K111: -68.46950052 | L111: -5.78281113e-05 | M111: 0.0003651123253 | N111: -68.64386866 | S111: V(t) | T111: 41 | U111: 7.995991022e-18 | V111: 0.0001980756065 | W111: -0.0003344815318 | X111: 0.0003667485893 | Y111: -0.0002848306193 | Z111: 0.0001142323026 | AA111: 9.19315732e-05 | AB111: -0.0002694730915 | AC111: 0.0003631157395 | AD111: -0.0003437044266 | AE111: 0.0002172827515 | AF111: -2.321136299e-05 | AG111: -0.0001780867475 | AH111: 0.0003239385912 | AI111: -0.0003689340499 | AJ111: 0.0002990640507 | AK111: -0.0001360822092 | AL111: -6.92680319e-05 | AM111: 0.0002530520766 | AN111: -0.0003580498378 | AO111: 0.000351570877 | AP111: -0.0002356323807 | AQ111: 4.633112133e-05 | AR111: 0.0001573950616 | AS111: -0.000312117213 | AT111: 0.0003696634963 | AU111: -0.000312117213 | AV111: 0.0001573950616 | AW111: 4.633112133e-05 | AX111: -0.0002356323807 | AY111: 0.000351570877 | AZ111: -0.0003580498378 | BA111: 0.0002530520766 | BB111: -6.92680319e-05 | BC111: -0.0001360822092 | BD111: 0.0002990640507 | BE111: -0.0003689340499 | BF111: 0.0003239385912 | BG111: -0.0001780867475 | BH111: -2.321136299e-05 | BI111: 0.0002172827515 | BJ111: -0.0003437044266 | BK111: 0.0003631157395 | BL111: -0.0002694730915 | BM111: 9.19315732e-05 | BN111: 0.0001142323026 | BO111: -0.0002848306193 | BP111: 0.0003667485893 | BQ111: -0.0003344815318 | BR111: 0.0001980756065 | BS111: -2.534322578e-18 | BT111: -0.0001980756065 | BU111: 0.0003344815318 | BV111: -0.0003667485893 | BW111: 0.0002848306193 | BX111: -0.0001142323026 | BY111: -9.19315732e-05 | BZ111: 0.0002694730915 | CA111: -0.0003631157395 | CB111: 0.0003437044266 | CC111: -0.0002172827515 | CD111: 2.321136299e-05 | CE111: 0.0001780867475 | CF111: -0.0003239385912 | CG111: 0.0003689340499 | CH111: -0.0002990640507 | CI111: 0.0001360822092 | CJ111: 6.92680319e-05 | CK111: -0.0002530520766 | CL111: 0.0003580498378 | CM111: -0.000351570877 | CN111: 0.0002356323807 | CO111: -4.633112133e-05 | CP111: -0.0001573950616 | CQ111: 0.000312117213 | CR111: -0.0003696634963 | CS111: 0.000312117213 | CT111: -0.0001573950616 | CU111: -4.633112133e-05 | CV111: 0.0002356323807 | CW111: -0.000351570877 | CX111: 0.0003580498378 | CY111: -0.0002530520766 | CZ111: 6.92680319e-05 | DA111: 0.0001360822092 | DB111: -0.0002990640507 | DC111: 0.0003689340499 | DD111: -0.0003239385912 | DE111: 0.0001780867475 | DF111: 2.321136299e-05 | DG111: -0.0002172827515 | DH111: 0.0003437044266 | DI111: -0.0003631157395 | DJ111: 0.0002694730915 | DK111: -9.19315732e-05 | DL111: -0.0001142323026 | DM111: 0.0002848306193 | DN111: -0.0003667485893 | DO111: 0.0003344815318 | DP111: -0.0001980756065 | DQ111: -1.377614385e-17
B112: 42 | C112: 4200000000 | D112: 138.544236 | E112: 6.597344573 | F112: 6.597344573 | G112: 0.04683960205 | H112: 0.04683960205 | I112: -1.433037617e-18 | J112: -4.207082912e-19 | K112: -356.5157981 | L112: -1.403164889e-18 | M112: -4.119383162e-19 | N112: -356.6987757 | S112: V(t) | T112: 42 | U112: -1.461785052e-18 | V112: 1.301121438e-18 | W112: -8.185777641e-19 | X112: 1.335288873e-19 | Y112: 5.845532523e-19 | Z112: -1.158024727e-18 | AA112: 1.445016355e-18 | AB112: -1.374530243e-18 | AC112: 9.640037125e-19 | AD112: -3.149955426e-19 | AE112: -4.119383162e-19 | AF112: 1.036964139e-18 | AG112: -1.405458888e-18 | AH112: 1.426261885e-18 | AI112: -1.094226747e-18 | AJ112: 4.914945301e-19 | AK112: 2.328268667e-19 | AL112: -8.995500073e-19 | AM112: 1.343736494e-18 | AN112: -1.455500525e-18 | AO112: 1.207193171e-18 | AP112: -6.602423553e-19 | AQ112: -5.004359843e-20 | AR112: 7.479494345e-19 | AS112: -1.260822573e-18 | AT112: 1.461785052e-18 | AU112: -1.301121438e-18 | AV112: 8.185777641e-19 | AW112: -1.335288873e-19 | AX112: -5.845532523e-19 | AY112: 1.158024727e-18 | AZ112: -1.445016355e-18 | BA112: 1.374530243e-18 | BB112: -9.640037125e-19 | BC112: 3.149955426e-19 | BD112: 4.119383162e-19 | BE112: -1.036964139e-18 | BF112: 1.405458888e-18 | BG112: -1.426261885e-18 | BH112: 1.094226747e-18 | BI112: -4.914945301e-19 | BJ112: -2.328268667e-19 | BK112: 8.995500073e-19 | BL112: -1.343736494e-18 | BM112: 1.455500525e-18 | BN112: -1.207193171e-18 | BO112: 6.602423553e-19 | BP112: 5.004359843e-20 | BQ112: -7.479494345e-19 | BR112: 1.260822573e-18 | BS112: -1.461785052e-18 | BT112: 1.301121438e-18 | BU112: -8.185777641e-19 | BV112: 1.335288873e-19 | BW112: 5.845532523e-19 | BX112: -1.158024727e-18 | BY112: 1.445016355e-18 | BZ112: -1.374530243e-18 | CA112: 9.640037125e-19 | CB112: -3.149955426e-19 | CC112: -4.119383162e-19 | CD112: 1.036964139e-18 | CE112: -1.405458888e-18 | CF112: 1.426261885e-18 | CG112: -1.094226747e-18 | CH112: 4.914945301e-19 | CI112: 2.328268667e-19 | CJ112: -8.995500073e-19 | CK112: 1.343736494e-18 | CL112: -1.455500525e-18 | CM112: 1.207193171e-18 | CN112: -6.602423553e-19 | CO112: -5.004359843e-20 | CP112: 7.479494345e-19 | CQ112: -1.260822573e-18 | CR112: 1.461785052e-18 | CS112: -1.301121438e-18 | CT112: 8.185777641e-19 | CU112: -1.335288873e-19 | CV112: -5.845532523e-19 | CW112: 1.158024727e-18 | CX112: -1.445016355e-18 | CY112: 1.374530243e-18 | CZ112: -9.640037125e-19 | DA112: 3.149955426e-19 | DB112: 4.119383162e-19 | DC112: -1.036964139e-18 | DD112: 1.405458888e-18 | DE112: -1.426261885e-18 | DF112: 1.094226747e-18 | DG112: -4.914945301e-19 | DH112: -2.328268667e-19 | DI112: 8.995500073e-19 | DJ112: -1.343736494e-18 | DK112: 1.455500525e-18 | DL112: -1.207193171e-18 | DM112: 6.602423553e-19 | DN112: 5.004359843e-20 | DO112: -7.479494345e-19 | DP112: 1.260822573e-18 | DQ112: -1.461785052e-18
B113: 43 | C113: 4300000000 | D113: 141.8429083 | E113: 6.754424205 | F113: 6.754424205 | G113: 0.06721379735 | H113: 0.06721379735 | I113: -0.0004517694554 | J113: 0.0008866474793 | K113: -60.04259801 | L113: -0.0004419031887 | M113: 0.0008672838406 | N113: -60.23439259 | S113: V(t) | T113: 43 | U113: 9.974659987e-18 | V113: 0.0004144430924 | W113: -0.0007499986435 | X113: 0.0009427950314 | Y113: -0.0009561342552 | Z113: 0.0007874772484 | AA113: -0.00046892718 | AB113: 6.111874768e-05 | AC113: 0.0003583233873 | AD113: -0.0007095601365 | AE113: 0.0009257350263 | AF113: -0.000965700054 | AG113: 0.0008218480405 | AH113: -0.0005215606262 | AI113: 0.0001219962876 | AJ113: 0.0003007895435 | AK113: -0.0006663213198 | AL113: 0.000905021568 | AM113: -0.0009714546758 | AN113: 0.0008529753738 | AO113: -0.0005721357108 | AP113: 0.0001823923639 | AQ113: 0.0002420686208 | AR113: -0.0006204528372 | AS113: 0.000880736403 | AT113: -0.0009733754098 | AU113: 0.000880736403 | AV113: -0.0006204528372 | AW113: 0.0002420686208 | AX113: 0.0001823923639 | AY113: -0.0005721357108 | AZ113: 0.0008529753738 | BA113: -0.0009714546758 | BB113: 0.000905021568 | BC113: -0.0006663213198 | BD113: 0.0003007895435 | BE113: 0.0001219962876 | BF113: -0.0005215606262 | BG113: 0.0008218480405 | BH113: -0.000965700054 | BI113: 0.0009257350263 | BJ113: -0.0007095601365 | BK113: 0.0003583233873 | BL113: 6.111874768e-05 | BM113: -0.00046892718 | BN113: 0.0007874772484 | BO113: -0.0009561342552 | BP113: 0.0009427950314 | BQ113: -0.0007499986435 | BR113: 0.0004144430924 | BS113: 9.86623977e-18 | BT113: -0.0004144430924 | BU113: 0.0007499986435 | BV113: -0.0009427950314 | BW113: 0.0009561342552 | BX113: -0.0007874772484 | BY113: 0.00046892718 | BZ113: -6.111874768e-05 | CA113: -0.0003583233873 | CB113: 0.0007095601365 | CC113: -0.0009257350263 | CD113: 0.000965700054 | CE113: -0.0008218480405 | CF113: 0.0005215606262 | CG113: -0.0001219962876 | CH113: -0.0003007895435 | CI113: 0.0006663213198 | CJ113: -0.000905021568 | CK113: 0.0009714546758 | CL113: -0.0008529753738 | CM113: 0.0005721357108 | CN113: -0.0001823923639 | CO113: -0.0002420686208 | CP113: 0.0006204528372 | CQ113: -0.000880736403 | CR113: 0.0009733754098 | CS113: -0.000880736403 | CT113: 0.0006204528372 | CU113: -0.0002420686208 | CV113: -0.0001823923639 | CW113: 0.0005721357108 | CX113: -0.0008529753738 | CY113: 0.0009714546758 | CZ113: -0.000905021568 | DA113: 0.0006663213198 | DB113: -0.0003007895435 | DC113: -0.0001219962876 | DD113: 0.0005215606262 | DE113: -0.0008218480405 | DF113: 0.000965700054 | DG113: -0.0009257350263 | DH113: 0.0007095601365 | DI113: -0.0003583233873 | DJ113: -6.111874768e-05 | DK113: 0.00046892718 | DL113: -0.0007874772484 | DM113: 0.0009561342552 | DN113: -0.0009427950314 | DO113: 0.0007499986435 | DP113: -0.0004144430924 | DQ113: 9.161508358e-18
B114: 44 | C114: 4400000000 | D114: 145.1415806 | E114: 6.911503838 | F114: 6.911503838 | G114: 0.08504448034 | H114: 0.08504448034 | I114: -3.965653722e-18 | J114: -2.911492606e-18 | K114: -346.1612723 | L114: -3.875019032e-18 | M114: -2.844950681e-18 | N114: -346.3620913 | S114: V(t) | T114: 44 | U114: -4.807176304e-18 | V114: 4.460788647e-18 | W114: -3.487896481e-18 | X114: 2.025139619e-18 | Y114: -2.779579164e-19 | Z114: -1.50826215e-18 | AA114: 3.082651279e-18 | AB114: -4.224091198e-18 | AC114: 4.77227006e-18 | AD114: -4.650197775e-18 | AE114: 3.875019032e-18 | AF114: -2.555605381e-18 | AG114: 8.772645492e-19 | AH114: 9.242854814e-19 | AI114: -2.596022363e-18 | AJ114: 3.903155618e-18 | AK114: -4.662102267e-18 | AL114: 4.766270506e-18 | AM114: -4.201030217e-18 | AN114: 3.045767719e-18 | AO114: -1.462736196e-18 | AP114: -3.257322788e-19 | AQ114: 2.068452623e-18 | AR114: -3.520664944e-18 | AS114: 4.478410335e-18 | AT114: -4.807176304e-18 | AU114: 4.460788647e-18 | AV114: -3.487896481e-18 | AW114: 2.025139619e-18 | AX114: -2.779579164e-19 | AY114: -1.50826215e-18 | AZ114: 3.082651279e-18 | BA114: -4.224091198e-18 | BB114: 4.77227006e-18 | BC114: -4.650197775e-18 | BD114: 3.875019032e-18 | BE114: -2.555605381e-18 | BF114: 8.772645492e-19 | BG114: 9.242854814e-19 | BH114: -2.596022363e-18 | BI114: 3.903155618e-18 | BJ114: -4.662102267e-18 | BK114: 4.766270506e-18 | BL114: -4.201030217e-18 | BM114: 3.045767719e-18 | BN114: -1.462736196e-18 | BO114: -3.257322788e-19 | BP114: 2.068452623e-18 | BQ114: -3.520664944e-18 | BR114: 4.478410335e-18 | BS114: -4.807176304e-18 | BT114: 4.460788647e-18 | BU114: -3.487896481e-18 | BV114: 2.025139619e-18 | BW114: -2.779579164e-19 | BX114: -1.50826215e-18 | BY114: 3.082651279e-18 | BZ114: -4.224091198e-18 | CA114: 4.77227006e-18 | CB114: -4.650197775e-18 | CC114: 3.875019032e-18 | CD114: -2.555605381e-18 | CE114: 8.772645492e-19 | CF114: 9.242854814e-19 | CG114: -2.596022363e-18 | CH114: 3.903155618e-18 | CI114: -4.662102267e-18 | CJ114: 4.766270506e-18 | CK114: -4.201030217e-18 | CL114: 3.045767719e-18 | CM114: -1.462736196e-18 | CN114: -3.257322788e-19 | CO114: 2.068452623e-18 | CP114: -3.520664944e-18 | CQ114: 4.478410335e-18 | CR114: -4.807176304e-18 | CS114: 4.460788647e-18 | CT114: -3.487896481e-18 | CU114: 2.025139619e-18 | CV114: -2.779579164e-19 | CW114: -1.50826215e-18 | CX114: 3.082651279e-18 | CY114: -4.224091198e-18 | CZ114: 4.77227006e-18 | DA114: -4.650197775e-18 | DB114: 3.875019032e-18 | DC114: -2.555605381e-18 | DD114: 8.772645492e-19 | DE114: 9.242854814e-19 | DF114: -2.596022363e-18 | DG114: 3.903155618e-18 | DH114: -4.662102267e-18 | DI114: 4.766270506e-18 | DJ114: -4.201030217e-18 | DK114: 3.045767719e-18 | DL114: -1.462736196e-18 | DM114: -3.257322788e-19 | DN114: 2.068452623e-18 | DO114: -3.520664944e-18 | DP114: 4.478410335e-18 | DQ114: -4.807176304e-18
B115: 45 | C115: 4500000000 | D115: 148.4402529 | E115: 7.068583471 | F115: 7.068583471 | G115: 0.1000351462 | H115: 0.1000351462 | I115: -0.001000703048 | J115: 0.001000703048 | K115: -56.98359559 | L115: -0.000976793318 | M115: 0.000976793318 | N115: -57.19364644 | S115: V(t) | T115: 45 | U115: -1.517883041e-18 | V115: 0.0004268743326 | W115: -0.0008119632312 | X115: 0.001117571512 | Y115: -0.001313784106 | Z115: 0.001381394358 | AA115: -0.001313784106 | AB115: 0.001117571512 | AC115: -0.0008119632312 | AD115: 0.0004268743326 | AE115: 1.95156391e-18 | AF115: -0.0004268743326 | AG115: 0.0008119632312 | AH115: -0.001117571512 | AI115: 0.001313784106 | AJ115: -0.001381394358 | AK115: 0.001313784106 | AL115: -0.001117571512 | AM115: 0.0008119632312 | AN115: -0.0004268743326 | AO115: -8.239936511e-18 | AP115: 0.0004268743326 | AQ115: -0.0008119632312 | AR115: 0.001117571512 | AS115: -0.001313784106 | AT115: 0.001381394358 | AU115: -0.001313784106 | AV115: 0.001117571512 | AW115: -0.0008119632312 | AX115: 0.0004268743326 | AY115: 4.987329993e-18 | AZ115: -0.0004268743326 | BA115: 0.0008119632312 | BB115: -0.001117571512 | BC115: 0.001313784106 | BD115: -0.001381394358 | BE115: 0.001313784106 | BF115: -0.001117571512 | BG115: 0.0008119632312 | BH115: -0.0004268743326 | BI115: -1.517883041e-18 | BJ115: 0.0004268743326 | BK115: -0.0008119632312 | BL115: 0.001117571512 | BM115: -0.001313784106 | BN115: 0.001381394358 | BO115: -0.001313784106 | BP115: 0.001117571512 | BQ115: -0.0008119632312 | BR115: 0.0004268743326 | BS115: -1.843143693e-18 | BT115: -0.0004268743326 | BU115: 0.0008119632312 | BV115: -0.001117571512 | BW115: 0.001313784106 | BX115: -0.001381394358 | BY115: 0.001313784106 | BZ115: -0.001117571512 | CA115: 0.0008119632312 | CB115: -0.0004268743326 | CC115: -1.431146868e-17 | CD115: 0.0004268743326 | CE115: -0.0008119632312 | CF115: 0.001117571512 | CG115: -0.001313784106 | CH115: 0.001381394358 | CI115: -0.001313784106 | CJ115: 0.001117571512 | CK115: -0.0008119632312 | CL115: 0.0004268743326 | CM115: -8.67361738e-18 | CN115: -0.0004268743326 | CO115: 0.0008119632312 | CP115: -0.001117571512 | CQ115: 0.001313784106 | CR115: -0.001381394358 | CS115: 0.001313784106 | CT115: -0.001117571512 | CU115: 0.0008119632312 | CV115: -0.0004268743326 | CW115: -7.589415207e-18 | CX115: 0.0004268743326 | CY115: -0.0008119632312 | CZ115: 0.001117571512 | DA115: -0.001313784106 | DB115: 0.001381394358 | DC115: -0.001313784106 | DD115: 0.001117571512 | DE115: -0.0008119632312 | DF115: 0.0004268743326 | DG115: 2.385244779e-17 | DH115: -0.0004268743326 | DI115: 0.0008119632312 | DJ115: -0.001117571512 | DK115: 0.001313784106 | DL115: -0.001381394358 | DM115: 0.001313784106 | DN115: -0.001117571512 | DO115: 0.0008119632312 | DP115: -0.0004268743326 | DQ115: -8.67361738e-19
B116: 46 | C116: 4600000000 | D116: 151.7389252 | E116: 7.225663103 | F116: 7.225663103 | G116: 0.1119643945 | H116: 0.1119643945 | I116: -7.010280548e-18 | J116: -9.603124038e-18 | K116: -338.496611 | L116: -6.835352086e-18 | M116: -9.363496008e-18 | N116: -338.7161012 | S116: V(t) | T116: 46 | U116: -1.159294655e-17 | V116: 1.123524628e-17 | W116: -1.017159418e-17 | X116: 8.468823399e-18 | Y116: -6.233925301e-18 | Z116: 3.607326749e-18 | AA116: -7.540665909e-19 | AB116: -2.146574344e-18 | AC116: 4.912338119e-18 | AD116: -7.369441624e-18 | AE116: 9.363496008e-18 | AF116: -1.07692075e-17 | AG116: 1.149825008e-17 | AH116: -1.150481532e-17 | AI116: 1.07884907e-17 | AJ116: -9.394285535e-18 | AK116: 7.409802859e-18 | AL116: -4.959735017e-18 | AM116: 2.198028783e-18 | AN116: 7.017876822e-19 | AO116: -3.557508247e-18 | AP116: 6.189697485e-18 | AQ116: -8.432965266e-18 | AR116: 1.014635882e-17 | AS116: -1.122221934e-17 | AT116: 1.159294655e-17 | AU116: -1.123524628e-17 | AV116: 1.017159418e-17 | AW116: -8.468823399e-18 | AX116: 6.233925301e-18 | AY116: -3.607326749e-18 | AZ116: 7.540665909e-19 | BA116: 2.146574344e-18 | BB116: -4.912338119e-18 | BC116: 7.369441624e-18 | BD116: -9.363496008e-18 | BE116: 1.07692075e-17 | BF116: -1.149825008e-17 | BG116: 1.150481532e-17 | BH116: -1.07884907e-17 | BI116: 9.394285535e-18 | BJ116: -7.409802859e-18 | BK116: 4.959735017e-18 | BL116: -2.198028783e-18 | BM116: -7.017876822e-19 | BN116: 3.557508247e-18 | BO116: -6.189697485e-18 | BP116: 8.432965266e-18 | BQ116: -1.014635882e-17 | BR116: 1.122221934e-17 | BS116: -1.159294655e-17 | BT116: 1.123524628e-17 | BU116: -1.017159418e-17 | BV116: 8.468823399e-18 | BW116: -6.233925301e-18 | BX116: 3.607326749e-18 | BY116: -7.540665909e-19 | BZ116: -2.146574344e-18 | CA116: 4.912338119e-18 | CB116: -7.369441624e-18 | CC116: 9.363496008e-18 | CD116: -1.07692075e-17 | CE116: 1.149825008e-17 | CF116: -1.150481532e-17 | CG116: 1.07884907e-17 | CH116: -9.394285535e-18 | CI116: 7.409802859e-18 | CJ116: -4.959735017e-18 | CK116: 2.198028783e-18 | CL116: 7.017876822e-19 | CM116: -3.557508247e-18 | CN116: 6.189697485e-18 | CO116: -8.432965266e-18 | CP116: 1.014635882e-17 | CQ116: -1.122221934e-17 | CR116: 1.159294655e-17 | CS116: -1.123524628e-17 | CT116: 1.017159418e-17 | CU116: -8.468823399e-18 | CV116: 6.233925301e-18 | CW116: -3.607326749e-18 | CX116: 7.540665909e-19 | CY116: 2.146574344e-18 | CZ116: -4.912338119e-18 | DA116: 7.369441624e-18 | DB116: -9.363496008e-18 | DC116: 1.07692075e-17 | DD116: -1.149825008e-17 | DE116: 1.150481532e-17 | DF116: -1.07884907e-17 | DG116: 9.394285535e-18 | DH116: -7.409802859e-18 | DI116: 4.959735017e-18 | DJ116: -2.198028783e-18 | DK116: -7.017876822e-19 | DL116: 3.557508247e-18 | DM116: -6.189697485e-18 | DN116: 8.432965266e-18 | DO116: -1.014635882e-17 | DP116: 1.122221934e-17 | DQ116: -1.159294655e-17
B117: 47 | C117: 4700000000 | D117: 155.0375975 | E117: 7.382742736 | F117: 7.382742736 | G117: 0.1206877384 | H117: 0.1206877384 | I117: -0.001456553021 | J117: 0.0007421508326 | K117: -55.73109172 | L117: -0.001418631015 | M117: 0.0007228286056 | N117: -55.96022867 | S117: V(t) | T117: 47 | U117: 1.734723476e-18 | V117: 0.0002983423098 | W117: -0.0005861156946 | X117: 0.0008531256387 | Y117: -0.001089913182 | Z117: 0.001288090007 | AA117: -0.001440635601 | AB117: 0.001542145962 | AC117: -0.001589025032 | AD117: 0.001579612099 | AE117: -0.001514240619 | AF117: 0.001395226411 | AG117: -0.001226785612 | AH117: 0.00101488532 | AI117: -0.0007670322103 | AJ117: 0.0004920066021 | AK117: -0.0001995514146 | AL117: -9.997298115e-05 | AM117: 0.0003959557842 | AN117: -0.0006779116563 | AO117: 0.0009358521699 | AP117: -0.001160639654 | AQ117: 0.001344310899 | AR117: -0.001480359261 | AS117: 0.001563965158 | AT117: -0.00159216681 | AU117: 0.001563965158 | AV117: -0.001480359261 | AW117: 0.001344310899 | AX117: -0.001160639654 | AY117: 0.0009358521699 | AZ117: -0.0006779116563 | BA117: 0.0003959557842 | BB117: -9.997298115e-05 | BC117: -0.0001995514146 | BD117: 0.0004920066021 | BE117: -0.0007670322103 | BF117: 0.00101488532 | BG117: -0.001226785612 | BH117: 0.001395226411 | BI117: -0.001514240619 | BJ117: 0.001579612099 | BK117: -0.001589025032 | BL117: 0.001542145962 | BM117: -0.001440635601 | BN117: 0.001288090007 | BO117: -0.001089913182 | BP117: 0.0008531256387 | BQ117: -0.0005861156946 | BR117: 0.0002983423098 | BS117: 3.1441863e-18 | BT117: -0.0002983423098 | BU117: 0.0005861156946 | BV117: -0.0008531256387 | BW117: 0.001089913182 | BX117: -0.001288090007 | BY117: 0.001440635601 | BZ117: -0.001542145962 | CA117: 0.001589025032 | CB117: -0.001579612099 | CC117: 0.001514240619 | CD117: -0.001395226411 | CE117: 0.001226785612 | CF117: -0.00101488532 | CG117: 0.0007670322103 | CH117: -0.0004920066021 | CI117: 0.0001995514146 | CJ117: 9.997298115e-05 | CK117: -0.0003959557842 | CL117: 0.0006779116563 | CM117: -0.0009358521699 | CN117: 0.001160639654 | CO117: -0.001344310899 | CP117: 0.001480359261 | CQ117: -0.001563965158 | CR117: 0.00159216681 | CS117: -0.001563965158 | CT117: 0.001480359261 | CU117: -0.001344310899 | CV117: 0.001160639654 | CW117: =Re_H*COS(NH_*Rad_+NH_*Ofs_)+Im_H*SIN(NH_*Rad_+NH_*Ofs_) -> -0.0009358521699 | CX117: 0.0006779116563 | CY117: -0.0003959557842 | CZ117: 9.997298115e-05 | DA117: 0.0001995514146 | DB117: -0.0004920066021 | DC117: 0.0007670322103 | DD117: -0.00101488532 | DE117: 0.001226785612 | DF117: -0.001395226411 | DG117: 0.001514240619 | DH117: -0.001579612099 | DI117: 0.001589025032 | DJ117: -0.001542145962 | DK117: 0.001440635601 | DL117: -0.001288090007 | DM117: 0.001089913182 | DN117: -0.0008531256387 | DO117: 0.0005861156946 | DP117: -0.0002983423098 | DQ117: 4.662069342e-18
B118: 48 | C118: 4800000000 | D118: 158.3362697 | E118: 7.539822369 | F118: 7.539822369 | G118: 0.1261377881 | H118: 0.1261377881 | I118: -5.245706506e-18 | J118: -1.596719436e-17 | K118: -335.4902962 | L118: -5.103339124e-18 | M118: -1.553384804e-17 | N118: -335.7292874 | S118: V(t) | T118: 48 | U118: -1.635058591e-17 | V118: 1.622834205e-17 | W118: -1.585016753e-17 | X118: 1.522202641e-17 | Y118: -1.435382483e-17 | Z118: 1.325925487e-17 | AA118: -1.195557853e-17 | AB118: 1.046335558e-17 | AC118: -8.806119256e-18 | AD118: 7.010005175e-18 | AE118: -5.103339124e-18 | AF118: 3.116190367e-18 | AG118: -1.079897426e-18 | AH118: -9.734261425e-19 | AI118: 3.011398199e-18 | AJ118: -5.001878707e-18 | AK118: 6.9134766e-18 | AL118: -8.716044837e-18 | AM118: 1.038115584e-17 | AN118: -1.188254981e-17 | AO118: 1.319654888e-17 | AP118: -1.430243049e-17 | AQ118: 1.518275422e-17 | AR118: -1.582363685e-17 | AS118: 1.621497127e-17 | AT118: -1.635058591e-17 | AU118: 1.622834205e-17 | AV118: -1.585016753e-17 | AW118: 1.522202641e-17 | AX118: -1.435382483e-17 | AY118: 1.325925487e-17 | AZ118: -1.195557853e-17 | BA118: 1.046335558e-17 | BB118: -8.806119256e-18 | BC118: 7.010005175e-18 | BD118: -5.103339124e-18 | BE118: 3.116190367e-18 | BF118: -1.079897426e-18 | BG118: -9.734261425e-19 | BH118: 3.011398199e-18 | BI118: -5.001878707e-18 | BJ118: 6.9134766e-18 | BK118: -8.716044837e-18 | BL118: 1.038115584e-17 | BM118: -1.188254981e-17 | BN118: 1.319654888e-17 | BO118: =Re_H*COS(NH_*Rad_+NH_*Ofs_)+Im_H*SIN(NH_*Rad_+NH_*Ofs_) -> -1.430243049e-17 | BP118: 1.518275422e-17 | BQ118: -1.582363685e-17 | BR118: 1.621497127e-17 | BS118: -1.635058591e-17 | BT118: 1.622834205e-17 | BU118: -1.585016753e-17 | BV118: 1.522202641e-17 | BW118: -1.435382483e-17 | BX118: 1.325925487e-17 | BY118: -1.195557853e-17 | BZ118: 1.046335558e-17 | CA118: -8.806119256e-18 | CB118: 7.010005175e-18 | CC118: -5.103339124e-18 | CD118: 3.116190367e-18 | CE118: -1.079897426e-18 | CF118: -9.734261425e-19 | CG118: 3.011398199e-18 | CH118: -5.001878707e-18 | CI118: 6.9134766e-18 | CJ118: -8.716044837e-18 | CK118: 1.038115584e-17 | CL118: -1.188254981e-17 | CM118: 1.319654888e-17 | CN118: -1.430243049e-17 | CO118: 1.518275422e-17 | CP118: -1.582363685e-17 | CQ118: 1.621497127e-17 | CR118: -1.635058591e-17 | CS118: 1.622834205e-17 | CT118: =Re_H*COS(NH_*Rad_+NH_*Ofs_)+Im_H*SIN(NH_*Rad_+NH_*Ofs_) -> -1.585016753e-17 | CU118: 1.522202641e-17 | CV118: -1.435382483e-17 | CW118: 1.325925487e-17 | CX118: -1.195557853e-17 | CY118: 1.046335558e-17 | CZ118: -8.806119256e-18 | DA118: 7.010005175e-18 | DB118: -5.103339124e-18 | DC118: 3.116190367e-18 | DD118: -1.079897426e-18 | DE118: -9.734261425e-19 | DF118: 3.011398199e-18 | DG118: -5.001878707e-18 | DH118: 6.9134766e-18 | DI118: -8.716044837e-18 | DJ118: =Re_H*COS(NH_*Rad_+NH_*Ofs_)+Im_H*SIN(NH_*Rad_+NH_*Ofs_) -> 1.038115584e-17 | DK118: -1.188254981e-17 | DL118: 1.319654888e-17 | DM118: -1.430243049e-17 | DN118: 1.518275422e-17 | DO118: -1.582363685e-17 | DP118: 1.621497127e-17 | DQ118: -1.635058591e-17
B119: 49 | C119: 4900000000 | D119: =NH_*PI()*(2*D_/100*T_+tr_)/T_ -> 161.634942 | E119: =NH_*PI()*tr_/T_ -> 7.696902001 | F119: 7.696902001 | G119: 0.1283228422 | H119: 0.1283228422 | I119: -0.001646675182 | J119: 0.0002608077271 | K119: -55.56023974 | L119: -0.001600130103 | M119: 0.0002534357108 | N119: -55.80929263 | S119: V(t) | T119: 49 | U119: 3.068292148e-17 | V119: 0.0001017254091 | W119: -0.0002030493544 | X119: 0.0003035719567 | Y119: -0.0004028964992 | Z119: 0.0005006309933 | AA119: -0.0005963897256 | AB119: 0.00068979478 | AC119: -0.0007804775297 | AD119: 0.000868080091 | AE119: -0.0009522567369 | AF119: 0.00103267526 | AG119: -0.001109018287 | AH119: 0.001180984524 | AI119: -0.001248289955 | AJ119: =Re_H*COS(NH_*Rad_+NH_*Ofs_)+Im_H*SIN(NH_*Rad_+NH_*Ofs_) -> 0.001310668956 | AK119: -0.001367875346 | AL119: 0.001419683356 | AM119: -0.001465888525 | AN119: 0.001506308501 | AO119: -0.001540783766 | AP119: 0.001569178262 | AQ119: -0.001591379927 | AR119: 0.001607301143 | AS119: -0.001616879076 | AT119: 0.001620075926 | AU119: -0.001616879076 | AV119: 0.001607301143 | AW119: -0.001591379927 | AX119: 0.001569178262 | AY119: -0.001540783766 | AZ119: =Re_H*COS(NH_*Rad_+NH_*Ofs_)+Im_H*SIN(NH_*Rad_+NH_*Ofs_) -> 0.001506308501 | BA119: -0.001465888525 | BB119: 0.001419683356 | BC119: -0.001367875346 | BD119: 0.001310668956 | BE119: -0.001248289955 | BF119: 0.001180984524 | BG119: -0.001109018287 | BH119: 0.00103267526 | BI119: -0.0009522567369 | BJ119: 0.000868080091 | BK119: -0.0007804775297 | BL119: 0.00068979478 | BM119: -0.0005963897256 | BN119: 0.0005006309933 | BO119: -0.0004028964992 | BP119: 0.0003035719567 | BQ119: -0.0002030493544 | BR119: 0.0001017254091 | BS119: -1.669671346e-17 | BT119: -0.0001017254091 | BU119: 0.0002030493544 | BV119: -0.0003035719567 | BW119: 0.0004028964992 | BX119: -0.0005006309933 | BY119: 0.0005963897256 | BZ119: -0.00068979478 | CA119: 0.0007804775297 | CB119: -0.000868080091 | CC119: 0.0009522567369 | CD119: -0.00103267526 | CE119: =Re_H*COS(NH_*Rad_+NH_*Ofs_)+Im_H*SIN(NH_*Rad_+NH_*Ofs_) -> 0.001109018287 | CF119: -0.001180984524 | CG119: 0.001248289955 | CH119: -0.001310668956 | CI119: 0.001367875346 | CJ119: -0.001419683356 | CK119: 0.001465888525 | CL119: -0.001506308501 | CM119: 0.001540783766 | CN119: -0.001569178262 | CO119: 0.001591379927 | CP119: -0.001607301143 | CQ119: 0.001616879076 | CR119: -0.001620075926 | CS119: 0.001616879076 | CT119: -0.001607301143 | CU119: 0.001591379927 | CV119: -0.001569178262 | CW119: 0.001540783766 | CX119: -0.001506308501 | CY119: 0.001465888525 | CZ119: -0.001419683356 | DA119: 0.001367875346 | DB119: -0.001310668956 | DC119: 0.001248289955 | DD119: -0.001180984524 | DE119: 0.001109018287 | DF119: -0.00103267526 | DG119: 0.0009522567369 | DH119: -0.000868080091 | DI119: 0.0007804775297 | DJ119: -0.00068979478 | DK119: 0.0005963897256 | DL119: -0.0005006309933 | DM119: =Re_H*COS(NH_*Rad_+NH_*Ofs_)+Im_H*SIN(NH_*Rad_+NH_*Ofs_) -> 0.0004028964992 | DN119: -0.0003035719567 | DO119: 0.0002030493544 | DP119: -0.0001017254091 | DQ119: -5.632430286e-17
B120: 50 | C120: =NH_*f_ -> 5000000000 | D120: 164.9336143 | E120: 7.853981634 | F120: =NH_*PI()*tf_/T_ -> 7.853981634 | G120: =SIN(Rad_tr)/Rad_tr -> 0.1273239545 | H120: =SIN(Rad_tf)/Rad_tf -> 0.1273239545 | I120: 0 | J120: -2.080380649e-17 | K120: -333.6371439 | L120: 0 | M120: -2.019187753e-17 | N120: -333.8964659 | S120: V(t) | T120: 50 | U120: =Re_H*COS(NH_*Rad_+NH_*Ofs_)+Im_H*SIN(NH_*Rad_+NH_*Ofs_) -> -2.019187753e-17 | V120: 2.019187753e-17 | W120: -2.019187753e-17 | X120: 2.019187753e-17 | Y120: -2.019187753e-17 | Z120: 2.019187753e-17 | AA120: -2.019187753e-17 | AB120: 2.019187753e-17 | AC120: -2.019187753e-17 | AD120: 2.019187753e-17 | AE120: -2.019187753e-17 | AF120: 2.019187753e-17 | AG120: -2.019187753e-17 | AH120: 2.019187753e-17 | AI120: -2.019187753e-17 | AJ120: 2.019187753e-17 | AK120: -2.019187753e-17 | AL120: 2.019187753e-17 | AM120: -2.019187753e-17 | AN120: 2.019187753e-17 | AO120: -2.019187753e-17 | AP120: 2.019187753e-17 | AQ120: -2.019187753e-17 | AR120: 2.019187753e-17 | AS120: -2.019187753e-17 | AT120: 2.019187753e-17 | AU120: -2.019187753e-17 | AV120: 2.019187753e-17 | AW120: -2.019187753e-17 | AX120: 2.019187753e-17 | AY120: -2.019187753e-17 | AZ120: 2.019187753e-17 | BA120: -2.019187753e-17 | BB120: 2.019187753e-17 | BC120: -2.019187753e-17 | BD120: 2.019187753e-17 | BE120: -2.019187753e-17 | BF120: 2.019187753e-17 | BG120: -2.019187753e-17 | BH120: 2.019187753e-17 | BI120: -2.019187753e-17 | BJ120: 2.019187753e-17 | BK120: -2.019187753e-17 | BL120: 2.019187753e-17 | BM120: -2.019187753e-17 | BN120: 2.019187753e-17 | BO120: -2.019187753e-17 | BP120: 2.019187753e-17 | BQ120: -2.019187753e-17 | BR120: 2.019187753e-17 | BS120: -2.019187753e-17 | BT120: 2.019187753e-17 | BU120: -2.019187753e-17 | BV120: 2.019187753e-17 | BW120: -2.019187753e-17 | BX120: 2.019187753e-17 | BY120: -2.019187753e-17 | BZ120: 2.019187753e-17 | CA120: -2.019187753e-17 | CB120: 2.019187753e-17 | CC120: -2.019187753e-17 | CD120: 2.019187753e-17 | CE120: -2.019187753e-17 | CF120: 2.019187753e-17 | CG120: -2.019187753e-17 | CH120: 2.019187753e-17 | CI120: -2.019187753e-17 | CJ120: 2.019187753e-17 | CK120: -2.019187753e-17 | CL120: 2.019187753e-17 | CM120: -2.019187753e-17 | CN120: 2.019187753e-17 | CO120: -2.019187753e-17 | CP120: 2.019187753e-17 | CQ120: -2.019187753e-17 | CR120: 2.019187753e-17 | CS120: -2.019187753e-17 | CT120: 2.019187753e-17 | CU120: -2.019187753e-17 | CV120: 2.019187753e-17 | CW120: -2.019187753e-17 | CX120: 2.019187753e-17 | CY120: -2.019187753e-17 | CZ120: 2.019187753e-17 | DA120: -2.019187753e-17 | DB120: 2.019187753e-17 | DC120: -2.019187753e-17 | DD120: 2.019187753e-17 | DE120: -2.019187753e-17 | DF120: 2.019187753e-17 | DG120: -2.019187753e-17 | DH120: 2.019187753e-17 | DI120: -2.019187753e-17 | DJ120: 2.019187753e-17 | DK120: -2.019187753e-17 | DL120: 2.019187753e-17 | DM120: -2.019187753e-17 | DN120: 2.019187753e-17 | DO120: -2.019187753e-17 | DP120: 2.019187753e-17 | DQ120: -2.019187753e-17
B121: 51 | C121: 5100000000 | D121: 168.2322866 | E121: 8.011061267 | F121: 8.011061267 | G121: 0.1232905738 | H121: 0.1232905738 | I121: -0.00152005656 | J121: -0.0002407533075 | K121: -56.25520358 | L121: -0.001473566756 | M121: -0.000233390046 | N121: -56.52500224 | S121: V(t) | T121: 51 | U121: 8.646512326e-18 | V121: -9.36793707e-05 | W121: 0.0001869890317 | X121: -0.0002795607325 | Y121: 0.0003710291347 | Z121: -0.0004610332545 | AA121: 0.0005492178866 | AB121: -0.0006352350066 | AC121: 0.0007187451443 | AD121: -0.0007994187233 | AE121: 0.0008769373618 | AF121: -0.0009509951291 | AG121: 0.001021299753 | AH121: -0.001087573774 | AI121: 0.001149555637 | AJ121: -0.00120700073 | AK121: 0.001259682342 | AL121: -0.001307392564 | AM121: 0.001349943105 | AN121: -0.001387166036 | AO121: 0.001418914457 | AP121: -0.001445063071 | AQ121: 0.001465508682 | AR121: -0.001480170599 | AS121: 0.001488990959 | AT121: -0.001491934951 | AU121: 0.001488990959 | AV121: -0.001480170599 | AW121: 0.001465508682 | AX121: -0.001445063071 | AY121: 0.001418914457 | AZ121: -0.001387166036 | BA121: 0.001349943105 | BB121: -0.001307392564 | BC121: 0.001259682342 | BD121: -0.00120700073 | BE121: 0.001149555637 | BF121: -0.001087573774 | BG121: 0.001021299753 | BH121: -0.0009509951291 | BI121: 0.0008769373618 | BJ121: -0.0007994187233 | BK121: 0.0007187451443 | BL121: -0.0006352350066 | BM121: 0.0005492178866 | BN121: -0.0004610332545 | BO121: 0.0003710291347 | BP121: -0.0002795607325 | BQ121: 0.0001869890317 | BR121: -9.36793707e-05 | BS121: 1.127570259e-17 | BT121: 9.36793707e-05 | BU121: -0.0001869890317 | BV121: 0.0002795607325 | BW121: -0.0003710291347 | BX121: 0.0004610332545 | BY121: -0.0005492178866 | BZ121: 0.0006352350066 | CA121: -0.0007187451443 | CB121: 0.0007994187233 | CC121: -0.0008769373618 | CD121: 0.0009509951291 | CE121: -0.001021299753 | CF121: 0.001087573774 | CG121: -0.001149555637 | CH121: 0.00120700073 | CI121: -0.001259682342 | CJ121: 0.001307392564 | CK121: -0.001349943105 | CL121: 0.001387166036 | CM121: -0.001418914457 | CN121: 0.001445063071 | CO121: -0.001465508682 | CP121: 0.001480170599 | CQ121: -0.001488990959 | CR121: 0.001491934951 | CS121: -0.001488990959 | CT121: 0.001480170599 | CU121: -0.001465508682 | CV121: 0.001445063071 | CW121: -0.001418914457 | CX121: 0.001387166036 | CY121: -0.001349943105 | CZ121: 0.001307392564 | DA121: -0.001259682342 | DB121: 0.00120700073 | DC121: -0.001149555637 | DD121: 0.001087573774 | DE121: -0.001021299753 | DF121: 0.0009509951291 | DG121: -0.0008769373618 | DH121: 0.0007994187233 | DI121: -0.0007187451443 | DJ121: 0.0006352350066 | DK121: -0.0005492178866 | DL121: 0.0004610332545 | DM121: -0.0003710291347 | DN121: 0.0002795607325 | DO121: -0.0001869890317 | DP121: 9.36793707e-05 | DQ121: 1.653408313e-17
B122: 52 | C122: 5200000000 | D122: 171.5309589 | E122: 8.168140899 | F122: 8.168140899 | G122: 0.1164348813 | H122: 0.1164348813 | I122: 1.019408552e-18 | J122: -3.058225655e-18 | K122: -349.8330345 | L122: 9.870158721e-19 | M122: -2.961047616e-18 | N122: -350.1135173 | S122: V(t) | T122: 52 | U122: -3.121128309e-18 | V122: 3.099486906e-18 | W122: -3.028964742e-18 | X122: 2.910673996e-18 | Y122: -2.746480182e-18 | Z122: 2.538972734e-18 | AA122: -2.29142417e-18 | AB122: 2.007738478e-18 | AC122: -1.692389551e-18 | AD122: 1.35035063e-18 | AE122: -9.870158721e-19 | AF122: 6.081152846e-19 | AG122: -2.196243559e-19 | AH122: -1.723301801e-19 | AI122: 5.615669663e-19 | AJ122: -9.419475059e-19 | AK122: 1.307472971e-18 | AL122: -1.652378806e-18 | AM122: 1.97122564e-18 | AN122: -2.258985068e-18 | AO122: 2.511118952e-18 | AP122: -2.723650991e-18 | AQ122: 2.893229426e-18 | AR122: -3.017179904e-18 | AS122: 3.093547654e-18 | AT122: -3.121128309e-18 | AU122: 3.099486906e-18 | AV122: -3.028964742e-18 | AW122: 2.910673996e-18 | AX122: -2.746480182e-18 | AY122: 2.538972734e-18 | AZ122: -2.29142417e-18 | BA122: 2.007738478e-18 | BB122: -1.692389551e-18 | BC122: 1.35035063e-18 | BD122: -9.870158721e-19 | BE122: 6.081152846e-19 | BF122: -2.196243559e-19 | BG122: -1.723301801e-19 | BH122: 5.615669663e-19 | BI122: -9.419475059e-19 | BJ122: 1.307472971e-18 | BK122: -1.652378806e-18 | BL122: 1.97122564e-18 | BM122: -2.258985068e-18 | BN122: 2.511118952e-18 | BO122: -2.723650991e-18 | BP122: 2.893229426e-18 | BQ122: -3.017179904e-18 | BR122: 3.093547654e-18 | BS122: -3.121128309e-18 | BT122: 3.099486906e-18 | BU122: -3.028964742e-18 | BV122: 2.910673996e-18 | BW122: -2.746480182e-18 | BX122: 2.538972734e-18 | BY122: -2.29142417e-18 | BZ122: 2.007738478e-18 | CA122: -1.692389551e-18 | CB122: 1.35035063e-18 | CC122: -9.870158721e-19 | CD122: 6.081152846e-19 | CE122: -2.196243559e-19 | CF122: -1.723301801e-19 | CG122: 5.615669663e-19 | CH122: -9.419475059e-19 | CI122: 1.307472971e-18 | CJ122: -1.652378806e-18 | CK122: 1.97122564e-18 | CL122: -2.258985068e-18 | CM122: 2.511118952e-18 | CN122: -2.723650991e-18 | CO122: 2.893229426e-18 | CP122: -3.017179904e-18 | CQ122: 3.093547654e-18 | CR122: -3.121128309e-18 | CS122: 3.099486906e-18 | CT122: -3.028964742e-18 | CU122: 2.910673996e-18 | CV122: -2.746480182e-18 | CW122: 2.538972734e-18 | CX122: -2.29142417e-18 | CY122: 2.007738478e-18 | CZ122: -1.692389551e-18 | DA122: 1.35035063e-18 | DB122: -9.870158721e-19 | DC122: 6.081152846e-19 | DD122: -2.196243559e-19 | DE122: -1.723301801e-19 | DF122: 5.615669663e-19 | DG122: -9.419475059e-19 | DH122: 1.307472971e-18 | DI122: -1.652378806e-18 | DJ122: 1.97122564e-18 | DK122: -2.258985068e-18 | DL122: 2.511118952e-18 | DM122: -2.723650991e-18 | DN122: 2.893229426e-18 | DO122: -3.017179904e-18 | DP122: 3.093547654e-18 | DQ122: -3.121128309e-18
B123: 53 | C123: 5300000000 | D123: 174.8296312 | E123: 8.325220532 | F123: 8.325220532 | G123: 0.1070249756 | H123: 0.1070249756 | I123: -0.00114543454 | J123: -0.0005836280488 | K123: -57.81821218 | L123: -0.001107647477 | M123: -0.0005643745786 | N123: -58.10958643 | S123: V(t) | T123: 53 | U123: 1.301042607e-17 | V123: -0.0002329415495 | W123: 0.0004576310284 | X123: -0.0006661087001 | Y123: 0.0008509891389 | Z123: -0.001005722863 | AA123: 0.001124828354 | AB123: -0.001204086239 | AC123: 0.001240688769 | AD123: -0.001233339281 | AE123: 0.001182298134 | AF123: -0.001089373486 | AG123: 0.0009578572392 | AH123: -0.0007924084222 | AI123: 0.0005988881419 | AJ123: -0.0003841519505 | AK123: 0.0001558069848 | AL123: 7.805752107e-05 | AM123: -0.0003091568003 | AN123: 0.0005293040458 | AO123: -0.0007307004315 | AP123: 0.0009062113902 | AQ123: -0.001049619359 | AR123: 0.001155844038 | AS123: -0.001221122366 | AT123: 0.001243141825 | AU123: -0.001221122366 | AV123: 0.001155844038 | AW123: -0.001049619359 | AX123: 0.0009062113902 | AY123: -0.0007307004315 | AZ123: 0.0005293040458 | BA123: -0.0003091568003 | BB123: 7.805752107e-05 | BC123: 0.0001558069848 | BD123: -0.0003841519505 | BE123: 0.0005988881419 | BF123: -0.0007924084222 | BG123: 0.0009578572392 | BH123: -0.001089373486 | BI123: 0.001182298134 | BJ123: -0.001233339281 | BK123: 0.001240688769 | BL123: -0.001204086239 | BM123: 0.001124828354 | BN123: -0.001005722863 | BO123: 0.0008509891389 | BP123: -0.0006661087001 | BQ123: 0.0004576310284 | BR123: -0.0002329415495 | BS123: -2.255140519e-17 | BT123: 0.0002329415495 | BU123: -0.0004576310284 | BV123: 0.0006661087001 | BW123: -0.0008509891389 | BX123: 0.001005722863 | BY123: -0.001124828354 | BZ123: 0.001204086239 | CA123: -0.001240688769 | CB123: 0.001233339281 | CC123: -0.001182298134 | CD123: 0.001089373486 | CE123: -0.0009578572392 | CF123: 0.0007924084222 | CG123: -0.0005988881419 | CH123: 0.0003841519505 | CI123: -0.0001558069848 | CJ123: -7.805752107e-05 | CK123: 0.0003091568003 | CL123: -0.0005293040458 | CM123: 0.0007307004315 | CN123: -0.0009062113902 | CO123: 0.001049619359 | CP123: -0.001155844038 | CQ123: 0.001221122366 | CR123: -0.001243141825 | CS123: 0.001221122366 | CT123: -0.001155844038 | CU123: 0.001049619359 | CV123: -0.0009062113902 | CW123: 0.0007307004315 | CX123: -0.0005293040458 | CY123: 0.0003091568003 | CZ123: -7.805752107e-05 | DA123: -0.0001558069848 | DB123: 0.0003841519505 | DC123: -0.0005988881419 | DD123: 0.0007924084222 | DE123: -0.0009578572392 | DF123: 0.001089373486 | DG123: -0.001182298134 | DH123: 0.001233339281 | DI123: -0.001240688769 | DJ123: 0.001204086239 | DK123: -0.001124828354 | DL123: 0.001005722863 | DM123: -0.0008509891389 | DN123: 0.0006661087001 | DO123: -0.0004576310284 | DP123: 0.0002329415495 | DQ123: 1.875669758e-17
B124: 54 | C124: 5400000000 | D124: 178.1283035 | E124: 8.482300165 | F124: 8.482300165 | G124: 0.09537707681 | H124: 0.09537707681 | I124: 1.210704971e-17 | J124: -1.681080214e-17 | K124: -333.6735676 | L124: 1.169269615e-17 | M124: -1.623546662e-17 | N124: -333.9760408 | S124: V(t) | T124: 54 | U124: -2.000756276e-17 | V124: 1.935825314e-17 | W124: -1.749259327e-17 | X124: 1.452780944e-17 | Y124: -1.06501899e-17 | Z124: 6.103379773e-18 | AA124: -1.173071844e-18 | AB124: -3.830944504e-18 | AC124: 8.594248519e-18 | AD124: -1.281754429e-17 | AE124: 1.623546662e-17 | AF124: -1.863325487e-17 | AG124: 1.986024718e-17 | AH124: -1.983934713e-17 | AI124: 1.857186793e-17 | AJ124: -1.613744997e-17 | AK124: 1.268905667e-17 | AL124: -8.44336328e-18 | AM124: 3.667142321e-18 | AN124: 1.339498677e-18 | AO124: -6.261974048e-18 | AP124: 1.079098656e-17 | AQ124: -1.46419617e-17 | AR124: 1.757292853e-17 | AS124: -1.939972364e-17 | AT124: 2.000756276e-17 | AU124: -1.935825314e-17 | AV124: 1.749259327e-17 | AW124: -1.452780944e-17 | AX124: 1.06501899e-17 | AY124: -6.103379773e-18 | AZ124: 1.173071844e-18 | BA124: 3.830944504e-18 | BB124: -8.594248519e-18 | BC124: 1.281754429e-17 | BD124: -1.623546662e-17 | BE124: 1.863325487e-17 | BF124: -1.986024718e-17 | BG124: 1.983934713e-17 | BH124: -1.857186793e-17 | BI124: 1.613744997e-17 | BJ124: -1.268905667e-17 | BK124: 8.44336328e-18 | BL124: -3.667142321e-18 | BM124: -1.339498677e-18 | BN124: 6.261974048e-18 | BO124: -1.079098656e-17 | BP124: 1.46419617e-17 | BQ124: -1.757292853e-17 | BR124: 1.939972364e-17 | BS124: -2.000756276e-17 | BT124: 1.935825314e-17 | BU124: -1.749259327e-17 | BV124: 1.452780944e-17 | BW124: -1.06501899e-17 | BX124: 6.103379773e-18 | BY124: -1.173071844e-18 | BZ124: -3.830944504e-18 | CA124: 8.594248519e-18 | CB124: -1.281754429e-17 | CC124: 1.623546662e-17 | CD124: -1.863325487e-17 | CE124: 1.986024718e-17 | CF124: -1.983934713e-17 | CG124: 1.857186793e-17 | CH124: -1.613744997e-17 | CI124: 1.268905667e-17 | CJ124: -8.44336328e-18 | CK124: 3.667142321e-18 | CL124: 1.339498677e-18 | CM124: -6.261974048e-18 | CN124: 1.079098656e-17 | CO124: -1.46419617e-17 | CP124: 1.757292853e-17 | CQ124: -1.939972364e-17 | CR124: 2.000756276e-17 | CS124: -1.935825314e-17 | CT124: 1.749259327e-17 | CU124: -1.452780944e-17 | CV124: 1.06501899e-17 | CW124: -6.103379773e-18 | CX124: 1.173071844e-18 | CY124: 3.830944504e-18 | CZ124: -8.594248519e-18 | DA124: 1.281754429e-17 | DB124: -1.623546662e-17 | DC124: 1.863325487e-17 | DD124: -1.986024718e-17 | DE124: 1.983934713e-17 | DF124: -1.857186793e-17 | DG124: 1.613744997e-17 | DH124: -1.268905667e-17 | DI124: 8.44336328e-18 | DJ124: -3.667142321e-18 | DK124: -1.339498677e-18 | DL124: 6.261974048e-18 | DM124: -1.079098656e-17 | DN124: 1.46419617e-17 | DO124: -1.757292853e-17 | DP124: 1.939972364e-17 | DQ124: -2.000756276e-17
B125: 55 | C125: 5500000000 | D125: 181.4269757 | E125: 8.639379797 | F125: 8.639379797 | G125: 0.08184693783 | H125: 0.08184693783 | I125: -0.0006698921233 | J125: -0.0006698921233 | K125: -60.46960262 | L125: -0.000646124022 | M125: -0.000646124022 | N125: -60.78338229 | S125: V(t) | T125: 55 | U125: -2.602085214e-18 | V125: -0.0002823665514 | W125: 0.0005370930974 | X125: -0.0007392452288 | Y125: 0.0008690348867 | Z125: -0.0009137573549 | AA125: 0.0008690348867 | AB125: -0.0007392452288 | AC125: 0.0005370930974 | AD125: -0.0002823665514 | AE125: 7.10152423e-18 | AF125: 0.0002823665514 | AG125: -0.0005370930974 | AH125: 0.0007392452288 | AI125: -0.0008690348867 | AJ125: 0.0009137573549 | AK125: -0.0008690348867 | AL125: 0.0007392452288 | AM125: -0.0005370930974 | AN125: 0.0002823665514 | AO125: -1.165517335e-17 | AP125: -0.0002823665514 | AQ125: 0.0005370930974 | AR125: -0.0007392452288 | AS125: 0.0008690348867 | AT125: -0.0009137573549 | AU125: 0.0008690348867 | AV125: -0.0007392452288 | AW125: 0.0005370930974 | AX125: -0.0002823665514 | AY125: 1.610040226e-17 | AZ125: 0.0002823665514 | BA125: -0.0005370930974 | BB125: 0.0007392452288 | BC125: -0.0008690348867 | BD125: 0.0009137573549 | BE125: -0.0008690348867 | BF125: 0.0007392452288 | BG125: -0.0005370930974 | BH125: 0.0002823665514 | BI125: -2.054563117e-17 | BJ125: -0.0002823665514 | BK125: 0.0005370930974 | BL125: -0.0007392452288 | BM125: 0.0008690348867 | BN125: -0.0009137573549 | BO125: 0.0008690348867 | BP125: -0.0007392452288 | BQ125: 0.0005370930974 | BR125: -0.0002823665514 | BS125: -9.757819552e-19 | BT125: 0.0002823665514 | BU125: -0.0005370930974 | BV125: 0.0007392452288 | BW125: -0.0008690348867 | BX125: 0.0009137573549 | BY125: -0.0008690348867 | BZ125: 0.0007392452288 | CA125: -0.0005370930974 | CB125: 0.0002823665514 | CC125: -2.959871931e-17 | CD125: -0.0002823665514 | CE125: 0.0005370930974 | CF125: -0.0007392452288 | CG125: 0.0008690348867 | CH125: -0.0009137573549 | CI125: 0.0008690348867 | CJ125: -0.0007392452288 | CK125: 0.0005370930974 | CL125: -0.0002823665514 | CM125: 8.023096076e-18 | CN125: 0.0002823665514 | CO125: -0.0005370930974 | CP125: 0.0007392452288 | CQ125: -0.0008690348867 | CR125: 0.0009137573549 | CS125: -0.0008690348867 | CT125: 0.0007392452288 | CU125: -0.0005370930974 | CV125: 0.0002823665514 | CW125: -3.848917712e-17 | CX125: -0.0002823665514 | CY125: 0.0005370930974 | CZ125: -0.0007392452288 | DA125: 0.0008690348867 | DB125: -0.0009137573549 | DC125: 0.0008690348867 | DD125: -0.0007392452288 | DE125: 0.0005370930974 | DF125: -0.0002823665514 | DG125: -8.998878032e-18 | DH125: 0.0002823665514 | DI125: -0.0005370930974 | DJ125: 0.0007392452288 | DK125: -0.0008690348867 | DL125: 0.0009137573549 | DM125: -0.0008690348867 | DN125: 0.0007392452288 | DO125: -0.0005370930974 | DP125: 0.0002823665514 | DQ125: 4.553649124e-18
B126: 56 | C126: 5600000000 | D126: 184.725648 | E126: 8.79645943 | F126: 8.79645943 | G126: 0.06682066313 | H126: 0.06682066313 | I126: 4.299112851e-18 | J126: -3.155312184e-18 | K126: -345.4609536 | L126: 4.14108521e-18 | M126: -3.039328595e-18 | N126: -345.7862471 | S126: V(t) | T126: 56 | U126: -5.136680835e-18 | V126: 4.766835689e-18 | W126: -3.727502636e-18 | X126: 2.164652915e-18 | Y126: -2.977841253e-19 | Z126: -1.61090756e-18 | AA126: 3.293352066e-18 | AB126: -4.513255061e-18 | AC126: 5.099284795e-18 | AD126: -4.969135134e-18 | AE126: 4.14108521e-18 | AF126: -2.731432175e-18 | AG126: 9.381576083e-19 | AH126: 9.868784066e-19 | AI126: -2.773310282e-18 | AJ126: 4.17023897e-18 | AK126: -4.981469988e-18 | AL126: 5.09306835e-18 | AM126: -4.489360397e-18 | AN126: 3.255135118e-18 | AO126: -1.563735785e-18 | AP126: -3.472855913e-19 | AQ126: 2.209531739e-18 | AR126: -3.76145572e-18 | AS126: 4.785094423e-18 | AT126: -5.136680835e-18 | AU126: 4.766835689e-18 | AV126: -3.727502636e-18 | AW126: 2.164652915e-18 | AX126: -2.977841253e-19 | AY126: -1.61090756e-18 | AZ126: 3.293352066e-18 | BA126: -4.513255061e-18 | BB126: 5.099284795e-18 | BC126: -4.969135134e-18 | BD126: 4.14108521e-18 | BE126: -2.731432175e-18 | BF126: 9.381576083e-19 | BG126: 9.868784066e-19 | BH126: -2.773310282e-18 | BI126: 4.17023897e-18 | BJ126: -4.981469988e-18 | BK126: 5.09306835e-18 | BL126: -4.489360397e-18 | BM126: 3.255135118e-18 | BN126: -1.563735785e-18 | BO126: -3.472855913e-19 | BP126: 2.209531739e-18 | BQ126: -3.76145572e-18 | BR126: 4.785094423e-18 | BS126: -5.136680835e-18 | BT126: 4.766835689e-18 | BU126: -3.727502636e-18 | BV126: 2.164652915e-18 | BW126: -2.977841253e-19 | BX126: -1.61090756e-18 | BY126: 3.293352066e-18 | BZ126: -4.513255061e-18 | CA126: 5.099284795e-18 | CB126: -4.969135134e-18 | CC126: 4.14108521e-18 | CD126: -2.731432175e-18 | CE126: 9.381576083e-19 | CF126: 9.868784066e-19 | CG126: -2.773310282e-18 | CH126: 4.17023897e-18 | CI126: -4.981469988e-18 | CJ126: 5.09306835e-18 | CK126: -4.489360397e-18 | CL126: 3.255135118e-18 | CM126: -1.563735785e-18 | CN126: -3.472855913e-19 | CO126: 2.209531739e-18 | CP126: -3.76145572e-18 | CQ126: 4.785094423e-18 | CR126: -5.136680835e-18 | CS126: 4.766835689e-18 | CT126: -3.727502636e-18 | CU126: 2.164652915e-18 | CV126: -2.977841253e-19 | CW126: -1.61090756e-18 | CX126: 3.293352066e-18 | CY126: -4.513255061e-18 | CZ126: 5.099284795e-18 | DA126: -4.969135134e-18 | DB126: 4.14108521e-18 | DC126: -2.731432175e-18 | DD126: 9.381576083e-19 | DE126: 9.868784066e-19 | DF126: -2.773310282e-18 | DG126: 4.17023897e-18 | DH126: -4.981469988e-18 | DI126: 5.09306835e-18 | DJ126: -4.489360397e-18 | DK126: 3.255135118e-18 | DL126: -1.563735785e-18 | DM126: -3.472855913e-19 | DN126: 2.209531739e-18 | DO126: -3.76145572e-18 | DP126: 4.785094423e-18 | DQ126: -5.136680835e-18
B127: 57 | C127: 5700000000 | D127: 188.0243203 | E127: 8.953539063 | F127: 8.953539063 | G127: 0.05070514537 | H127: 0.05070514537 | I127: -0.0002571011767 | J127: -0.0005045894703 | K127: -64.93885401 | L127: -0.0002473166289 | M127: -0.000485386214 | N127: -65.27586894 | S127: V(t) | T127: 57 | U127: 8.619407271e-18 | V127: -0.0002319482436 | W127: 0.0004197460912 | X127: -0.0005276469933 | Y127: 0.0005351124562 | Z127: -0.0004407214597 | AA127: 0.0002624409425 | AB127: -3.420586912e-05 | AC127: -0.000200540151 | AD127: 0.0003971141766 | AE127: -0.0005180991488 | AF127: 0.0005404660748 | AG127: -0.000459957502 | AH127: 0.0002918979068 | AI127: -6.82767433e-05 | AJ127: -0.000168340618 | AK127: 0.0003729150338 | AL127: -0.0005065066036 | AM127: 0.0005436867206 | AN127: -0.0004773783022 | AO127: 0.0003202028835 | AP127: -0.0001020781604 | AQ127: -0.0001354767216 | AR127: 0.0003472441657 | AS127: -0.0004929151082 | AT127: 0.0005447616834 | AU127: -0.0004929151082 | AV127: 0.0003472441657 | AW127: -0.0001354767216 | AX127: -0.0001020781604 | AY127: 0.0003202028835 | AZ127: -0.0004773783022 | BA127: 0.0005436867206 | BB127: -0.0005065066036 | BC127: 0.0003729150338 | BD127: -0.000168340618 | BE127: -6.82767433e-05 | BF127: 0.0002918979068 | BG127: -0.000459957502 | BH127: 0.0005404660748 | BI127: -0.0005180991488 | BJ127: 0.0003971141766 | BK127: -0.000200540151 | BL127: -3.420586912e-05 | BM127: 0.0002624409425 | BN127: -0.0004407214597 | BO127: 0.0005351124562 | BP127: -0.0005276469933 | BQ127: 0.0004197460912 | BR127: -0.0002319482436 | BS127: -6.749158524e-18 | BT127: 0.0002319482436 | BU127: -0.0004197460912 | BV127: 0.0005276469933 | BW127: -0.0005351124562 | BX127: 0.0004407214597 | BY127: -0.0002624409425 | BZ127: 3.420586912e-05 | CA127: 0.000200540151 | CB127: -0.0003971141766 | CC127: 0.0005180991488 | CD127: -0.0005404660748 | CE127: 0.000459957502 | CF127: -0.0002918979068 | CG127: 6.82767433e-05 | CH127: 0.000168340618 | CI127: -0.0003729150338 | CJ127: 0.0005065066036 | CK127: -0.0005436867206 | CL127: 0.0004773783022 | CM127: -0.0003202028835 | CN127: 0.0001020781604 | CO127: 0.0001354767216 | CP127: -0.0003472441657 | CQ127: 0.0004929151082 | CR127: -0.0005447616834 | CS127: 0.0004929151082 | CT127: -0.0003472441657 | CU127: 0.0001354767216 | CV127: 0.0001020781604 | CW127: -0.0003202028835 | CX127: 0.0004773783022 | CY127: -0.0005436867206 | CZ127: 0.0005065066036 | DA127: -0.0003729150338 | DB127: 0.000168340618 | DC127: 6.82767433e-05 | DD127: -0.0002918979068 | DE127: 0.000459957502 | DF127: -0.0005404660748 | DG127: 0.0005180991488 | DH127: -0.0003971141766 | DI127: 0.000200540151 | DJ127: 3.420586912e-05 | DK127: -0.0002624409425 | DL127: 0.0004407214597 | DM127: -0.0005351124562 | DN127: 0.0005276469933 | DO127: -0.0004197460912 | DP127: 0.0002319482436 | DQ127: -1.837722682e-17
B128: 58 | C128: 5800000000 | D128: 191.3229926 | E128: 9.110618695 | F128: 9.110618695 | G128: 0.03391833252 | H128: 0.03391833252 | I128: -1.580376189e-18 | J128: 5.331389552e-19 | K128: -355.5567003 | L128: -1.51814513e-18 | M128: 5.12145345e-19 | N128: -355.9056441 | S128: V(t) | T128: 58 | U128: 1.602103433e-18 | V128: -1.395288138e-18 | W128: 8.432971978e-19 | X128: -8.268579768e-20 | Y128: -6.983809641e-19 | Z128: 1.306677606e-18 | AA128: -1.591719665e-18 | AB128: 1.482991545e-18 | AC128: -1.007391129e-18 | AD128: 2.825756071e-19 | AE128: 5.12145345e-19 | AF128: -1.180168381e-18 | AG128: 1.556233527e-18 | AH128: -1.547307289e-18 | AI128: 1.155597901e-18 | AJ128: -4.780090304e-19 | AK128: -3.178328878e-19 | AL128: 1.035047196e-18 | AM128: -1.496204656e-18 | AN128: 1.587221074e-18 | AO128: -1.285580203e-18 | AP128: 6.659039658e-19 | AQ128: 1.185080162e-19 | AR128: -8.736026982e-19 | AS128: 1.412579744e-18 | AT128: -1.602103433e-18 | AU128: 1.395288138e-18 | AV128: -8.432971978e-19 | AW128: 8.268579768e-20 | AX128: 6.983809641e-19 | AY128: -1.306677606e-18 | AZ128: 1.591719665e-18 | BA128: -1.482991545e-18 | BB128: 1.007391129e-18 | BC128: -2.825756071e-19 | BD128: -5.12145345e-19 | BE128: 1.180168381e-18 | BF128: -1.556233527e-18 | BG128: 1.547307289e-18 | BH128: -1.155597901e-18 | BI128: 4.780090304e-19 | BJ128: 3.178328878e-19 | BK128: -1.035047196e-18 | BL128: 1.496204656e-18 | BM128: -1.587221074e-18 | BN128: 1.285580203e-18 | BO128: -6.659039658e-19 | BP128: -1.185080162e-19 | BQ128: 8.736026982e-19 | BR128: -1.412579744e-18 | BS128: 1.602103433e-18 | BT128: -1.395288138e-18 | BU128: 8.432971978e-19 | BV128: -8.268579768e-20 | BW128: -6.983809641e-19 | BX128: 1.306677606e-18 | BY128: -1.591719665e-18 | BZ128: 1.482991545e-18 | CA128: -1.007391129e-18 | CB128: 2.825756071e-19 | CC128: 5.12145345e-19 | CD128: -1.180168381e-18 | CE128: 1.556233527e-18 | CF128: -1.547307289e-18 | CG128: 1.155597901e-18 | CH128: -4.780090304e-19 | CI128: -3.178328878e-19 | CJ128: 1.035047196e-18 | CK128: -1.496204656e-18 | CL128: 1.587221074e-18 | CM128: -1.285580203e-18 | CN128: 6.659039658e-19 | CO128: 1.185080162e-19 | CP128: -8.736026982e-19 | CQ128: 1.412579744e-18 | CR128: -1.602103433e-18 | CS128: 1.395288138e-18 | CT128: -8.432971978e-19 | CU128: 8.268579768e-20 | CV128: 6.983809641e-19 | CW128: -1.306677606e-18 | CX128: 1.591719665e-18 | CY128: -1.482991545e-18 | CZ128: 1.007391129e-18 | DA128: -2.825756071e-19 | DB128: -5.12145345e-19 | DC128: 1.180168381e-18 | DD128: -1.556233527e-18 | DE128: 1.547307289e-18 | DF128: -1.155597901e-18 | DG128: 4.780090304e-19 | DH128: 3.178328878e-19 | DI128: -1.035047196e-18 | DJ128: 1.496204656e-18 | DK128: -1.587221074e-18 | DL128: 1.285580203e-18 | DM128: -6.659039658e-19 | DN128: -1.185080162e-19 | DO128: 8.736026982e-19 | DP128: -1.412579744e-18 | DQ128: 1.602103433e-18
B129: 59 | C129: 5900000000 | D129: 194.6216649 | E129: 9.267698328 | F129: 9.267698328 | G129: 0.01687953789 | H129: 0.01687953789 | I129: -2.849187992e-05 | J129: -0.00017989065 | K129: -74.79222672 | L129: -2.733172893e-05 | M129: -0.0001725657449 | N129: -75.15330673 | S129: V(t) | T129: 59 | U129: 6.335806445e-19 | V129: -9.361794225e-05 | W129: 0.0001580884859 | X129: -0.0001733391045 | Y129: 0.0001346216071 | Z129: -5.399045999e-05 | AA129: -4.345030094e-05 | AB129: 0.0001273630649 | AC129: -0.0001716220838 | AD129: 0.0001624475711 | AE129: -0.0001026959576 | AF129: 1.097055856e-05 | AG129: 8.417045968e-05 | AH129: -0.0001531054978 | AI129: 0.000174372035 | AJ129: -0.0001413488593 | AK129: 6.431754335e-05 | AL129: 3.273866341e-05 | AM129: -0.0001196018789 | AN129: 0.0001692277491 | AO129: -0.0001661655499 | AP129: 0.0001113686789 | AQ129: -2.189782133e-05 | AR129: -7.439079476e-05 | AS129: 0.0001475182722 | AT129: -0.0001747167987 | AU129: 0.0001475182722 | AV129: -7.439079476e-05 | AW129: -2.189782133e-05 | AX129: 0.0001113686789 | AY129: -0.0001661655499 | AZ129: 0.0001692277491 | BA129: -0.0001196018789 | BB129: 3.273866341e-05 | BC129: 6.431754335e-05 | BD129: -0.0001413488593 | BE129: 0.000174372035 | BF129: -0.0001531054978 | BG129: 8.417045968e-05 | BH129: 1.097055856e-05 | BI129: -0.0001026959576 | BJ129: 0.0001624475711 | BK129: -0.0001716220838 | BL129: 0.0001273630649 | BM129: -4.345030094e-05 | BN129: -5.399045999e-05 | BO129: 0.0001346216071 | BP129: -0.0001733391045 | BQ129: 0.0001580884859 | BR129: -9.361794225e-05 | BS129: 6.335806445e-19 | BT129: 9.361794225e-05 | BU129: -0.0001580884859 | BV129: 0.0001733391045 | BW129: -0.0001346216071 | BX129: 5.399045999e-05 | BY129: 4.345030094e-05 | BZ129: -0.0001273630649 | CA129: 0.0001716220838 | CB129: -0.0001624475711 | CC129: 0.0001026959576 | CD129: -1.097055856e-05 | CE129: -8.417045968e-05 | CF129: 0.0001531054978 | CG129: -0.000174372035 | CH129: 0.0001413488593 | CI129: -6.431754335e-05 | CJ129: -3.273866341e-05 | CK129: 0.0001196018789 | CL129: -0.0001692277491 | CM129: 0.0001661655499 | CN129: -0.0001113686789 | CO129: 2.189782133e-05 | CP129: 7.439079476e-05 | CQ129: -0.0001475182722 | CR129: 0.0001747167987 | CS129: -0.0001475182722 | CT129: 7.439079476e-05 | CU129: 2.189782133e-05 | CV129: -0.0001113686789 | CW129: 0.0001661655499 | CX129: -0.0001692277491 | CY129: 0.0001196018789 | CZ129: -3.273866341e-05 | DA129: -6.431754335e-05 | DB129: 0.0001413488593 | DC129: -0.000174372035 | DD129: 0.0001531054978 | DE129: -8.417045968e-05 | DF129: -1.097055856e-05 | DG129: 0.0001026959576 | DH129: -0.0001624475711 | DI129: 0.0001716220838 | DJ129: -0.0001273630649 | DK129: 4.345030094e-05 | DL129: 5.399045999e-05 | DM129: -0.0001346216071 | DN129: 0.0001733391045 | DO129: -0.0001580884859 | DP129: 9.361794225e-05 | DQ129: -7.484383122e-18
B130: 60 | C130: 6000000000 | D130: 197.9203372 | E130: 9.424777961 | F130: 9.424777961 | G130: 2.27475001e-16 | H130: 2.27475001e-16 | I130: 2.816424356e-32 | J130: 0 | K130: -200 | L130: 2.697906562e-32 | M130: 0 | N130: -200 | S130: V(t) | T130: 60 | U130: -2.697906562e-32 | V130: 2.182652258e-32 | W130: -8.336989769e-33 | X130: -8.336989769e-33 | Y130: 2.182652258e-32 | Z130: -2.697906562e-32 | AA130: 2.182652258e-32 | AB130: -8.336989769e-33 | AC130: -8.336989769e-33 | AD130: 2.182652258e-32 | AE130: -2.697906562e-32 | AF130: 2.182652258e-32 | AG130: -8.336989769e-33 | AH130: -8.336989769e-33 | AI130: 2.182652258e-32 | AJ130: -2.697906562e-32 | AK130: 2.182652258e-32 | AL130: -8.336989769e-33 | AM130: -8.336989769e-33 | AN130: 2.182652258e-32 | AO130: -2.697906562e-32 | AP130: 2.182652258e-32 | AQ130: -8.336989769e-33 | AR130: -8.336989769e-33 | AS130: 2.182652258e-32 | AT130: -2.697906562e-32 | AU130: 2.182652258e-32 | AV130: -8.336989769e-33 | AW130: -8.336989769e-33 | AX130: 2.182652258e-32 | AY130: -2.697906562e-32 | AZ130: 2.182652258e-32 | BA130: -8.336989769e-33 | BB130: -8.336989769e-33 | BC130: 2.182652258e-32 | BD130: -2.697906562e-32 | BE130: 2.182652258e-32 | BF130: -8.336989769e-33 | BG130: -8.336989769e-33 | BH130: 2.182652258e-32 | BI130: -2.697906562e-32 | BJ130: 2.182652258e-32 | BK130: -8.336989769e-33 | BL130: -8.336989769e-33 | BM130: 2.182652258e-32 | BN130: -2.697906562e-32 | BO130: 2.182652258e-32 | BP130: -8.336989769e-33 | BQ130: -8.336989769e-33 | BR130: 2.182652258e-32 | BS130: -2.697906562e-32 | BT130: 2.182652258e-32 | BU130: -8.336989769e-33 | BV130: -8.336989769e-33 | BW130: 2.182652258e-32 | BX130: -2.697906562e-32 | BY130: 2.182652258e-32 | BZ130: -8.336989769e-33 | CA130: -8.336989769e-33 | CB130: 2.182652258e-32 | CC130: -2.697906562e-32 | CD130: 2.182652258e-32 | CE130: -8.336989769e-33 | CF130: -8.336989769e-33 | CG130: 2.182652258e-32 | CH130: -2.697906562e-32 | CI130: 2.182652258e-32 | CJ130: -8.336989769e-33 | CK130: -8.336989769e-33 | CL130: 2.182652258e-32 | CM130: -2.697906562e-32 | CN130: 2.182652258e-32 | CO130: -8.336989769e-33 | CP130: -8.336989769e-33 | CQ130: 2.182652258e-32 | CR130: -2.697906562e-32 | CS130: 2.182652258e-32 | CT130: -8.336989769e-33 | CU130: -8.336989769e-33 | CV130: 2.182652258e-32 | CW130: -2.697906562e-32 | CX130: 2.182652258e-32 | CY130: -8.336989769e-33 | CZ130: -8.336989769e-33 | DA130: 2.182652258e-32 | DB130: -2.697906562e-32 | DC130: 2.182652258e-32 | DD130: -8.336989769e-33 | DE130: -8.336989769e-33 | DF130: 2.182652258e-32 | DG130: -2.697906562e-32 | DH130: 2.182652258e-32 | DI130: -8.336989769e-33 | DJ130: -8.336989769e-33 | DK130: 2.182652258e-32 | DL130: -2.697906562e-32 | DM130: 2.182652258e-32 | DN130: -8.336989769e-33 | DO130: -8.336989769e-33 | DP130: 2.182652258e-32 | DQ130: -2.697906562e-32
B131: 61 | C131: 6100000000 | D131: 201.2190095 | E131: 9.581857593 | F131: 9.581857593 | G131: -0.01632611041 | H131: -0.01632611041 | I131: -2.665418812e-05 | J131: 0.0001682879206 | K131: -75.37133965 | L131: -2.549568662e-05 | M131: 0.00016097343 | N131: -75.75731458 | S131: V(t) | T131: 61 | U131: -3.506716402e-18 | V131: 0.0001038873517 | W131: -0.0001600931605 | X131: 0.0001428204487 | Y131: -5.999693373e-05 | Z131: -5.036358482e-05 | AA131: 0.0001376085518 | AB131: -0.0001616948382 | AC131: 0.0001115674764 | AD131: -1.023359787e-05 | AE131: -9.579723104e-05 | AF131: 0.0001578596682 | AG131: -0.0001474686986 | AH131: 6.939350215e-05 | AI131: 4.053147384e-05 | AJ131: -0.0001318535768 | AK131: 0.0001626583803 | AL131: -0.0001188072953 | AM131: 2.042680841e-05 | AN131: 8.73290425e-05 | AO131: -0.0001550031759 | AP131: 0.0001515349568 | AQ131: -7.851620612e-05 | AR131: -3.053940366e-05 | AS131: 0.000125578236 | AT131: -0.0001629799841 | AU131: 0.000125578236 | AV131: -3.053940366e-05 | AW131: -7.851620612e-05 | AX131: 0.0001515349568 | AY131: -0.0001550031759 | AZ131: 8.73290425e-05 | BA131: 2.042680841e-05 | BB131: -0.0001188072953 | BC131: 0.0001626583803 | BD131: -0.0001318535768 | BE131: 4.053147384e-05 | BF131: 6.939350215e-05 | BG131: -0.0001474686986 | BH131: 0.0001578596682 | BI131: -9.579723104e-05 | BJ131: -1.023359787e-05 | BK131: 0.0001115674764 | BL131: -0.0001616948382 | BM131: 0.0001376085518 | BN131: -5.036358482e-05 | BO131: -5.999693373e-05 | BP131: 0.0001428204487 | BQ131: -0.0001600931605 | BR131: 0.0001038873517 | BS131: 1.138412281e-18 | BT131: -0.0001038873517 | BU131: 0.0001600931605 | BV131: -0.0001428204487 | BW131: 5.999693373e-05 | BX131: 5.036358482e-05 | BY131: -0.0001376085518 | BZ131: 0.0001616948382 | CA131: -0.0001115674764 | CB131: 1.023359787e-05 | CC131: 9.579723104e-05 | CD131: -0.0001578596682 | CE131: 0.0001474686986 | CF131: -6.939350215e-05 | CG131: -4.053147384e-05 | CH131: 0.0001318535768 | CI131: -0.0001626583803 | CJ131: 0.0001188072953 | CK131: -2.042680841e-05 | CL131: -8.73290425e-05 | CM131: 0.0001550031759 | CN131: -0.0001515349568 | CO131: 7.851620612e-05 | CP131: 3.053940366e-05 | CQ131: -0.000125578236 | CR131: 0.0001629799841 | CS131: -0.000125578236 | CT131: 3.053940366e-05 | CU131: 7.851620612e-05 | CV131: -0.0001515349568 | CW131: 0.0001550031759 | CX131: -8.73290425e-05 | CY131: -2.042680841e-05 | CZ131: 0.0001188072953 | DA131: -0.0001626583803 | DB131: 0.0001318535768 | DC131: -4.053147384e-05 | DD131: -6.939350215e-05 | DE131: 0.0001474686986 | DF131: -0.0001578596682 | DG131: 9.579723104e-05 | DH131: 1.023359787e-05 | DI131: -0.0001115674764 | DJ131: 0.0001616948382 | DK131: -0.0001376085518 | DL131: 5.036358482e-05 | DM131: 5.999693373e-05 | DN131: -0.0001428204487 | DO131: 0.0001600931605 | DP131: -0.0001038873517 | DQ131: -5.122855265e-18
B132: 62 | C132: 6200000000 | D132: 204.5176817 | E132: 9.738937226 | F132: 9.738937226 | G132: -0.031730053 | H132: -0.031730053 | I132: -4.755869735e-18 | J132: -1.549665419e-18 | K132: -346.0171686 | L132: -4.542482597e-18 | M132: -1.480134779e-18 | N132: -346.4159022 | S132: V(t) | T132: 62 | U132: 4.777544475e-18 | V132: -3.485409675e-18 | W132: 3.039641385e-19 | X132: 3.042249033e-18 | Y132: -4.739372342e-18 | Z132: 3.867458469e-18 | AA132: -8.991394417e-19 | AB132: -2.55656958e-18 | AC132: 4.626457477e-18 | AD132: -4.188515134e-18 | AE132: 1.480134779e-18 | AF132: 2.030571497e-18 | AG132: -4.440580614e-18 | AH132: 4.443516412e-18 | AI132: -2.037787506e-18 | AJ132: -1.472550089e-18 | AK132: 4.184673141e-18 | AL132: -4.628440782e-18 | AM132: 2.563303107e-18 | AN132: 8.913056866e-19 | AO132: -3.862770873e-18 | AP132: 4.740371877e-18 | AQ132: -3.048393887e-18 | AR132: -2.960048608e-19 | AS132: 3.479950402e-18 | AT132: -4.777544475e-18 | AU132: 3.485409675e-18 | AV132: -3.039641385e-19 | AW132: -3.042249033e-18 | AX132: 4.739372342e-18 | AY132: -3.867458469e-18 | AZ132: 8.991394417e-19 | BA132: 2.55656958e-18 | BB132: -4.626457477e-18 | BC132: 4.188515134e-18 | BD132: -1.480134779e-18 | BE132: -2.030571497e-18 | BF132: 4.440580614e-18 | BG132: -4.443516412e-18 | BH132: 2.037787506e-18 | BI132: 1.472550089e-18 | BJ132: -4.184673141e-18 | BK132: 4.628440782e-18 | BL132: -2.563303107e-18 | BM132: -8.913056866e-19 | BN132: 3.862770873e-18 | BO132: -4.740371877e-18 | BP132: 3.048393887e-18 | BQ132: 2.960048608e-19 | BR132: -3.479950402e-18 | BS132: 4.777544475e-18 | BT132: -3.485409675e-18 | BU132: 3.039641385e-19 | BV132: 3.042249033e-18 | BW132: -4.739372342e-18 | BX132: 3.867458469e-18 | BY132: -8.991394417e-19 | BZ132: -2.55656958e-18 | CA132: 4.626457477e-18 | CB132: -4.188515134e-18 | CC132: 1.480134779e-18 | CD132: 2.030571497e-18 | CE132: -4.440580614e-18 | CF132: 4.443516412e-18 | CG132: -2.037787506e-18 | CH132: -1.472550089e-18 | CI132: 4.184673141e-18 | CJ132: -4.628440782e-18 | CK132: 2.563303107e-18 | CL132: 8.913056866e-19 | CM132: -3.862770873e-18 | CN132: 4.740371877e-18 | CO132: -3.048393887e-18 | CP132: -2.960048608e-19 | CQ132: 3.479950402e-18 | CR132: -4.777544475e-18 | CS132: 3.485409675e-18 | CT132: -3.039641385e-19 | CU132: -3.042249033e-18 | CV132: 4.739372342e-18 | CW132: -3.867458469e-18 | CX132: 8.991394417e-19 | CY132: 2.55656958e-18 | CZ132: -4.626457477e-18 | DA132: 4.188515134e-18 | DB132: -1.480134779e-18 | DC132: -2.030571497e-18 | DD132: 4.440580614e-18 | DE132: -4.443516412e-18 | DF132: 2.037787506e-18 | DG132: 1.472550089e-18 | DH132: -4.184673141e-18 | DI132: 4.628440782e-18 | DJ132: -2.563303107e-18 | DK132: -8.913056866e-19 | DL132: 3.862770873e-18 | DM132: -4.740371877e-18 | DN132: 3.048393887e-18 | DO132: 2.960048608e-19 | DP132: -3.479950402e-18 | DQ132: 4.777544475e-18
B133: 63 | C133: 6300000000 | D133: 207.816354 | E133: 9.896016859 | F133: 9.896016859 | G133: -0.0458760839 | H133: -0.0458760839 | I133: -0.0002104615074 | J133: 0.0004130539655 | K133: -66.67748176 | L133: -0.0002007186342 | M133: 0.0003939325001 | N133: -67.08918143 | S133: V(t) | T133: 63 | U133: -3.686287386e-18 | V133: 0.0003222921787 | W133: -0.0004412483564 | X133: 0.000281818392 | Y133: 5.541242707e-05 | Z133: -0.0003576832252 | AA133: 0.0004342896062 | AB133: -0.0002369001609 | AC133: -0.0001099509671 | AD133: 0.0003874333935 | AE133: -0.0004204818495 | AF133: 0.0001882458728 | AG133: 0.0001627555146 | AH133: -0.0004110735058 | AI133: 0.0004000428429 | AJ133: -0.0001366228348 | AK133: -0.0002129933105 | AL133: 0.0004282307434 | AM133: -0.0003732949216 | AN133: 8.28451731e-05 | AO133: 0.0002598720746 | AP133: -0.0004386345263 | AQ133: 0.0003406599165 | AR133: -2.776099352e-05 | AS133: -0.0003026525009 | AT133: 0.0004421207807 | AU133: -0.0003026525009 | AV133: -2.776099352e-05 | AW133: 0.0003406599165 | AX133: -0.0004386345263 | AY133: 0.0002598720746 | AZ133: 8.28451731e-05 | BA133: -0.0003732949216 | BB133: 0.0004282307434 | BC133: -0.0002129933105 | BD133: -0.0001366228348 | BE133: 0.0004000428429 | BF133: -0.0004110735058 | BG133: 0.0001627555146 | BH133: 0.0001882458728 | BI133: -0.0004204818495 | BJ133: 0.0003874333935 | BK133: -0.0001099509671 | BL133: -0.0002369001609 | BM133: 0.0004342896062 | BN133: -0.0003576832252 | BO133: 5.541242707e-05 | BP133: 0.000281818392 | BQ133: -0.0004412483564 | BR133: 0.0003222921787 | BS133: 8.158621348e-18 | BT133: -0.0003222921787 | BU133: 0.0004412483564 | BV133: -0.000281818392 | BW133: -5.541242707e-05 | BX133: 0.0003576832252 | BY133: -0.0004342896062 | BZ133: 0.0002369001609 | CA133: 0.0001099509671 | CB133: -0.0003874333935 | CC133: 0.0004204818495 | CD133: -0.0001882458728 | CE133: -0.0001627555146 | CF133: 0.0004110735058 | CG133: -0.0004000428429 | CH133: 0.0001366228348 | CI133: 0.0002129933105 | CJ133: -0.0004282307434 | CK133: 0.0003732949216 | CL133: -8.28451731e-05 | CM133: -0.0002598720746 | CN133: 0.0004386345263 | CO133: -0.0003406599165 | CP133: 2.776099352e-05 | CQ133: 0.0003026525009 | CR133: -0.0004421207807 | CS133: 0.0003026525009 | CT133: 2.776099352e-05 | CU133: -0.0003406599165 | CV133: 0.0004386345263 | CW133: -0.0002598720746 | CX133: -8.28451731e-05 | CY133: 0.0003732949216 | CZ133: -0.0004282307434 | DA133: 0.0002129933105 | DB133: 0.0001366228348 | DC133: -0.0004000428429 | DD133: 0.0004110735058 | DE133: -0.0001627555146 | DF133: -0.0001882458728 | DG133: 0.0004204818495 | DH133: -0.0003874333935 | DI133: 0.0001099509671 | DJ133: =Re_H*COS(NH_*Rad_+NH_*Ofs_)+Im_H*SIN(NH_*Rad_+NH_*Ofs_) -> 0.0002369001609 | DK133: -0.0004342896062 | DL133: 0.0003576832252 | DM133: -5.541242707e-05 | DN133: -0.000281818392 | DO133: 0.0004412483564 | DP133: -0.0003222921787 | DQ133: -9.432558901e-18
B134: 64 | C134: 6400000000 | D134: 211.1150263 | E134: 10.05309649 | F134: 10.05309649 | G134: -0.05846808024 | H134: -0.05846808024 | I134: -1.829095032e-18 | J134: -1.345937853e-18 | K134: -352.875913 | L134: -1.741777229e-18 | M134: -1.281685131e-18 | N134: -353.3007863 | S134: V(t) | T134: 64 | U134: 2.162482996e-18 | V134: -1.388523115e-18 | W134: -3.923271089e-19 | X134: 1.888680537e-18 | Y134: -2.015453457e-18 | Z134: 6.807162312e-19 | AA134: 1.147643746e-18 | AB134: -2.143787541e-18 | AC134: 1.58535947e-18 | AD134: 1.226952242e-19 | AE134: -1.741777229e-18 | AF134: 2.097805957e-18 | AG134: -9.326064564e-19 | AH134: -9.088745e-19 | AI134: 2.091283276e-18 | AJ134: -1.757193759e-18 | AK134: 1.488716374e-19 | AL134: 1.567405053e-18 | AM134: -2.147074803e-18 | AN134: 1.169788921e-18 | AO134: 6.557717606e-19 | AP134: -2.005798225e-18 | AQ134: 1.901316053e-18 | AR134: -4.180907044e-19 | AS134: -1.368313964e-18 | AT134: 2.162482996e-18 | AU134: -1.388523115e-18 | AV134: -3.923271089e-19 | AW134: 1.888680537e-18 | AX134: -2.015453457e-18 | AY134: 6.807162312e-19 | AZ134: 1.147643746e-18 | BA134: -2.143787541e-18 | BB134: 1.58535947e-18 | BC134: 1.226952242e-19 | BD134: -1.741777229e-18 | BE134: 2.097805957e-18 | BF134: -9.326064564e-19 | BG134: -9.088745e-19 | BH134: 2.091283276e-18 | BI134: -1.757193759e-18 | BJ134: 1.488716374e-19 | BK134: 1.567405053e-18 | BL134: -2.147074803e-18 | BM134: 1.169788921e-18 | BN134: 6.557717606e-19 | BO134: =Re_H*COS(NH_*Rad_+NH_*Ofs_)+Im_H*SIN(NH_*Rad_+NH_*Ofs_) -> -2.005798225e-18 | BP134: 1.901316053e-18 | BQ134: -4.180907044e-19 | BR134: -1.368313964e-18 | BS134: 2.162482996e-18 | BT134: -1.388523115e-18 | BU134: -3.923271089e-19 | BV134: 1.888680537e-18 | BW134: -2.015453457e-18 | BX134: 6.807162312e-19 | BY134: 1.147643746e-18 | BZ134: -2.143787541e-18 | CA134: 1.58535947e-18 | CB134: 1.226952242e-19 | CC134: -1.741777229e-18 | CD134: 2.097805957e-18 | CE134: -9.326064564e-19 | CF134: -9.088745e-19 | CG134: 2.091283276e-18 | CH134: -1.757193759e-18 | CI134: 1.488716374e-19 | CJ134: 1.567405053e-18 | CK134: -2.147074803e-18 | CL134: 1.169788921e-18 | CM134: 6.557717606e-19 | CN134: -2.005798225e-18 | CO134: 1.901316053e-18 | CP134: -4.180907044e-19 | CQ134: -1.368313964e-18 | CR134: 2.162482996e-18 | CS134: -1.388523115e-18 | CT134: =Re_H*COS(NH_*Rad_+NH_*Ofs_)+Im_H*SIN(NH_*Rad_+NH_*Ofs_) -> -3.923271089e-19 | CU134: 1.888680537e-18 | CV134: -2.015453457e-18 | CW134: 6.807162312e-19 | CX134: 1.147643746e-18 | CY134: -2.143787541e-18 | CZ134: 1.58535947e-18 | DA134: 1.226952242e-19 | DB134: -1.741777229e-18 | DC134: 2.097805957e-18 | DD134: -9.326064564e-19 | DE134: -9.088745e-19 | DF134: 2.091283276e-18 | DG134: -1.757193759e-18 | DH134: 1.488716374e-19 | DI134: 1.567405053e-18 | DJ134: -2.147074803e-18 | DK134: 1.169788921e-18 | DL134: 6.557717606e-19 | DM134: -2.005798225e-18 | DN134: 1.901316053e-18 | DO134: -4.180907044e-19 | DP134: -1.368313964e-18 | DQ134: 2.162482996e-18
B135: 65 | C135: 6500000000 | D135: =NH_*PI()*(2*D_/100*T_+tr_)/T_ -> 214.4136986 | E135: =NH_*PI()*tr_/T_ -> 10.21017612 | F135: 10.21017612 | G135: -0.06925510124 | H135: -0.06925510124 | I135: =(High_-Low_)/PI()/NH_*(Y_*SIN(Rad_t)-X_*SIN(Rad_tr)) -> -0.0004796269048 | J135: =-(High_-Low_)/PI()/NH_*(Y_*COS(Rad_t)-X_*COS(Rad_tr)) -> 0.0004796269048 | K135: =IF(SQRT(Re_H_^2+Im_H_^2)>1E-20, 20*LOG(SQRT(Re_H_^2+Im_H_^2)), -200) -> -63.3716293 | L135: -0.0004560272812 | M135: 0.0004560272812 | N135: =IF(SQRT(Re_H^2+Im_H^2)>1E-20, 20*LOG(SQRT(Re_H^2+Im_H^2)), -200) -> -63.80988355 | S135: V(t) | T135: 65 | U135: -8.29414662e-18 | V135: 0.0005217512124 | W135: -0.0006133553361 | X135: 0.0001992912295 | Y135: 0.0003790744449 | Z135: -0.0006449199659 | AA135: 0.0003790744449 | AB135: 0.0001992912295 | AC135: -0.0006133553361 | AD135: 0.0005217512124 | AE135: 9.486769009e-18 | AF135: -0.0005217512124 | AG135: 0.0006133553361 | AH135: -0.0001992912295 | AI135: -0.0003790744449 | AJ135: =Re_H*COS(NH_*Rad_+NH_*Ofs_)+Im_H*SIN(NH_*Rad_+NH_*Ofs_) -> 0.0006449199659 | AK135: -0.0003790744449 | AL135: -0.0001992912295 | AM135: 0.0006133553361 | AN135: -0.0005217512124 | AO135: -6.179952383e-18 | AP135: 0.0005217512124 | AQ135: -0.0006133553361 | AR135: 0.0001992912295 | AS135: 0.0003790744449 | AT135: -0.0006449199659 | AU135: 0.0003790744449 | AV135: 0.0001992912295 | AW135: -0.0006133553361 | AX135: 0.0005217512124 | AY135: -1.084202172e-17 | AZ135: =Re_H*COS(NH_*Rad_+NH_*Ofs_)+Im_H*SIN(NH_*Rad_+NH_*Ofs_) -> -0.0005217512124 | BA135: 0.0006133553361 | BB135: -0.0001992912295 | BC135: -0.0003790744449 | BD135: 0.0006449199659 | BE135: -0.0003790744449 | BF135: -0.0001992912295 | BG135: 0.0006133553361 | BH135: -0.0005217512124 | BI135: -8.67361738e-18 | BJ135: 0.0005217512124 | BK135: -0.0006133553361 | BL135: 0.0001992912295 | BM135: 0.0003790744449 | BN135: -0.0006449199659 | BO135: 0.0003790744449 | BP135: 0.0001992912295 | BQ135: -0.0006133553361 | BR135: 0.0005217512124 | BS135: -8.29414662e-18 | BT135: -0.0005217512124 | BU135: 0.0006133553361 | BV135: -0.0001992912295 | BW135: -0.0003790744449 | BX135: 0.0006449199659 | BY135: -0.0003790744449 | BZ135: -0.0001992912295 | CA135: 0.0006133553361 | CB135: -0.0005217512124 | CC135: 2.542454094e-17 | CD135: 0.0005217512124 | CE135: =Re_H*COS(NH_*Rad_+NH_*Ofs_)+Im_H*SIN(NH_*Rad_+NH_*Ofs_) -> -0.0006133553361 | CF135: 0.0001992912295 | CG135: 0.0003790744449 | CH135: -0.0006449199659 | CI135: 0.0003790744449 | CJ135: 0.0001992912295 | CK135: -0.0006133553361 | CL135: 0.0005217512124 | CM135: -5.800481623e-18 | CN135: -0.0005217512124 | CO135: 0.0006133553361 | CP135: -0.0001992912295 | CQ135: -0.0003790744449 | CR135: 0.0006449199659 | CS135: -0.0003790744449 | CT135: -0.0001992912295 | CU135: 0.0006133553361 | CV135: -0.0005217512124 | CW135: -1.376936759e-17 | CX135: 0.0005217512124 | CY135: -0.0006133553361 | CZ135: 0.0001992912295 | DA135: 0.0003790744449 | DB135: -0.0006449199659 | DC135: 0.0003790744449 | DD135: 0.0001992912295 | DE135: -0.0006133553361 | DF135: 0.0005217512124 | DG135: -3.252606517e-18 | DH135: -0.0005217512124 | DI135: 0.0006133553361 | DJ135: -0.0001992912295 | DK135: -0.0003790744449 | DL135: 0.0006449199659 | DM135: -0.0003790744449 | DN135: -0.0001992912295 | DO135: 0.0006133553361 | DP135: -0.0005217512124 | DQ135: 2.038300084e-17
B136: 66 | C136: =NH_*f_ -> 6600000000 | D136: 217.7123709 | E136: 10.36725576 | F136: =NH_*PI()*tf_/T_ -> 10.36725576 | G136: =SIN(Rad_tr)/Rad_tr -> -0.07803579012 | H136: =SIN(Rad_tf)/Rad_tf -> -0.07803579012 | I136: 2.944958038e-18 | J136: 3.982386438e-18 | K136: -346.1026386 | L136: =Re_H_*EXP(-((2*PI()*NH_*f_*0.275*Tr_filter)^2)) -> 2.79567688e-18 | M136: =Im_H_*EXP(-((2*PI()*NH_*f_*0.275*Tr_filter)^2)) -> 3.780517599e-18 | N136: -346.5544814 | S136: V(t) | T136: 66 | U136: =Re_H*COS(NH_*Rad_+NH_*Ofs_)+Im_H*SIN(NH_*Rad_+NH_*Ofs_) -> -4.701760625e-18 | V136: 2.485879067e-18 | W136: 2.037759399e-18 | X136: -4.669651242e-18 | Y136: 2.966489119e-18 | Z136: 1.490602528e-18 | AA136: -4.563898669e-18 | AB136: 3.400315865e-18 | AC136: 9.199379658e-19 | AD136: -4.386170688e-18 | AE136: 3.780517599e-18 | AF136: 3.347654319e-19 | AG136: -4.139270176e-18 | AH136: 4.101098312e-18 | AI136: -2.556865527e-19 | AJ136: -3.827090899e-18 | AK136: 4.357002254e-18 | AL136: -8.421062077e-19 | AM136: -3.454556114e-18 | AN136: 4.544193668e-18 | AO136: -1.415245345e-18 | AP136: -3.027540914e-18 | AQ136: 4.659720434e-18 | AR136: -1.966065217e-18 | AS136: -2.552779586e-18 | AT136: 4.701760625e-18 | AU136: -2.485879067e-18 | AV136: -2.037759399e-18 | AW136: 4.669651242e-18 | AX136: -2.966489119e-18 | AY136: -1.490602528e-18 | AZ136: 4.563898669e-18 | BA136: -3.400315865e-18 | BB136: -9.199379658e-19 | BC136: 4.386170688e-18 | BD136: -3.780517599e-18 | BE136: -3.347654319e-19 | BF136: 4.139270176e-18 | BG136: -4.101098312e-18 | BH136: 2.556865527e-19 | BI136: 3.827090899e-18 | BJ136: -4.357002254e-18 | BK136: 8.421062077e-19 | BL136: 3.454556114e-18 | BM136: -4.544193668e-18 | BN136: 1.415245345e-18 | BO136: 3.027540914e-18 | BP136: -4.659720434e-18 | BQ136: 1.966065217e-18 | BR136: 2.552779586e-18 | BS136: -4.701760625e-18 | BT136: 2.485879067e-18 | BU136: 2.037759399e-18 | BV136: -4.669651242e-18 | BW136: 2.966489119e-18 | BX136: 1.490602528e-18 | BY136: -4.563898669e-18 | BZ136: 3.400315865e-18 | CA136: 9.199379658e-19 | CB136: -4.386170688e-18 | CC136: 3.780517599e-18 | CD136: 3.347654319e-19 | CE136: -4.139270176e-18 | CF136: 4.101098312e-18 | CG136: -2.556865527e-19 | CH136: -3.827090899e-18 | CI136: 4.357002254e-18 | CJ136: -8.421062077e-19 | CK136: -3.454556114e-18 | CL136: 4.544193668e-18 | CM136: -1.415245345e-18 | CN136: -3.027540914e-18 | CO136: 4.659720434e-18 | CP136: -1.966065217e-18 | CQ136: -2.552779586e-18 | CR136: 4.701760625e-18 | CS136: -2.485879067e-18 | CT136: -2.037759399e-18 | CU136: 4.669651242e-18 | CV136: -2.966489119e-18 | CW136: -1.490602528e-18 | CX136: 4.563898669e-18 | CY136: -3.400315865e-18 | CZ136: -9.199379658e-19 | DA136: 4.386170688e-18 | DB136: -3.780517599e-18 | DC136: -3.347654319e-19 | DD136: 4.139270176e-18 | DE136: -4.101098312e-18 | DF136: 2.556865527e-19 | DG136: 3.827090899e-18 | DH136: -4.357002254e-18 | DI136: 8.421062077e-19 | DJ136: 3.454556114e-18 | DK136: -4.544193668e-18 | DL136: 1.415245345e-18 | DM136: 3.027540914e-18 | DN136: -4.659720434e-18 | DO136: 1.966065217e-18 | DP136: 2.552779586e-18 | DQ136: -4.701760625e-18
B137: 67 | C137: 6700000000 | D137: 221.0110432 | E137: 10.52433539 | F137: 10.52433539 | G137: -0.08466154785 | H137: -0.08466154785 | I137: -0.0007167577685 | J137: 0.0003652063242 | K137: -61.89016951 | L137: -0.0006793451447 | M137: 0.0003461436402 | N137: -62.35580816 | S137: V(t) | T137: 67 | U137: 0 | V137: 0.0006681372944 | W137: -0.0006437551927 | X137: -4.787443573e-05 | Y137: 0.0006898825633 | Z137: -0.0006168324835 | AA137: -9.555993293e-05 | AB137: 0.000708905181 | AC137: -0.0005874754182 | AD137: -0.0001428682987 | AE137: 0.0007251300738 | AF137: -0.0005557998558 | AG137: -0.0001896128286 | AH137: 0.0007384932095 | AI137: -0.0005219308053 | AJ137: -0.0002356090433 | AK137: 0.0007489418499 | AL137: -0.0004860019324 | AM137: -0.0002806754167 | AN137: 0.0007564347589 | AO137: -0.0004481550319 | AP137: -0.0003246340925 | AQ137: 0.0007609423655 | AR137: -0.0004085394682 | AS137: -0.0003673115859 | AT137: 0.0007624468803 | AU137: -0.0003673115859 | AV137: -0.0004085394682 | AW137: 0.0007609423655 | AX137: -0.0003246340925 | AY137: -0.0004481550319 | AZ137: 0.0007564347589 | BA137: -0.0002806754167 | BB137: -0.0004860019324 | BC137: 0.0007489418499 | BD137: -0.0002356090433 | BE137: -0.0005219308053 | BF137: 0.0007384932095 | BG137: -0.0001896128286 | BH137: -0.0005557998558 | BI137: 0.0007251300738 | BJ137: -0.0001428682987 | BK137: -0.0005874754182 | BL137: 0.000708905181 | BM137: -9.555993293e-05 | BN137: -0.0006168324835 | BO137: 0.0006898825633 | BP137: -4.787443573e-05 | BQ137: -0.0006437551927 | BR137: 0.0006681372944 | BS137: -1.084202172e-18 | BT137: -0.0006681372944 | BU137: 0.0006437551927 | BV137: 4.787443573e-05 | BW137: -0.0006898825633 | BX137: 0.0006168324835 | BY137: 9.555993293e-05 | BZ137: -0.000708905181 | CA137: 0.0005874754182 | CB137: 0.0001428682987 | CC137: -0.0007251300738 | CD137: 0.0005557998558 | CE137: 0.0001896128286 | CF137: -0.0007384932095 | CG137: 0.0005219308053 | CH137: 0.0002356090433 | CI137: -0.0007489418499 | CJ137: 0.0004860019324 | CK137: 0.0002806754167 | CL137: -0.0007564347589 | CM137: 0.0004481550319 | CN137: 0.0003246340925 | CO137: -0.0007609423655 | CP137: 0.0004085394682 | CQ137: 0.0003673115859 | CR137: -0.0007624468803 | CS137: 0.0003673115859 | CT137: 0.0004085394682 | CU137: -0.0007609423655 | CV137: 0.0003246340925 | CW137: 0.0004481550319 | CX137: -0.0007564347589 | CY137: 0.0002806754167 | CZ137: 0.0004860019324 | DA137: -0.0007489418499 | DB137: 0.0002356090433 | DC137: 0.0005219308053 | DD137: -0.0007384932095 | DE137: 0.0001896128286 | DF137: 0.0005557998558 | DG137: -0.0007251300738 | DH137: 0.0001428682987 | DI137: 0.0005874754182 | DJ137: -0.000708905181 | DK137: 9.555993293e-05 | DL137: 0.0006168324835 | DM137: -0.0006898825633 | DN137: 4.787443573e-05 | DO137: 0.0006437551927 | DP137: -0.0006681372944 | DQ137: 3.165870344e-17
B138: 68 | C138: 6800000000 | D138: 224.3097155 | E138: 10.68141502 | F138: 10.68141502 | G138: -0.08903843866 | H138: -0.08903843866 | I138: -2.468567767e-18 | J138: -7.519387344e-18 | K138: -342.0318283 | L138: -2.335946821e-18 | M138: -7.115416962e-18 | N138: -342.5114703 | S138: V(t) | T138: 68 | U138: 7.489010934e-18 | V138: -3.168006141e-18 | W138: -4.791268113e-18 | X138: 7.248051627e-18 | Y138: -1.380872461e-18 | Z138: -6.072157831e-18 | AA138: 6.551670579e-18 | AB138: 4.930265149e-19 | AC138: -6.97151154e-18 | AD138: 5.443623974e-18 | AE138: 2.335946821e-18 | AF138: -7.43281954e-18 | AG138: 3.993534455e-18 | AH138: 4.032090998e-18 | AI138: -7.427096152e-18 | AJ138: 2.292516478e-18 | AK138: 5.474884068e-18 | AL138: -6.954700998e-18 | AM138: 4.474512597e-19 | AN138: 6.573670037e-18 | AO138: -6.045316402e-18 | AP138: -1.425728967e-18 | AQ138: 7.259408141e-18 | AR138: -4.756082344e-18 | AS138: -3.209325399e-18 | AT138: 7.489010934e-18 | AU138: -3.168006141e-18 | AV138: -4.791268113e-18 | AW138: 7.248051627e-18 | AX138: -1.380872461e-18 | AY138: -6.072157831e-18 | AZ138: 6.551670579e-18 | BA138: 4.930265149e-19 | BB138: -6.97151154e-18 | BC138: 5.443623974e-18 | BD138: 2.335946821e-18 | BE138: -7.43281954e-18 | BF138: 3.993534455e-18 | BG138: 4.032090998e-18 | BH138: -7.427096152e-18 | BI138: 2.292516478e-18 | BJ138: 5.474884068e-18 | BK138: -6.954700998e-18 | BL138: 4.474512597e-19 | BM138: 6.573670037e-18 | BN138: -6.045316402e-18 | BO138: -1.425728967e-18 | BP138: 7.259408141e-18 | BQ138: -4.756082344e-18 | BR138: -3.209325399e-18 | BS138: 7.489010934e-18 | BT138: -3.168006141e-18 | BU138: -4.791268113e-18 | BV138: 7.248051627e-18 | BW138: -1.380872461e-18 | BX138: -6.072157831e-18 | BY138: 6.551670579e-18 | BZ138: 4.930265149e-19 | CA138: -6.97151154e-18 | CB138: 5.443623974e-18 | CC138: 2.335946821e-18 | CD138: -7.43281954e-18 | CE138: 3.993534455e-18 | CF138: 4.032090998e-18 | CG138: -7.427096152e-18 | CH138: 2.292516478e-18 | CI138: 5.474884068e-18 | CJ138: -6.954700998e-18 | CK138: 4.474512597e-19 | CL138: 6.573670037e-18 | CM138: -6.045316402e-18 | CN138: -1.425728967e-18 | CO138: 7.259408141e-18 | CP138: -4.756082344e-18 | CQ138: -3.209325399e-18 | CR138: 7.489010934e-18 | CS138: -3.168006141e-18 | CT138: -4.791268113e-18 | CU138: 7.248051627e-18 | CV138: -1.380872461e-18 | CW138: -6.072157831e-18 | CX138: 6.551670579e-18 | CY138: 4.930265149e-19 | CZ138: -6.97151154e-18 | DA138: 5.443623974e-18 | DB138: 2.335946821e-18 | DC138: -7.43281954e-18 | DD138: 3.993534455e-18 | DE138: 4.032090998e-18 | DF138: -7.427096152e-18 | DG138: 2.292516478e-18 | DH138: 5.474884068e-18 | DI138: -6.954700998e-18 | DJ138: 4.474512597e-19 | DK138: 6.573670037e-18 | DL138: -6.045316402e-18 | DM138: -1.425728967e-18 | DN138: 7.259408141e-18 | DO138: -4.756082344e-18 | DP138: -3.209325399e-18 | DQ138: 7.489010934e-18
B139: 69 | C139: 6900000000 | D139: 227.6083878 | E139: 10.83849465 | F139: 10.83849465 | G139: -0.09112781544 | H139: -0.09112781544 | I139: -0.0008304278747 | J139: 0.0001315268542 | K139: -61.50636017 | L139: -0.0007845294913 | M139: 0.0001242572644 | N139: -62.00021306 | S139: V(t) | T139: 69 | U139: -1.466383438e-17 | V139: 0.0007385295984 | W139: -0.0005437417561 | X139: -0.0003382002169 | Y139: 0.0007927413632 | Z139: -0.0002454549026 | AA139: -0.0006120254108 | AB139: 0.0006960580637 | AC139: 9.95532841e-05 | AD139: -0.0007693540801 | AE139: 0.0004668829691 | AF139: 0.0004256119118 | AG139: -0.0007802393584 | AH139: 0.0001488386178 | AI139: 0.0006706570592 | AJ139: -0.0006426092776 | AK139: -0.0001975365534 | AL139: 0.0007880453884 | AM139: -0.0003826611587 | AN139: -0.0005063114526 | AO139: 0.0007554325127 | AP139: -4.987505909e-05 | AQ139: -0.0007187120451 | AR139: 0.0005790261593 | AS139: 0.0002924045533 | AT139: -0.0007943087501 | AU139: 0.0002924045533 | AV139: 0.0005790261593 | AW139: -0.0007187120451 | AX139: -4.987505909e-05 | AY139: 0.0007554325127 | AZ139: -0.0005063114526 | BA139: -0.0003826611587 | BB139: 0.0007880453884 | BC139: -0.0001975365534 | BD139: -0.0006426092776 | BE139: 0.0006706570592 | BF139: 0.0001488386178 | BG139: -0.0007802393584 | BH139: 0.0004256119118 | BI139: 0.0004668829691 | BJ139: -0.0007693540801 | BK139: 9.95532841e-05 | BL139: 0.0006960580637 | BM139: -0.0006120254108 | BN139: -0.0002454549026 | BO139: 0.0007927413632 | BP139: -0.0003382002169 | BQ139: -0.0005437417561 | BR139: 0.0007385295984 | BS139: 7.941780913e-18 | BT139: -0.0007385295984 | BU139: 0.0005437417561 | BV139: 0.0003382002169 | BW139: -0.0007927413632 | BX139: 0.0002454549026 | BY139: 0.0006120254108 | BZ139: -0.0006960580637 | CA139: -9.95532841e-05 | CB139: 0.0007693540801 | CC139: -0.0004668829691 | CD139: -0.0004256119118 | CE139: 0.0007802393584 | CF139: -0.0001488386178 | CG139: -0.0006706570592 | CH139: 0.0006426092776 | CI139: 0.0001975365534 | CJ139: -0.0007880453884 | CK139: 0.0003826611587 | CL139: 0.0005063114526 | CM139: -0.0007554325127 | CN139: 4.987505909e-05 | CO139: 0.0007187120451 | CP139: -0.0005790261593 | CQ139: -0.0002924045533 | CR139: 0.0007943087501 | CS139: -0.0002924045533 | CT139: -0.0005790261593 | CU139: 0.0007187120451 | CV139: 4.987505909e-05 | CW139: -0.0007554325127 | CX139: 0.0005063114526 | CY139: 0.0003826611587 | CZ139: -0.0007880453884 | DA139: 0.0001975365534 | DB139: 0.0006426092776 | DC139: -0.0006706570592 | DD139: -0.0001488386178 | DE139: 0.0007802393584 | DF139: -0.0004256119118 | DG139: -0.0004668829691 | DH139: 0.0007693540801 | DI139: -9.95532841e-05 | DJ139: -0.0006960580637 | DK139: 0.0006120254108 | DL139: 0.0002454549026 | DM139: -0.0007927413632 | DN139: 0.0003382002169 | DO139: 0.0005437417561 | DP139: -0.0007385295984 | DQ139: -2.664426839e-17
B140: 70 | C140: 7000000000 | D140: 230.90706 | E140: 10.99557429 | F140: 10.99557429 | G140: -0.09094568177 | H140: -0.09094568177 | I140: 0 | J140: -1.015827608e-17 | K140: -339.8635998 | L140: 0 | M140: -9.580903186e-18 | N140: -340.371871 | S140: V(t) | T140: 70 | U140: 9.580903186e-18 | V140: -2.960661906e-18 | W140: -7.751113499e-18 | X140: 7.751113499e-18 | Y140: 2.960661906e-18 | Z140: -9.580903186e-18 | AA140: 2.960661906e-18 | AB140: 7.751113499e-18 | AC140: -7.751113499e-18 | AD140: -2.960661906e-18 | AE140: 9.580903186e-18 | AF140: -2.960661906e-18 | AG140: -7.751113499e-18 | AH140: 7.751113499e-18 | AI140: 2.960661906e-18 | AJ140: -9.580903186e-18 | AK140: 2.960661906e-18 | AL140: 7.751113499e-18 | AM140: -7.751113499e-18 | AN140: -2.960661906e-18 | AO140: 9.580903186e-18 | AP140: -2.960661906e-18 | AQ140: -7.751113499e-18 | AR140: 7.751113499e-18 | AS140: 2.960661906e-18 | AT140: -9.580903186e-18 | AU140: 2.960661906e-18 | AV140: 7.751113499e-18 | AW140: -7.751113499e-18 | AX140: -2.960661906e-18 | AY140: 9.580903186e-18 | AZ140: -2.960661906e-18 | BA140: -7.751113499e-18 | BB140: 7.751113499e-18 | BC140: 2.960661906e-18 | BD140: -9.580903186e-18 | BE140: 2.960661906e-18 | BF140: 7.751113499e-18 | BG140: -7.751113499e-18 | BH140: -2.960661906e-18 | BI140: 9.580903186e-18 | BJ140: -2.960661906e-18 | BK140: -7.751113499e-18 | BL140: 7.751113499e-18 | BM140: 2.960661906e-18 | BN140: -9.580903186e-18 | BO140: 2.960661906e-18 | BP140: 7.751113499e-18 | BQ140: -7.751113499e-18 | BR140: -2.960661906e-18 | BS140: 9.580903186e-18 | BT140: -2.960661906e-18 | BU140: -7.751113499e-18 | BV140: 7.751113499e-18 | BW140: 2.960661906e-18 | BX140: -9.580903186e-18 | BY140: 2.960661906e-18 | BZ140: 7.751113499e-18 | CA140: -7.751113499e-18 | CB140: -2.960661906e-18 | CC140: 9.580903186e-18 | CD140: -2.960661906e-18 | CE140: -7.751113499e-18 | CF140: 7.751113499e-18 | CG140: 2.960661906e-18 | CH140: -9.580903186e-18 | CI140: 2.960661906e-18 | CJ140: 7.751113499e-18 | CK140: -7.751113499e-18 | CL140: -2.960661906e-18 | CM140: 9.580903186e-18 | CN140: -2.960661906e-18 | CO140: -7.751113499e-18 | CP140: 7.751113499e-18 | CQ140: 2.960661906e-18 | CR140: -9.580903186e-18 | CS140: 2.960661906e-18 | CT140: 7.751113499e-18 | CU140: -7.751113499e-18 | CV140: -2.960661906e-18 | CW140: 9.580903186e-18 | CX140: -2.960661906e-18 | CY140: -7.751113499e-18 | CZ140: 7.751113499e-18 | DA140: 2.960661906e-18 | DB140: -9.580903186e-18 | DC140: 2.960661906e-18 | DD140: 7.751113499e-18 | DE140: -7.751113499e-18 | DF140: -2.960661906e-18 | DG140: 9.580903186e-18 | DH140: -2.960661906e-18 | DI140: -7.751113499e-18 | DJ140: 7.751113499e-18 | DK140: 2.960661906e-18 | DL140: -9.580903186e-18 | DM140: 2.960661906e-18 | DN140: 7.751113499e-18 | DO140: -7.751113499e-18 | DP140: -2.960661906e-18 | DQ140: 9.580903186e-18
B141: 71 | C141: 7100000000 | D141: 234.2057323 | E141: 11.15265392 | F141: 11.15265392 | G141: -0.08856083473 | H141: -0.08856083473 | I141: -0.0007843021447 | J141: -0.0001242212562 | K141: -62.00273049 | L141: -0.0007384796879 | M141: -0.0001169636921 | N141: -62.52562745 | S141: V(t) | T141: 71 | U141: -3.916680348e-18 | V141: 0.0007241950332 | W141: -0.0003601999622 | X141: -0.0005450388573 | Y141: 0.000631291266 | Z141: 0.0002310473499 | AA141: -0.0007462095447 | AB141: 0.0001401021851 | AC141: 0.0006765255515 | AD141: -0.0004765923112 | AE141: -0.0004394781753 | AF141: 0.0006951798669 | AG141: 9.370976998e-05 | AH141: -0.0007417892111 | AI141: 0.0002752411805 | AJ141: 0.0006048898149 | AK141: -0.0005761011401 | AL141: -0.0003183487599 | AM141: 0.0007344413744 | AN141: -4.694752521e-05 | AO141: -0.000711090625 | AP141: 0.0004006296198 | AQ141: 0.0005118255551 | AR141: -0.0006552012989 | AS141: -0.0001859416809 | AT141: 0.0007476849301 | AU141: -0.0001859416809 | AV141: -0.0006552012989 | AW141: 0.0005118255551 | AX141: 0.0004006296198 | AY141: -0.000711090625 | AZ141: -4.694752521e-05 | BA141: 0.0007344413744 | BB141: -0.0003183487599 | BC141: -0.0005761011401 | BD141: 0.0006048898149 | BE141: 0.0002752411805 | BF141: -0.0007417892111 | BG141: 9.370976998e-05 | BH141: 0.0006951798669 | BI141: -0.0004394781753 | BJ141: -0.0004765923112 | BK141: 0.0006765255515 | BL141: 0.0001401021851 | BM141: -0.0007462095447 | BN141: 0.0002310473499 | BO141: 0.000631291266 | BP141: -0.0005450388573 | BQ141: -0.0003601999622 | BR141: 0.0007241950332 | BS141: -5.244828009e-18 | BT141: -0.0007241950332 | BU141: 0.0003601999622 | BV141: 0.0005450388573 | BW141: -0.000631291266 | BX141: -0.0002310473499 | BY141: 0.0007462095447 | BZ141: -0.0001401021851 | CA141: -0.0006765255515 | CB141: 0.0004765923112 | CC141: 0.0004394781753 | CD141: -0.0006951798669 | CE141: -9.370976998e-05 | CF141: 0.0007417892111 | CG141: -0.0002752411805 | CH141: -0.0006048898149 | CI141: 0.0005761011401 | CJ141: 0.0003183487599 | CK141: -0.0007344413744 | CL141: 4.694752521e-05 | CM141: 0.000711090625 | CN141: -0.0004006296198 | CO141: -0.0005118255551 | CP141: 0.0006552012989 | CQ141: 0.0001859416809 | CR141: -0.0007476849301 | CS141: 0.0001859416809 | CT141: 0.0006552012989 | CU141: -0.0005118255551 | CV141: -0.0004006296198 | CW141: 0.000711090625 | CX141: 4.694752521e-05 | CY141: -0.0007344413744 | CZ141: 0.0003183487599 | DA141: 0.0005761011401 | DB141: -0.0006048898149 | DC141: -0.0002752411805 | DD141: 0.0007417892111 | DE141: -9.370976998e-05 | DF141: -0.0006951798669 | DG141: 0.0004394781753 | DH141: 0.0004765923112 | DI141: -0.0006765255515 | DJ141: -0.0001401021851 | DK141: 0.0007462095447 | DL141: -0.0002310473499 | DM141: -0.000631291266 | DN141: 0.0005450388573 | DO141: 0.0003601999622 | DP141: -0.0007241950332 | DQ141: -1.745565498e-17
B142: 72 | C142: 7200000000 | D142: 237.5044046 | E142: 11.30973355 | F142: 11.30973355 | G142: -0.08409185874 | H142: -0.08409185874 | I142: 1.227065849e-19 | J142: -5.981946015e-19 | K142: -364.2841497 | L142: 1.153403753e-19 | M142: -5.622843295e-19 | N142: -364.8218799 | S142: V(t) | T142: 72 | U142: 5.704063117e-19 | V142: -4.395796877e-20 | W142: -5.539325077e-19 | X142: 2.515511717e-19 | Y142: 4.596605292e-19 | Z142: -4.238147602e-19 | AA142: -3.008305954e-19 | AB142: 5.365548251e-19 | AC142: 9.974989847e-20 | AD142: -5.739373593e-19 | AE142: 1.153403753e-19 | AF142: 5.30712097e-19 | AG142: -3.142314361e-19 | AH142: -4.129498978e-19 | AI142: 4.689896255e-19 | AJ142: 2.371901127e-19 | AK142: -5.578796158e-19 | AL142: -2.811768116e-20 | AM142: 5.684170719e-19 | AN142: -1.849037952e-19 | AO142: -4.991220395e-19 | AP142: 3.71956083e-19 | AQ142: 3.597267999e-19 | AR142: -5.067682443e-19 | AS142: -1.698090003e-19 | AT142: 5.704063117e-19 | AU142: -4.395796877e-20 | AV142: -5.539325077e-19 | AW142: 2.515511717e-19 | AX142: 4.596605292e-19 | AY142: -4.238147602e-19 | AZ142: -3.008305954e-19 | BA142: 5.365548251e-19 | BB142: 9.974989847e-20 | BC142: -5.739373593e-19 | BD142: 1.153403753e-19 | BE142: 5.30712097e-19 | BF142: -3.142314361e-19 | BG142: -4.129498978e-19 | BH142: 4.689896255e-19 | BI142: 2.371901127e-19 | BJ142: -5.578796158e-19 | BK142: -2.811768116e-20 | BL142: 5.684170719e-19 | BM142: -1.849037952e-19 | BN142: -4.991220395e-19 | BO142: 3.71956083e-19 | BP142: 3.597267999e-19 | BQ142: -5.067682443e-19 | BR142: -1.698090003e-19 | BS142: 5.704063117e-19 | BT142: -4.395796877e-20 | BU142: -5.539325077e-19 | BV142: 2.515511717e-19 | BW142: 4.596605292e-19 | BX142: -4.238147602e-19 | BY142: -3.008305954e-19 | BZ142: 5.365548251e-19 | CA142: 9.974989847e-20 | CB142: -5.739373593e-19 | CC142: 1.153403753e-19 | CD142: 5.30712097e-19 | CE142: -3.142314361e-19 | CF142: -4.129498978e-19 | CG142: 4.689896255e-19 | CH142: 2.371901127e-19 | CI142: -5.578796158e-19 | CJ142: -2.811768116e-20 | CK142: 5.684170719e-19 | CL142: -1.849037952e-19 | CM142: -4.991220395e-19 | CN142: 3.71956083e-19 | CO142: 3.597267999e-19 | CP142: -5.067682443e-19 | CQ142: -1.698090003e-19 | CR142: 5.704063117e-19 | CS142: -4.395796877e-20 | CT142: -5.539325077e-19 | CU142: 2.515511717e-19 | CV142: 4.596605292e-19 | CW142: -4.238147602e-19 | CX142: -3.008305954e-19 | CY142: 5.365548251e-19 | CZ142: 9.974989847e-20 | DA142: -5.739373593e-19 | DB142: 1.153403753e-19 | DC142: 5.30712097e-19 | DD142: -3.142314361e-19 | DE142: -4.129498978e-19 | DF142: 4.689896255e-19 | DG142: 2.371901127e-19 | DH142: -5.578796158e-19 | DI142: -2.811768116e-20 | DJ142: 5.684170719e-19 | DK142: -1.849037952e-19 | DL142: -4.991220395e-19 | DM142: 3.71956083e-19 | DN142: 3.597267999e-19 | DO142: -5.067682443e-19 | DP142: -1.698090003e-19 | DQ142: 5.704063117e-19
B143: 73 | C143: 7300000000 | D143: 240.8030769 | E143: 11.46681319 | F143: 11.46681319 | G143: -0.07770306447 | H143: -0.07770306447 | I143: -0.0006037766228 | J143: -0.0003076395551 | K143: -63.3800918 | L143: -0.0005665493566 | M143: -0.0002886713156 | N143: -63.93286267 | S143: V(t) | T143: 73 | U143: -6.776263578e-18 | V143: 0.0006308393154 | W143: -0.0001581302625 | X143: -0.0005912013611 | Y143: 0.0003063246191 | Z143: 0.0005144160511 | AA143: -0.0004352714732 | AB143: -0.0004053080886 | AC143: 0.0005368686199 | AD143: 0.0002707331284 | AE143: -0.0006047323367 | AF143: -0.00011914701 | AG143: 0.0006345984968 | AH143: -3.992555326e-05 | AI143: -0.0006245904994 | AJ143: 0.0001964894472 | AK143: 0.0005753371839 | AL143: -0.0003407071864 | AM143: -0.0004899333171 | AN143: 0.0004635170402 | AO143: 0.0003737451382 | AP143: -0.0005572024136 | AQ143: -0.0002340731777 | AR143: 0.0006158767101 | AS143: 7.969353861e-05 | AT143: -0.0006358532078 | AU143: 7.969353861e-05 | AV143: 0.0006158767101 | AW143: -0.0002340731777 | AX143: -0.0005572024136 | AY143: 0.0003737451382 | AZ143: 0.0004635170402 | BA143: -0.0004899333171 | BB143: -0.0003407071864 | BC143: 0.0005753371839 | BD143: 0.0001964894472 | BE143: -0.0006245904994 | BF143: -3.992555326e-05 | BG143: 0.0006345984968 | BH143: -0.00011914701 | BI143: -0.0006047323367 | BJ143: 0.0002707331284 | BK143: 0.0005368686199 | BL143: -0.0004053080886 | BM143: -0.0004352714732 | BN143: 0.0005144160511 | BO143: 0.0003063246191 | BP143: -0.0005912013611 | BQ143: -0.0001581302625 | BR143: 0.0006308393154 | BS143: -5.692061406e-18 | BT143: -0.0006308393154 | BU143: 0.0001581302625 | BV143: 0.0005912013611 | BW143: -0.0003063246191 | BX143: -0.0005144160511 | BY143: 0.0004352714732 | BZ143: 0.0004053080886 | CA143: -0.0005368686199 | CB143: -0.0002707331284 | CC143: 0.0006047323367 | CD143: 0.00011914701 | CE143: -0.0006345984968 | CF143: 3.992555326e-05 | CG143: 0.0006245904994 | CH143: -0.0001964894472 | CI143: -0.0005753371839 | CJ143: 0.0003407071864 | CK143: 0.0004899333171 | CL143: -0.0004635170402 | CM143: -0.0003737451382 | CN143: 0.0005572024136 | CO143: 0.0002340731777 | CP143: -0.0006158767101 | CQ143: -7.969353861e-05 | CR143: 0.0006358532078 | CS143: -7.969353861e-05 | CT143: -0.0006158767101 | CU143: 0.0002340731777 | CV143: 0.0005572024136 | CW143: -0.0003737451382 | CX143: -0.0004635170402 | CY143: 0.0004899333171 | CZ143: 0.0003407071864 | DA143: -0.0005753371839 | DB143: -0.0001964894472 | DC143: 0.0006245904994 | DD143: 3.992555326e-05 | DE143: -0.0006345984968 | DF143: 0.00011914701 | DG143: 0.0006047323367 | DH143: -0.0002707331284 | DI143: -0.0005368686199 | DJ143: 0.0004053080886 | DK143: 0.0004352714732 | DL143: -0.0005144160511 | DM143: -0.0003063246191 | DN143: 0.0005912013611 | DO143: 0.0001581302625 | DP143: -0.0006308393154 | DQ143: 1.816038639e-17
B144: 74 | C144: 7400000000 | D144: 244.1017492 | E144: 11.62389282 | F144: 11.62389282 | G144: -0.06959948849 | H144: -0.06959948849 | I144: 6.297832562e-18 | J144: -8.655788829e-18 | K144: -339.4087081 | L144: 5.899159791e-18 | M144: -8.107849949e-18 | N144: -339.9767271 | S144: V(t) | T144: 74 | U144: 1.002682752e-17 | V144: -6.364220958e-19 | W144: -9.946904975e-18 | X144: 1.885564758e-18 | Y144: 9.710113793e-18 | Z144: -3.104970937e-18 | AA144: -9.320188317e-18 | AB144: 4.27540987e-18 | AC144: 8.783277903e-18 | AD144: -5.378423036e-18 | AE144: -8.107849949e-18 | AF144: 6.396615257e-18 | AG144: 7.304556359e-18 | AH144: -7.313929034e-18 | AI144: -6.386065551e-18 | AJ144: 8.115897782e-18 | AK144: 5.366862675e-18 | AL144: -8.789873973e-18 | AM144: -4.263021168e-18 | AN144: 9.325228601e-18 | AO144: 3.091949271e-18 | AP144: -9.713518803e-18 | AQ144: -1.872115487e-18 | AR144: 9.948621011e-18 | AS144: 6.22757323e-19 | AT144: -1.002682752e-17 | AU144: 6.364220958e-19 | AV144: 9.946904975e-18 | AW144: -1.885564758e-18 | AX144: -9.710113793e-18 | AY144: 3.104970937e-18 | AZ144: 9.320188317e-18 | BA144: -4.27540987e-18 | BB144: -8.783277903e-18 | BC144: 5.378423036e-18 | BD144: 8.107849949e-18 | BE144: -6.396615257e-18 | BF144: -7.304556359e-18 | BG144: 7.313929034e-18 | BH144: 6.386065551e-18 | BI144: -8.115897782e-18 | BJ144: -5.366862675e-18 | BK144: 8.789873973e-18 | BL144: 4.263021168e-18 | BM144: -9.325228601e-18 | BN144: -3.091949271e-18 | BO144: 9.713518803e-18 | BP144: 1.872115487e-18 | BQ144: -9.948621011e-18 | BR144: -6.22757323e-19 | BS144: 1.002682752e-17 | BT144: -6.364220958e-19 | BU144: -9.946904975e-18 | BV144: 1.885564758e-18 | BW144: 9.710113793e-18 | BX144: -3.104970937e-18 | BY144: -9.320188317e-18 | BZ144: 4.27540987e-18 | CA144: 8.783277903e-18 | CB144: -5.378423036e-18 | CC144: -8.107849949e-18 | CD144: 6.396615257e-18 | CE144: 7.304556359e-18 | CF144: -7.313929034e-18 | CG144: -6.386065551e-18 | CH144: 8.115897782e-18 | CI144: 5.366862675e-18 | CJ144: -8.789873973e-18 | CK144: -4.263021168e-18 | CL144: 9.325228601e-18 | CM144: 3.091949271e-18 | CN144: -9.713518803e-18 | CO144: -1.872115487e-18 | CP144: 9.948621011e-18 | CQ144: 6.22757323e-19 | CR144: -1.002682752e-17 | CS144: 6.364220958e-19 | CT144: 9.946904975e-18 | CU144: -1.885564758e-18 | CV144: -9.710113793e-18 | CW144: 3.104970937e-18 | CX144: 9.320188317e-18 | CY144: -4.27540987e-18 | CZ144: -8.783277903e-18 | DA144: 5.378423036e-18 | DB144: 8.107849949e-18 | DC144: -6.396615257e-18 | DD144: -7.304556359e-18 | DE144: 7.313929034e-18 | DF144: 6.386065551e-18 | DG144: -8.115897782e-18 | DH144: -5.366862675e-18 | DI144: 8.789873973e-18 | DJ144: 4.263021168e-18 | DK144: -9.325228601e-18 | DL144: -3.091949271e-18 | DM144: 9.713518803e-18 | DN144: 1.872115487e-18 | DO144: -9.948621011e-18 | DP144: -6.22757323e-19 | DQ144: 1.002682752e-17
B145: 75 | C145: 7500000000 | D145: 247.4004215 | E145: 11.78097245 | F145: 11.78097245 | G145: -0.06002108774 | H145: -0.06002108774 | I145: -0.0003602530974 | J145: -0.0003602530974 | K145: -65.85754557 | L145: -0.0003368480161 | M145: -0.0003368480161 | N145: -66.44102017 | S145: V(t) | T145: 75 | U145: -1.198043401e-17 | V145: 0.0004763750328 | W145: 1.181780368e-17 | X145: -0.0004763750328 | Y145: -1.160096325e-17 | Z145: 0.0004763750328 | AA145: 1.143833292e-17 | AB145: -0.0004763750328 | AC145: -1.295621596e-17 | AD145: 0.0004763750328 | AE145: 1.105886216e-17 | AF145: -0.0004763750328 | AG145: -9.215718466e-18 | AH145: 0.0004763750328 | AI145: 1.414883835e-17 | AJ145: -0.0004763750328 | AK145: -1.22785896e-17 | AL145: 0.0004763750328 | AM145: 1.040834086e-17 | AN145: -0.0004763750328 | AO145: -8.538092108e-18 | AP145: 0.0004763750328 | AQ145: 1.338989683e-17 | AR145: -0.0004763750328 | AS145: -1.154675314e-17 | AT145: 0.0004763750328 | AU145: 9.703609444e-18 | AV145: -0.0004763750328 | AW145: -7.833360696e-18 | AX145: 0.0004763750328 | AY145: -7.589415207e-18 | AZ145: -0.0004763750328 | BA145: -4.119968255e-18 | BB145: 0.0004763750328 | BC145: 1.577514161e-17 | BD145: -0.0004763750328 | BE145: -3.794707604e-19 | BF145: 0.0004763750328 | BG145: -1.490777987e-18 | BH145: -0.0004763750328 | BI145: 3.361026735e-18 | BJ145: 0.0004763750328 | BK145: 8.29414662e-18 | BL145: -0.0004763750328 | BM145: -6.451002926e-18 | BN145: 0.0004763750328 | BO145: -8.971772977e-18 | BP145: -0.0004763750328 | BQ145: -2.710505431e-18 | BR145: 0.0004763750328 | BS145: 8.131516294e-19 | BT145: -0.0004763750328 | BU145: -1.249543004e-17 | BV145: 0.0004763750328 | BW145: -2.927345866e-18 | BX145: -0.0004763750328 | BY145: -8.754932543e-18 | BZ145: 0.0004763750328 | CA145: 2.043721095e-17 | CB145: -0.0004763750328 | CC145: 2.206351421e-17 | CD145: 0.0004763750328 | CE145: -1.03812358e-17 | CF145: -0.0004763750328 | CG145: -1.273937553e-18 | CH145: 0.0004763750328 | CI145: 1.295621596e-17 | CJ145: -0.0004763750328 | CK145: -2.461138932e-17 | CL145: 0.0004763750328 | CM145: 9.215718466e-18 | CN145: -0.0004763750328 | CO145: 6.179952383e-18 | CP145: 0.0004763750328 | CQ145: 5.475220971e-18 | CR145: -0.0004763750328 | CS145: 9.920449878e-18 | CT145: 0.0004763750328 | CU145: 1.734723476e-18 | CV145: -0.0004763750328 | CW145: 1.366094737e-17 | CX145: 0.0004763750328 | CY145: -2.908372328e-17 | CZ145: -0.0004763750328 | DA145: -9.703609444e-18 | DB145: 0.0004763750328 | DC145: -5.71916646e-18 | DD145: -0.0004763750328 | DE145: -5.963111949e-18 | DF145: 0.0004763750328 | DG145: -9.459663955e-18 | DH145: -0.0004763750328 | DI145: 2.482822975e-17 | DJ145: 0.0004763750328 | DK145: 1.393199792e-17 | DL145: -0.0004763750328 | DM145: 1.490777987e-18 | DN145: 0.0004763750328 | DO145: -1.691355389e-17 | DP145: -0.0004763750328 | DQ145: 5.231275482e-18
B146: 76 | C146: 7600000000 | D146: 250.6990938 | E146: 11.93805208 | F146: 11.93805208 | G146: -0.04923627809 | H146: -0.04923627809 | I146: 6.88771436e-18 | J146: -4.96961669e-18 | K146: -341.4183771 | L146: 6.428627267e-18 | M146: -4.638376635e-18 | N146: -342.0175148 | S146: V(t) | T146: 76 | U146: 7.92723809e-18 | V146: 4.716801779e-19 | W146: -7.868004003e-18 | X146: -1.459752296e-18 | Y146: 7.684686793e-18 | Z146: 2.424803248e-18 | AA146: -7.380177482e-18 | AB146: -3.351613605e-18 | AC146: 6.959278363e-18 | AD146: 4.225567013e-18 | AE146: -6.428627267e-18 | AF146: -5.032880705e-18 | AG146: 5.796592878e-18 | AH146: 5.760822861e-18 | AI146: -5.073142758e-18 | AJ146: -6.3979134e-18 | AK146: 4.269686145e-18 | AL146: 6.934105023e-18 | AM146: -3.398894031e-18 | AN146: -7.360941667e-18 | AO146: 2.474499328e-18 | AP146: 7.671691863e-18 | AQ146: -1.511080293e-18 | AR146: -7.861454897e-18 | AS146: 5.238306183e-19 | AT146: 7.92723809e-18 | AU146: 4.716801779e-19 | AV146: -7.868004003e-18 | AW146: -1.459752296e-18 | AX146: 7.684686793e-18 | AY146: 2.424803248e-18 | AZ146: -7.380177482e-18 | BA146: -3.351613605e-18 | BB146: 6.959278363e-18 | BC146: 4.225567013e-18 | BD146: -6.428627267e-18 | BE146: -5.032880705e-18 | BF146: 5.796592878e-18 | BG146: 5.760822861e-18 | BH146: -5.073142758e-18 | BI146: -6.3979134e-18 | BJ146: 4.269686145e-18 | BK146: 6.934105023e-18 | BL146: -3.398894031e-18 | BM146: -7.360941667e-18 | BN146: 2.474499328e-18 | BO146: 7.671691863e-18 | BP146: -1.511080293e-18 | BQ146: -7.861454897e-18 | BR146: 5.238306183e-19 | BS146: 7.92723809e-18 | BT146: 4.716801779e-19 | BU146: -7.868004003e-18 | BV146: -1.459752296e-18 | BW146: 7.684686793e-18 | BX146: 2.424803248e-18 | BY146: -7.380177482e-18 | BZ146: -3.351613605e-18 | CA146: 6.959278363e-18 | CB146: 4.225567013e-18 | CC146: -6.428627267e-18 | CD146: -5.032880705e-18 | CE146: 5.796592878e-18 | CF146: 5.760822861e-18 | CG146: -5.073142758e-18 | CH146: -6.3979134e-18 | CI146: 4.269686145e-18 | CJ146: 6.934105023e-18 | CK146: -3.398894031e-18 | CL146: -7.360941667e-18 | CM146: 2.474499328e-18 | CN146: 7.671691863e-18 | CO146: -1.511080293e-18 | CP146: -7.861454897e-18 | CQ146: 5.238306183e-19 | CR146: 7.92723809e-18 | CS146: 4.716801779e-19 | CT146: -7.868004003e-18 | CU146: -1.459752296e-18 | CV146: 7.684686793e-18 | CW146: 2.424803248e-18 | CX146: -7.380177482e-18 | CY146: -3.351613605e-18 | CZ146: 6.959278363e-18 | DA146: 4.225567013e-18 | DB146: -6.428627267e-18 | DC146: -5.032880705e-18 | DD146: 5.796592878e-18 | DE146: 5.760822861e-18 | DF146: -5.073142758e-18 | DG146: -6.3979134e-18 | DH146: 4.269686145e-18 | DI146: 6.934105023e-18 | DJ146: -3.398894031e-18 | DK146: -7.360941667e-18 | DL146: 2.474499328e-18 | DM146: 7.671691863e-18 | DN146: -1.511080293e-18 | DO146: -7.861454897e-18 | DP146: 5.238306183e-19 | DQ146: 7.92723809e-18
B147: 77 | C147: 7700000000 | D147: 253.997766 | E147: 12.09513172 | F147: 12.09513172 | G147: -0.03753497774 | H147: -0.03753497774 | I147: -0.0001408874554 | J147: -0.0002765072001 | K147: -70.16348879 | L147: -0.0001312568319 | M147: -0.0002576060372 | N147: -70.77849694 | S147: V(t) | T147: 77 | U147: -4.404571326e-18 | V147: 0.0002868382326 | W147: 7.190072641e-05 | X147: -0.0002688151316 | Y147: -0.0001392836658 | Z147: 0.0002339013871 | AA147: 0.0001979149001 | AB147: -0.0001842907583 | AC147: -0.0002441104134 | AD147: 0.0001231004634 | AE147: 0.0002749675717 | AF147: -5.417531364e-05 | AG147: -0.0002885475062 | AH147: -1.815387034e-05 | AI147: 0.0002839969396 | AJ147: 8.934237987e-05 | AK147: -0.0002616018009 | AL147: -0.0001549171791 | AM147: 0.0002227692589 | AN147: 0.0002107579622 | AO147: -0.0001699393051 | AP147: -0.0002533560475 | AQ147: 0.0001064314398 | AR147: 0.0002800348405 | AS147: -3.623609564e-05 | AT147: -0.0002891180145 | AU147: -3.623609564e-05 | AV147: 0.0002800348405 | AW147: 0.0001064314398 | AX147: -0.0002533560475 | AY147: -0.0001699393051 | AZ147: 0.0002107579622 | BA147: 0.0002227692589 | BB147: -0.0001549171791 | BC147: -0.0002616018009 | BD147: 8.934237987e-05 | BE147: 0.0002839969396 | BF147: -1.815387034e-05 | BG147: -0.0002885475062 | BH147: -5.417531364e-05 | BI147: 0.0002749675717 | BJ147: 0.0001231004634 | BK147: -0.0002441104134 | BL147: -0.0001842907583 | BM147: 0.0001979149001 | BN147: 0.0002339013871 | BO147: -0.0001392836658 | BP147: -0.0002688151316 | BQ147: 7.190072641e-05 | BR147: 0.0002868382326 | BS147: 3.754050022e-18 | BT147: -0.0002868382326 | BU147: -7.190072641e-05 | BV147: 0.0002688151316 | BW147: 0.0001392836658 | BX147: -0.0002339013871 | BY147: -0.0001979149001 | BZ147: 0.0001842907583 | CA147: 0.0002441104134 | CB147: -0.0001231004634 | CC147: -0.0002749675717 | CD147: 5.417531364e-05 | CE147: 0.0002885475062 | CF147: 1.815387034e-05 | CG147: -0.0002839969396 | CH147: -8.934237987e-05 | CI147: 0.0002616018009 | CJ147: 0.0001549171791 | CK147: -0.0002227692589 | CL147: -0.0002107579622 | CM147: 0.0001699393051 | CN147: 0.0002533560475 | CO147: -0.0001064314398 | CP147: -0.0002800348405 | CQ147: 3.623609564e-05 | CR147: 0.0002891180145 | CS147: 3.623609564e-05 | CT147: -0.0002800348405 | CU147: -0.0001064314398 | CV147: 0.0002533560475 | CW147: 0.0001699393051 | CX147: -0.0002107579622 | CY147: -0.0002227692589 | CZ147: 0.0001549171791 | DA147: 0.0002616018009 | DB147: -8.934237987e-05 | DC147: -0.0002839969396 | DD147: 1.815387034e-05 | DE147: 0.0002885475062 | DF147: 5.417531364e-05 | DG147: -0.0002749675717 | DH147: -0.0001231004634 | DI147: 0.0002441104134 | DJ147: 0.0001842907583 | DK147: -0.0001979149001 | DL147: -0.0002339013871 | DM147: 0.0001392836658 | DN147: 0.0002688151316 | DO147: -7.190072641e-05 | DP147: -0.0002868382326 | DQ147: 6.166399856e-18
B148: 78 | C148: 7800000000 | D148: 257.2964383 | E148: 12.25221135 | F148: 12.25221135 | G148: -0.02522132418 | H148: -0.02522132418 | I148: 1.982183295e-18 | J148: -6.371303448e-19 | K148: -353.6301233 | L148: 1.843272339e-18 | M148: -5.924803945e-19 | N148: -354.2612094 | S148: V(t) | T148: 78 | U148: 1.93614268e-18 | V148: 3.567852271e-19 | W148: -1.80243291e-18 | X148: -1.032269723e-18 | Y148: 1.415576794e-18 | Z148: 1.562775005e-18 | AA148: -8.299071248e-19 | AB148: -1.873793181e-18 | AC148: 1.276794659e-19 | AD148: 1.921642673e-18 | AE148: 5.924803945e-19 | AF148: -1.699603163e-18 | AG148: -1.229428144e-18 | AH148: 1.238859439e-18 | AI148: 1.693706365e-18 | AJ148: -6.041215886e-19 | AK148: -1.92010856e-18 | AL148: -1.154633436e-19 | AM148: 1.876837213e-18 | AN148: 8.188317922e-19 | AO148: -1.569969658e-18 | AP148: -1.407197749e-18 | AQ148: 1.04260453e-18 | AR148: 1.797926964e-18 | AS148: -3.688086939e-19 | AT148: -1.93614268e-18 | AU148: -3.567852271e-19 | AV148: 1.80243291e-18 | AW148: 1.032269723e-18 | AX148: -1.415576794e-18 | AY148: -1.562775005e-18 | AZ148: 8.299071248e-19 | BA148: 1.873793181e-18 | BB148: -1.276794659e-19 | BC148: -1.921642673e-18 | BD148: -5.924803945e-19 | BE148: 1.699603163e-18 | BF148: 1.229428144e-18 | BG148: -1.238859439e-18 | BH148: -1.693706365e-18 | BI148: 6.041215886e-19 | BJ148: 1.92010856e-18 | BK148: 1.154633436e-19 | BL148: -1.876837213e-18 | BM148: -8.188317922e-19 | BN148: 1.569969658e-18 | BO148: 1.407197749e-18 | BP148: -1.04260453e-18 | BQ148: -1.797926964e-18 | BR148: 3.688086939e-19 | BS148: 1.93614268e-18 | BT148: 3.567852271e-19 | BU148: -1.80243291e-18 | BV148: -1.032269723e-18 | BW148: 1.415576794e-18 | BX148: 1.562775005e-18 | BY148: -8.299071248e-19 | BZ148: -1.873793181e-18 | CA148: 1.276794659e-19 | CB148: 1.921642673e-18 | CC148: 5.924803945e-19 | CD148: -1.699603163e-18 | CE148: -1.229428144e-18 | CF148: 1.238859439e-18 | CG148: 1.693706365e-18 | CH148: -6.041215886e-19 | CI148: -1.92010856e-18 | CJ148: -1.154633436e-19 | CK148: 1.876837213e-18 | CL148: 8.188317922e-19 | CM148: -1.569969658e-18 | CN148: -1.407197749e-18 | CO148: 1.04260453e-18 | CP148: 1.797926964e-18 | CQ148: -3.688086939e-19 | CR148: -1.93614268e-18 | CS148: -3.567852271e-19 | CT148: 1.80243291e-18 | CU148: 1.032269723e-18 | CV148: -1.415576794e-18 | CW148: -1.562775005e-18 | CX148: 8.299071248e-19 | CY148: 1.873793181e-18 | CZ148: -1.276794659e-19 | DA148: -1.921642673e-18 | DB148: -5.924803945e-19 | DC148: 1.699603163e-18 | DD148: 1.229428144e-18 | DE148: -1.238859439e-18 | DF148: -1.693706365e-18 | DG148: 6.041215886e-19 | DH148: 1.92010856e-18 | DI148: 1.154633436e-19 | DJ148: -1.876837213e-18 | DK148: -8.188317922e-19 | DL148: 1.569969658e-18 | DM148: 1.407197749e-18 | DN148: -1.04260453e-18 | DO148: -1.797926964e-18 | DP148: 3.688086939e-19 | DQ148: 1.93614268e-18
B149: 79 | C149: 7900000000 | D149: 260.5951106 | E149: 12.40929098 | F149: 12.40929098 | G149: -0.01260623715 | H149: -0.01260623715 | I149: -1.589172152e-05 | J149: -0.0001003363808 | K149: -79.86322991 | L149: -1.475035147e-05 | M149: -9.313005396e-05 | N149: -80.51060145 | S149: V(t) | T149: 79 | U149: 1.133330083e-18 | V149: 9.132860879e-05 | W149: 4.542500283e-05 | X149: -6.873513113e-05 | Y149: -7.961246684e-05 | Z149: 2.913750034e-05 | AA149: 9.410487019e-05 | AB149: 1.766835875e-05 | AC149: -8.53169859e-05 | AD149: -6.010330195e-05 | AE149: 5.542281914e-05 | AF149: 8.766949122e-05 | AG149: -1.181778738e-05 | AH149: -9.354741964e-05 | AI149: -3.471080709e-05 | AJ149: 7.628296624e-05 | AK149: 7.265241163e-05 | AL149: -4.014712614e-05 | AM149: -9.262078017e-05 | AN149: -5.920576595e-06 | AO149: 8.967600512e-05 | AP149: 5.052360778e-05 | AQ149: -6.454658448e-05 | AR149: -8.26277734e-05 | AS149: 2.344920119e-05 | AT149: 9.42909318e-05 | AU149: 2.344920119e-05 | AV149: -8.26277734e-05 | AW149: -6.454658448e-05 | AX149: 5.052360778e-05 | AY149: 8.967600512e-05 | AZ149: -5.920576595e-06 | BA149: -9.262078017e-05 | BB149: -4.014712614e-05 | BC149: 7.265241163e-05 | BD149: 7.628296624e-05 | BE149: -3.471080709e-05 | BF149: -9.354741964e-05 | BG149: -1.181778738e-05 | BH149: 8.766949122e-05 | BI149: 5.542281914e-05 | BJ149: -6.010330195e-05 | BK149: -8.53169859e-05 | BL149: 1.766835875e-05 | BM149: 9.410487019e-05 | BN149: 2.913750034e-05 | BO149: -7.961246684e-05 | BP149: -6.873513113e-05 | BQ149: 4.542500283e-05 | BR149: 9.132860879e-05 | BS149: 9.690056917e-19 | BT149: -9.132860879e-05 | BU149: -4.542500283e-05 | BV149: 6.873513113e-05 | BW149: 7.961246684e-05 | BX149: -2.913750034e-05 | BY149: -9.410487019e-05 | BZ149: -1.766835875e-05 | CA149: 8.53169859e-05 | CB149: 6.010330195e-05 | CC149: -5.542281914e-05 | CD149: -8.766949122e-05 | CE149: 1.181778738e-05 | CF149: 9.354741964e-05 | CG149: 3.471080709e-05 | CH149: -7.628296624e-05 | CI149: -7.265241163e-05 | CJ149: 4.014712614e-05 | CK149: 9.262078017e-05 | CL149: 5.920576595e-06 | CM149: -8.967600512e-05 | CN149: -5.052360778e-05 | CO149: 6.454658448e-05 | CP149: 8.26277734e-05 | CQ149: -2.344920119e-05 | CR149: -9.42909318e-05 | CS149: -2.344920119e-05 | CT149: 8.26277734e-05 | CU149: 6.454658448e-05 | CV149: -5.052360778e-05 | CW149: -8.967600512e-05 | CX149: 5.920576595e-06 | CY149: 9.262078017e-05 | CZ149: 4.014712614e-05 | DA149: -7.265241163e-05 | DB149: -7.628296624e-05 | DC149: 3.471080709e-05 | DD149: 9.354741964e-05 | DE149: 1.181778738e-05 | DF149: -8.766949122e-05 | DG149: -5.542281914e-05 | DH149: 6.010330195e-05 | DI149: 8.53169859e-05 | DJ149: =Re_H*COS(NH_*Rad_+NH_*Ofs_)+Im_H*SIN(NH_*Rad_+NH_*Ofs_) -> -1.766835875e-05 | DK149: -9.410487019e-05 | DL149: -2.913750034e-05 | DM149: 7.961246684e-05 | DN149: 6.873513113e-05 | DO149: -4.542500283e-05 | DP149: -9.132860879e-05 | DQ149: -1.058791184e-18
B150: 80 | C150: 8000000000 | D150: 263.8937829 | E150: 12.56637061 | F150: 12.56637061 | G150: -3.899768652e-17 | H150: -3.899768652e-17 | I150: -6.842342136e-34 | J150: 0 | K150: -200 | L150: -6.338865911e-34 | M150: 0 | N150: -200 | S150: V(t) | T150: 80 | U150: -6.338865911e-34 | V150: -1.958817292e-34 | W150: 5.128250247e-34 | X150: 5.128250247e-34 | Y150: -1.958817292e-34 | Z150: -6.338865911e-34 | AA150: -1.958817292e-34 | AB150: 5.128250247e-34 | AC150: 5.128250247e-34 | AD150: -1.958817292e-34 | AE150: -6.338865911e-34 | AF150: -1.958817292e-34 | AG150: 5.128250247e-34 | AH150: 5.128250247e-34 | AI150: -1.958817292e-34 | AJ150: -6.338865911e-34 | AK150: -1.958817292e-34 | AL150: 5.128250247e-34 | AM150: 5.128250247e-34 | AN150: -1.958817292e-34 | AO150: -6.338865911e-34 | AP150: -1.958817292e-34 | AQ150: 5.128250247e-34 | AR150: 5.128250247e-34 | AS150: -1.958817292e-34 | AT150: -6.338865911e-34 | AU150: -1.958817292e-34 | AV150: 5.128250247e-34 | AW150: 5.128250247e-34 | AX150: -1.958817292e-34 | AY150: -6.338865911e-34 | AZ150: -1.958817292e-34 | BA150: 5.128250247e-34 | BB150: 5.128250247e-34 | BC150: -1.958817292e-34 | BD150: -6.338865911e-34 | BE150: -1.958817292e-34 | BF150: 5.128250247e-34 | BG150: 5.128250247e-34 | BH150: -1.958817292e-34 | BI150: -6.338865911e-34 | BJ150: -1.958817292e-34 | BK150: 5.128250247e-34 | BL150: 5.128250247e-34 | BM150: -1.958817292e-34 | BN150: -6.338865911e-34 | BO150: =Re_H*COS(NH_*Rad_+NH_*Ofs_)+Im_H*SIN(NH_*Rad_+NH_*Ofs_) -> -1.958817292e-34 | BP150: 5.128250247e-34 | BQ150: 5.128250247e-34 | BR150: -1.958817292e-34 | BS150: -6.338865911e-34 | BT150: -1.958817292e-34 | BU150: 5.128250247e-34 | BV150: 5.128250247e-34 | BW150: -1.958817292e-34 | BX150: -6.338865911e-34 | BY150: -1.958817292e-34 | BZ150: 5.128250247e-34 | CA150: 5.128250247e-34 | CB150: -1.958817292e-34 | CC150: -6.338865911e-34 | CD150: -1.958817292e-34 | CE150: 5.128250247e-34 | CF150: 5.128250247e-34 | CG150: -1.958817292e-34 | CH150: -6.338865911e-34 | CI150: -1.958817292e-34 | CJ150: 5.128250247e-34 | CK150: 5.128250247e-34 | CL150: -1.958817292e-34 | CM150: -6.338865911e-34 | CN150: -1.958817292e-34 | CO150: 5.128250247e-34 | CP150: 5.128250247e-34 | CQ150: -1.958817292e-34 | CR150: -6.338865911e-34 | CS150: -1.958817292e-34 | CT150: =Re_H*COS(NH_*Rad_+NH_*Ofs_)+Im_H*SIN(NH_*Rad_+NH_*Ofs_) -> 5.128250247e-34 | CU150: 5.128250247e-34 | CV150: -1.958817292e-34 | CW150: -6.338865911e-34 | CX150: -1.958817292e-34 | CY150: 5.128250247e-34 | CZ150: 5.128250247e-34 | DA150: -1.958817292e-34 | DB150: -6.338865911e-34 | DC150: -1.958817292e-34 | DD150: 5.128250247e-34 | DE150: 5.128250247e-34 | DF150: -1.958817292e-34 | DG150: -6.338865911e-34 | DH150: -1.958817292e-34 | DI150: 5.128250247e-34 | DJ150: 5.128250247e-34 | DK150: -1.958817292e-34 | DL150: -6.338865911e-34 | DM150: -1.958817292e-34 | DN150: 5.128250247e-34 | DO150: 5.128250247e-34 | DP150: -1.958817292e-34 | DQ150: -6.338865911e-34
B151: 81 | C151: 8100000000 | D151: =NH_*PI()*(2*D_/100*T_+tr_)/T_ -> 267.1924552 | E151: =NH_*PI()*tr_/T_ -> 12.72345025 | F151: 12.72345025 | G151: 0.01229497204 | H151: 0.01229497204 | I151: -1.511663375e-05 | J151: 9.544266921e-05 | K151: -80.29754701 | L151: -1.397741477e-05 | M151: 8.824992366e-05 | N151: -80.97811177 | S151: V(t) | T151: 81 | U151: 6.013933926e-19 | V151: -8.307550117e-05 | W151: -6.116426342e-05 | X151: 3.804336695e-05 | Y151: 8.91736583e-05 | Z151: 2.761065919e-05 | AA151: -6.884533517e-05 | AB151: -7.829797562e-05 | AC151: 1.119852067e-05 | AD151: 8.654287644e-05 | AE151: 5.251859469e-05 | AF151: -4.787610809e-05 | AG151: -8.776733644e-05 | AH151: -1.674251485e-05 | AI151: 7.544067486e-05 | AJ151: =Re_H*COS(NH_*Rad_+NH_*Ofs_)+Im_H*SIN(NH_*Rad_+NH_*Ofs_) -> 7.228564422e-05 | AK151: -2.222043397e-05 | AL151: -8.864541886e-05 | AM151: -4.304467636e-05 | AN151: 5.69538144e-05 | AO151: 8.497687125e-05 | AP151: 5.61033104e-06 | AQ151: -8.084627004e-05 | AR151: -6.513332503e-05 | AS151: 3.289191776e-05 | AT151: 8.934997006e-05 | AU151: 3.289191776e-05 | AV151: -6.513332503e-05 | AW151: -8.084627004e-05 | AX151: 5.61033104e-06 | AY151: 8.497687125e-05 | AZ151: =Re_H*COS(NH_*Rad_+NH_*Ofs_)+Im_H*SIN(NH_*Rad_+NH_*Ofs_) -> 5.69538144e-05 | BA151: -4.304467636e-05 | BB151: -8.864541886e-05 | BC151: -2.222043397e-05 | BD151: 7.228564422e-05 | BE151: 7.544067486e-05 | BF151: -1.674251485e-05 | BG151: -8.776733644e-05 | BH151: -4.787610809e-05 | BI151: 5.251859469e-05 | BJ151: 8.654287644e-05 | BK151: 1.119852067e-05 | BL151: -7.829797562e-05 | BM151: -6.884533517e-05 | BN151: 2.761065919e-05 | BO151: 8.91736583e-05 | BP151: 3.804336695e-05 | BQ151: -6.116426342e-05 | BR151: -8.307550117e-05 | BS151: 6.047815243e-19 | BT151: 8.307550117e-05 | BU151: 6.116426342e-05 | BV151: -3.804336695e-05 | BW151: -8.91736583e-05 | BX151: -2.761065919e-05 | BY151: 6.884533517e-05 | BZ151: 7.829797562e-05 | CA151: -1.119852067e-05 | CB151: -8.654287644e-05 | CC151: -5.251859469e-05 | CD151: 4.787610809e-05 | CE151: =Re_H*COS(NH_*Rad_+NH_*Ofs_)+Im_H*SIN(NH_*Rad_+NH_*Ofs_) -> 8.776733644e-05 | CF151: 1.674251485e-05 | CG151: -7.544067486e-05 | CH151: -7.228564422e-05 | CI151: 2.222043397e-05 | CJ151: 8.864541886e-05 | CK151: 4.304467636e-05 | CL151: -5.69538144e-05 | CM151: -8.497687125e-05 | CN151: -5.61033104e-06 | CO151: 8.084627004e-05 | CP151: 6.513332503e-05 | CQ151: -3.289191776e-05 | CR151: -8.934997006e-05 | CS151: -3.289191776e-05 | CT151: 6.513332503e-05 | CU151: 8.084627004e-05 | CV151: -5.61033104e-06 | CW151: -8.497687125e-05 | CX151: -5.69538144e-05 | CY151: 4.304467636e-05 | CZ151: 8.864541886e-05 | DA151: 2.222043397e-05 | DB151: -7.228564422e-05 | DC151: -7.544067486e-05 | DD151: 1.674251485e-05 | DE151: 8.776733644e-05 | DF151: 4.787610809e-05 | DG151: -5.251859469e-05 | DH151: -8.654287644e-05 | DI151: -1.119852067e-05 | DJ151: 7.829797562e-05 | DK151: 6.884533517e-05 | DL151: -2.761065919e-05 | DM151: -8.91736583e-05 | DN151: -3.804336695e-05 | DO151: 6.116426342e-05 | DP151: 8.307550117e-05 | DQ151: -7.519958506e-18
B152: 82 | C152: =NH_*f_ -> 8200000000 | D152: 270.4911275 | E152: 12.88052988 | F152: =NH_*PI()*tf_/T_ -> 12.88052988 | G152: =SIN(Rad_tr)/Rad_tr -> 0.02399101568 | H152: =SIN(Rad_tf)/Rad_tf -> 0.02399101568 | I152: -7.656441973e-18 | J152: -2.478074447e-18 | K152: -341.8868004 | L152: -7.065670282e-18 | M152: -2.286866019e-18 | N152: -342.5842729 | S152: V(t) | T152: 82 | U152: =Re_H*COS(NH_*Rad_+NH_*Ofs_)+Im_H*SIN(NH_*Rad_+NH_*Ofs_) -> -7.426532228e-18 | V152: -3.16973056e-18 | W152: 4.727320963e-18 | X152: 7.195321302e-18 | Y152: 1.399916649e-18 | Z152: -6.003210263e-18 | AA152: -6.512001875e-18 | AB152: 4.578591728e-19 | AC152: 6.901895784e-18 | AD152: 5.419509422e-18 | AE152: -2.286866019e-18 | AF152: -7.366909809e-18 | AG152: -3.98648926e-18 | AH152: 3.972180663e-18 | AI152: 7.369033797e-18 | AJ152: 2.302983316e-18 | AK152: -5.407908588e-18 | AL152: -6.908134291e-18 | AM152: -4.74772461e-19 | AN152: 6.503837726e-18 | AO152: 6.0131713e-18 | AP152: -1.383270094e-18 | AQ152: -7.191106822e-18 | AR152: -4.740378642e-18 | AS152: 3.154396701e-18 | AT152: 7.426532228e-18 | AU152: 3.16973056e-18 | AV152: -4.727320963e-18 | AW152: -7.195321302e-18 | AX152: -1.399916649e-18 | AY152: 6.003210263e-18 | AZ152: 6.512001875e-18 | BA152: -4.578591728e-19 | BB152: -6.901895784e-18 | BC152: -5.419509422e-18 | BD152: 2.286866019e-18 | BE152: 7.366909809e-18 | BF152: 3.98648926e-18 | BG152: -3.972180663e-18 | BH152: -7.369033797e-18 | BI152: -2.302983316e-18 | BJ152: 5.407908588e-18 | BK152: 6.908134291e-18 | BL152: 4.74772461e-19 | BM152: -6.503837726e-18 | BN152: -6.0131713e-18 | BO152: 1.383270094e-18 | BP152: 7.191106822e-18 | BQ152: 4.740378642e-18 | BR152: -3.154396701e-18 | BS152: -7.426532228e-18 | BT152: -3.16973056e-18 | BU152: 4.727320963e-18 | BV152: 7.195321302e-18 | BW152: 1.399916649e-18 | BX152: -6.003210263e-18 | BY152: -6.512001875e-18 | BZ152: 4.578591728e-19 | CA152: 6.901895784e-18 | CB152: 5.419509422e-18 | CC152: -2.286866019e-18 | CD152: -7.366909809e-18 | CE152: -3.98648926e-18 | CF152: 3.972180663e-18 | CG152: 7.369033797e-18 | CH152: 2.302983316e-18 | CI152: -5.407908588e-18 | CJ152: -6.908134291e-18 | CK152: -4.74772461e-19 | CL152: 6.503837726e-18 | CM152: 6.0131713e-18 | CN152: -1.383270094e-18 | CO152: -7.191106822e-18 | CP152: -4.740378642e-18 | CQ152: 3.154396701e-18 | CR152: 7.426532228e-18 | CS152: 3.16973056e-18 | CT152: -4.727320963e-18 | CU152: -7.195321302e-18 | CV152: -1.399916649e-18 | CW152: 6.003210263e-18 | CX152: 6.512001875e-18 | CY152: -4.578591728e-19 | CZ152: -6.901895784e-18 | DA152: -5.419509422e-18 | DB152: 2.286866019e-18 | DC152: 7.366909809e-18 | DD152: 3.98648926e-18 | DE152: -3.972180663e-18 | DF152: -7.369033797e-18 | DG152: -2.302983316e-18 | DH152: 5.407908588e-18 | DI152: 6.908134291e-18 | DJ152: 4.74772461e-19 | DK152: -6.503837726e-18 | DL152: -6.0131713e-18 | DM152: 1.383270094e-18 | DN152: 7.191106822e-18 | DO152: 4.740378642e-18 | DP152: -3.154396701e-18 | DQ152: -7.426532228e-18
B153: 83 | C153: 8300000000 | D153: 273.7897998 | E153: 13.03760951 | F153: 13.03760951 | G153: 0.03482160586 | H153: 0.03482160586 | I153: -0.0001212544234 | J153: 0.0002379752053 | K153: -71.46698348 | L153: -0.0001116781472 | M153: 0.0002191807049 | N153: -72.1815713 | S153: V(t) | T153: 83 | U153: -1.585645677e-18 | V153: -0.0002155646571 | W153: -0.0002076981311 | X153: 1.544598155e-05 | Y153: 0.0002225804478 | Z153: 0.0001990119155 | AA153: -3.083100486e-05 | AB153: -0.0002287178152 | AC153: -0.0001895402908 | AD153: 4.609435228e-05 | AE153: 0.0002339525379 | AF153: 0.0001793206371 | AG153: -6.117578636e-05 | AH153: -0.0002382639568 | AI153: -0.0001683932868 | AJ153: 7.601578755e-05 | AK153: 0.0002416350567 | AL153: 0.0001568013652 | AM153: -9.055578916e-05 | AN153: -0.0002440525335 | AO153: -0.0001445906202 | AP153: 0.0001047384084 | AQ153: 0.0002455068463 | AR153: 0.0001318092421 | AS153: -0.0001185076731 | AT153: -0.0002459922559 | AU153: -0.0001185076731 | AV153: 0.0001318092421 | AW153: 0.0002455068463 | AX153: 0.0001047384084 | AY153: -0.0001445906202 | AZ153: -0.0002440525335 | BA153: -9.055578916e-05 | BB153: 0.0001568013652 | BC153: 0.0002416350567 | BD153: 7.601578755e-05 | BE153: -0.0001683932868 | BF153: -0.0002382639568 | BG153: -6.117578636e-05 | BH153: 0.0001793206371 | BI153: 0.0002339525379 | BJ153: 4.609435228e-05 | BK153: -0.0001895402908 | BL153: -0.0002287178152 | BM153: -3.083100486e-05 | BN153: 0.0001990119155 | BO153: 0.0002225804478 | BP153: 1.544598155e-05 | BQ153: -0.0002076981311 | BR153: -0.0002155646571 | BS153: -1.151964808e-18 | BT153: 0.0002155646571 | BU153: 0.0002076981311 | BV153: -1.544598155e-05 | BW153: -0.0002225804478 | BX153: -0.0001990119155 | BY153: 3.083100486e-05 | BZ153: 0.0002287178152 | CA153: 0.0001895402908 | CB153: -4.609435228e-05 | CC153: -0.0002339525379 | CD153: -0.0001793206371 | CE153: 6.117578636e-05 | CF153: 0.0002382639568 | CG153: 0.0001683932868 | CH153: -7.601578755e-05 | CI153: -0.0002416350567 | CJ153: -0.0001568013652 | CK153: 9.055578916e-05 | CL153: 0.0002440525335 | CM153: 0.0001445906202 | CN153: -0.0001047384084 | CO153: -0.0002455068463 | CP153: -0.0001318092421 | CQ153: 0.0001185076731 | CR153: 0.0002459922559 | CS153: 0.0001185076731 | CT153: -0.0001318092421 | CU153: -0.0002455068463 | CV153: -0.0001047384084 | CW153: 0.0001445906202 | CX153: 0.0002440525335 | CY153: 9.055578916e-05 | CZ153: -0.0001568013652 | DA153: -0.0002416350567 | DB153: -7.601578755e-05 | DC153: 0.0001683932868 | DD153: 0.0002382639568 | DE153: 6.117578636e-05 | DF153: -0.0001793206371 | DG153: -0.0002339525379 | DH153: -4.609435228e-05 | DI153: 0.0001895402908 | DJ153: 0.0002287178152 | DK153: 3.083100486e-05 | DL153: -0.0001990119155 | DM153: -0.0002225804478 | DN153: -1.544598155e-05 | DO153: 0.0002076981311 | DP153: 0.0002155646571 | DQ153: 1.875669758e-17
B154: 84 | C154: 8400000000 | D154: 277.088472 | E154: 13.19468915 | F154: 13.19468915 | G154: 0.04454710875 | H154: 0.04454710875 | I154: -1.156947801e-18 | J154: -8.414165824e-19 | K154: -356.8898611 | L154: -1.063452847e-18 | M154: -7.734202527e-19 | N154: -357.6217717 | S154: V(t) | T154: 84 | U154: -1.314956445e-18 | V154: -7.040584668e-19 | W154: 5.604496611e-19 | X154: 1.304666358e-18 | Y154: 8.377007253e-19 | Z154: -4.069413686e-19 | AA154: -1.273800904e-18 | AB154: -9.581319429e-19 | AC154: 2.470153676e-19 | AD154: 1.222846848e-18 | AE154: 1.063452847e-18 | AF154: -8.319378664e-20 | AG154: -1.152607768e-18 | AH154: -1.152002465e-18 | AI154: -8.193981e-20 | AJ154: 1.064191374e-18 | AK154: 1.222384316e-18 | AL154: 2.457811669e-19 | AM154: -9.589920462e-19 | AN154: -1.273488436e-18 | AO154: -4.057464079e-19 | AP154: 8.386688413e-19 | AQ154: 1.304508882e-18 | AR154: 5.593127858e-19 | AS154: -7.051193277e-19 | AT154: -1.314956445e-18 | AU154: -7.040584668e-19 | AV154: 5.604496611e-19 | AW154: 1.304666358e-18 | AX154: 8.377007253e-19 | AY154: -4.069413686e-19 | AZ154: -1.273800904e-18 | BA154: -9.581319429e-19 | BB154: 2.470153676e-19 | BC154: 1.222846848e-18 | BD154: 1.063452847e-18 | BE154: -8.319378664e-20 | BF154: -1.152607768e-18 | BG154: -1.152002465e-18 | BH154: -8.193981e-20 | BI154: 1.064191374e-18 | BJ154: 1.222384316e-18 | BK154: 2.457811669e-19 | BL154: -9.589920462e-19 | BM154: -1.273488436e-18 | BN154: -4.057464079e-19 | BO154: 8.386688413e-19 | BP154: 1.304508882e-18 | BQ154: 5.593127858e-19 | BR154: -7.051193277e-19 | BS154: -1.314956445e-18 | BT154: -7.040584668e-19 | BU154: 5.604496611e-19 | BV154: 1.304666358e-18 | BW154: 8.377007253e-19 | BX154: -4.069413686e-19 | BY154: -1.273800904e-18 | BZ154: -9.581319429e-19 | CA154: 2.470153676e-19 | CB154: 1.222846848e-18 | CC154: 1.063452847e-18 | CD154: -8.319378664e-20 | CE154: -1.152607768e-18 | CF154: -1.152002465e-18 | CG154: -8.193981e-20 | CH154: 1.064191374e-18 | CI154: 1.222384316e-18 | CJ154: 2.457811669e-19 | CK154: -9.589920462e-19 | CL154: -1.273488436e-18 | CM154: -4.057464079e-19 | CN154: 8.386688413e-19 | CO154: 1.304508882e-18 | CP154: 5.593127858e-19 | CQ154: -7.051193277e-19 | CR154: -1.314956445e-18 | CS154: -7.040584668e-19 | CT154: 5.604496611e-19 | CU154: 1.304666358e-18 | CV154: 8.377007253e-19 | CW154: -4.069413686e-19 | CX154: -1.273800904e-18 | CY154: -9.581319429e-19 | CZ154: 2.470153676e-19 | DA154: 1.222846848e-18 | DB154: 1.063452847e-18 | DC154: -8.319378664e-20 | DD154: -1.152607768e-18 | DE154: -1.152002465e-18 | DF154: -8.193981e-20 | DG154: 1.064191374e-18 | DH154: 1.222384316e-18 | DI154: 2.457811669e-19 | DJ154: -9.589920462e-19 | DK154: -1.273488436e-18 | DL154: -4.057464079e-19 | DM154: 8.386688413e-19 | DN154: 1.304508882e-18 | DO154: 5.593127858e-19 | DP154: -7.051193277e-19 | DQ154: -1.314956445e-18
B155: 85 | C155: 8500000000 | D155: 280.3871443 | E155: 13.35176878 | F155: 13.35176878 | G155: 0.0529597833 | H155: 0.0529597833 | I155: -0.0002804738648 | J155: 0.0002804738648 | K155: -68.03185207 | L155: -0.0002572884934 | M155: 0.0002572884934 | N155: -68.78129277 | S155: V(t) | T155: 85 | U155: 4.770489559e-18 | V155: -0.0002943696329 | W155: -0.0003460522579 | X155: -0.0001124391945 | Y155: 0.0002138720573 | Z155: 0.0003638608768 | AA155: 0.0002138720573 | AB155: -0.0001124391945 | AC155: -0.0003460522579 | AD155: -0.0002943696329 | AE155: -4.038653093e-18 | AF155: 0.0002943696329 | AG155: 0.0003460522579 | AH155: 0.0001124391945 | AI155: -0.0002138720573 | AJ155: -0.0003638608768 | AK155: -0.0002138720573 | AL155: 0.0001124391945 | AM155: 0.0003460522579 | AN155: 0.0002943696329 | AO155: 4.553649124e-18 | AP155: -0.0002943696329 | AQ155: -0.0003460522579 | AR155: -0.0001124391945 | AS155: 0.0002138720573 | AT155: 0.0003638608768 | AU155: 0.0002138720573 | AV155: -0.0001124391945 | AW155: -0.0003460522579 | AX155: -0.0002943696329 | AY155: 5.258380537e-18 | AZ155: 0.0002943696329 | BA155: 0.0003460522579 | BB155: 0.0001124391945 | BC155: -0.0002138720573 | BD155: -0.0003638608768 | BE155: -0.0002138720573 | BF155: 0.0001124391945 | BG155: 0.0003460522579 | BH155: 0.0002943696329 | BI155: 1.078781162e-17 | BJ155: -0.0002943696329 | BK155: -0.0003460522579 | BL155: -0.0001124391945 | BM155: 0.0002138720573 | BN155: 0.0003638608768 | BO155: 0.0002138720573 | BP155: -0.0001124391945 | BQ155: -0.0003460522579 | BR155: -0.0002943696329 | BS155: 4.174178364e-18 | BT155: 0.0002943696329 | BU155: 0.0003460522579 | BV155: 0.0001124391945 | BW155: -0.0002138720573 | BX155: -0.0003638608768 | BY155: -0.0002138720573 | BZ155: 0.0001124391945 | CA155: 0.0003460522579 | CB155: 0.0002943696329 | CC155: -2.949029909e-17 | CD155: -0.0002943696329 | CE155: -0.0003460522579 | CF155: -0.0001124391945 | CG155: 0.0002138720573 | CH155: 0.0003638608768 | CI155: 0.0002138720573 | CJ155: -0.0001124391945 | CK155: -0.0003460522579 | CL155: -0.0002943696329 | CM155: 1.344410694e-17 | CN155: 0.0002943696329 | CO155: 0.0003460522579 | CP155: 0.0001124391945 | CQ155: -0.0002138720573 | CR155: -0.0003638608768 | CS155: -0.0002138720573 | CT155: 0.0001124391945 | CU155: 0.0003460522579 | CV155: 0.0002943696329 | CW155: 2.602085214e-18 | CX155: -0.0002943696329 | CY155: -0.0003460522579 | CZ155: -0.0001124391945 | DA155: 0.0002138720573 | DB155: 0.0003638608768 | DC155: 0.0002138720573 | DD155: -0.0001124391945 | DE155: -0.0003460522579 | DF155: -0.0002943696329 | DG155: 2.032879073e-18 | DH155: 0.0002943696329 | DI155: 0.0003460522579 | DJ155: 0.0001124391945 | DK155: -0.0002138720573 | DL155: -0.0003638608768 | DM155: -0.0002138720573 | DN155: 0.0001124391945 | DO155: 0.0003460522579 | DP155: 0.0002943696329 | DQ155: 1.398620803e-17
B156: 86 | C156: 8600000000 | D156: 283.6858166 | E156: 13.50884841 | F156: 13.50884841 | G156: 0.05988793195 | H156: 0.05988793195 | I156: -5.316334133e-18 | J156: -7.2939077e-18 | K156: -340.8903161 | L156: -4.866910416e-18 | M156: -6.677307044e-18 | N156: -341.6574945 | S156: V(t) | T156: 86 | U156: -8.262753042e-18 | V156: -5.276578258e-18 | W156: 1.535917911e-18 | X156: 7.234640103e-18 | Y156: 7.687148407e-18 | Z156: 2.565305512e-18 | AA156: -4.416773859e-18 | AB156: -8.196020741e-18 | AC156: -6.031906624e-18 | AD156: 5.062567699e-19 | AE156: 6.677307044e-18 | AF156: 8.006294623e-18 | AG156: 3.52950148e-18 | AH156: -3.506716793e-18 | AI156: -8.000032298e-18 | AJ156: -6.692108218e-18 | AK156: -5.313883425e-19 | AL156: 6.014668863e-18 | AM156: 8.19917679e-18 | AN156: 4.438035101e-18 | AO156: -2.541356709e-18 | AP156: -7.677878566e-18 | AQ156: -7.246771269e-18 | AR156: -1.560653143e-18 | AS156: 5.257175762e-18 | AT156: 8.262753042e-18 | AU156: 5.276578258e-18 | AV156: -1.535917911e-18 | AW156: -7.234640103e-18 | AX156: -7.687148407e-18 | AY156: -2.565305512e-18 | AZ156: 4.416773859e-18 | BA156: 8.196020741e-18 | BB156: 6.031906624e-18 | BC156: -5.062567699e-19 | BD156: -6.677307044e-18 | BE156: -8.006294623e-18 | BF156: -3.52950148e-18 | BG156: 3.506716793e-18 | BH156: 8.000032298e-18 | BI156: 6.692108218e-18 | BJ156: 5.313883425e-19 | BK156: -6.014668863e-18 | BL156: -8.19917679e-18 | BM156: -4.438035101e-18 | BN156: 2.541356709e-18 | BO156: 7.677878566e-18 | BP156: 7.246771269e-18 | BQ156: 1.560653143e-18 | BR156: -5.257175762e-18 | BS156: -8.262753042e-18 | BT156: -5.276578258e-18 | BU156: 1.535917911e-18 | BV156: 7.234640103e-18 | BW156: 7.687148407e-18 | BX156: 2.565305512e-18 | BY156: -4.416773859e-18 | BZ156: -8.196020741e-18 | CA156: -6.031906624e-18 | CB156: 5.062567699e-19 | CC156: 6.677307044e-18 | CD156: 8.006294623e-18 | CE156: 3.52950148e-18 | CF156: -3.506716793e-18 | CG156: -8.000032298e-18 | CH156: -6.692108218e-18 | CI156: -5.313883425e-19 | CJ156: 6.014668863e-18 | CK156: 8.19917679e-18 | CL156: 4.438035101e-18 | CM156: -2.541356709e-18 | CN156: -7.677878566e-18 | CO156: -7.246771269e-18 | CP156: -1.560653143e-18 | CQ156: 5.257175762e-18 | CR156: 8.262753042e-18 | CS156: 5.276578258e-18 | CT156: -1.535917911e-18 | CU156: -7.234640103e-18 | CV156: -7.687148407e-18 | CW156: -2.565305512e-18 | CX156: 4.416773859e-18 | CY156: 8.196020741e-18 | CZ156: 6.031906624e-18 | DA156: -5.062567699e-19 | DB156: -6.677307044e-18 | DC156: -8.006294623e-18 | DD156: -3.52950148e-18 | DE156: 3.506716793e-18 | DF156: 8.000032298e-18 | DG156: 6.692108218e-18 | DH156: 5.313883425e-19 | DI156: -6.014668863e-18 | DJ156: -8.19917679e-18 | DK156: -4.438035101e-18 | DL156: 2.541356709e-18 | DM156: 7.677878566e-18 | DN156: 7.246771269e-18 | DO156: 1.560653143e-18 | DP156: -5.257175762e-18 | DQ156: -8.262753042e-18
B157: 87 | C157: 8700000000 | D157: 286.9844889 | E157: 13.66592804 | F157: 13.66592804 | G157: 0.06519912306 | H157: 0.06519912306 | I157: -0.0004250925648 | J157: 0.0002165954801 | K157: -66.4279475 | L157: -0.0003883536026 | M157: 0.0001978760439 | N157: -67.21307092 | S157: V(t) | T157: 87 | U157: -4.33680869e-19 | V157: -0.000317727856 | W157: -0.0004349993686 | X157: -0.0002778272617 | Y157: 5.46276727e-05 | Z157: 0.0003526176922 | AA157: 0.0004281391687 | AB157: 0.0002335451655 | AC157: -0.0001083938344 | AD157: -0.0003819465368 | AE157: -0.0004145269584 | AF157: -0.0001855799226 | AG157: 0.0001604505605 | AH157: 0.0004052518563 | AI157: 0.0003943774103 | AJ157: 0.0001346879734 | AK157: -0.0002099768855 | AL157: -0.0004221661119 | AM157: -0.0003680082948 | AN157: -8.16719144e-05 | AO157: 0.0002561917495 | AP157: 0.0004324225558 | AQ157: 0.0003358354687 | AR157: 2.736784053e-05 | AS157: -0.0002983663166 | AT157: -0.0004358594376 | AU157: -0.0002983663166 | AV157: 2.736784053e-05 | AW157: 0.0003358354687 | AX157: 0.0004324225558 | AY157: 0.0002561917495 | AZ157: -8.16719144e-05 | BA157: -0.0003680082948 | BB157: -0.0004221661119 | BC157: -0.0002099768855 | BD157: 0.0001346879734 | BE157: 0.0003943774103 | BF157: 0.0004052518563 | BG157: 0.0001604505605 | BH157: -0.0001855799226 | BI157: -0.0004145269584 | BJ157: -0.0003819465368 | BK157: -0.0001083938344 | BL157: 0.0002335451655 | BM157: 0.0004281391687 | BN157: 0.0003526176922 | BO157: 5.46276727e-05 | BP157: -0.0002778272617 | BQ157: -0.0004349993686 | BR157: -0.000317727856 | BS157: 4.33680869e-19 | BT157: 0.000317727856 | BU157: 0.0004349993686 | BV157: 0.0002778272617 | BW157: -5.46276727e-05 | BX157: -0.0003526176922 | BY157: -0.0004281391687 | BZ157: -0.0002335451655 | CA157: 0.0001083938344 | CB157: 0.0003819465368 | CC157: 0.0004145269584 | CD157: 0.0001855799226 | CE157: -0.0001604505605 | CF157: -0.0004052518563 | CG157: -0.0003943774103 | CH157: -0.0001346879734 | CI157: 0.0002099768855 | CJ157: 0.0004221661119 | CK157: 0.0003680082948 | CL157: 8.16719144e-05 | CM157: -0.0002561917495 | CN157: -0.0004324225558 | CO157: -0.0003358354687 | CP157: -2.736784053e-05 | CQ157: 0.0002983663166 | CR157: 0.0004358594376 | CS157: 0.0002983663166 | CT157: -2.736784053e-05 | CU157: -0.0003358354687 | CV157: -0.0004324225558 | CW157: -0.0002561917495 | CX157: 8.16719144e-05 | CY157: 0.0003680082948 | CZ157: 0.0004221661119 | DA157: 0.0002099768855 | DB157: -0.0001346879734 | DC157: -0.0003943774103 | DD157: -0.0004052518563 | DE157: -0.0001604505605 | DF157: 0.0001855799226 | DG157: 0.0004145269584 | DH157: 0.0003819465368 | DI157: 0.0001083938344 | DJ157: -0.0002335451655 | DK157: -0.0004281391687 | DL157: -0.0003526176922 | DM157: -5.46276727e-05 | DN157: 0.0002778272617 | DO157: 0.0004349993686 | DP157: 0.000317727856 | DQ157: -1.279358564e-17
B158: 88 | C158: 8800000000 | D158: 290.2831612 | E158: 13.82300768 | F158: 13.82300768 | G158: 0.06880242988 | H158: 0.06880242988 | I158: -1.204755561e-18 | J158: -3.80250974e-18 | K158: -347.9831573 | L158: -1.098335806e-18 | M158: -3.466622388e-18 | N158: -348.7864332 | S158: V(t) | T158: 88 | U158: -3.636358241e-18 | V158: -2.632537076e-18 | W158: -2.017156365e-19 | X158: 2.338448334e-18 | Y158: 3.611026582e-18 | Z158: 2.926201847e-18 | AA158: 6.551921067e-19 | AB158: -1.970972866e-18 | AC158: -3.528746876e-18 | AD158: -3.173718668e-18 | AE158: -1.098335806e-18 | AF158: 1.572413978e-18 | AG158: 3.390816725e-18 | AH158: 3.371184049e-18 | AI158: 1.524158094e-18 | AJ158: -1.149057182e-18 | AK158: -3.199411367e-18 | AL158: -3.515483844e-18 | AM158: -1.925943497e-18 | AN158: 7.075790683e-19 | AO158: 2.957549382e-18 | AP158: 3.604342359e-18 | AQ158: 2.297355622e-18 | AR158: -2.549420098e-19 | AS158: -2.669045076e-18 | AT158: -3.636358241e-18 | AU158: -2.632537076e-18 | AV158: -2.017156365e-19 | AW158: 2.338448334e-18 | AX158: 3.611026582e-18 | AY158: 2.926201847e-18 | AZ158: 6.551921067e-19 | BA158: -1.970972866e-18 | BB158: -3.528746876e-18 | BC158: -3.173718668e-18 | BD158: -1.098335806e-18 | BE158: 1.572413978e-18 | BF158: 3.390816725e-18 | BG158: 3.371184049e-18 | BH158: 1.524158094e-18 | BI158: -1.149057182e-18 | BJ158: -3.199411367e-18 | BK158: -3.515483844e-18 | BL158: -1.925943497e-18 | BM158: 7.075790683e-19 | BN158: 2.957549382e-18 | BO158: 3.604342359e-18 | BP158: 2.297355622e-18 | BQ158: -2.549420098e-19 | BR158: -2.669045076e-18 | BS158: -3.636358241e-18 | BT158: -2.632537076e-18 | BU158: -2.017156365e-19 | BV158: 2.338448334e-18 | BW158: 3.611026582e-18 | BX158: 2.926201847e-18 | BY158: 6.551921067e-19 | BZ158: -1.970972866e-18 | CA158: -3.528746876e-18 | CB158: -3.173718668e-18 | CC158: -1.098335806e-18 | CD158: 1.572413978e-18 | CE158: 3.390816725e-18 | CF158: 3.371184049e-18 | CG158: 1.524158094e-18 | CH158: -1.149057182e-18 | CI158: -3.199411367e-18 | CJ158: -3.515483844e-18 | CK158: -1.925943497e-18 | CL158: 7.075790683e-19 | CM158: 2.957549382e-18 | CN158: 3.604342359e-18 | CO158: 2.297355622e-18 | CP158: -2.549420098e-19 | CQ158: -2.669045076e-18 | CR158: -3.636358241e-18 | CS158: -2.632537076e-18 | CT158: -2.017156365e-19 | CU158: 2.338448334e-18 | CV158: 3.611026582e-18 | CW158: 2.926201847e-18 | CX158: 6.551921067e-19 | CY158: -1.970972866e-18 | CZ158: -3.528746876e-18 | DA158: -3.173718668e-18 | DB158: -1.098335806e-18 | DC158: 1.572413978e-18 | DD158: 3.390816725e-18 | DE158: 3.371184049e-18 | DF158: 1.524158094e-18 | DG158: -1.149057182e-18 | DH158: -3.199411367e-18 | DI158: -3.515483844e-18 | DJ158: -1.925943497e-18 | DK158: 7.075790683e-19 | DL158: 2.957549382e-18 | DM158: 3.604342359e-18 | DN158: 2.297355622e-18 | DO158: -2.549420098e-19 | DP158: -2.669045076e-18 | DQ158: -3.636358241e-18
B159: 89 | C159: 8900000000 | D159: 293.5818335 | E159: 13.98008731 | F159: 13.98008731 | G159: 0.07064965467 | H159: 0.07064965467 | I159: -0.0004991373705 | J159: 7.905559307e-05 | K159: -65.92799681 | L159: -0.0004540861848 | M159: 7.192018623e-05 | N159: -66.74963276 | S159: V(t) | T159: 89 | U159: -5.258380537e-18 | V159: -0.0002930534012 | W159: -0.000451603053 | X159: -0.0004028788644 | Y159: -0.0001692439475 | Z159: 0.0001420694588 | AA159: 0.0003881767463 | AB159: 0.0004561211883 | AC159: 0.0003147180855 | AD159: 2.886771695e-05 | AE159: -0.0002702321691 | AF159: -0.0004453026468 | AG159: -0.0004159910037 | AH159: -0.0001957505076 | AI159: 0.0001143342869 | AJ159: 0.0003719426719 | AK159: 0.0004588392216 | AL159: 0.0003351407213 | AM159: 5.762150621e-05 | AN159: -0.000246344454 | AO159: -0.0004372448345 | AP159: -0.0004274614165 | AQ159: -0.00022148453 | AR159: 8.614788971e-05 | AS159: 0.0003542407097 | AT159: 0.0004597464262 | AU159: 0.0003542407097 | AV159: 8.614788971e-05 | AW159: -0.00022148453 | AX159: -0.0004274614165 | AY159: -0.0004372448345 | AZ159: -0.000246344454 | BA159: 5.762150621e-05 | BB159: 0.0003351407213 | BC159: 0.0004588392216 | BD159: 0.0003719426719 | BE159: 0.0001143342869 | BF159: -0.0001957505076 | BG159: -0.0004159910037 | BH159: -0.0004453026468 | BI159: -0.0002702321691 | BJ159: 2.886771695e-05 | BK159: 0.0003147180855 | BL159: 0.0004561211883 | BM159: 0.0003881767463 | BN159: 0.0001420694588 | BO159: -0.0001692439475 | BP159: -0.0004028788644 | BQ159: -0.000451603053 | BR159: -0.0002930534012 | BS159: -4.418123853e-18 | BT159: 0.0002930534012 | BU159: 0.000451603053 | BV159: 0.0004028788644 | BW159: 0.0001692439475 | BX159: -0.0001420694588 | BY159: -0.0003881767463 | BZ159: -0.0004561211883 | CA159: -0.0003147180855 | CB159: -2.886771695e-05 | CC159: 0.0002702321691 | CD159: 0.0004453026468 | CE159: 0.0004159910037 | CF159: 0.0001957505076 | CG159: -0.0001143342869 | CH159: -0.0003719426719 | CI159: -0.0004588392216 | CJ159: -0.0003351407213 | CK159: -5.762150621e-05 | CL159: 0.000246344454 | CM159: 0.0004372448345 | CN159: 0.0004274614165 | CO159: 0.00022148453 | CP159: -8.614788971e-05 | CQ159: -0.0003542407097 | CR159: -0.0004597464262 | CS159: -0.0003542407097 | CT159: -8.614788971e-05 | CU159: 0.00022148453 | CV159: 0.0004274614165 | CW159: 0.0004372448345 | CX159: 0.000246344454 | CY159: -5.762150621e-05 | CZ159: -0.0003351407213 | DA159: -0.0004588392216 | DB159: -0.0003719426719 | DC159: -0.0001143342869 | DD159: 0.0001957505076 | DE159: 0.0004159910037 | DF159: 0.0004453026468 | DG159: 0.0002702321691 | DH159: -2.886771695e-05 | DI159: -0.0003147180855 | DJ159: -0.0004561211883 | DK159: -0.0003881767463 | DL159: -0.0001420694588 | DM159: 0.0001692439475 | DN159: 0.0004028788644 | DO159: 0.000451603053 | DP159: 0.0002930534012 | DQ159: 7.57586268e-18
B160: 90 | C160: 9000000000 | D160: 296.8805058 | E160: 14.13716694 | F160: 14.13716694 | G160: 0.07073553026 | H160: 0.07073553026 | I160: 0 | J160: 1.241090799e-18 | K160: -358.1239289 | L160: 0 | M160: 1.126661322e-18 | N160: -358.9641323 | S160: V(t) | T160: 90 | U160: 1.126661322e-18 | V160: 9.114881561e-19 | W160: 3.481574953e-19 | X160: -3.481574953e-19 | Y160: -9.114881561e-19 | Z160: -1.126661322e-18 | AA160: -9.114881561e-19 | AB160: -3.481574953e-19 | AC160: 3.481574953e-19 | AD160: 9.114881561e-19 | AE160: 1.126661322e-18 | AF160: 9.114881561e-19 | AG160: 3.481574953e-19 | AH160: -3.481574953e-19 | AI160: -9.114881561e-19 | AJ160: -1.126661322e-18 | AK160: -9.114881561e-19 | AL160: -3.481574953e-19 | AM160: 3.481574953e-19 | AN160: 9.114881561e-19 | AO160: 1.126661322e-18 | AP160: 9.114881561e-19 | AQ160: 3.481574953e-19 | AR160: -3.481574953e-19 | AS160: -9.114881561e-19 | AT160: -1.126661322e-18 | AU160: -9.114881561e-19 | AV160: -3.481574953e-19 | AW160: 3.481574953e-19 | AX160: 9.114881561e-19 | AY160: 1.126661322e-18 | AZ160: 9.114881561e-19 | BA160: 3.481574953e-19 | BB160: -3.481574953e-19 | BC160: -9.114881561e-19 | BD160: -1.126661322e-18 | BE160: -9.114881561e-19 | BF160: -3.481574953e-19 | BG160: 3.481574953e-19 | BH160: 9.114881561e-19 | BI160: 1.126661322e-18 | BJ160: 9.114881561e-19 | BK160: 3.481574953e-19 | BL160: -3.481574953e-19 | BM160: -9.114881561e-19 | BN160: -1.126661322e-18 | BO160: -9.114881561e-19 | BP160: -3.481574953e-19 | BQ160: 3.481574953e-19 | BR160: 9.114881561e-19 | BS160: 1.126661322e-18 | BT160: 9.114881561e-19 | BU160: 3.481574953e-19 | BV160: -3.481574953e-19 | BW160: -9.114881561e-19 | BX160: -1.126661322e-18 | BY160: -9.114881561e-19 | BZ160: -3.481574953e-19 | CA160: 3.481574953e-19 | CB160: 9.114881561e-19 | CC160: 1.126661322e-18 | CD160: 9.114881561e-19 | CE160: 3.481574953e-19 | CF160: -3.481574953e-19 | CG160: -9.114881561e-19 | CH160: -1.126661322e-18 | CI160: -9.114881561e-19 | CJ160: -3.481574953e-19 | CK160: 3.481574953e-19 | CL160: 9.114881561e-19 | CM160: 1.126661322e-18 | CN160: 9.114881561e-19 | CO160: 3.481574953e-19 | CP160: -3.481574953e-19 | CQ160: -9.114881561e-19 | CR160: -1.126661322e-18 | CS160: -9.114881561e-19 | CT160: -3.481574953e-19 | CU160: 3.481574953e-19 | CV160: 9.114881561e-19 | CW160: 1.126661322e-18 | CX160: 9.114881561e-19 | CY160: 3.481574953e-19 | CZ160: -3.481574953e-19 | DA160: -9.114881561e-19 | DB160: -1.126661322e-18 | DC160: -9.114881561e-19 | DD160: -3.481574953e-19 | DE160: 3.481574953e-19 | DF160: 9.114881561e-19 | DG160: 1.126661322e-18 | DH160: 9.114881561e-19 | DI160: 3.481574953e-19 | DJ160: -3.481574953e-19 | DK160: -9.114881561e-19 | DL160: -1.126661322e-18 | DM160: -9.114881561e-19 | DN160: -3.481574953e-19 | DO160: 3.481574953e-19 | DP160: 9.114881561e-19 | DQ160: 1.126661322e-18
B161: 91 | C161: 9100000000 | D161: 300.1791781 | E161: 14.29424657 | F161: 14.29424657 | G161: 0.06909691501 | H161: 0.06909691501 | I161: -0.0004774383663 | J161: -7.561880844e-05 | K161: -66.31405223 | L161: -0.0004324823607 | M161: -6.849847665e-05 | N161: -67.17303056 | S161: V(t) | T161: 91 | U161: 2.059984128e-18 | V161: -0.0002346242511 | W161: -0.0003961996144 | X161: -0.0004344205459 | Y161: -0.0003373871823 | Z161: -0.0001353102935 | AA161: 0.0001088946635 | AB161: 0.0003191959041 | AC161: 0.0004301173676 | AD161: 0.0004071243053 | AE161: 0.0002573754727 | AF161: 2.749429248e-05 | AG161: -0.0002109470748 | AH161: -0.0003837113046 | AI161: -0.0004370092648 | AJ161: -0.0003542469473 | AK161: -0.0001611919155 | AL161: 8.204927603e-05 | AM161: 0.0002997449056 | AN161: 0.0004241167126 | AO161: 0.0004164422626 | AP161: 0.0002791109508 | AQ161: 5.488007755e-05 | AR161: -0.0001864373868 | AS161: -0.0003697086616 | AT161: -0.0004378733077 | AU161: -0.0003697086616 | AV161: -0.0001864373868 | AW161: 5.488007755e-05 | AX161: 0.0002791109508 | AY161: 0.0004164422626 | AZ161: 0.0004241167126 | BA161: 0.0002997449056 | BB161: 8.204927603e-05 | BC161: -0.0001611919155 | BD161: -0.0003542469473 | BE161: -0.0004370092648 | BF161: -0.0003837113046 | BG161: -0.0002109470748 | BH161: 2.749429248e-05 | BI161: 0.0002573754727 | BJ161: 0.0004071243053 | BK161: 0.0004301173676 | BL161: 0.0003191959041 | BM161: 0.0001088946635 | BN161: -0.0001353102935 | BO161: -0.0003373871823 | BP161: -0.0004344205459 | BQ161: -0.0003961996144 | BR161: -0.0002346242511 | BS161: 2.832478176e-18 | BT161: 0.0002346242511 | BU161: 0.0003961996144 | BV161: 0.0004344205459 | BW161: 0.0003373871823 | BX161: 0.0001353102935 | BY161: -0.0001088946635 | BZ161: -0.0003191959041 | CA161: -0.0004301173676 | CB161: -0.0004071243053 | CC161: -0.0002573754727 | CD161: -2.749429248e-05 | CE161: 0.0002109470748 | CF161: 0.0003837113046 | CG161: 0.0004370092648 | CH161: 0.0003542469473 | CI161: 0.0001611919155 | CJ161: -8.204927603e-05 | CK161: -0.0002997449056 | CL161: -0.0004241167126 | CM161: -0.0004164422626 | CN161: -0.0002791109508 | CO161: -5.488007755e-05 | CP161: 0.0001864373868 | CQ161: 0.0003697086616 | CR161: 0.0004378733077 | CS161: 0.0003697086616 | CT161: 0.0001864373868 | CU161: -5.488007755e-05 | CV161: -0.0002791109508 | CW161: -0.0004164422626 | CX161: -0.0004241167126 | CY161: -0.0002997449056 | CZ161: -8.204927603e-05 | DA161: 0.0001611919155 | DB161: 0.0003542469473 | DC161: 0.0004370092648 | DD161: 0.0003837113046 | DE161: 0.0002109470748 | DF161: -2.749429248e-05 | DG161: -0.0002573754727 | DH161: -0.0004071243053 | DI161: -0.0004301173676 | DJ161: -0.0003191959041 | DK161: -0.0001088946635 | DL161: 0.0001353102935 | DM161: 0.0003373871823 | DN161: 0.0004344205459 | DO161: 0.0003961996144 | DP161: 0.0002346242511 | DQ161: -9.256376048e-18
B162: 92 | C162: 9200000000 | D162: 303.4778503 | E162: 14.45132621 | F162: 14.45132621 | G162: 0.06581101988 | H162: 0.06581101988 | I162: 2.160702909e-18 | J162: -6.674171207e-18 | K162: -343.0791841 | L162: 1.952976518e-18 | M162: -6.032527466e-18 | N162: -343.9571448 | S162: V(t) | T162: 92 | U162: -6.34077749e-18 | V162: -5.559723512e-18 | W162: -3.403268216e-18 | X162: -4.048898312e-19 | Y162: 2.693652888e-18 | Z162: 5.125821871e-18 | AA162: 6.289931004e-18 | AB162: 5.897995241e-18 | AC162: 4.046974253e-18 | AD162: 1.194785902e-18 | AE162: -1.952976518e-18 | AF162: -4.617598639e-18 | AG162: -6.139888549e-18 | AH162: -6.143252061e-18 | AI162: -4.626857088e-18 | AJ162: -1.965839486e-18 | AK162: 1.181500541e-18 | AL162: 4.036553119e-18 | AM162: 5.893016384e-18 | AN162: 6.291626127e-18 | AO162: 5.133771622e-18 | AP162: 2.705890607e-18 | AQ162: -3.913915943e-19 | AR162: -3.391848744e-18 | AS162: -5.55320783e-18 | AT162: -6.34077749e-18 | AU162: -5.559723512e-18 | AV162: -3.403268216e-18 | AW162: -4.048898312e-19 | AX162: 2.693652888e-18 | AY162: 5.125821871e-18 | AZ162: 6.289931004e-18 | BA162: 5.897995241e-18 | BB162: 4.046974253e-18 | BC162: 1.194785902e-18 | BD162: -1.952976518e-18 | BE162: -4.617598639e-18 | BF162: -6.139888549e-18 | BG162: -6.143252061e-18 | BH162: -4.626857088e-18 | BI162: -1.965839486e-18 | BJ162: 1.181500541e-18 | BK162: 4.036553119e-18 | BL162: 5.893016384e-18 | BM162: 6.291626127e-18 | BN162: 5.133771622e-18 | BO162: 2.705890607e-18 | BP162: -3.913915943e-19 | BQ162: -3.391848744e-18 | BR162: -5.55320783e-18 | BS162: -6.34077749e-18 | BT162: -5.559723512e-18 | BU162: -3.403268216e-18 | BV162: -4.048898312e-19 | BW162: 2.693652888e-18 | BX162: 5.125821871e-18 | BY162: 6.289931004e-18 | BZ162: 5.897995241e-18 | CA162: 4.046974253e-18 | CB162: 1.194785902e-18 | CC162: -1.952976518e-18 | CD162: -4.617598639e-18 | CE162: -6.139888549e-18 | CF162: -6.143252061e-18 | CG162: -4.626857088e-18 | CH162: -1.965839486e-18 | CI162: 1.181500541e-18 | CJ162: 4.036553119e-18 | CK162: 5.893016384e-18 | CL162: 6.291626127e-18 | CM162: 5.133771622e-18 | CN162: 2.705890607e-18 | CO162: -3.913915943e-19 | CP162: -3.391848744e-18 | CQ162: -5.55320783e-18 | CR162: -6.34077749e-18 | CS162: -5.559723512e-18 | CT162: -3.403268216e-18 | CU162: -4.048898312e-19 | CV162: 2.693652888e-18 | CW162: 5.125821871e-18 | CX162: 6.289931004e-18 | CY162: 5.897995241e-18 | CZ162: 4.046974253e-18 | DA162: 1.194785902e-18 | DB162: -1.952976518e-18 | DC162: -4.617598639e-18 | DD162: -6.139888549e-18 | DE162: -6.143252061e-18 | DF162: -4.626857088e-18 | DG162: -1.965839486e-18 | DH162: 1.181500541e-18 | DI162: 4.036553119e-18 | DJ162: 5.893016384e-18 | DK162: 6.291626127e-18 | DL162: 5.133771622e-18 | DM162: 2.705890607e-18 | DN162: -3.913915943e-19 | DO162: -3.391848744e-18 | DP162: -5.55320783e-18 | DQ162: -6.34077749e-18
B163: 93 | C163: 9300000000 | D163: 306.7765226 | E163: 14.60840584 | F163: 14.60840584 | G163: 0.06099272802 | H163: 0.06099272802 | I163: -0.0003720112872 | J163: -0.0001895492183 | K163: -67.58649534 | L163: -0.000335504686 | M163: -0.0001709481759 | N163: -68.48364588 | S163: V(t) | T163: 93 | U163: 9.188613412e-18 | V163: -0.0001603253665 | W163: -0.0002901334575 | X163: -0.0003647158359 | Y163: -0.0003698760521 | Z163: -0.0003046318801 | AA163: -0.0001814022802 | AB163: -2.364350088e-05 | AC163: 0.0001386157218 | AD163: 0.0002744900108 | AE163: 0.000358116253 | AF163: 0.0003735765365 | AG163: 0.0003179280598 | AH163: 0.000201763282 | AI163: 4.719369166e-05 | AJ163: -0.0001163590241 | AK163: -0.0002577632773 | AL163: -0.0003501033488 | AM163: -0.0003758026849 | AN163: -0.0003299695227 | AO163: -0.0002213280163 | AP163: -7.05576305e-05 | AQ163: 9.36431106e-05 | AR163: 0.00024001927 | AS163: 0.0003407087466 | AT163: 0.0003765457119 | AU163: 0.0003407087466 | AV163: 0.00024001927 | AW163: 9.36431106e-05 | AX163: -7.05576305e-05 | AY163: -0.0002213280163 | AZ163: -0.0003299695227 | BA163: -0.0003758026849 | BB163: -0.0003501033488 | BC163: -0.0002577632773 | BD163: -0.0001163590241 | BE163: 4.719369166e-05 | BF163: 0.000201763282 | BG163: 0.0003179280598 | BH163: 0.0003735765365 | BI163: 0.000358116253 | BJ163: 0.0002744900108 | BK163: 0.0001386157218 | BL163: -2.364350088e-05 | BM163: -0.0001814022802 | BN163: -0.0003046318801 | BO163: -0.0003698760521 | BP163: -0.0003647158359 | BQ163: -0.0002901334575 | BR163: -0.0001603253665 | BS163: 8.483882e-18 | BT163: 0.0001603253665 | BU163: 0.0002901334575 | BV163: 0.0003647158359 | BW163: 0.0003698760521 | BX163: 0.0003046318801 | BY163: 0.0001814022802 | BZ163: 2.364350088e-05 | CA163: -0.0001386157218 | CB163: -0.0002744900108 | CC163: -0.000358116253 | CD163: -0.0003735765365 | CE163: -0.0003179280598 | CF163: -0.000201763282 | CG163: -4.719369166e-05 | CH163: 0.0001163590241 | CI163: 0.0002577632773 | CJ163: 0.0003501033488 | CK163: 0.0003758026849 | CL163: 0.0003299695227 | CM163: 0.0002213280163 | CN163: 7.05576305e-05 | CO163: -9.36431106e-05 | CP163: -0.00024001927 | CQ163: -0.0003407087466 | CR163: -0.0003765457119 | CS163: -0.0003407087466 | CT163: -0.00024001927 | CU163: -9.36431106e-05 | CV163: 7.05576305e-05 | CW163: 0.0002213280163 | CX163: 0.0003299695227 | CY163: 0.0003758026849 | CZ163: 0.0003501033488 | DA163: 0.0002577632773 | DB163: 0.0001163590241 | DC163: -4.719369166e-05 | DD163: -0.000201763282 | DE163: -0.0003179280598 | DF163: -0.0003735765365 | DG163: -0.000358116253 | DH163: -0.0002744900108 | DI163: -0.0001386157218 | DJ163: 2.364350088e-05 | DK163: 0.0001814022802 | DL163: 0.0003046318801 | DM163: 0.0003698760521 | DN163: 0.0003647158359 | DO163: 0.0002901334575 | DP163: 0.0001603253665 | DQ163: -2.214482937e-17
B164: 94 | C164: 9400000000 | D164: 310.0751949 | E164: 14.76548547 | F164: 14.76548547 | G164: 0.05479108668 | H164: 0.05479108668 | I164: 8.928862138e-19 | J164: -1.198347287e-18 | K164: -356.5105643 | L164: 8.034682622e-19 | M164: -1.078338983e-18 | N164: -357.4271121 | S164: V(t) | T164: 94 | U164: -1.344661359e-18 | V164: -1.244275413e-18 | W164: -9.691346831e-19 | X164: -5.578818672e-19 | Y164: -6.827620097e-20 | Z164: 4.309186548e-19 | AA164: 8.695922661e-19 | AB164: 1.186134228e-18 | AC164: 1.336087162e-18 | AD164: 1.298390625e-18 | AE164: 1.078338983e-18 | AF164: 7.06837836e-19 | AG164: 2.360634151e-19 | AH164: -2.67865411e-19 | AI164: -7.341733361e-19 | AJ164: -1.097368798e-18 | AK164: -1.306442073e-18 | AL164: -1.332029442e-18 | AM164: -1.170537234e-18 | AN164: -8.446465499e-19 | AO164: -4.001277681e-19 | AP164: 1.005877696e-19 | AQ164: 5.87176054e-19 | AR164: 9.912972066e-19 | AS164: 1.256193612e-18 | AT164: 1.344661359e-18 | AU164: 1.244275413e-18 | AV164: 9.691346831e-19 | AW164: 5.578818672e-19 | AX164: 6.827620097e-20 | AY164: -4.309186548e-19 | AZ164: -8.695922661e-19 | BA164: -1.186134228e-18 | BB164: -1.336087162e-18 | BC164: -1.298390625e-18 | BD164: -1.078338983e-18 | BE164: -7.06837836e-19 | BF164: -2.360634151e-19 | BG164: 2.67865411e-19 | BH164: 7.341733361e-19 | BI164: 1.097368798e-18 | BJ164: 1.306442073e-18 | BK164: 1.332029442e-18 | BL164: 1.170537234e-18 | BM164: 8.446465499e-19 | BN164: 4.001277681e-19 | BO164: -1.005877696e-19 | BP164: -5.87176054e-19 | BQ164: -9.912972066e-19 | BR164: -1.256193612e-18 | BS164: -1.344661359e-18 | BT164: -1.244275413e-18 | BU164: -9.691346831e-19 | BV164: -5.578818672e-19 | BW164: -6.827620097e-20 | BX164: 4.309186548e-19 | BY164: 8.695922661e-19 | BZ164: 1.186134228e-18 | CA164: 1.336087162e-18 | CB164: 1.298390625e-18 | CC164: 1.078338983e-18 | CD164: 7.06837836e-19 | CE164: 2.360634151e-19 | CF164: -2.67865411e-19 | CG164: -7.341733361e-19 | CH164: -1.097368798e-18 | CI164: -1.306442073e-18 | CJ164: -1.332029442e-18 | CK164: -1.170537234e-18 | CL164: -8.446465499e-19 | CM164: -4.001277681e-19 | CN164: 1.005877696e-19 | CO164: 5.87176054e-19 | CP164: 9.912972066e-19 | CQ164: 1.256193612e-18 | CR164: 1.344661359e-18 | CS164: 1.244275413e-18 | CT164: 9.691346831e-19 | CU164: 5.578818672e-19 | CV164: 6.827620097e-20 | CW164: -4.309186548e-19 | CX164: -8.695922661e-19 | CY164: -1.186134228e-18 | CZ164: -1.336087162e-18 | DA164: -1.298390625e-18 | DB164: -1.078338983e-18 | DC164: -7.06837836e-19 | DD164: -2.360634151e-19 | DE164: 2.67865411e-19 | DF164: 7.341733361e-19 | DG164: 1.097368798e-18 | DH164: 1.306442073e-18 | DI164: 1.332029442e-18 | DJ164: 1.170537234e-18 | DK164: 8.446465499e-19 | DL164: 4.001277681e-19 | DM164: -1.005877696e-19 | DN164: -5.87176054e-19 | DO164: -9.912972066e-19 | DP164: -1.256193612e-18 | DQ164: -1.344661359e-18
B165: 95 | C165: 9500000000 | D165: 313.3738672 | E165: 14.9225651 | F165: 14.9225651 | G165: 0.04738506927 | H165: 0.04738506927 | I165: -0.000224534479 | J165: -0.000224534479 | K165: -69.96403925 | L165: -0.000201592983 | M165: -0.000201592983 | N165: -70.90019182 | S165: V(t) | T165: 95 | U165: 2.927345866e-18 | V165: -8.8099364e-05 | W165: -0.0001675749484 | X165: -0.0002306471293 | Y165: -0.0002711419622 | Z165: -0.0002850955307 | AA165: -0.0002711419622 | AB165: -0.0002306471293 | AC165: -0.0001675749484 | AD165: -8.8099364e-05 | AE165: -3.306816626e-18 | AF165: 8.8099364e-05 | AG165: 0.0001675749484 | AH165: 0.0002306471293 | AI165: 0.0002711419622 | AJ165: 0.0002850955307 | AK165: 0.0002711419622 | AL165: 0.0002306471293 | AM165: 0.0001675749484 | AN165: 8.8099364e-05 | AO165: 1.599198204e-18 | AP165: -8.8099364e-05 | AQ165: -0.0001675749484 | AR165: -0.0002306471293 | AS165: -0.0002711419622 | AT165: -0.0002850955307 | AU165: -0.0002711419622 | AV165: -0.0002306471293 | AW165: -0.0001675749484 | AX165: -8.8099364e-05 | AY165: 0 | AZ165: 8.8099364e-05 | BA165: 0.0001675749484 | BB165: 0.0002306471293 | BC165: 0.0002711419622 | BD165: 0.0002850955307 | BE165: 0.0002711419622 | BF165: 0.0002306471293 | BG165: 0.0001675749484 | BH165: 8.8099364e-05 | BI165: -1.734723476e-18 | BJ165: -8.8099364e-05 | BK165: -0.0001675749484 | BL165: -0.0002306471293 | BM165: -0.0002711419622 | BN165: -0.0002850955307 | BO165: -0.0002711419622 | BP165: -0.0002306471293 | BQ165: -0.0001675749484 | BR165: -8.8099364e-05 | BS165: 3.415236843e-18 | BT165: 8.8099364e-05 | BU165: 0.0001675749484 | BV165: 0.0002306471293 | BW165: 0.0002711419622 | BX165: 0.0002850955307 | BY165: 0.0002711419622 | BZ165: 0.0002306471293 | CA165: 0.0001675749484 | CB165: 8.8099364e-05 | CC165: -1.31730564e-17 | CD165: -8.8099364e-05 | CE165: -0.0001675749484 | CF165: -0.0002306471293 | CG165: -0.0002711419622 | CH165: -0.0002850955307 | CI165: -0.0002711419622 | CJ165: -0.0002306471293 | CK165: -0.0001675749484 | CL165: -8.8099364e-05 | CM165: 6.776263578e-18 | CN165: 8.8099364e-05 | CO165: 0.0001675749484 | CP165: 0.0002306471293 | CQ165: 0.0002711419622 | CR165: 0.0002850955307 | CS165: 0.0002711419622 | CT165: 0.0002306471293 | CU165: 0.0001675749484 | CV165: 8.8099364e-05 | CW165: -1.653408313e-17 | CX165: -8.8099364e-05 | CY165: -0.0001675749484 | CZ165: -0.0002306471293 | DA165: -0.0002711419622 | DB165: -0.0002850955307 | DC165: -0.0002711419622 | DD165: -0.0002306471293 | DE165: -0.0001675749484 | DF165: -8.8099364e-05 | DG165: 1.013729031e-17 | DH165: 8.8099364e-05 | DI165: 0.0001675749484 | DJ165: =Re_H*COS(NH_*Rad_+NH_*Ofs_)+Im_H*SIN(NH_*Rad_+NH_*Ofs_) -> 0.0002306471293 | DK165: 0.0002711419622 | DL165: 0.0002850955307 | DM165: 0.0002711419622 | DN165: 0.0002306471293 | DO165: 0.0001675749484 | DP165: 8.8099364e-05 | DQ165: -3.686287386e-18
B166: 96 | C166: 9600000000 | D166: 316.6725395 | E166: 15.07964474 | F166: 15.07964474 | G166: 0.03897872016 | H166: 0.03897872016 | I166: 4.198865953e-18 | J166: -3.059995462e-18 | K166: -345.6873199 | L166: 3.761263604e-18 | M166: -2.741085257e-18 | N166: -346.6432847 | S166: V(t) | T166: 96 | U166: -4.654095666e-18 | V166: -4.509562143e-18 | W166: -4.081676246e-18 | X166: -3.39732362e-18 | Y166: -2.499504655e-18 | Z166: -1.444632621e-18 | AA166: -2.989890064e-19 | AB166: 8.654411874e-19 | AC166: 1.975492528e-18 | AD166: 2.961416409e-18 | AE166: 3.761263604e-18 | AF166: 4.324776775e-18 | AG166: 4.616548315e-18 | AH166: 4.618245147e-18 | AI166: 4.329760651e-18 | AJ166: 3.769221369e-18 | AK166: 2.971848047e-18 | AL166: 1.987742582e-18 | AM166: 8.787399407e-19 | AN166: -2.854771632e-19 | AO166: -1.431756687e-18 | AP166: -2.488073673e-18 | AQ166: -3.388055839e-18 | AR166: -4.075153996e-18 | AS166: -4.506195241e-18 | AT166: -4.654095666e-18 | AU166: -4.509562143e-18 | AV166: -4.081676246e-18 | AW166: -3.39732362e-18 | AX166: -2.499504655e-18 | AY166: -1.444632621e-18 | AZ166: -2.989890064e-19 | BA166: 8.654411874e-19 | BB166: 1.975492528e-18 | BC166: 2.961416409e-18 | BD166: 3.761263604e-18 | BE166: 4.324776775e-18 | BF166: 4.616548315e-18 | BG166: 4.618245147e-18 | BH166: 4.329760651e-18 | BI166: 3.769221369e-18 | BJ166: 2.971848047e-18 | BK166: 1.987742582e-18 | BL166: 8.787399407e-19 | BM166: -2.854771632e-19 | BN166: -1.431756687e-18 | BO166: =Re_H*COS(NH_*Rad_+NH_*Ofs_)+Im_H*SIN(NH_*Rad_+NH_*Ofs_) -> -2.488073673e-18 | BP166: -3.388055839e-18 | BQ166: -4.075153996e-18 | BR166: -4.506195241e-18 | BS166: -4.654095666e-18 | BT166: -4.509562143e-18 | BU166: -4.081676246e-18 | BV166: -3.39732362e-18 | BW166: -2.499504655e-18 | BX166: -1.444632621e-18 | BY166: -2.989890064e-19 | BZ166: 8.654411874e-19 | CA166: 1.975492528e-18 | CB166: 2.961416409e-18 | CC166: 3.761263604e-18 | CD166: 4.324776775e-18 | CE166: 4.616548315e-18 | CF166: 4.618245147e-18 | CG166: 4.329760651e-18 | CH166: 3.769221369e-18 | CI166: 2.971848047e-18 | CJ166: 1.987742582e-18 | CK166: 8.787399407e-19 | CL166: -2.854771632e-19 | CM166: -1.431756687e-18 | CN166: -2.488073673e-18 | CO166: -3.388055839e-18 | CP166: -4.075153996e-18 | CQ166: -4.506195241e-18 | CR166: -4.654095666e-18 | CS166: -4.509562143e-18 | CT166: =Re_H*COS(NH_*Rad_+NH_*Ofs_)+Im_H*SIN(NH_*Rad_+NH_*Ofs_) -> -4.081676246e-18 | CU166: -3.39732362e-18 | CV166: -2.499504655e-18 | CW166: -1.444632621e-18 | CX166: -2.989890064e-19 | CY166: 8.654411874e-19 | CZ166: 1.975492528e-18 | DA166: 2.961416409e-18 | DB166: 3.761263604e-18 | DC166: 4.324776775e-18 | DD166: 4.616548315e-18 | DE166: 4.618245147e-18 | DF166: 4.329760651e-18 | DG166: 3.769221369e-18 | DH166: 2.971848047e-18 | DI166: 1.987742582e-18 | DJ166: 8.787399407e-19 | DK166: -2.854771632e-19 | DL166: -1.431756687e-18 | DM166: -2.488073673e-18 | DN166: -3.388055839e-18 | DO166: -4.075153996e-18 | DP166: -4.506195241e-18 | DQ166: -4.654095666e-18
B167: 97 | C167: 9700000000 | D167: =NH_*PI()*(2*D_/100*T_+tr_)/T_ -> 319.9712118 | E167: =NH_*PI()*tr_/T_ -> 15.23672437 | F167: 15.23672437 | G167: 0.02979580707 | H167: 0.02979580707 | I167: -8.877901191e-05 | J167: -0.0001742386214 | K167: -74.17472915 | L167: -7.93434509e-05 | M167: -0.0001557202903 | N167: -75.15071359 | S167: V(t) | T167: 97 | U167: 5.068645156e-18 | V167: -3.274843888e-05 | W167: -6.433674799e-05 | X167: -9.364589573e-05 | Y167: -0.0001196375909 | Z167: -0.0001413910648 | AA167: -0.0001581356897 | AB167: -0.000169278279 | AC167: -0.0001744241009 | AD167: -0.000173390862 | AE167: -0.0001662151654 | AF167: -0.0001531512137 | AG167: -0.0001346618039 | AH167: -0.0001114019326 | AI167: -8.419559222e-05 | AJ167: =Re_H*COS(NH_*Rad_+NH_*Ofs_)+Im_H*SIN(NH_*Rad_+NH_*Ofs_) -> -5.400658105e-05 | AK167: -2.190435983e-05 | AL167: 1.097383427e-05 | AM167: 4.346327481e-05 | AN167: 7.441300718e-05 | AO167: 0.0001027266217 | AP167: 0.0001274010944 | AQ167: 0.0001475623198 | AR167: 0.0001624960765 | AS167: 0.0001716733286 | AT167: 0.0001747689675 | AU167: 0.0001716733286 | AV167: 0.0001624960765 | AW167: 0.0001475623198 | AX167: 0.0001274010944 | AY167: 0.0001027266217 | AZ167: =Re_H*COS(NH_*Rad_+NH_*Ofs_)+Im_H*SIN(NH_*Rad_+NH_*Ofs_) -> 7.441300718e-05 | BA167: 4.346327481e-05 | BB167: 1.097383427e-05 | BC167: -2.190435983e-05 | BD167: -5.400658105e-05 | BE167: -8.419559222e-05 | BF167: -0.0001114019326 | BG167: -0.0001346618039 | BH167: -0.0001531512137 | BI167: -0.0001662151654 | BJ167: -0.000173390862 | BK167: -0.0001744241009 | BL167: -0.000169278279 | BM167: -0.0001581356897 | BN167: -0.0001413910648 | BO167: -0.0001196375909 | BP167: -9.364589573e-05 | BQ167: -6.433674799e-05 | BR167: -3.274843888e-05 | BS167: -4.838252195e-18 | BT167: 3.274843888e-05 | BU167: 6.433674799e-05 | BV167: 9.364589573e-05 | BW167: 0.0001196375909 | BX167: 0.0001413910648 | BY167: 0.0001581356897 | BZ167: 0.000169278279 | CA167: 0.0001744241009 | CB167: 0.000173390862 | CC167: 0.0001662151654 | CD167: 0.0001531512137 | CE167: =Re_H*COS(NH_*Rad_+NH_*Ofs_)+Im_H*SIN(NH_*Rad_+NH_*Ofs_) -> 0.0001346618039 | CF167: 0.0001114019326 | CG167: 8.419559222e-05 | CH167: 5.400658105e-05 | CI167: 2.190435983e-05 | CJ167: -1.097383427e-05 | CK167: -4.346327481e-05 | CL167: -7.441300718e-05 | CM167: -0.0001027266217 | CN167: -0.0001274010944 | CO167: -0.0001475623198 | CP167: -0.0001624960765 | CQ167: -0.0001716733286 | CR167: -0.0001747689675 | CS167: -0.0001716733286 | CT167: -0.0001624960765 | CU167: -0.0001475623198 | CV167: -0.0001274010944 | CW167: -0.0001027266217 | CX167: -7.441300718e-05 | CY167: -4.346327481e-05 | CZ167: -1.097383427e-05 | DA167: 2.190435983e-05 | DB167: 5.400658105e-05 | DC167: 8.419559222e-05 | DD167: 0.0001114019326 | DE167: 0.0001346618039 | DF167: 0.0001531512137 | DG167: 0.0001662151654 | DH167: 0.000173390862 | DI167: 0.0001744241009 | DJ167: 0.000169278279 | DK167: 0.0001581356897 | DL167: 0.0001413910648 | DM167: 0.0001196375909 | DN167: 9.364589573e-05 | DO167: 6.433674799e-05 | DP167: 3.274843888e-05 | DQ167: -9.039535613e-18
B168: 98 | C168: =NH_*f_ -> 9800000000 | D168: =NH_*PI()*(2*D_/100*T_+tr_)/T_ -> 323.2698841 | E168: =NH_*PI()*tr_/T_ -> 15.393804 | F168: =NH_*PI()*tf_/T_ -> 15.393804 | G168: =SIN(Rad_tr)/Rad_tr -> 0.02007411516 | H168: =SIN(Rad_tf)/Rad_tf -> 0.02007411516 | I168: 4.493502619e-18 | J168: -1.464966371e-18 | K168: -346.509617 | L168: 4.00658556e-18 | M168: -1.306222252e-18 | N168: -347.5058285 | S168: V(t) | T168: 98 | U168: =Re_H*COS(NH_*Rad_+NH_*Ofs_)+Im_H*SIN(NH_*Rad_+NH_*Ofs_) -> -4.214134179e-18 | V168: -4.181429388e-18 | W168: -4.082780957e-18 | X168: -3.919744632e-18 | Y168: -3.694891592e-18 | Z168: -3.411767904e-18 | AA168: -3.074838599e-18 | AB168: -2.689417252e-18 | AC168: -2.261582189e-18 | AD168: -1.798080623e-18 | AE168: -1.306222252e-18 | AF168: -7.937639752e-19 | AG168: -2.687875667e-19 | AH168: 2.604277823e-19 | AI168: 7.855360296e-19 | AJ168: 1.298255904e-18 | AK168: 1.790501508e-18 | AL168: 2.254509833e-18 | AM168: 2.682963192e-18 | AN168: 3.069104618e-18 | AO168: 3.406844431e-18 | AP168: 3.690856272e-18 | AQ168: 3.916661105e-18 | AR168: 4.080697853e-18 | AS168: 4.180379558e-18 | AT168: 4.214134179e-18 | AU168: 4.181429388e-18 | AV168: 4.082780957e-18 | AW168: 3.919744632e-18 | AX168: 3.694891592e-18 | AY168: 3.411767904e-18 | AZ168: 3.074838599e-18 | BA168: 2.689417252e-18 | BB168: 2.261582189e-18 | BC168: 1.798080623e-18 | BD168: 1.306222252e-18 | BE168: 7.937639752e-19 | BF168: 2.687875667e-19 | BG168: -2.604277823e-19 | BH168: -7.855360296e-19 | BI168: -1.298255904e-18 | BJ168: -1.790501508e-18 | BK168: -2.254509833e-18 | BL168: -2.682963192e-18 | BM168: -3.069104618e-18 | BN168: -3.406844431e-18 | BO168: -3.690856272e-18 | BP168: -3.916661105e-18 | BQ168: -4.080697853e-18 | BR168: -4.180379558e-18 | BS168: -4.214134179e-18 | BT168: -4.181429388e-18 | BU168: -4.082780957e-18 | BV168: -3.919744632e-18 | BW168: -3.694891592e-18 | BX168: -3.411767904e-18 | BY168: -3.074838599e-18 | BZ168: -2.689417252e-18 | CA168: -2.261582189e-18 | CB168: -1.798080623e-18 | CC168: -1.306222252e-18 | CD168: -7.937639752e-19 | CE168: -2.687875667e-19 | CF168: 2.604277823e-19 | CG168: 7.855360296e-19 | CH168: 1.298255904e-18 | CI168: 1.790501508e-18 | CJ168: 2.254509833e-18 | CK168: 2.682963192e-18 | CL168: 3.069104618e-18 | CM168: 3.406844431e-18 | CN168: 3.690856272e-18 | CO168: 3.916661105e-18 | CP168: 4.080697853e-18 | CQ168: 4.180379558e-18 | CR168: 4.214134179e-18 | CS168: 4.181429388e-18 | CT168: 4.082780957e-18 | CU168: 3.919744632e-18 | CV168: 3.694891592e-18 | CW168: 3.411767904e-18 | CX168: 3.074838599e-18 | CY168: 2.689417252e-18 | CZ168: 2.261582189e-18 | DA168: 1.798080623e-18 | DB168: 1.306222252e-18 | DC168: 7.937639752e-19 | DD168: 2.687875667e-19 | DE168: -2.604277823e-19 | DF168: -7.855360296e-19 | DG168: -1.298255904e-18 | DH168: -1.790501508e-18 | DI168: -2.254509833e-18 | DJ168: -2.682963192e-18 | DK168: -3.069104618e-18 | DL168: -3.406844431e-18 | DM168: -3.690856272e-18 | DN168: -3.916661105e-18 | DO168: -4.080697853e-18 | DP168: -4.180379558e-18 | DQ168: -4.214134179e-18
B169: 99 | C169: =NH_*f_ -> 9900000000 | D169: =NH_*PI()*(2*D_/100*T_+tr_)/T_ -> 326.5685563 | E169: =NH_*PI()*tr_/T_ -> 15.55088364 | F169: =NH_*PI()*tf_/T_ -> 15.55088364 | G169: =SIN(Rad_tr)/Rad_tr -> 0.01005952258 | H169: =SIN(Rad_tf)/Rad_tf -> 0.01005952258 | I169: -1.011939945e-05 | J169: -6.389137361e-05 | K169: -83.78355404 | L169: -9.001656429e-06 | M169: -5.683422191e-05 | N169: -84.80020017 | S169: V(t) | T169: 99 | U169: 8.588914085e-19 | V169: -3.613133996e-06 | W169: -7.212008603e-06 | X169: -1.078242071e-05 | Y169: -1.431027952e-05 | Z169: -1.77816622e-05 | AA169: -2.118286878e-05 | AB169: -2.450047626e-05 | AC169: -2.772139155e-05 | AD169: -3.083290317e-05 | AE169: -3.382273141e-05 | AF169: -3.667907679e-05 | AG169: -3.93906666e-05 | AH169: -4.194679944e-05 | AI169: -4.433738744e-05 | AJ169: -4.655299602e-05 | AK169: -4.858488119e-05 | AL169: -5.042502404e-05 | AM169: -5.206616235e-05 | AN169: -5.35018193e-05 | AO169: -5.472632902e-05 | AP169: -5.573485892e-05 | AQ169: -5.652342879e-05 | AR169: -5.708892651e-05 | AS169: -5.742912033e-05 | AT169: -5.754266764e-05 | AU169: -5.742912033e-05 | AV169: -5.708892651e-05 | AW169: -5.652342879e-05 | AX169: -5.573485892e-05 | AY169: -5.472632902e-05 | AZ169: -5.35018193e-05 | BA169: -5.206616235e-05 | BB169: -5.042502404e-05 | BC169: -4.858488119e-05 | BD169: -4.655299602e-05 | BE169: -4.433738744e-05 | BF169: -4.194679944e-05 | BG169: -3.93906666e-05 | BH169: -3.667907679e-05 | BI169: -3.382273141e-05 | BJ169: -3.083290317e-05 | BK169: -2.772139155e-05 | BL169: -2.450047626e-05 | BM169: -2.118286878e-05 | BN169: -1.77816622e-05 | BO169: -1.431027952e-05 | BP169: -1.078242071e-05 | BQ169: -7.212008603e-06 | BR169: -3.613133996e-06 | BS169: -2.205673795e-18 | BT169: 3.613133996e-06 | BU169: 7.212008603e-06 | BV169: 1.078242071e-05 | BW169: 1.431027952e-05 | BX169: 1.77816622e-05 | BY169: 2.118286878e-05 | BZ169: 2.450047626e-05 | CA169: 2.772139155e-05 | CB169: 3.083290317e-05 | CC169: 3.382273141e-05 | CD169: 3.667907679e-05 | CE169: 3.93906666e-05 | CF169: 4.194679944e-05 | CG169: 4.433738744e-05 | CH169: 4.655299602e-05 | CI169: 4.858488119e-05 | CJ169: 5.042502404e-05 | CK169: 5.206616235e-05 | CL169: 5.35018193e-05 | CM169: 5.472632902e-05 | CN169: 5.573485892e-05 | CO169: 5.652342879e-05 | CP169: 5.708892651e-05 | CQ169: 5.742912033e-05 | CR169: 5.754266764e-05 | CS169: 5.742912033e-05 | CT169: 5.708892651e-05 | CU169: 5.652342879e-05 | CV169: 5.573485892e-05 | CW169: 5.472632902e-05 | CX169: 5.35018193e-05 | CY169: 5.206616235e-05 | CZ169: 5.042502404e-05 | DA169: 4.858488119e-05 | DB169: 4.655299602e-05 | DC169: 4.433738744e-05 | DD169: 4.194679944e-05 | DE169: 3.93906666e-05 | DF169: 3.667907679e-05 | DG169: 3.382273141e-05 | DH169: 3.083290317e-05 | DI169: 2.772139155e-05 | DJ169: 2.450047626e-05 | DK169: 2.118286878e-05 | DL169: 1.77816622e-05 | DM169: 1.431027952e-05 | DN169: 1.078242071e-05 | DO169: 7.212008603e-06 | DP169: 3.613133996e-06 | DQ169: -3.320369153e-19
B170: 100 | C170: =NH_*f_ -> 10000000000 | D170: =NH_*PI()*(2*D_/100*T_+tr_)/T_ -> 329.8672286 | E170: =NH_*PI()*tr_/T_ -> 15.70796327 | F170: =NH_*PI()*tf_/T_ -> 15.70796327 | G170: =SIN(Rad_tr)/Rad_tr -> 3.899768652e-17 | H170: =SIN(Rad_tf)/Rad_tf -> 3.899768652e-17 | I170: 6.371937843e-33 | J170: 0 | K170: -200 | L170: 5.654668143e-33 | M170: 0 | N170: -200 | S170: V(t) | T170: 100 | U170: -5.654668143e-33 | V170: -5.654668143e-33 | W170: -5.654668143e-33 | X170: -5.654668143e-33 | Y170: -5.654668143e-33 | Z170: -5.654668143e-33 | AA170: -5.654668143e-33 | AB170: -5.654668143e-33 | AC170: -5.654668143e-33 | AD170: -5.654668143e-33 | AE170: -5.654668143e-33 | AF170: -5.654668143e-33 | AG170: -5.654668143e-33 | AH170: -5.654668143e-33 | AI170: -5.654668143e-33 | AJ170: -5.654668143e-33 | AK170: -5.654668143e-33 | AL170: -5.654668143e-33 | AM170: -5.654668143e-33 | AN170: -5.654668143e-33 | AO170: -5.654668143e-33 | AP170: -5.654668143e-33 | AQ170: -5.654668143e-33 | AR170: -5.654668143e-33 | AS170: -5.654668143e-33 | AT170: -5.654668143e-33 | AU170: -5.654668143e-33 | AV170: -5.654668143e-33 | AW170: -5.654668143e-33 | AX170: -5.654668143e-33 | AY170: -5.654668143e-33 | AZ170: -5.654668143e-33 | BA170: -5.654668143e-33 | BB170: -5.654668143e-33 | BC170: -5.654668143e-33 | BD170: -5.654668143e-33 | BE170: -5.654668143e-33 | BF170: -5.654668143e-33 | BG170: -5.654668143e-33 | BH170: -5.654668143e-33 | BI170: -5.654668143e-33 | BJ170: -5.654668143e-33 | BK170: -5.654668143e-33 | BL170: -5.654668143e-33 | BM170: -5.654668143e-33 | BN170: -5.654668143e-33 | BO170: -5.654668143e-33 | BP170: -5.654668143e-33 | BQ170: -5.654668143e-33 | BR170: -5.654668143e-33 | BS170: -5.654668143e-33 | BT170: -5.654668143e-33 | BU170: -5.654668143e-33 | BV170: -5.654668143e-33 | BW170: -5.654668143e-33 | BX170: -5.654668143e-33 | BY170: -5.654668143e-33 | BZ170: -5.654668143e-33 | CA170: -5.654668143e-33 | CB170: -5.654668143e-33 | CC170: -5.654668143e-33 | CD170: -5.654668143e-33 | CE170: -5.654668143e-33 | CF170: -5.654668143e-33 | CG170: -5.654668143e-33 | CH170: -5.654668143e-33 | CI170: -5.654668143e-33 | CJ170: -5.654668143e-33 | CK170: -5.654668143e-33 | CL170: -5.654668143e-33 | CM170: -5.654668143e-33 | CN170: -5.654668143e-33 | CO170: -5.654668143e-33 | CP170: -5.654668143e-33 | CQ170: -5.654668143e-33 | CR170: -5.654668143e-33 | CS170: -5.654668143e-33 | CT170: -5.654668143e-33 | CU170: -5.654668143e-33 | CV170: -5.654668143e-33 | CW170: -5.654668143e-33 | CX170: -5.654668143e-33 | CY170: -5.654668143e-33 | CZ170: -5.654668143e-33 | DA170: -5.654668143e-33 | DB170: -5.654668143e-33 | DC170: -5.654668143e-33 | DD170: -5.654668143e-33 | DE170: -5.654668143e-33 | DF170: -5.654668143e-33 | DG170: -5.654668143e-33 | DH170: -5.654668143e-33 | DI170: -5.654668143e-33 | DJ170: -5.654668143e-33 | DK170: -5.654668143e-33 | DL170: -5.654668143e-33 | DM170: -5.654668143e-33 | DN170: -5.654668143e-33 | DO170: -5.654668143e-33 | DP170: -5.654668143e-33 | DQ170: -5.654668143e-33
S171: Precise piece-wise-linear mathematical-expression time series
S172: V(t) | T172: Pwl_ | U172: =MAX(MIN(MIN(MAX(((Low_+High_)/2+(High_-Low_)*N_*T_/tr_/100),Low_),High_),MAX(((Low_+High_)/2-(High_-Low_)*(N_-D_)*T_/tf_/100),Low_)),MIN(((Low_+High_)/2+(High_-Low_)*(N_-100)*T_/tr_/100),High_)) -> 0.5 | V172: 0.7 | W172: 0.9 | X172: 1 | Y172: 1 | Z172: 1 | AA172: 1 | AB172: 1 | AC172: 1 | AD172: 1 | AE172: =MAX(MIN(MIN(MAX(((Low_+High_)/2+(High_-Low_)*N_*T_/tr_/100),Low_),High_),MAX(((Low_+High_)/2-(High_-Low_)*(N_-D_)*T_/tf_/100),Low_)),MIN(((Low_+High_)/2+(High_-Low_)*(N_-100)*T_/tr_/100),High_)) -> 1 | AF172: 1 | AG172: 1 | AH172: 1 | AI172: 1 | AJ172: 1 | AK172: 1 | AL172: 1 | AM172: 1 | AN172: 1 | AO172: =MAX(MIN(MIN(MAX(((Low_+High_)/2+(High_-Low_)*N_*T_/tr_/100),Low_),High_),MAX(((Low_+High_)/2-(High_-Low_)*(N_-D_)*T_/tf_/100),Low_)),MIN(((Low_+High_)/2+(High_-Low_)*(N_-100)*T_/tr_/100),High_)) -> 1 | AP172: 1 | AQ172: 1 | AR172: 1 | AS172: 1 | AT172: 1 | AU172: 1 | AV172: 1 | AW172: 1 | AX172: 1 | AY172: =MAX(MIN(MIN(MAX(((Low_+High_)/2+(High_-Low_)*N_*T_/tr_/100),Low_),High_),MAX(((Low_+High_)/2-(High_-Low_)*(N_-D_)*T_/tf_/100),Low_)),MIN(((Low_+High_)/2+(High_-Low_)*(N_-100)*T_/tr_/100),High_)) -> 1 | AZ172: 1 | BA172: 1 | BB172: 1 | BC172: 1 | BD172: 1 | BE172: 1 | BF172: 1 | BG172: 1 | BH172: 1 | BI172: =MAX(MIN(MIN(MAX(((Low_+High_)/2+(High_-Low_)*N_*T_/tr_/100),Low_),High_),MAX(((Low_+High_)/2-(High_-Low_)*(N_-D_)*T_/tf_/100),Low_)),MIN(((Low_+High_)/2+(High_-Low_)*(N_-100)*T_/tr_/100),High_)) -> 1 | BJ172: 1 | BK172: 1 | BL172: 1 | BM172: 1 | BN172: 1 | BO172: 1 | BP172: 1 | BQ172: 0.9 | BR172: 0.7 | BS172: =MAX(MIN(MIN(MAX(((Low_+High_)/2+(High_-Low_)*N_*T_/tr_/100),Low_),High_),MAX(((Low_+High_)/2-(High_-Low_)*(N_-D_)*T_/tf_/100),Low_)),MIN(((Low_+High_)/2+(High_-Low_)*(N_-100)*T_/tr_/100),High_)) -> 0.5 | BT172: 0.3 | BU172: 0.1 | BV172: 0 | BW172: 0 | BX172: 0 | BY172: 0 | BZ172: 0 | CA172: 0 | CB172: 0 | CC172: =MAX(MIN(MIN(MAX(((Low_+High_)/2+(High_-Low_)*N_*T_/tr_/100),Low_),High_),MAX(((Low_+High_)/2-(High_-Low_)*(N_-D_)*T_/tf_/100),Low_)),MIN(((Low_+High_)/2+(High_-Low_)*(N_-100)*T_/tr_/100),High_)) -> 0 | CD172: 0 | CE172: 0 | CF172: 0 | CG172: 0 | CH172: 0 | CI172: 0 | CJ172: 0 | CK172: 0 | CL172: 0 | CM172: =MAX(MIN(MIN(MAX(((Low_+High_)/2+(High_-Low_)*N_*T_/tr_/100),Low_),High_),MAX(((Low_+High_)/2-(High_-Low_)*(N_-D_)*T_/tf_/100),Low_)),MIN(((Low_+High_)/2+(High_-Low_)*(N_-100)*T_/tr_/100),High_)) -> 0 | CN172: 0 | CO172: 0 | CP172: 0 | CQ172: 0 | CR172: 0 | CS172: 0 | CT172: 0 | CU172: 0 | CV172: 0 | CW172: =MAX(MIN(MIN(MAX(((Low_+High_)/2+(High_-Low_)*N_*T_/tr_/100),Low_),High_),MAX(((Low_+High_)/2-(High_-Low_)*(N_-D_)*T_/tf_/100),Low_)),MIN(((Low_+High_)/2+(High_-Low_)*(N_-100)*T_/tr_/100),High_)) -> 0 | CX172: 0 | CY172: 0 | CZ172: 0 | DA172: 0 | DB172: 0 | DC172: 0 | DD172: 0 | DE172: 0 | DF172: 0 | DG172: =MAX(MIN(MIN(MAX(((Low_+High_)/2+(High_-Low_)*N_*T_/tr_/100),Low_),High_),MAX(((Low_+High_)/2-(High_-Low_)*(N_-D_)*T_/tf_/100),Low_)),MIN(((Low_+High_)/2+(High_-Low_)*(N_-100)*T_/tr_/100),High_)) -> 0 | DH172: 0 | DI172: 0 | DJ172: 0 | DK172: 0 | DL172: 0 | DM172: 0 | DN172: 0 | DO172: 0.1 | DP172: 0.3 | DQ172: 0.5
S173: Composition of time-seriers from harmonics
T174: N_3 | U174: =SUM(U70:U73) -> 0.5 | V174: =SUM(V70:V73) -> 0.5781130262 | W174: 0.6547120062 | X174: 0.7283315838 | Y174: 0.7976020783 | Z174: 0.8612931184 | AA174: 0.9183524 | AB174: 0.9679382135 | AC174: 1.009444605 | AD174: 1.042518304 | AE174: 1.067066826 | AF174: 1.083257492 | AG174: 1.09150741 | AH174: 1.092464784 | AI174: 1.086982245 | AJ174: 1.076083145 | AK174: 1.060922031 | AL174: 1.042740714 | AM174: 1.022821495 | AN174: 1.002439219 | AO174: 0.982813869 | AP174: 0.9650653809 | AQ174: 0.9501722928 | AR174: 0.9389357002 | AS174: 0.9319497971 | AT174: 0.9295800523 | AU174: 0.9319497971 | AV174: 0.9389357002 | AW174: 0.9501722928 | AX174: 0.9650653809 | AY174: 0.982813869 | AZ174: 1.002439219 | BA174: 1.022821495 | BB174: 1.042740714 | BC174: 1.060922031 | BD174: 1.076083145 | BE174: 1.086982245 | BF174: 1.092464784 | BG174: 1.09150741 | BH174: 1.083257492 | BI174: 1.067066826 | BJ174: 1.042518304 | BK174: 1.009444605 | BL174: 0.9679382135 | BM174: 0.9183524 | BN174: 0.8612931184 | BO174: 0.7976020783 | BP174: 0.7283315838 | BQ174: 0.6547120062 | BR174: 0.5781130262 | BS174: 0.5 | BT174: 0.4218869738 | BU174: 0.3452879938 | BV174: 0.2716684162 | BW174: 0.2023979217 | BX174: 0.1387068816 | BY174: 0.08164759997 | BZ174: 0.03206178654 | CA174: -0.009444605376 | CB174: -0.04251830421 | CC174: -0.06706682615 | CD174: -0.0832574925 | CE174: -0.09150740973 | CF174: -0.09246478365 | CG174: -0.08698224474 | CH174: =SUM(CH70:CH73) -> -0.07608314453 | CI174: -0.06092203066 | CJ174: -0.04274071379 | CK174: -0.02282149457 | CL174: -0.00243921882 | CM174: 0.01718613096 | CN174: 0.03493461911 | CO174: 0.04982770724 | CP174: 0.06106429984 | CQ174: 0.06805020293 | CR174: 0.07041994766 | CS174: 0.06805020293 | CT174: 0.06106429984 | CU174: 0.04982770724 | CV174: 0.03493461911 | CW174: 0.01718613096 | CX174: -0.00243921882 | CY174: -0.02282149457 | CZ174: -0.04274071379 | DA174: -0.06092203066 | DB174: -0.07608314453 | DC174: -0.08698224474 | DD174: -0.09246478365 | DE174: -0.09150740973 | DF174: -0.0832574925 | DG174: -0.06706682615 | DH174: -0.04251830421 | DI174: -0.009444605376 | DJ174: 0.03206178654 | DK174: 0.08164759997 | DL174: 0.1387068816 | DM174: 0.2023979217 | DN174: =SUM(DN70:DN73) -> 0.2716684162 | DO174: =SUM(DO70:DO73) -> 0.3452879938 | DP174: =SUM(DP70:DP73) -> 0.4218869738 | DQ174: =SUM(DQ70:DQ73) -> 0.5
